Workbook

Sheet Portada
G21: Herramienta - Evaluación de beneficios económicos de la
G22: implementación de tecnologías de redes inteligentes para usuarios finales
G24: Versión 1.0
G26: Ir a Top Dashboard >>>
G28: © The Carbon Trust 2021. Todos los derechos reservados.

Sheet Aviso Legal
B2: Aviso Legal
B4: Este modelo ha sido desarrollado para el programa "Apoyo al despliegue de redes inteligentes en Colombia Fase 2 - avanzando hacia la implementación" financiado por UK PACT Colombia. El uso del modelo y los resultados que genere son responsabilidad exclusiva de cada usuario. Cualquier información y resultados derivados del uso de este modelo están sujetos a la precisión de los datos de entrada suministrados durante el proceso de modelado. Este modelo no ha sido objeto de ninguna auditoría externa independiente. Todos los resultados deben verificarse y cuestionarse antes de cualquier dependencia, publicación o uso.
B5: Si bien el modelo ha sido preparado de buena fe, no se hará ninguna representación, garantía, aseguramiento o compromiso (expreso o implícito), y no se aceptará responsabilidad alguna por parte de The Carbon Trust o cualquiera de sus subsidiarias o por cualquiera de sus respectivos funcionarios, empleados o agentes en relación con la idoneidad, precisión, integridad o razonabilidad del modelo o de cualquier información o resultados derivados del mismo. Toda y cualquier responsabilidad (incluso en el caso de negligencia) se rechaza expresamente en la máxima medida permitida por la ley.
B6: La provisión de este modelo financiero, o cualquier asesoramiento en relación con él, es solo indicativo y no constituye un consejo o recomendación financiera con respecto a ningún producto financiero.
B7: Todas las marcas comerciales, marcas de servicio y logotipos del modelo y los derechos de autor del mismo son propiedad de The Carbon Trust. Nada en el modelo se interpretará como una concesión de licencia o derecho para usar o reproducir cualquiera de las marcas comerciales, marcas de servicio, logotipos, derechos de autor o cualquier información de propiedad de ninguna manera sin el permiso previo por escrito de The Carbon Trust.
B8: Cualquier uso de este modelo indica su aceptación de los términos establecidos en este aviso legal.
B9: The Carbon Trust es una empresa limitada por garantía y registrada en Inglaterra y Gales con el número de empresa 4190230, con domicilio social en 4th Floor Dorset House, Stamford Street, London SE1 9NT.
B11: © The Carbon Trust 2021. Todos los derechos reservados.

Sheet CT_QA
B4: Aseguramiento de la calidad
C5: Control de versiones | H5: Firmas
D8: Versión | E8: Fecha | F8: Actualizaciones | I8: Modelo preparado por: | J8: Sebastian Del Cueto, Laura Glover
D9: v1.0 | E9: 2022-03-09 | F9: Versión publicada | I9: Modelo revisado por: | J9: Maria Gonzalez

Sheet Guía
B4: Guía del usuario
C5: Código de colores | J5: Estructura del modelo
D7: Hojas
F9: Tableros (Dashboards)
F11: Hojas de cálculo (Ocultas)
F13: Hojas de referencia
D16: Celdas
F18: Entrada del usuario
F20: Datos fijos
F22: Cálculo
F24: Salida
E26: 1 | F26: Errores
F28: Comentarios
C33: Principales supuestos y limitantes
D35: Referencias
F37: Los perfiles de demanda precargados en la hoja de referencia correspondiente fueron obtenidos a partir del agrupamiento de datos de mediciones inteligentes realizado por la Universidad Nacional de Colombia (UNAL).
F38: Los perfiles de radiación solar por ciudad fueron obtenidos del Atlas de Radiación Solar, Ultravioleta y Ozono de Colombia, elaborado por IDEAM.
F39: Los precios promedio de la energía por mercado fueron obtenidos de los boletines tarifarios trimestrales emitidos por Superservicios en 2020.
F40: La caracterización de los climas por ciudad fue realizada con base en la clasificación de Caldas, la cual considera únicamente la temperatura media anual.
D42: Generales
F44: La herramienta ha sido desarrollada para evaluar los beneficios de implementar tarifas horarias, intervenciones tecnológicas y cambios de comportamiento únicamente en usuarios regulados.
F45: Se considera en el modelo únicamente potencia activa (energía útil).
F46: No se considera que haya diferencias significativas entre el perfil de demanda en día laboral y en fin de semana/día festivo, ni entre los perfiles de demanda mensuales, por lo que el perfil de demanda promedio se aplica para todos los días del año.
F47: Las preguntas para determinar la curva de demanda fueron definidas con base en los datos disponibles al momento de la elaboración de esta herramienta y varían dependiendo el tipo de usuario, clima y área de distribución.
F48: El precio promedio anual se utiliza para calcular el costo total de la energía y se ajusta con base en la inflación para la evaluación financiera.
F49: El nivel de tensión seleccionado modifica el costo unitario promedio de referencia (E4), basado en un porcentaje obtenido a partir de un análisis de múltiples tarifas en lugar de un cálculo único.
F50: Cuando se selecciona Cali como ciudad, la búsqueda automáticamente encuentra "Celsia", aunque hay otras opciones en Valle del Cauca. Esto tiene impacto únicamente en la búsqueda del costo unitario de referencia.
D52: Solar y Baterías
F54: Para el cálculo de la generación de energía solar, se utilizaron las siguientes suposiciones: Inclinación = Latitud (Redondeada), Azimut 0° (N) 180° (S), Pérdidas por Orientación e inclinación = 0, Rendimiento del sistema = 90%
F55: La batería debe cargar y descargar la misma cantidad de energía en un día representativo del mes, por lo que la carga inicial a las 0:00 hrs y la carga final a las 23:59 hrs debe ser la misma.
F56: Para tarifa monomia, la batería carga únicamente para utilizar el excedente solar.
F57: Para tarifa horaria, la batería está programada para exportar energía en periodo punta y para importar energía ya sea en periodo base, o a partir del excedente solar.
F58: Aunque la batería tenga la capacidad de cargar en una hora o menos, en este modelo la carga se reparte equitativamente en las horas del periodo base.
F59: La batería no optimiza para considerar la carga de los vehículos eléctricos, esto se hace por separado basado únicamente en la tarifa horaria.
D61: Vehículos eléctricos
F63: La carga de vehículos eléctricos no está optimizada con los paneles solares
F64: Para los recorridos, se asume que no hay diferencias entre día laboral y fin de semana.
F65: Se asume que los vehículos eléctricos tienen máximo dos recorridos por día.
F66: Se asume que no hay diferencias mensuales en el uso de los vehículos eléctricos.
F67: Se asume que 5 diferentes tipos de carros son suficientes.
F68: Para esta herramienta, está fuera del alcance la carga de vehículo a la red (V2G)
F69: Tanto para las baterías como para los EVs, se asume que si el cliente puede ahorrar dinero, cambiará el comportamiento probablemente como una respuesta automatizada. La elasticidad al precio no se tiene en cuenta.

Sheet Top dashboard
B2: Tablero principal
B5: Entradas | H5: Resultados
B6: Completa los campos en color verde | H6: La sección de resultados reflejará los datos completos una vez que se hayan completado las hojas de intervención tecnológica y de comportamiento
B7: Análisis técnico
C9: Ubicación | H9: Perfiles energéticos | AB9: TRUE | AC9: FALSE | AD9: FALSE | AE9: FALSE | AF9: FALSE | AG9: FALSE | AH9: FALSE | AI9: TRUE | AJ9: FALSE | AK9: FALSE | AL9: FALSE | AM9: FALSE | AN9: FALSE
D10: Ciudad | E10: Montería | H10: Selecciona los escenarios para reflejar la curva de demanda y sus cambios. | V10: Hora | W10: ToU tariff | X10: Horario Base | Y10: Horario Intermedio | Z10: Horario Punta | AA10: Based profile (not graphed) | AB10: Demanda base | AC10: Base + paneles solares | AD10: Base + ajuste de cargas | AE10: Base + paneles solares + ajuste de cargas | AF10: Base + paneles solares + batería | AG10: Demanda base con EV carga estándar | AH10: Demanda base con EV carga inteligente | AI10: EV carga estándar | AJ10: EV carga inteligente | AK10: Base + paneles solares | AL10: Base + ajuste de cargas2 | AM10: Base + paneles solares + ajuste de cargas | AN10: Base + paneles solares + batería
D11: Departamento | E11: =_xlfn.IFNA(INDEX(DeptosCOL[Departamento],MATCH('Top dashboard'!$E$10,DeptosCOL[Capital],0)),"") -> Córdoba | H11: Sin vehículos eléctricos | V11: 00:00:00 | W11: ='1 Linea Base'!K102 -> Base | X11: =IF(Table44[[#This Row],[ToU tariff]]="base",1,"") -> 1 | Y11: =IF(Table44[[#This Row],[ToU tariff]]="Intermedio",1,"") ->  | Z11: =IF(Table44[[#This Row],[ToU tariff]]="Punta",1,0) -> 0 | AA11: ='1 Linea Base'!P12 -> 0.01079797635 | AB11: ='1 Linea Base'!P12*$AB$9 -> 0.01079797635 | AC11: ='2A Solar FV'!P79*$AC$9 -> 0 | AD11: ='5C Resultados'!K10*$AD$9 -> 0 | AE11: ='6C Resultados'!L10*$AE$9 -> 0 | AF11: =AVERAGEIF(THoraria[Hora],Table44[[#This Row],[Hora]],THoraria[Balance neto con paneles solares y batería])*$AF$9 -> 0 | AG11: =(Table44[[#This Row],[Demanda base]]+'4 EV'!AN178)*$AG$9 -> 0 | AH11: =(Table44[[#This Row],[Based profile (not graphed)]]+'4 EV'!AS178)*$AH$9 -> 0 | AI11: ='4 EV'!AN178*$AI$9 -> 0 | AJ11: ='4 EV'!AS178*$AJ$9 -> 0 | AK11: =('2A Solar FV'!P79+Table44[[#This Row],[EV carga estándar]]+Table44[[#This Row],[EV carga inteligente]])*$AK$9 -> 0 | AL11: =('5C Resultados'!K10+Table44[[#This Row],[EV carga estándar]]+Table44[[#This Row],[EV carga inteligente]])*$AL$9 -> 0 | AM11: =('6C Resultados'!L10+Table44[[#This Row],[EV carga estándar]]+Table44[[#This Row],[EV carga inteligente]])*$AM$9 -> 0 | AN11: =('5A Input'!U8+Table44[[#This Row],[EV carga estándar]]+Table44[[#This Row],[EV carga inteligente]])*$AN$9 -> 0
D12: Área de distribución | E12: =_xlfn.IFNA(INDEX(DeptosCOL[ADD],MATCH('Top dashboard'!$E$10,DeptosCOL[Capital],0)),"") -> Caribe | V12: 01:00:00 | W12: ='1 Linea Base'!K103 -> Base | X12: =IF(Table44[[#This Row],[ToU tariff]]="base",1,"") -> 1 | Y12: =IF(Table44[[#This Row],[ToU tariff]]="Intermedio",1,"") ->  | Z12: =IF(Table44[[#This Row],[ToU tariff]]="Punta",1,0) -> 0 | AA12: ='1 Linea Base'!P13 -> 0.008473298085 | AB12: ='1 Linea Base'!P13*$AB$9 -> 0.008473298085 | AC12: ='2A Solar FV'!P80*$AC$9 -> 0 | AD12: ='5C Resultados'!K11*$AD$9 -> 0 | AE12: ='6C Resultados'!L11*$AE$9 -> 0 | AF12: =AVERAGEIF(THoraria[Hora],Table44[[#This Row],[Hora]],THoraria[Balance neto con paneles solares y batería])*$AF$9 -> 0 | AG12: =(Table44[[#This Row],[Demanda base]]+'4 EV'!AN179)*$AG$9 -> 0 | AH12: =(Table44[[#This Row],[Based profile (not graphed)]]+'4 EV'!AS179)*$AH$9 -> 0 | AI12: ='4 EV'!AN179*$AI$9 -> 0 | AJ12: ='4 EV'!AS179*$AJ$9 -> 0 | AK12: =('2A Solar FV'!P80+Table44[[#This Row],[EV carga estándar]]+Table44[[#This Row],[EV carga inteligente]])*$AK$9 -> 0 | AL12: =('5C Resultados'!K11+Table44[[#This Row],[EV carga estándar]]+Table44[[#This Row],[EV carga inteligente]])*$AL$9 -> 0 | AM12: =('6C Resultados'!L11+Table44[[#This Row],[EV carga estándar]]+Table44[[#This Row],[EV carga inteligente]])*$AM$9 -> 0 | AN12: =('5A Input'!U9+Table44[[#This Row],[EV carga estándar]]+Table44[[#This Row],[EV carga inteligente]])*$AN$9 -> 0
D13: Mercado | E13: =_xlfn.IFNA(INDEX(CiudadesCOL[Mercado],MATCH('Top dashboard'!$E$10,CiudadesCOL[Ciudad],0)),"") -> Caribe Mar | V13: 02:00:00 | W13: ='1 Linea Base'!K104 -> Base | X13: =IF(Table44[[#This Row],[ToU tariff]]="base",1,"") -> 1 | Y13: =IF(Table44[[#This Row],[ToU tariff]]="Intermedio",1,"") ->  | Z13: =IF(Table44[[#This Row],[ToU tariff]]="Punta",1,0) -> 0 | AA13: ='1 Linea Base'!P14 -> 0.00768127342 | AB13: ='1 Linea Base'!P14*$AB$9 -> 0.00768127342 | AC13: ='2A Solar FV'!P81*$AC$9 -> 0 | AD13: ='5C Resultados'!K12*$AD$9 -> 0 | AE13: ='6C Resultados'!L12*$AE$9 -> 0 | AF13: =AVERAGEIF(THoraria[Hora],Table44[[#This Row],[Hora]],THoraria[Balance neto con paneles solares y batería])*$AF$9 -> 0 | AG13: =(Table44[[#This Row],[Demanda base]]+'4 EV'!AN180)*$AG$9 -> 0 | AH13: =(Table44[[#This Row],[Based profile (not graphed)]]+'4 EV'!AS180)*$AH$9 -> 0 | AI13: ='4 EV'!AN180*$AI$9 -> 0 | AJ13: ='4 EV'!AS180*$AJ$9 -> 0 | AK13: =('2A Solar FV'!P81+Table44[[#This Row],[EV carga estándar]]+Table44[[#This Row],[EV carga inteligente]])*$AK$9 -> 0 | AL13: =('5C Resultados'!K12+Table44[[#This Row],[EV carga estándar]]+Table44[[#This Row],[EV carga inteligente]])*$AL$9 -> 0 | AM13: =('6C Resultados'!L12+Table44[[#This Row],[EV carga estándar]]+Table44[[#This Row],[EV carga inteligente]])*$AM$9 -> 0 | AN13: =('5A Input'!U10+Table44[[#This Row],[EV carga estándar]]+Table44[[#This Row],[EV carga inteligente]])*$AN$9 -> 0
D14: Nivel de altitud | E14: =_xlfn.IFNA(INDEX(CiudadesCOL[Altura],MATCH('Top dashboard'!$E$10,CiudadesCOL[Ciudad],0)),"") -> Bajo | V14: 03:00:00 | W14: ='1 Linea Base'!K105 -> Base | X14: =IF(Table44[[#This Row],[ToU tariff]]="base",1,"") -> 1 | Y14: =IF(Table44[[#This Row],[ToU tariff]]="Intermedio",1,"") ->  | Z14: =IF(Table44[[#This Row],[ToU tariff]]="Punta",1,0) -> 0 | AA14: ='1 Linea Base'!P15 -> 0.00731168658 | AB14: ='1 Linea Base'!P15*$AB$9 -> 0.00731168658 | AC14: ='2A Solar FV'!P82*$AC$9 -> 0 | AD14: ='5C Resultados'!K13*$AD$9 -> 0 | AE14: ='6C Resultados'!L13*$AE$9 -> 0 | AF14: =AVERAGEIF(THoraria[Hora],Table44[[#This Row],[Hora]],THoraria[Balance neto con paneles solares y batería])*$AF$9 -> 0 | AG14: =(Table44[[#This Row],[Demanda base]]+'4 EV'!AN181)*$AG$9 -> 0 | AH14: =(Table44[[#This Row],[Based profile (not graphed)]]+'4 EV'!AS181)*$AH$9 -> 0 | AI14: ='4 EV'!AN181*$AI$9 -> 0 | AJ14: ='4 EV'!AS181*$AJ$9 -> 0 | AK14: =('2A Solar FV'!P82+Table44[[#This Row],[EV carga estándar]]+Table44[[#This Row],[EV carga inteligente]])*$AK$9 -> 0 | AL14: =('5C Resultados'!K13+Table44[[#This Row],[EV carga estándar]]+Table44[[#This Row],[EV carga inteligente]])*$AL$9 -> 0 | AM14: =('6C Resultados'!L13+Table44[[#This Row],[EV carga estándar]]+Table44[[#This Row],[EV carga inteligente]])*$AM$9 -> 0 | AN14: =('5A Input'!U11+Table44[[#This Row],[EV carga estándar]]+Table44[[#This Row],[EV carga inteligente]])*$AN$9 -> 0
D15: Consumo de subsistencia (kWh) | E15: =_xlfn.IFNA(INDEX(CiudadesCOL[CS],MATCH('Top dashboard'!$E$10,CiudadesCOL[Ciudad],0)),"") -> 173 | V15: 04:00:00 | W15: ='1 Linea Base'!K106 -> Base | X15: =IF(Table44[[#This Row],[ToU tariff]]="base",1,"") -> 1 | Y15: =IF(Table44[[#This Row],[ToU tariff]]="Intermedio",1,"") ->  | Z15: =IF(Table44[[#This Row],[ToU tariff]]="Punta",1,0) -> 0 | AA15: ='1 Linea Base'!P16 -> 0.007451202895 | AB15: ='1 Linea Base'!P16*$AB$9 -> 0.007451202895 | AC15: ='2A Solar FV'!P83*$AC$9 -> 0 | AD15: ='5C Resultados'!K14*$AD$9 -> 0 | AE15: ='6C Resultados'!L14*$AE$9 -> 0 | AF15: =AVERAGEIF(THoraria[Hora],Table44[[#This Row],[Hora]],THoraria[Balance neto con paneles solares y batería])*$AF$9 -> 0 | AG15: =(Table44[[#This Row],[Demanda base]]+'4 EV'!AN182)*$AG$9 -> 0 | AH15: =(Table44[[#This Row],[Based profile (not graphed)]]+'4 EV'!AS182)*$AH$9 -> 0 | AI15: ='4 EV'!AN182*$AI$9 -> 0 | AJ15: ='4 EV'!AS182*$AJ$9 -> 0 | AK15: =('2A Solar FV'!P83+Table44[[#This Row],[EV carga estándar]]+Table44[[#This Row],[EV carga inteligente]])*$AK$9 -> 0 | AL15: =('5C Resultados'!K14+Table44[[#This Row],[EV carga estándar]]+Table44[[#This Row],[EV carga inteligente]])*$AL$9 -> 0 | AM15: =('6C Resultados'!L14+Table44[[#This Row],[EV carga estándar]]+Table44[[#This Row],[EV carga inteligente]])*$AM$9 -> 0 | AN15: =('5A Input'!U12+Table44[[#This Row],[EV carga estándar]]+Table44[[#This Row],[EV carga inteligente]])*$AN$9 -> 0
D16: Clima | E16: =_xlfn.IFNA(INDEX(CiudadesCOL[Clima],MATCH('Top dashboard'!$E$10,CiudadesCOL[Ciudad],0)),"") -> Cálido seco | V16: 05:00:00 | W16: ='1 Linea Base'!K107 -> Base | X16: =IF(Table44[[#This Row],[ToU tariff]]="base",1,"") -> 1 | Y16: =IF(Table44[[#This Row],[ToU tariff]]="Intermedio",1,"") ->  | Z16: =IF(Table44[[#This Row],[ToU tariff]]="Punta",1,0) -> 0 | AA16: ='1 Linea Base'!P17 -> 0.009023965733 | AB16: ='1 Linea Base'!P17*$AB$9 -> 0.009023965733 | AC16: ='2A Solar FV'!P84*$AC$9 -> 0 | AD16: ='5C Resultados'!K15*$AD$9 -> 0 | AE16: ='6C Resultados'!L15*$AE$9 -> 0 | AF16: =AVERAGEIF(THoraria[Hora],Table44[[#This Row],[Hora]],THoraria[Balance neto con paneles solares y batería])*$AF$9 -> 0 | AG16: =(Table44[[#This Row],[Demanda base]]+'4 EV'!AN183)*$AG$9 -> 0 | AH16: =(Table44[[#This Row],[Based profile (not graphed)]]+'4 EV'!AS183)*$AH$9 -> 0 | AI16: ='4 EV'!AN183*$AI$9 -> 0 | AJ16: ='4 EV'!AS183*$AJ$9 -> 0 | AK16: =('2A Solar FV'!P84+Table44[[#This Row],[EV carga estándar]]+Table44[[#This Row],[EV carga inteligente]])*$AK$9 -> 0 | AL16: =('5C Resultados'!K15+Table44[[#This Row],[EV carga estándar]]+Table44[[#This Row],[EV carga inteligente]])*$AL$9 -> 0 | AM16: =('6C Resultados'!L15+Table44[[#This Row],[EV carga estándar]]+Table44[[#This Row],[EV carga inteligente]])*$AM$9 -> 0 | AN16: =('5A Input'!U13+Table44[[#This Row],[EV carga estándar]]+Table44[[#This Row],[EV carga inteligente]])*$AN$9 -> 0
V17: 06:00:00 | W17: ='1 Linea Base'!K108 -> Base | X17: =IF(Table44[[#This Row],[ToU tariff]]="base",1,"") -> 1 | Y17: =IF(Table44[[#This Row],[ToU tariff]]="Intermedio",1,"") ->  | Z17: =IF(Table44[[#This Row],[ToU tariff]]="Punta",1,0) -> 0 | AA17: ='1 Linea Base'!P18 -> 0.01249745935 | AB17: ='1 Linea Base'!P18*$AB$9 -> 0.01249745935 | AC17: ='2A Solar FV'!P85*$AC$9 -> 0 | AD17: ='5C Resultados'!K16*$AD$9 -> 0 | AE17: ='6C Resultados'!L16*$AE$9 -> 0 | AF17: =AVERAGEIF(THoraria[Hora],Table44[[#This Row],[Hora]],THoraria[Balance neto con paneles solares y batería])*$AF$9 -> 0 | AG17: =(Table44[[#This Row],[Demanda base]]+'4 EV'!AN184)*$AG$9 -> 0 | AH17: =(Table44[[#This Row],[Based profile (not graphed)]]+'4 EV'!AS184)*$AH$9 -> 0 | AI17: ='4 EV'!AN184*$AI$9 -> 0 | AJ17: ='4 EV'!AS184*$AJ$9 -> 0 | AK17: =('2A Solar FV'!P85+Table44[[#This Row],[EV carga estándar]]+Table44[[#This Row],[EV carga inteligente]])*$AK$9 -> 0 | AL17: =('5C Resultados'!K16+Table44[[#This Row],[EV carga estándar]]+Table44[[#This Row],[EV carga inteligente]])*$AL$9 -> 0 | AM17: =('6C Resultados'!L16+Table44[[#This Row],[EV carga estándar]]+Table44[[#This Row],[EV carga inteligente]])*$AM$9 -> 0 | AN17: =('5A Input'!U14+Table44[[#This Row],[EV carga estándar]]+Table44[[#This Row],[EV carga inteligente]])*$AN$9 -> 0
V18: 07:00:00 | W18: ='1 Linea Base'!K109 -> Base | X18: =IF(Table44[[#This Row],[ToU tariff]]="base",1,"") -> 1 | Y18: =IF(Table44[[#This Row],[ToU tariff]]="Intermedio",1,"") ->  | Z18: =IF(Table44[[#This Row],[ToU tariff]]="Punta",1,0) -> 0 | AA18: ='1 Linea Base'!P19 -> 0.01538594208 | AB18: ='1 Linea Base'!P19*$AB$9 -> 0.01538594208 | AC18: ='2A Solar FV'!P86*$AC$9 -> 0 | AD18: ='5C Resultados'!K17*$AD$9 -> 0 | AE18: ='6C Resultados'!L17*$AE$9 -> 0 | AF18: =AVERAGEIF(THoraria[Hora],Table44[[#This Row],[Hora]],THoraria[Balance neto con paneles solares y batería])*$AF$9 -> 0 | AG18: =(Table44[[#This Row],[Demanda base]]+'4 EV'!AN185)*$AG$9 -> 0 | AH18: =(Table44[[#This Row],[Based profile (not graphed)]]+'4 EV'!AS185)*$AH$9 -> 0 | AI18: ='4 EV'!AN185*$AI$9 -> 0 | AJ18: ='4 EV'!AS185*$AJ$9 -> 0 | AK18: =('2A Solar FV'!P86+Table44[[#This Row],[EV carga estándar]]+Table44[[#This Row],[EV carga inteligente]])*$AK$9 -> 0 | AL18: =('5C Resultados'!K17+Table44[[#This Row],[EV carga estándar]]+Table44[[#This Row],[EV carga inteligente]])*$AL$9 -> 0 | AM18: =('6C Resultados'!L17+Table44[[#This Row],[EV carga estándar]]+Table44[[#This Row],[EV carga inteligente]])*$AM$9 -> 0 | AN18: =('5A Input'!U15+Table44[[#This Row],[EV carga estándar]]+Table44[[#This Row],[EV carga inteligente]])*$AN$9 -> 0
C19: Perfil Energético | V19: 08:00:00 | W19: ='1 Linea Base'!K110 -> Base | X19: =IF(Table44[[#This Row],[ToU tariff]]="base",1,"") -> 1 | Y19: =IF(Table44[[#This Row],[ToU tariff]]="Intermedio",1,"") ->  | Z19: =IF(Table44[[#This Row],[ToU tariff]]="Punta",1,0) -> 0 | AA19: ='1 Linea Base'!P20 -> 0.01548919635 | AB19: ='1 Linea Base'!P20*$AB$9 -> 0.01548919635 | AC19: ='2A Solar FV'!P87*$AC$9 -> 0 | AD19: ='5C Resultados'!K18*$AD$9 -> 0 | AE19: ='6C Resultados'!L18*$AE$9 -> 0 | AF19: =AVERAGEIF(THoraria[Hora],Table44[[#This Row],[Hora]],THoraria[Balance neto con paneles solares y batería])*$AF$9 -> 0 | AG19: =(Table44[[#This Row],[Demanda base]]+'4 EV'!AN186)*$AG$9 -> 0 | AH19: =(Table44[[#This Row],[Based profile (not graphed)]]+'4 EV'!AS186)*$AH$9 -> 0 | AI19: ='4 EV'!AN186*$AI$9 -> 0 | AJ19: ='4 EV'!AS186*$AJ$9 -> 0 | AK19: =('2A Solar FV'!P87+Table44[[#This Row],[EV carga estándar]]+Table44[[#This Row],[EV carga inteligente]])*$AK$9 -> 0 | AL19: =('5C Resultados'!K18+Table44[[#This Row],[EV carga estándar]]+Table44[[#This Row],[EV carga inteligente]])*$AL$9 -> 0 | AM19: =('6C Resultados'!L18+Table44[[#This Row],[EV carga estándar]]+Table44[[#This Row],[EV carga inteligente]])*$AM$9 -> 0 | AN19: =('5A Input'!U16+Table44[[#This Row],[EV carga estándar]]+Table44[[#This Row],[EV carga inteligente]])*$AN$9 -> 0
D20: Tipo de usuario | E20: Residencial | V20: 09:00:00 | W20: ='1 Linea Base'!K111 -> Base | X20: =IF(Table44[[#This Row],[ToU tariff]]="base",1,"") -> 1 | Y20: =IF(Table44[[#This Row],[ToU tariff]]="Intermedio",1,"") ->  | Z20: =IF(Table44[[#This Row],[ToU tariff]]="Punta",1,0) -> 0 | AA20: ='1 Linea Base'!P21 -> 0.01558788028 | AB20: ='1 Linea Base'!P21*$AB$9 -> 0.01558788028 | AC20: ='2A Solar FV'!P88*$AC$9 -> 0 | AD20: ='5C Resultados'!K19*$AD$9 -> 0 | AE20: ='6C Resultados'!L19*$AE$9 -> 0 | AF20: =AVERAGEIF(THoraria[Hora],Table44[[#This Row],[Hora]],THoraria[Balance neto con paneles solares y batería])*$AF$9 -> 0 | AG20: =(Table44[[#This Row],[Demanda base]]+'4 EV'!AN187)*$AG$9 -> 0 | AH20: =(Table44[[#This Row],[Based profile (not graphed)]]+'4 EV'!AS187)*$AH$9 -> 0 | AI20: ='4 EV'!AN187*$AI$9 -> 0 | AJ20: ='4 EV'!AS187*$AJ$9 -> 0 | AK20: =('2A Solar FV'!P88+Table44[[#This Row],[EV carga estándar]]+Table44[[#This Row],[EV carga inteligente]])*$AK$9 -> 0 | AL20: =('5C Resultados'!K19+Table44[[#This Row],[EV carga estándar]]+Table44[[#This Row],[EV carga inteligente]])*$AL$9 -> 0 | AM20: =('6C Resultados'!L19+Table44[[#This Row],[EV carga estándar]]+Table44[[#This Row],[EV carga inteligente]])*$AM$9 -> 0 | AN20: =('5A Input'!U17+Table44[[#This Row],[EV carga estándar]]+Table44[[#This Row],[EV carga inteligente]])*$AN$9 -> 0
D21: Estrato (si aplica) | E21: E3 | V21: 10:00:00 | W21: ='1 Linea Base'!K112 -> Punta | X21: =IF(Table44[[#This Row],[ToU tariff]]="base",1,"") ->  | Y21: =IF(Table44[[#This Row],[ToU tariff]]="Intermedio",1,"") ->  | Z21: =IF(Table44[[#This Row],[ToU tariff]]="Punta",1,0) -> 1 | AA21: ='1 Linea Base'!P22 -> 0.01569996086 | AB21: ='1 Linea Base'!P22*$AB$9 -> 0.01569996086 | AC21: ='2A Solar FV'!P89*$AC$9 -> 0 | AD21: ='5C Resultados'!K20*$AD$9 -> 0 | AE21: ='6C Resultados'!L20*$AE$9 -> 0 | AF21: =AVERAGEIF(THoraria[Hora],Table44[[#This Row],[Hora]],THoraria[Balance neto con paneles solares y batería])*$AF$9 -> 0 | AG21: =(Table44[[#This Row],[Demanda base]]+'4 EV'!AN188)*$AG$9 -> 0 | AH21: =(Table44[[#This Row],[Based profile (not graphed)]]+'4 EV'!AS188)*$AH$9 -> 0 | AI21: ='4 EV'!AN188*$AI$9 -> 0 | AJ21: ='4 EV'!AS188*$AJ$9 -> 0 | AK21: =('2A Solar FV'!P89+Table44[[#This Row],[EV carga estándar]]+Table44[[#This Row],[EV carga inteligente]])*$AK$9 -> 0 | AL21: =('5C Resultados'!K20+Table44[[#This Row],[EV carga estándar]]+Table44[[#This Row],[EV carga inteligente]])*$AL$9 -> 0 | AM21: =('6C Resultados'!L20+Table44[[#This Row],[EV carga estándar]]+Table44[[#This Row],[EV carga inteligente]])*$AM$9 -> 0 | AN21: =('5A Input'!U18+Table44[[#This Row],[EV carga estándar]]+Table44[[#This Row],[EV carga inteligente]])*$AN$9 -> 0
D22: Ajuste al Costo Unitario | E22: =_xlfn.IFNA(IF(E20="Residencial",INDEX(UsuariosCOL[],MATCH('Top dashboard'!E21,UsuariosCOL[Estato],0),3),INDEX(UsuariosCOL[],MATCH('Top dashboard'!E20,UsuariosCOL[Tipo de Usuario],0),3)),"-") -> Subsidio 3 | V22: 11:00:00 | W22: ='1 Linea Base'!K113 -> Punta | X22: =IF(Table44[[#This Row],[ToU tariff]]="base",1,"") ->  | Y22: =IF(Table44[[#This Row],[ToU tariff]]="Intermedio",1,"") ->  | Z22: =IF(Table44[[#This Row],[ToU tariff]]="Punta",1,0) -> 1 | AA22: ='1 Linea Base'!P23 -> 0.0159329651 | AB22: ='1 Linea Base'!P23*$AB$9 -> 0.0159329651 | AC22: ='2A Solar FV'!P90*$AC$9 -> 0 | AD22: ='5C Resultados'!K21*$AD$9 -> 0 | AE22: ='6C Resultados'!L21*$AE$9 -> 0 | AF22: =AVERAGEIF(THoraria[Hora],Table44[[#This Row],[Hora]],THoraria[Balance neto con paneles solares y batería])*$AF$9 -> 0 | AG22: =(Table44[[#This Row],[Demanda base]]+'4 EV'!AN189)*$AG$9 -> 0 | AH22: =(Table44[[#This Row],[Based profile (not graphed)]]+'4 EV'!AS189)*$AH$9 -> 0 | AI22: ='4 EV'!AN189*$AI$9 -> 0 | AJ22: ='4 EV'!AS189*$AJ$9 -> 0 | AK22: =('2A Solar FV'!P90+Table44[[#This Row],[EV carga estándar]]+Table44[[#This Row],[EV carga inteligente]])*$AK$9 -> 0 | AL22: =('5C Resultados'!K21+Table44[[#This Row],[EV carga estándar]]+Table44[[#This Row],[EV carga inteligente]])*$AL$9 -> 0 | AM22: =('6C Resultados'!L21+Table44[[#This Row],[EV carga estándar]]+Table44[[#This Row],[EV carga inteligente]])*$AM$9 -> 0 | AN22: =('5A Input'!U19+Table44[[#This Row],[EV carga estándar]]+Table44[[#This Row],[EV carga inteligente]])*$AN$9 -> 0
V23: 12:00:00 | W23: ='1 Linea Base'!K114 -> Punta | X23: =IF(Table44[[#This Row],[ToU tariff]]="base",1,"") ->  | Y23: =IF(Table44[[#This Row],[ToU tariff]]="Intermedio",1,"") ->  | Z23: =IF(Table44[[#This Row],[ToU tariff]]="Punta",1,0) -> 1 | AA23: ='1 Linea Base'!P24 -> 0.01634165999 | AB23: ='1 Linea Base'!P24*$AB$9 -> 0.01634165999 | AC23: ='2A Solar FV'!P91*$AC$9 -> 0 | AD23: ='5C Resultados'!K22*$AD$9 -> 0 | AE23: ='6C Resultados'!L22*$AE$9 -> 0 | AF23: =AVERAGEIF(THoraria[Hora],Table44[[#This Row],[Hora]],THoraria[Balance neto con paneles solares y batería])*$AF$9 -> 0 | AG23: =(Table44[[#This Row],[Demanda base]]+'4 EV'!AN190)*$AG$9 -> 0 | AH23: =(Table44[[#This Row],[Based profile (not graphed)]]+'4 EV'!AS190)*$AH$9 -> 0 | AI23: ='4 EV'!AN190*$AI$9 -> 0 | AJ23: ='4 EV'!AS190*$AJ$9 -> 0 | AK23: =('2A Solar FV'!P91+Table44[[#This Row],[EV carga estándar]]+Table44[[#This Row],[EV carga inteligente]])*$AK$9 -> 0 | AL23: =('5C Resultados'!K22+Table44[[#This Row],[EV carga estándar]]+Table44[[#This Row],[EV carga inteligente]])*$AL$9 -> 0 | AM23: =('6C Resultados'!L22+Table44[[#This Row],[EV carga estándar]]+Table44[[#This Row],[EV carga inteligente]])*$AM$9 -> 0 | AN23: =('5A Input'!U20+Table44[[#This Row],[EV carga estándar]]+Table44[[#This Row],[EV carga inteligente]])*$AN$9 -> 0
D24: Nivel de Tensión | E24: Nivel de Tensión 1 | V24: 13:00:00 | W24: ='1 Linea Base'!K115 -> Punta | X24: =IF(Table44[[#This Row],[ToU tariff]]="base",1,"") ->  | Y24: =IF(Table44[[#This Row],[ToU tariff]]="Intermedio",1,"") ->  | Z24: =IF(Table44[[#This Row],[ToU tariff]]="Punta",1,0) -> 1 | AA24: ='1 Linea Base'!P25 -> 0.0168370405 | AB24: ='1 Linea Base'!P25*$AB$9 -> 0.0168370405 | AC24: ='2A Solar FV'!P92*$AC$9 -> 0 | AD24: ='5C Resultados'!K23*$AD$9 -> 0 | AE24: ='6C Resultados'!L23*$AE$9 -> 0 | AF24: =AVERAGEIF(THoraria[Hora],Table44[[#This Row],[Hora]],THoraria[Balance neto con paneles solares y batería])*$AF$9 -> 0 | AG24: =(Table44[[#This Row],[Demanda base]]+'4 EV'!AN191)*$AG$9 -> 0 | AH24: =(Table44[[#This Row],[Based profile (not graphed)]]+'4 EV'!AS191)*$AH$9 -> 0 | AI24: ='4 EV'!AN191*$AI$9 -> 0 | AJ24: ='4 EV'!AS191*$AJ$9 -> 0 | AK24: =('2A Solar FV'!P92+Table44[[#This Row],[EV carga estándar]]+Table44[[#This Row],[EV carga inteligente]])*$AK$9 -> 0 | AL24: =('5C Resultados'!K23+Table44[[#This Row],[EV carga estándar]]+Table44[[#This Row],[EV carga inteligente]])*$AL$9 -> 0 | AM24: =('6C Resultados'!L23+Table44[[#This Row],[EV carga estándar]]+Table44[[#This Row],[EV carga inteligente]])*$AM$9 -> 0 | AN24: =('5A Input'!U21+Table44[[#This Row],[EV carga estándar]]+Table44[[#This Row],[EV carga inteligente]])*$AN$9 -> 0
D25: Rango de Tensión | E25: =_xlfn.IFNA(IF(E20="Residencial",'Info Colombia'!Q66,INDEX(Voltaje[Rango de Tensión],MATCH('Top dashboard'!E24,Voltaje[Nivel],0))),"") -> N1 < 1 kV | V25: 14:00:00 | W25: ='1 Linea Base'!K116 -> Base | X25: =IF(Table44[[#This Row],[ToU tariff]]="base",1,"") -> 1 | Y25: =IF(Table44[[#This Row],[ToU tariff]]="Intermedio",1,"") ->  | Z25: =IF(Table44[[#This Row],[ToU tariff]]="Punta",1,0) -> 0 | AA25: ='1 Linea Base'!P26 -> 0.01665996417 | AB25: ='1 Linea Base'!P26*$AB$9 -> 0.01665996417 | AC25: ='2A Solar FV'!P93*$AC$9 -> 0 | AD25: ='5C Resultados'!K24*$AD$9 -> 0 | AE25: ='6C Resultados'!L24*$AE$9 -> 0 | AF25: =AVERAGEIF(THoraria[Hora],Table44[[#This Row],[Hora]],THoraria[Balance neto con paneles solares y batería])*$AF$9 -> 0 | AG25: =(Table44[[#This Row],[Demanda base]]+'4 EV'!AN192)*$AG$9 -> 0 | AH25: =(Table44[[#This Row],[Based profile (not graphed)]]+'4 EV'!AS192)*$AH$9 -> 0 | AI25: ='4 EV'!AN192*$AI$9 -> 0 | AJ25: ='4 EV'!AS192*$AJ$9 -> 0 | AK25: =('2A Solar FV'!P93+Table44[[#This Row],[EV carga estándar]]+Table44[[#This Row],[EV carga inteligente]])*$AK$9 -> 0 | AL25: =('5C Resultados'!K24+Table44[[#This Row],[EV carga estándar]]+Table44[[#This Row],[EV carga inteligente]])*$AL$9 -> 0 | AM25: =('6C Resultados'!L24+Table44[[#This Row],[EV carga estándar]]+Table44[[#This Row],[EV carga inteligente]])*$AM$9 -> 0 | AN25: =('5A Input'!U22+Table44[[#This Row],[EV carga estándar]]+Table44[[#This Row],[EV carga inteligente]])*$AN$9 -> 0
V26: 15:00:00 | W26: ='1 Linea Base'!K117 -> Base | X26: =IF(Table44[[#This Row],[ToU tariff]]="base",1,"") -> 1 | Y26: =IF(Table44[[#This Row],[ToU tariff]]="Intermedio",1,"") ->  | Z26: =IF(Table44[[#This Row],[ToU tariff]]="Punta",1,0) -> 0 | AA26: ='1 Linea Base'!P27 -> 0.01655865315 | AB26: ='1 Linea Base'!P27*$AB$9 -> 0.01655865315 | AC26: ='2A Solar FV'!P94*$AC$9 -> 0 | AD26: ='5C Resultados'!K25*$AD$9 -> 0 | AE26: ='6C Resultados'!L25*$AE$9 -> 0 | AF26: =AVERAGEIF(THoraria[Hora],Table44[[#This Row],[Hora]],THoraria[Balance neto con paneles solares y batería])*$AF$9 -> 0 | AG26: =(Table44[[#This Row],[Demanda base]]+'4 EV'!AN193)*$AG$9 -> 0 | AH26: =(Table44[[#This Row],[Based profile (not graphed)]]+'4 EV'!AS193)*$AH$9 -> 0 | AI26: ='4 EV'!AN193*$AI$9 -> 0 | AJ26: ='4 EV'!AS193*$AJ$9 -> 0 | AK26: =('2A Solar FV'!P94+Table44[[#This Row],[EV carga estándar]]+Table44[[#This Row],[EV carga inteligente]])*$AK$9 -> 0 | AL26: =('5C Resultados'!K25+Table44[[#This Row],[EV carga estándar]]+Table44[[#This Row],[EV carga inteligente]])*$AL$9 -> 0 | AM26: =('6C Resultados'!L25+Table44[[#This Row],[EV carga estándar]]+Table44[[#This Row],[EV carga inteligente]])*$AM$9 -> 0 | AN26: =('5A Input'!U23+Table44[[#This Row],[EV carga estándar]]+Table44[[#This Row],[EV carga inteligente]])*$AN$9 -> 0
D27: Capacidad de conexión (kW) | E27: 6 | V27: 16:00:00 | W27: ='1 Linea Base'!K118 -> Base | X27: =IF(Table44[[#This Row],[ToU tariff]]="base",1,"") -> 1 | Y27: =IF(Table44[[#This Row],[ToU tariff]]="Intermedio",1,"") ->  | Z27: =IF(Table44[[#This Row],[ToU tariff]]="Punta",1,0) -> 0 | AA27: ='1 Linea Base'!P28 -> 0.0178997023 | AB27: ='1 Linea Base'!P28*$AB$9 -> 0.0178997023 | AC27: ='2A Solar FV'!P95*$AC$9 -> 0 | AD27: ='5C Resultados'!K26*$AD$9 -> 0 | AE27: ='6C Resultados'!L26*$AE$9 -> 0 | AF27: =AVERAGEIF(THoraria[Hora],Table44[[#This Row],[Hora]],THoraria[Balance neto con paneles solares y batería])*$AF$9 -> 0 | AG27: =(Table44[[#This Row],[Demanda base]]+'4 EV'!AN194)*$AG$9 -> 0 | AH27: =(Table44[[#This Row],[Based profile (not graphed)]]+'4 EV'!AS194)*$AH$9 -> 0 | AI27: ='4 EV'!AN194*$AI$9 -> 0 | AJ27: ='4 EV'!AS194*$AJ$9 -> 0 | AK27: =('2A Solar FV'!P95+Table44[[#This Row],[EV carga estándar]]+Table44[[#This Row],[EV carga inteligente]])*$AK$9 -> 0 | AL27: =('5C Resultados'!K26+Table44[[#This Row],[EV carga estándar]]+Table44[[#This Row],[EV carga inteligente]])*$AL$9 -> 0 | AM27: =('6C Resultados'!L26+Table44[[#This Row],[EV carga estándar]]+Table44[[#This Row],[EV carga inteligente]])*$AM$9 -> 0 | AN27: =('5A Input'!U24+Table44[[#This Row],[EV carga estándar]]+Table44[[#This Row],[EV carga inteligente]])*$AN$9 -> 0
D28: Consumo energético anual (kWh) | E28: 165 | V28: 17:00:00 | W28: ='1 Linea Base'!K119 -> Base | X28: =IF(Table44[[#This Row],[ToU tariff]]="base",1,"") -> 1 | Y28: =IF(Table44[[#This Row],[ToU tariff]]="Intermedio",1,"") ->  | Z28: =IF(Table44[[#This Row],[ToU tariff]]="Punta",1,0) -> 0 | AA28: ='1 Linea Base'!P29 -> 0.02023153862 | AB28: ='1 Linea Base'!P29*$AB$9 -> 0.02023153862 | AC28: ='2A Solar FV'!P96*$AC$9 -> 0 | AD28: ='5C Resultados'!K27*$AD$9 -> 0 | AE28: ='6C Resultados'!L27*$AE$9 -> 0 | AF28: =AVERAGEIF(THoraria[Hora],Table44[[#This Row],[Hora]],THoraria[Balance neto con paneles solares y batería])*$AF$9 -> 0 | AG28: =(Table44[[#This Row],[Demanda base]]+'4 EV'!AN195)*$AG$9 -> 0 | AH28: =(Table44[[#This Row],[Based profile (not graphed)]]+'4 EV'!AS195)*$AH$9 -> 0 | AI28: ='4 EV'!AN195*$AI$9 -> 0 | AJ28: ='4 EV'!AS195*$AJ$9 -> 0 | AK28: =('2A Solar FV'!P96+Table44[[#This Row],[EV carga estándar]]+Table44[[#This Row],[EV carga inteligente]])*$AK$9 -> 0 | AL28: =('5C Resultados'!K27+Table44[[#This Row],[EV carga estándar]]+Table44[[#This Row],[EV carga inteligente]])*$AL$9 -> 0 | AM28: =('6C Resultados'!L27+Table44[[#This Row],[EV carga estándar]]+Table44[[#This Row],[EV carga inteligente]])*$AM$9 -> 0 | AN28: =('5A Input'!U25+Table44[[#This Row],[EV carga estándar]]+Table44[[#This Row],[EV carga inteligente]])*$AN$9 -> 0
V29: 18:00:00 | W29: ='1 Linea Base'!K120 -> Punta | X29: =IF(Table44[[#This Row],[ToU tariff]]="base",1,"") ->  | Y29: =IF(Table44[[#This Row],[ToU tariff]]="Intermedio",1,"") ->  | Z29: =IF(Table44[[#This Row],[ToU tariff]]="Punta",1,0) -> 1 | AA29: ='1 Linea Base'!P30 -> 0.02555787217 | AB29: ='1 Linea Base'!P30*$AB$9 -> 0.02555787217 | AC29: ='2A Solar FV'!P97*$AC$9 -> 0 | AD29: ='5C Resultados'!K28*$AD$9 -> 0 | AE29: ='6C Resultados'!L28*$AE$9 -> 0 | AF29: =AVERAGEIF(THoraria[Hora],Table44[[#This Row],[Hora]],THoraria[Balance neto con paneles solares y batería])*$AF$9 -> 0 | AG29: =(Table44[[#This Row],[Demanda base]]+'4 EV'!AN196)*$AG$9 -> 0 | AH29: =(Table44[[#This Row],[Based profile (not graphed)]]+'4 EV'!AS196)*$AH$9 -> 0 | AI29: ='4 EV'!AN196*$AI$9 -> 0 | AJ29: ='4 EV'!AS196*$AJ$9 -> 0 | AK29: =('2A Solar FV'!P97+Table44[[#This Row],[EV carga estándar]]+Table44[[#This Row],[EV carga inteligente]])*$AK$9 -> 0 | AL29: =('5C Resultados'!K28+Table44[[#This Row],[EV carga estándar]]+Table44[[#This Row],[EV carga inteligente]])*$AL$9 -> 0 | AM29: =('6C Resultados'!L28+Table44[[#This Row],[EV carga estándar]]+Table44[[#This Row],[EV carga inteligente]])*$AM$9 -> 0 | AN29: =('5A Input'!U26+Table44[[#This Row],[EV carga estándar]]+Table44[[#This Row],[EV carga inteligente]])*$AN$9 -> 0
C30: Cuestionario de caracterización (si está disponible) | H30: Escenario de Vehiculos Eléctricos | V30: 19:00:00 | W30: ='1 Linea Base'!K121 -> Punta | X30: =IF(Table44[[#This Row],[ToU tariff]]="base",1,"") ->  | Y30: =IF(Table44[[#This Row],[ToU tariff]]="Intermedio",1,"") ->  | Z30: =IF(Table44[[#This Row],[ToU tariff]]="Punta",1,0) -> 1 | AA30: ='1 Linea Base'!P31 -> 0.04105881742 | AB30: ='1 Linea Base'!P31*$AB$9 -> 0.04105881742 | AC30: ='2A Solar FV'!P98*$AC$9 -> 0 | AD30: ='5C Resultados'!K29*$AD$9 -> 0 | AE30: ='6C Resultados'!L29*$AE$9 -> 0 | AF30: =AVERAGEIF(THoraria[Hora],Table44[[#This Row],[Hora]],THoraria[Balance neto con paneles solares y batería])*$AF$9 -> 0 | AG30: =(Table44[[#This Row],[Demanda base]]+'4 EV'!AN197)*$AG$9 -> 0 | AH30: =(Table44[[#This Row],[Based profile (not graphed)]]+'4 EV'!AS197)*$AH$9 -> 0 | AI30: ='4 EV'!AN197*$AI$9 -> 0 | AJ30: ='4 EV'!AS197*$AJ$9 -> 0 | AK30: =('2A Solar FV'!P98+Table44[[#This Row],[EV carga estándar]]+Table44[[#This Row],[EV carga inteligente]])*$AK$9 -> 0 | AL30: =('5C Resultados'!K29+Table44[[#This Row],[EV carga estándar]]+Table44[[#This Row],[EV carga inteligente]])*$AL$9 -> 0 | AM30: =('6C Resultados'!L29+Table44[[#This Row],[EV carga estándar]]+Table44[[#This Row],[EV carga inteligente]])*$AM$9 -> 0 | AN30: =('5A Input'!U27+Table44[[#This Row],[EV carga estándar]]+Table44[[#This Row],[EV carga inteligente]])*$AN$9 -> 0
V31: 20:00:00 | W31: ='1 Linea Base'!K122 -> Punta | X31: =IF(Table44[[#This Row],[ToU tariff]]="base",1,"") ->  | Y31: =IF(Table44[[#This Row],[ToU tariff]]="Intermedio",1,"") ->  | Z31: =IF(Table44[[#This Row],[ToU tariff]]="Punta",1,0) -> 1 | AA31: ='1 Linea Base'!P32 -> 0.04899511986 | AB31: ='1 Linea Base'!P32*$AB$9 -> 0.04899511986 | AC31: ='2A Solar FV'!P99*$AC$9 -> 0 | AD31: ='5C Resultados'!K30*$AD$9 -> 0 | AE31: ='6C Resultados'!L30*$AE$9 -> 0 | AF31: =AVERAGEIF(THoraria[Hora],Table44[[#This Row],[Hora]],THoraria[Balance neto con paneles solares y batería])*$AF$9 -> 0 | AG31: =(Table44[[#This Row],[Demanda base]]+'4 EV'!AN198)*$AG$9 -> 0 | AH31: =(Table44[[#This Row],[Based profile (not graphed)]]+'4 EV'!AS198)*$AH$9 -> 0 | AI31: ='4 EV'!AN198*$AI$9 -> 0 | AJ31: ='4 EV'!AS198*$AJ$9 -> 0 | AK31: =('2A Solar FV'!P99+Table44[[#This Row],[EV carga estándar]]+Table44[[#This Row],[EV carga inteligente]])*$AK$9 -> 0 | AL31: =('5C Resultados'!K30+Table44[[#This Row],[EV carga estándar]]+Table44[[#This Row],[EV carga inteligente]])*$AL$9 -> 0 | AM31: =('6C Resultados'!L30+Table44[[#This Row],[EV carga estándar]]+Table44[[#This Row],[EV carga inteligente]])*$AM$9 -> 0 | AN31: =('5A Input'!U28+Table44[[#This Row],[EV carga estándar]]+Table44[[#This Row],[EV carga inteligente]])*$AN$9 -> 0
C32: 1 | D32: =_xlfn.IFNA(INDEX(Clusters[Pregunta],MATCH(1,(Clusters[Tipo de usuario]='Top dashboard'!$E$20)*(Clusters[Clima]='Top dashboard'!$E$16)*(Clusters[No de Pregunta]=1),0)),"-") -> - | E32: No | V32: 21:00:00 | W32: ='1 Linea Base'!K123 -> Punta | X32: =IF(Table44[[#This Row],[ToU tariff]]="base",1,"") ->  | Y32: =IF(Table44[[#This Row],[ToU tariff]]="Intermedio",1,"") ->  | Z32: =IF(Table44[[#This Row],[ToU tariff]]="Punta",1,0) -> 1 | AA32: ='1 Linea Base'!P33 -> 0.04278847576 | AB32: ='1 Linea Base'!P33*$AB$9 -> 0.04278847576 | AC32: ='2A Solar FV'!P100*$AC$9 -> 0 | AD32: ='5C Resultados'!K31*$AD$9 -> 0 | AE32: ='6C Resultados'!L31*$AE$9 -> 0 | AF32: =AVERAGEIF(THoraria[Hora],Table44[[#This Row],[Hora]],THoraria[Balance neto con paneles solares y batería])*$AF$9 -> 0 | AG32: =(Table44[[#This Row],[Demanda base]]+'4 EV'!AN199)*$AG$9 -> 0 | AH32: =(Table44[[#This Row],[Based profile (not graphed)]]+'4 EV'!AS199)*$AH$9 -> 0 | AI32: ='4 EV'!AN199*$AI$9 -> 0 | AJ32: ='4 EV'!AS199*$AJ$9 -> 0 | AK32: =('2A Solar FV'!P100+Table44[[#This Row],[EV carga estándar]]+Table44[[#This Row],[EV carga inteligente]])*$AK$9 -> 0 | AL32: =('5C Resultados'!K31+Table44[[#This Row],[EV carga estándar]]+Table44[[#This Row],[EV carga inteligente]])*$AL$9 -> 0 | AM32: =('6C Resultados'!L31+Table44[[#This Row],[EV carga estándar]]+Table44[[#This Row],[EV carga inteligente]])*$AM$9 -> 0 | AN32: =('5A Input'!U29+Table44[[#This Row],[EV carga estándar]]+Table44[[#This Row],[EV carga inteligente]])*$AN$9 -> 0
E33: =IF(D32="-","-",E32) -> - | V33: 22:00:00 | W33: ='1 Linea Base'!K124 -> Base | X33: =IF(Table44[[#This Row],[ToU tariff]]="base",1,"") -> 1 | Y33: =IF(Table44[[#This Row],[ToU tariff]]="Intermedio",1,"") ->  | Z33: =IF(Table44[[#This Row],[ToU tariff]]="Punta",1,0) -> 0 | AA33: ='1 Linea Base'!P34 -> 0.03022742484 | AB33: ='1 Linea Base'!P34*$AB$9 -> 0.03022742484 | AC33: ='2A Solar FV'!P101*$AC$9 -> 0 | AD33: ='5C Resultados'!K32*$AD$9 -> 0 | AE33: ='6C Resultados'!L32*$AE$9 -> 0 | AF33: =AVERAGEIF(THoraria[Hora],Table44[[#This Row],[Hora]],THoraria[Balance neto con paneles solares y batería])*$AF$9 -> 0 | AG33: =(Table44[[#This Row],[Demanda base]]+'4 EV'!AN200)*$AG$9 -> 0 | AH33: =(Table44[[#This Row],[Based profile (not graphed)]]+'4 EV'!AS200)*$AH$9 -> 0 | AI33: ='4 EV'!AN200*$AI$9 -> 0 | AJ33: ='4 EV'!AS200*$AJ$9 -> 0 | AK33: =('2A Solar FV'!P101+Table44[[#This Row],[EV carga estándar]]+Table44[[#This Row],[EV carga inteligente]])*$AK$9 -> 0 | AL33: =('5C Resultados'!K32+Table44[[#This Row],[EV carga estándar]]+Table44[[#This Row],[EV carga inteligente]])*$AL$9 -> 0 | AM33: =('6C Resultados'!L32+Table44[[#This Row],[EV carga estándar]]+Table44[[#This Row],[EV carga inteligente]])*$AM$9 -> 0 | AN33: =('5A Input'!U30+Table44[[#This Row],[EV carga estándar]]+Table44[[#This Row],[EV carga inteligente]])*$AN$9 -> 0
H34: Escenarios combinados | V34: 23:00:00 | W34: ='1 Linea Base'!K125 -> Base | X34: =IF(Table44[[#This Row],[ToU tariff]]="base",1,"") -> 1 | Y34: =IF(Table44[[#This Row],[ToU tariff]]="Intermedio",1,"") ->  | Z34: =IF(Table44[[#This Row],[ToU tariff]]="Punta",1,0) -> 0 | AA34: ='1 Linea Base'!P35 -> 0.01756571865 | AB34: ='1 Linea Base'!P35*$AB$9 -> 0.01756571865 | AC34: ='2A Solar FV'!P102*$AC$9 -> 0 | AD34: ='5C Resultados'!K33*$AD$9 -> 0 | AE34: ='6C Resultados'!L33*$AE$9 -> 0 | AF34: =AVERAGEIF(THoraria[Hora],Table44[[#This Row],[Hora]],THoraria[Balance neto con paneles solares y batería])*$AF$9 -> 0 | AG34: =(Table44[[#This Row],[Demanda base]]+'4 EV'!AN201)*$AG$9 -> 0 | AH34: =(Table44[[#This Row],[Based profile (not graphed)]]+'4 EV'!AS201)*$AH$9 -> 0 | AI34: ='4 EV'!AN201*$AI$9 -> 0 | AJ34: ='4 EV'!AS201*$AJ$9 -> 0 | AK34: =('2A Solar FV'!P102+Table44[[#This Row],[EV carga estándar]]+Table44[[#This Row],[EV carga inteligente]])*$AK$9 -> 0 | AL34: =('5C Resultados'!K33+Table44[[#This Row],[EV carga estándar]]+Table44[[#This Row],[EV carga inteligente]])*$AL$9 -> 0 | AM34: =('6C Resultados'!L33+Table44[[#This Row],[EV carga estándar]]+Table44[[#This Row],[EV carga inteligente]])*$AM$9 -> 0 | AN34: =('5A Input'!U31+Table44[[#This Row],[EV carga estándar]]+Table44[[#This Row],[EV carga inteligente]])*$AN$9 -> 0
C35: 2 | D35: =_xlfn.IFNA(IF(E32="No",INDEX(Clusters[Pregunta],MATCH(1,(Clusters[Tipo de usuario]='Top dashboard'!$E$20)*(Clusters[Clima]='Top dashboard'!$E$16)*(Clusters[No de Pregunta]=2),0)),"-"),"-") -> - | E35: No | H35: ¿Carga inteligente? | I35: Off
E36: =IF(D35="-","-",IF(E32="Si","Si",E35)) -> -
C38: 3 | D38: =_xlfn.IFNA(IF(E36="No",INDEX(Clusters[Pregunta],MATCH(1,(Clusters[Tipo de usuario]='Top dashboard'!$E$20)*(Clusters[Clima]='Top dashboard'!$E$16)*(Clusters[No de Pregunta]=3),0)),"-"),"-") -> - | E38: No
E39: =IF(E36="-","-",IF(E36="Si","Si",E38)) -> -
C41: 4 | D41: =_xlfn.IFNA(IF(E39="No",INDEX(Clusters[Pregunta],MATCH(1,(Clusters[Tipo de usuario]='Top dashboard'!$E$20)*(Clusters[Clima]='Top dashboard'!$E$16)*(Clusters[No de Pregunta]=4),0)),"-"),"-") -> -
E42: =IF(E36="-","-",IF(E39="Si","Si",E41)) -> -
C44: 5 | D44: =_xlfn.IFNA(IF(E42="No",INDEX(Clusters[Pregunta],MATCH(1,(Clusters[Tipo de usuario]='Top dashboard'!$E$20)*(Clusters[Clima]='Top dashboard'!$E$16)*(Clusters[No de Pregunta]=5),0)),"-"),"-") -> -
E45: =IF(E42="-","-",IF(E42="Si","Si",E44)) -> -
D47: Perfil de demanda seleccionado (Cluster) | E47: =_xlfn.IFNA(_xlfn.IFNA(_xlfn.IFS(E32="Si",INDEX(Clusters[Cluster],MATCH('Top dashboard'!D32,Clusters[Pregunta],0)),E36="Si",INDEX(Clusters[Cluster],MATCH('Top dashboard'!D35,Clusters[Pregunta],0)),E39="Si",INDEX(Clusters[Cluster],MATCH('Top dashboard'!D38,Clusters[Pregunta],0)),E42="Si",INDEX(Clusters[Cluster],MATCH('Top dashboard'!D41,Clusters[Pregunta],0)),E45="Si",INDEX(Clusters[Cluster],MATCH('Top dashboard'!D44,Clusters[Pregunta],0))),INDEX(Clusters[Cluster],MATCH(1,(Clusters[Tipo de usuario]='Top dashboard'!E20)*(Clusters[Clima]='Top dashboard'!E16)*(Clusters[No de Pregunta]=0),0))),"") -> 23
B50: Análisis económico
C51: Estructura Tarifaria | H51: Comparación anual
C52: Diseña la tarifa horaria para el análisis
D53: Tipo de tarifa horaria | E53: Doble tipo 2
D54: Porcentaje de diferencia entre precio base y punta | E54: 0.5
D56: Punta | L56: =J67 -> Demanda Base | M56: =L67 -> Base + paneles solares | N56: =N67 -> Base + Ajuste de cargas* | O56: =O67 -> Base + paneles solares + Ajuste de cargas* | P56: =P67 -> Base + paneles solares + baterías | Q56: =R67 -> Vehículos eléctricos
D57: Inicio de periodo de punta | E57: 10:00:00 | K57: Tarifa Monomia | L57: =J72 -> 67990.395 | M57: =L72 -> 16454.87529 | N57: =0 -> 0 | O57: =0 -> 0 | P57: =P72 -> 11858.51166 | Q57: =R72 -> 0
D58: Final de periodo de punta | E58: 13:59:00 | K58: Tarifa Horaria | L58: =K72 -> 67778.66627 | M58: =M72 -> 15090.83735 | N58: =N72 -> 67101.44717 | O58: =O72 -> 15062.42284 | P58: =Q72 -> -29775.63686 | Q58: =S72 -> 0
D59: Inicio de periodo de punta 2 | E59: 18:00:00
D60: Final de periodo de punta 2 | E60: 21:59:00
D61: Intermedio
D62: Inicio del periodo intermedio | E62: 00:00:00
D63: Fin del periodo intermedio | E63: 02:59:00
D65: ¿Los periodos tarifarios están superpuestos? | E65: =_xlfn.IFNA(_xlfn.IFS(AND(E53="Doble tipo 2",E58<E59, E57<E60), "NO", AND(E53="Triple",E63<E57, E62<E58),"NO"),"SI") -> NO | F65: =IF(E65="SI",1,0) -> 0
H66: Escenarios combinados con vehículos eléctricos | I66: Si | J66: =IF(I66="Si",TRUE,FALSE) -> TRUE
J67: Demanda Base | L67: Base + paneles solares | N67: Base + Ajuste de cargas* | O67: Base + paneles solares + Ajuste de cargas* | P67: Base + paneles solares + baterías | R67: Vehículos eléctricos
C68: Costo Unitario | H68: Indicador | I68: Unidades | J68: Tarifa Monomia | K68: Tarifa Horaria | L68: Tarifa Monomia | M68: Tarifa Horaria | N68: Tarifa Horaria | O68: Tarifa Horaria | P68: Tarifa Monomia | Q68: Tarifa Horaria | R68: Tarifa Monomia | S68: Tarifa Horaria**
D69: Tipo de Costo Unitario | E69: Predeterminado | H69: Importación anual de la red | I69: kWh | J69: =_xlfn.IFNA(Month_Flat[[#Totals],[Demanda - Escenario Base]],)+R69*$J$66 -> 165 | K69: =_xlfn.IFNA(Month_TOU[[#Totals],[Demanda - Escenario Base]],)+S69*$J$66 -> 165 | L69: =_xlfn.IFNA(Month_Flat[[#Totals],[Energía importada con paneles solares]],)+R69*$J$66 -> 105.6229202 | M69: =_xlfn.IFNA(Month_TOU[[#Totals],[Energía importada con paneles solares]],)+S69*$J$66 -> 105.6229202 | N69: ='5C Resultados'!L35+S69*$J$66 -> 165 | O69: ='6C Resultados'!M35+S69*$J$66 -> 105.4475781 | P69: =Month_Flat[[#Totals],[Energía importada con paneles solares y bateria]]+R69*$J$66 -> 28.77839471 | Q69: =Month_TOU[[#Totals],[Energía importada con paneles solares y batería]]+S69*$J$66 -> 393.5125968 | R69: ='4 EV'!$AN$205 -> 0 | S69: ='4 EV'!$AS$205 -> 0
H70: Exportación anual a la red | I70: kWh | J70: 0 | K70: 0 | L70: =Month_Flat[[#Totals],[Energía exportada con paneles solares]] -> 79.76643918 | M70: =Month_TOU[[#Totals],[Energía exportada con paneles solares]] -> 79.76643918 | N70: ='5C Resultados'!M35 -> 0 | O70: ='6C Resultados'!N35 -> 79.63987181 | P70: =Month_Flat[[#Totals],[Energía exportada con paneles solares y bateria]] -> 1.881915779e-15 | Q70: =Month_TOU[[#Totals],[Energía exportada con paneles solares y batería]] -> 358.91764 | R70: 0 | S70: 0
D71: Valor del Costo Unitario (COP) | H71: Balance neto | I71: kWh | J71: =J69-J70+R71*$J$66 -> 165 | K71: =K69-K70+S71*$J$66 -> 165 | L71: =Month_Flat[[#Totals],[Balance neto con paneles solares]]+R71*$J$66 -> 25.856481 | M71: =Month_TOU[[#Totals],[Balance neto con paneles solares]]+S71*$J$66 -> 25.856481 | N71: ='5C Resultados'!K35+S71*$J$66 -> 165 | O71: ='6C Resultados'!L35+S71*$J$66 -> 25.80770625 | P71: =Month_Flat[[#Totals],[Balance neto con paneles solares y bateria]]+R71*$J$66 -> 28.77839471 | Q71: =Month_TOU[[#Totals],[Balance neto con paneles solares y batería]]+S71*$J$66 -> 34.59495686 | R71: ='4 EV'!$AN$205 -> 0 | S71: ='4 EV'!$AS$205 -> 0
D72: =IF(Table12[[#Totals],[Personalizado]]<>'Top dashboard'!E71,"Ver 1 Linea base","") ->  | H72: Costo neto anual de la energía | I72: COP | J72: ='1 Linea Base'!R58+R72*$J$66 -> 67990.395 | K72: ='1 Linea Base'!R61+S72*$J$66 -> 67778.66627 | L72: =Month_Flat[[#Totals],[Costo - Base + paneles solares]]-Month_Flat[[#Totals],[Ingreso - Base + paneles solares]]+R72*$J$66 -> 16454.87529 | M72: =Month_TOU[[#Totals],[Costo - Base + paneles solares]]-Month_TOU[[#Totals],[Ingreso - Base + paneles solares]]+S72*$J$66 -> 15090.83735 | N72: ='5C Resultados'!S35+S72*$J$66 -> 67101.44717 | O72: ='6C Resultados'!T35+S72*$J$66 -> 15062.42284 | P72: =Month_Flat[[#Totals],[Costo - paneles solares y baterias]]-Month_Flat[[#Totals],[Ingreso - paneles solares y baterias]]+R72*$J$66 -> 11858.51166 | Q72: =Month_TOU[[#Totals],[Costo - Paneles solares y baterías]]-Month_TOU[[#Totals],[Ingreso - Paneles solares y baterías]]+S72*$J$66 -> -29775.63686 | R72: ='4 EV'!AV205 -> 0 | S72: ='4 EV'!AW205 -> 0
H73: Demanda pico | I73: kW | J73: ='1 Linea Base'!$C$38 -> 0.04899511986 | K73: ='1 Linea Base'!$C$38 -> 0.04899511986 | L73: ='Solar FV'!T36 -> 0.04899511986 | M73: ='2C THoraria'!L326 -> 0.04899511986 | N73: ='5C Resultados'!$F$40 -> 0.04409560787 | O73: ='6C Resultados'!$F$40 -> 0.04899511986 | P73: ='2B TMonomia'!F342 -> 0.03022742484 | Q73: ='2C THoraria'!W326 -> 0.5241046445 | R73: =MAX(Table44[Demanda base con EV carga estándar]) -> 0 | S73: =MAX(Table44[Demanda base con EV carga inteligente]) -> 0
C74: Cálculo de tecnologías | H74: Hora del día de la demanda pico | J74: ='1 Linea Base'!C40 -> 20:00:00 | K74: ='1 Linea Base'!C40 -> 20:00:00 | L74: ='Solar FV'!T37 -> ene 20:00 hrs | M74: ='2C THoraria'!L329 -> ene 20:00 hrs | N74: ='5C Resultados'!$F$41 -> 20:00:00 | O74: ='6C Resultados'!$F$41 -> 20:00:00 | P74: ='2B TMonomia'!F345 -> dic 22:00 hrs | Q74: ='2C THoraria'!W329 -> jul 14:00 hrs | R74: =INDEX(Table44[Hora],MATCH(R73,Table44[Demanda base con EV carga estándar],0)) -> 00:00:00 | S74: =INDEX(Table44[Hora],MATCH(S73,Table44[Demanda base con EV carga inteligente],0)) -> 00:00:00
H75: Ahorros | K75: =1-K72/J72 -> 0.003114097707 | M75: =1-M72/L72 -> 0.08289567154
N76: *Ajuste de cargas puede ocurrir solo con una tarifa horaria | S76: **Carga inteligente
B78: Análisis financiero
C80: Supuestos financieros | H80: Caso de inversión de activos que generan flexibilidad
D81: Tasa de interés del gobierno (%) | E81: 0.037
D82: Inflación (%) | E82: 0.06 | J82: Paneles solares | L82: Paneles solares + baterías
H83: Indicador | I83: Unidades | J83: Tarifa Monomia | K83: Tarifa Horaria | L83: Tarifa Monomia | M83: Tarifa Horaria
D84: Tipo de cambio COP/USD | E84: 4000 | H84: Tiempo de retorno de la inversión simple | I84: años | J84: ='Solar FV'!S62 -> 6.564580395 | K84: ='Solar FV'!T62 -> 6.586437654 | L84: ='3 Factibilidad'!D80 -> 2059.015462 | M84: ='3 Factibilidad'!E80 -> 121.6019976
H85: Valor presente neto (VPN) | I85: COP | J85: ='Solar FV'!S63 -> 285270.2366 | K85: ='Solar FV'!T63 -> 283144.9418 | L85: ='3 Factibilidad'!D81 -> -11199623.73 | M85: ='3 Factibilidad'!E81 -> -10683543.21
C86: Requerimientos de inversión | H86: Tasa Interna de Retorno (TIR) | I86: % | J86: ='Solar FV'!S64 -> 0.200775624 | K86: ='Solar FV'!T64 -> 0.2002202458 | L86: ='3 Factibilidad'!D82 -> no TIR | M86: ='3 Factibilidad'!E82 -> no TIR
D87: Máximo tiempo de retorno de inversión (años) | E87: 10 | H87: Costo nivelado de electricidad (LCOE) | I87: COP/kWh | J87: ='Solar FV'!S65 -> 292.9699052 | K87: ='Solar FV'!T65 -> 292.9699052 | L87: ='3 Factibilidad'!D83 -> -1129.988831 | M87: ='3 Factibilidad'!E83 -> -1129.988831
D88: Tasa de descuento (%) | E88: 0.12 | H88: ¿Es viable la inversión? | J88: =IF(AND(J84<$E$87,J86>E88),"Si","No") -> Si | K88: =IF(AND(K84<$E$87,K86>E88),"Si","No") -> Si | L88: =IF(AND(L84<$E$87,L86>E88),"Si","No") -> No | M88: =IF(AND(M84<$E$87,M86>E88),"Si","No") -> No

Sheet Base
B2: Escenario de Linea Base
B4: Descripción
E6: En este dashboard se muestra el escenario base y el efecto económico de implementar una tarifa horaria en el costo final de la energía para el usuario. Si el usuario desea simular con una demanda distinta a las precargadas, en esta sección puede agregar los valores de consumo promedio anual horario correspondientes.
B9: Entradas | H9: Resultados
C11: Tipo de consumo energético | E11: Predeterminado | H11: Escenario de línea base
I12: Consumo energético (kWh) | K12: Costo con tarifa monomia | M12: Costo con tarifa horaria | O12: Porcentaje de ahorros
D14: Hora | H14: Anual
D15: 00:00:00
D16: 01:00:00
D17: 02:00:00 | H17: Promedio Mensual
D18: 03:00:00
D19: 04:00:00
D20: 05:00:00
D21: 06:00:00 | H21: Demanda mensual | K21: Tarifa monomia vs tarifa horaria | O21: Demanda horaria
D22: 07:00:00
D23: 08:00:00
D24: 09:00:00
D25: 10:00:00
D26: 11:00:00
D27: 12:00:00
D28: 13:00:00
D29: 14:00:00
D30: 15:00:00
D31: 16:00:00
D32: 17:00:00
D33: 18:00:00
D34: 19:00:00
D35: 20:00:00
D36: 21:00:00
D37: 22:00:00
D38: 23:00:00

Sheet Solar FV
B2: Paneles Solares
B4: Descripción
E6: El objetivo de instalar paneles solares fotovoltaicos es reducir la cantidad de electricidad importada que se consume. Las figuras en esta página no asumen ningun cambio de comportamiento del consumidor para ajustar su demanda al excedente solar. El usuario debe agregar los datos técnicos y ecónomicos solicitados para que el modelo funcione de forma adecuada.
B12: Entradas | H12: Resultados
C14: Datos técnicos - Paneles solares | H14: Generación de energía solar por mes, promedio diario | O14: Balance de energía mensual
D16: Potencia de un panel (Wp) | E16: 100
D17: Número de paneles | E17: 1
D18: Potencia del sistema (kWp) | E18: =E16*E17/1000 -> 0.1
D19: Clasificación del generador | E19: =_xlfn.IFS(E18=0,"-",E18<='Info Colombia'!P56,'Info Colombia'!Q56,E18<='Info Colombia'!P57,'Info Colombia'!Q57,E18<='Info Colombia'!P58,'Info Colombia'!Q58,E18>'Info Colombia'!P58,'Info Colombia'!Q59) -> Autogenerador a pequeña escala - Residencial
D20: Tiempo de vida de los paneles (años) | E20: 20
D21: Tiempo de vida del inversor (años) | E21: 10
D22: Tasa de degradación (%) | E22: 0.005
C25: Datos económicos - Paneles solares
D27: Costo unitario por capacidad instalada (USD/kW) | E27: 883 | H27: Balance de energía horario, promedio diario anual de generación y demanda
D28: Costo del sistema fotovolatico por kilowatt (COP) | E28: ='Top dashboard'!E84*$E$27 -> 3532000 | R28: Unidades | S28: Día promedio | T28: Datos anuales
D29: CAPEX: Inversión inicial (COP) | E29: =E28*E18 -> 353200 | P29: % de la demanda cubierto por la generación solar | R29: % | S29: =_xlfn.IFNA('2A Solar FV'!T122,"-") -> 0.8432940545
P30: Consumo energético total | R30: kWh | S30: =_xlfn.IFNA(Daily_TOU[[#Totals],[Demanda - Escenario Base]],) -> 0.4520547945 | T30: =_xlfn.IFNA(Month_TOU[[#Totals],[Demanda - Escenario Base]],) -> 165
D31: O&M como % del CAPEX | E31: 0.01 | P31: Generación solar total | R31: kWh | S31: =_xlfn.IFNA(Daily_TOU[[#Totals],[Generación solar promedio diaria (kWh)]],) -> 0.38134875 | T31: =_xlfn.IFNA(Month_TOU[[#Totals],[Generación solar mensual (kWh)2]],) -> 139.143519
D32: OPEX: Costo anual (COP) | E32: =E29*E31 -> 3532 | P32: Energía importada de la red | R32: kWh | S32: =_xlfn.IFNA(Daily_TOU[[#Totals],[Energía importada con paneles solares]],) -> 0.2893923867 | T32: =_xlfn.IFNA(Month_TOU[[#Totals],[Energía importada con paneles solares]],) -> 105.6229202
P33: Energía exportada a la red | R33: kWh | S33: =_xlfn.IFNA(Daily_TOU[[#Totals],[Energía exportada con paneles solares]],) -> 0.2186863422 | T33: =_xlfn.IFNA(Month_TOU[[#Totals],[Energía exportada con paneles solares]],) -> 79.76643918
P34: Balance neto con la red | R34: kWh | S34: =_xlfn.IFNA(Daily_TOU[[#Totals],[Balance neto con paneles solares]],) -> 0.07070604452 | T34: =_xlfn.IFNA(Month_TOU[[#Totals],[Balance neto con paneles solares]],) -> 25.856481
P36: Demanda pico | R36: kW | S36: =_xlfn.IFNA('2C THoraria'!O379,) -> 0.04899511986 | T36: =_xlfn.IFNA('2C THoraria'!L326,) -> 0.04899511986
P37: Hora de la demanda pico | R37: hrs | S37: =_xlfn.IFNA('2C THoraria'!O380,"-") -> 20:00:00 | T37: =_xlfn.IFNA('2C THoraria'!L329,"-") -> ene 20:00 hrs
H42: Costo neto anual de la electricidad | P42: Costo anual de la electricidad, desglosado
P44: Tarifa Monomia | S44: Escenario base - tarifa monomia | T44: Escenario con paneles solares - tarifa monomia
P45: Costo de importación | R45: COP | S45: ='1 Linea Base'!R58 -> 67990.395 | T45: =_xlfn.IFNA(Month_Flat[[#Totals],[Costo - Base + paneles solares]],) -> 43523.29736
P46: Ingresos por exportación | R46: COP | S46: 0 | T46: =_xlfn.IFNA(Month_Flat[[#Totals],[Ingreso - Base + paneles solares]],) -> 27068.42207
P47: Costo neto anual | R47: COP | S47: =S45 -> 67990.395 | T47: =T45-T46 -> 16454.87529
P48: Porcentaje de ahorros con respecto al escenario base | R48: % | S48: 0 | T48: =IFERROR(1-T47/S47,) -> 0.7579823549
P49: Ahorros (+) / Gasto adicional (-) | T49: =IFERROR(S47-T47,) -> 51535.51971
P51: Tarifa Horaria | S51: Escenario base - tarifa horaria | T51: Escenario con paneles solares - tarifa horaria
P52: Costo de importación | R52: COP | S52: =_xlfn.IFNA(Month_TOU[[#Totals],[Costo - Escenario Base]],) -> 67778.66627 | T52: =_xlfn.IFNA(Month_TOU[[#Totals],[Costo - Base + paneles solares]],) -> 44538.63357
P53: Ingresos por exportación | R53: COP | S53: 0 | T53: =_xlfn.IFNA(Month_TOU[[#Totals],[Ingreso - Base + paneles solares]],) -> 29447.79622
P54: Costo neto anual | R54: COP | S54: =S52-S53 -> 67778.66627 | T54: =T52-T53 -> 15090.83735
P55: Porcentaje de ahorros con respecto al escenario base | R55: % | S55: =IFERROR(1-S54/S47,) -> 0.003114097707 | T55: =IFERROR(1-T54/S47,) -> 0.7780445701
P56: Ahorros (+) / Gasto adicional (-) | T56: =S54-T54 -> 52687.82892
H59: Evaluación económica de la inversión
P61: Indicadores financieros | S61: Escenario con paneles solares - tarifa monomia | T61: Escenario con paneles solares - tarifa horaria
P62: Tiempo de retorno de la inversión simple | S62: ='3 Factibilidad'!D41 -> 6.564580395 | T62: ='3 Factibilidad'!E41 -> 6.586437654
P63: Valor presente neto (VPN) | S63: ='3 Factibilidad'!D42 -> 285270.2366 | T63: ='3 Factibilidad'!E42 -> 283144.9418
P64: Tasa Interna de Retorno (TIR) | S64: ='3 Factibilidad'!D43 -> 0.200775624 | T64: ='3 Factibilidad'!E43 -> 0.2002202458
P65: Costo nivelado de electricidad (LCOE) | S65: ='3 Factibilidad'!D44 -> 292.9699052 | T65: ='3 Factibilidad'!E44 -> 292.9699052

Sheet Ajuste de carga
B2: Ajuste de la demanda según el usuario
B4: Descripción
E6: En este dashboard, se muestra la demanda promedio del escenario base, ajustada por el comportamiento del consumidor. Los beneficios económicos se pueden obtener moviendo el consumo energético del periodo con precios altos al periodo con precios bajos.
B12: Entradas | H12: Resultados
C14: Flexibilidad del usuario | H14: Consumo de energía
D17: Hora
C18: =_xlfn.IFNA('1 Linea Base'!K102,"") -> Base | D18: 00:00:00
C19: =_xlfn.IFNA('1 Linea Base'!K103,"") -> Base | D19: 01:00:00
C20: =_xlfn.IFNA('1 Linea Base'!K104,"") -> Base | D20: 02:00:00
C21: =_xlfn.IFNA('1 Linea Base'!K105,"") -> Base | D21: 03:00:00
C22: =_xlfn.IFNA('1 Linea Base'!K106,"") -> Base | D22: 04:00:00
C23: =_xlfn.IFNA('1 Linea Base'!K107,"") -> Base | D23: 05:00:00
C24: =_xlfn.IFNA('1 Linea Base'!K108,"") -> Base | D24: 06:00:00
C25: =_xlfn.IFNA('1 Linea Base'!K109,"") -> Base | D25: 07:00:00
C26: =_xlfn.IFNA('1 Linea Base'!K110,"") -> Base | D26: 08:00:00
C27: =_xlfn.IFNA('1 Linea Base'!K111,"") -> Base | D27: 09:00:00
C28: =_xlfn.IFNA('1 Linea Base'!K112,"") -> Punta | D28: 10:00:00 | E28: 0
C29: =_xlfn.IFNA('1 Linea Base'!K113,"") -> Punta | D29: 11:00:00 | E29: 0
C30: =_xlfn.IFNA('1 Linea Base'!K114,"") -> Punta | D30: 12:00:00 | E30: 0
C31: =_xlfn.IFNA('1 Linea Base'!K115,"") -> Punta | D31: 13:00:00 | E31: 0
C32: =_xlfn.IFNA('1 Linea Base'!K116,"") -> Base | D32: 14:00:00
C33: =_xlfn.IFNA('1 Linea Base'!K117,"") -> Base | D33: 15:00:00
C34: =_xlfn.IFNA('1 Linea Base'!K118,"") -> Base | D34: 16:00:00
C35: =_xlfn.IFNA('1 Linea Base'!K119,"") -> Base | D35: 17:00:00 | L35: Base | M35: Con Flexibilidad
C36: =_xlfn.IFNA('1 Linea Base'!K120,"") -> Punta | D36: 18:00:00 | E36: 0 | I36: Demanda pico | K36: kW | L36: =_xlfn.IFNA('5C Resultados'!E40,) -> 0.04899511986 | M36: =_xlfn.IFNA('5C Resultados'!F40,) -> 0.04409560787
C37: =_xlfn.IFNA('1 Linea Base'!K121,"") -> Punta | D37: 19:00:00 | E37: 0.1 | I37: Energía desplazada del periodo punta | K37: kW | L37: 0 | M37: ='5C Resultados'!F43 -> -0.004899511986
C38: =_xlfn.IFNA('1 Linea Base'!K122,"") -> Punta | D38: 20:00:00 | E38: 0.1 | I38: Hora de la demanda pico | L38: =_xlfn.IFNA('5C Resultados'!E41,) -> 20:00:00 | M38: =_xlfn.IFNA('5C Resultados'!F41,) -> 20:00:00
C39: =_xlfn.IFNA('1 Linea Base'!K123,"") -> Punta | D39: 21:00:00 | E39: 0
C40: =_xlfn.IFNA('1 Linea Base'!K124,"") -> Base | D40: 22:00:00
C41: =_xlfn.IFNA('1 Linea Base'!K125,"") -> Base | D41: 23:00:00 | H41: Costo de la energía
C43: Metodología de ajuste de cargas | I43: Tarifa horaria | L43: Base | M43: Con Flexibilidad
I44: Costo, promedio diario | K44: COP | L44: =_xlfn.IFNA('1 Linea Base'!R61/365,) -> 185.6949761 | M44: =_xlfn.IFNA('5C Resultados'!S34,) -> 183.8395813
C45: Por favor seleccione la metodología: | I45: Costo anual | K45: COP | L45: =_xlfn.IFNA('1 Linea Base'!R61,) -> 67778.66627 | M45: =_xlfn.IFNA('5C Resultados'!Q35,) -> 67101.44717
D46: Cambio de carga en bloques
D49: ¿Se excede la capacidad de conexión? | E49: =_xlfn.IFNA('5B Calculos'!D216,"-") -> No | F49: =IF(E49="No",0,1) -> 0
C51: Elasticidad
D53: Elasticidad | E53: No
D55: ='Top dashboard'!E20 -> Residencial | E55: 0.4

Sheet Ajuste de carga + solar
B2: Ajuste de la demanda según el usuario y su generación solar
B4: Descripción
E6: En este dashboard, se muestra la demanda promedio del escenario con paneles solares, ajustada por el comportamiento del consumidor. Los beneficios económicos se pueden obtener moviendo el consumo energético del periodo con precios altos al periodo con precios bajos. Para este análisis se utiliza el promedio horario anual de la curva de demanda con paneles.
B12: Entradas | H12: Resultados
C14: Flexibilidad del usuario | H14: Consumo de energía
D17: Hora
C18: =_xlfn.IFNA('1 Linea Base'!K102,"") -> Base | D18: 00:00:00
C19: =_xlfn.IFNA('1 Linea Base'!K103,"") -> Base | D19: 01:00:00
C20: =_xlfn.IFNA('1 Linea Base'!K104,"") -> Base | D20: 02:00:00
C21: =_xlfn.IFNA('1 Linea Base'!K105,"") -> Base | D21: 03:00:00
C22: =_xlfn.IFNA('1 Linea Base'!K106,"") -> Base | D22: 04:00:00
C23: =_xlfn.IFNA('1 Linea Base'!K107,"") -> Base | D23: 05:00:00
C24: =_xlfn.IFNA('1 Linea Base'!K108,"") -> Base | D24: 06:00:00
C25: =_xlfn.IFNA('1 Linea Base'!K109,"") -> Base | D25: 07:00:00
C26: =_xlfn.IFNA('1 Linea Base'!K110,"") -> Base | D26: 08:00:00
C27: =_xlfn.IFNA('1 Linea Base'!K111,"") -> Base | D27: 09:00:00
C28: =_xlfn.IFNA('1 Linea Base'!K112,"") -> Punta | D28: 10:00:00
C29: =_xlfn.IFNA('1 Linea Base'!K113,"") -> Punta | D29: 11:00:00
C30: =_xlfn.IFNA('1 Linea Base'!K114,"") -> Punta | D30: 12:00:00
C31: =_xlfn.IFNA('1 Linea Base'!K115,"") -> Punta | D31: 13:00:00
C32: =_xlfn.IFNA('1 Linea Base'!K116,"") -> Base | D32: 14:00:00
C33: =_xlfn.IFNA('1 Linea Base'!K117,"") -> Base | D33: 15:00:00
C34: =_xlfn.IFNA('1 Linea Base'!K118,"") -> Base | D34: 16:00:00
C35: =_xlfn.IFNA('1 Linea Base'!K119,"") -> Base | D35: 17:00:00 | L35: Base | M35: Con Flexibilidad
C36: =_xlfn.IFNA('1 Linea Base'!K120,"") -> Punta | D36: 18:00:00 | I36: Demanda pico | K36: kW | L36: =_xlfn.IFNA('6C Resultados'!E40,) -> 0.04899511986 | M36: =_xlfn.IFNA('6C Resultados'!F40,) -> 0.04899511986
C37: =_xlfn.IFNA('1 Linea Base'!K121,"") -> Punta | D37: 19:00:00 | I37: Energía desplazada del periodo punta | K37: kW | L37: 0 | M37: ='6C Resultados'!F43 -> 0
C38: =_xlfn.IFNA('1 Linea Base'!K122,"") -> Punta | D38: 20:00:00 | I38: Hora de la demanda pico | L38: =_xlfn.IFNA('6C Resultados'!E41,) -> 20:00:00 | M38: =_xlfn.IFNA('6C Resultados'!F41,) -> 20:00:00
C39: =_xlfn.IFNA('1 Linea Base'!K123,"") -> Punta | D39: 21:00:00
C40: =_xlfn.IFNA('1 Linea Base'!K124,"") -> Base | D40: 22:00:00
C41: =_xlfn.IFNA('1 Linea Base'!K125,"") -> Base | D41: 23:00:00 | H41: Costo de la energía
C43: Metodología de ajuste de cargas | I43: Tarifa horaria, promedio diario | L43: Base + Solar | M43: Con Flexibilidad
C44: Por favor seleccione la metodología: | I44: Costo de importación | K44: COP | L44: =_xlfn.IFNA(Daily_TOU[[#Totals],[Costo - Base + paneles solares]],) -> 122.0284121 | M44: =IFERROR(IF(AVERAGE($E$18:$E$41)=0,L44,'6C Resultados'!R34),) -> 0
D45: Coincidencia con la energía solar | I45: Ingresos por exportación | K45: COP | L45: =_xlfn.IFNA(Daily_TOU[[#Totals],[Ingreso - Base + paneles solares]],) -> 80.73450877 | M45: =IFERROR(IF(AVERAGE($E$18:$E$41)=0,L45,'6C Resultados'!S34),) -> 0
I46: Costo neto de la energía | K46: COP | L46: =L44-L45 -> 41.29390331 | M46: =M44-M45 -> 0
D48: ¿Se excede la capacidad de conexión? | E48: =_xlfn.IFNA('6B Calculos'!D216,"-") -> No | F48: =IF(E48="No",0,1) -> 0 | I48: Tarifa horaria, promedio anual | L48: Base + Solar | M48: Con Flexibilidad
I49: Costo de importación | K49: COP | L49: =_xlfn.IFNA('Solar FV'!T52,) -> 44538.63357 | M49: =IFERROR(IF(AVERAGE(E18:E41)=0,L49,'6C Resultados'!R35),) -> 0
I50: Ingresos por exportación | K50: COP | L50: =_xlfn.IFNA('Solar FV'!T53,) -> 29447.79622 | M50: =IFERROR(IF(AVERAGE(E18:E41)=0,L50,'6C Resultados'!S35),) -> 0
C51: Elasticidad | I51: Costo neto de la energía | K51: COP | L51: =L49-L50 -> 15090.83735 | M51: =M49-M50 -> 0
D53: Elasticidad | E53: No
D55: ='Top dashboard'!E20 -> Residencial | E55: 0.4

Sheet Baterías
B2: Sistema de almacenamiento de energía con baterías
B4: Descripción
E6: En este dashboard se muestra el escenario con un sistema de almacenamiento de energía y paneles solares (si estos fueron activados en la pestaña correspondiente). Mientras que en una tarifa monomia solo se pueden generar ahorros cargando el excedente solar en las baterías, en una tarifa horaria el precio de exportación define qué es más conveniente para maximizar el beneficio económico: cargar del sol o del periodo base. El usuario debe agregar los datos técnicos y ecónomicos solicitados para que el modelo funcione de forma adecuada, así como presionar el botón "Calcular baterías" para obtener los resultados correctos.
B12: Entradas | H12: Resultados
C14: Datos técnicos - Baterías | H14: Balance de energía horario, promedio diario anual de generación y demanda
D16: Energía total (kWh) | E16: 2
D17: Potencia máxima (kW) | E17: 1
D18: Estado de carga mímimo (%) | E18: 0.5
D19: Energía utilizable (kWh) | E19: =Baterías!E16*(1-Baterías!E18) -> 1
D20: Energia mínima requerida (kWh) | E20: =Baterías!E16*Baterías!E18 -> 1
D21: Número de ciclos de carga y descarga | E21: 1000
D22: Eficiencia de ida y vuelta (%) | E22: 0.98
C24: Datos económicos - Baterías
D26: Costo de la batería (USD/kWh) | E26: 450
D27: Costo del inversor de la batería (USD/kW) | E27: 350
D29: CAPEX: Inversión inicial (COP) | E29: =(E16*E26+E17*E27)*'Top dashboard'!E84 -> 5000000
K30: -
D31: O&M como % del CAPEX | E31: 0.01 | H31: Costo neto anual de la electricidad | P31: Costo anual de la electricidad, desglosado
D32: OPEX: Costo anual (COP) | E32: =E29*E31 -> 50000
P33: Tarifa Monomia | S33: Escenario base - tarifa monomia | T33: Escenario actual - tarifa monomia
P34: Costo de importación | R34: COP | S34: ='Solar FV'!S45 -> 67990.395 | T34: =_xlfn.IFNA(Month_Flat[[#Totals],[Costo - paneles solares y baterias]],) -> 11858.51166
P35: Ingresos por exportación | R35: COP | T35: =_xlfn.IFNA(Month_Flat[[#Totals],[Ingreso - paneles solares y baterias]],) -> 6.386205921e-13
P36: Costo neto anual | R36: COP | S36: ='Solar FV'!S47 -> 67990.395 | T36: =T34-T35 -> 11858.51166
P37: Porcentaje de ahorros con respecto al escenario base | R37: % | T37: =IFERROR(1-T36/S36,) -> 0.8255854866
P38: Ahorros (+) / Gasto adicional (-) | T38: =IFERROR(S36-T36,) -> 56131.88334
P40: Tarifa Horaria | S40: Escenario base - tarifa horaria | T40: Escenario actual - tarifa horaria
P41: Costo de importación | R41: COP | S41: =_xlfn.IFNA(Month_TOU[[#Totals],[Costo - Escenario Base]],) -> 67778.66627 | T41: =_xlfn.IFNA(Month_TOU[[#Totals],[Costo - Paneles solares y baterías]],) -> 121613.9859
P42: Ingresos por exportación | R42: COP | T42: =_xlfn.IFNA(Month_TOU[[#Totals],[Ingreso - Paneles solares y baterías]],) -> 151389.6228
P43: Costo neto anual | R43: COP | S43: =S41-S42 -> 67778.66627 | T43: =T41-T42 -> -29775.63686
P44: Porcentaje de ahorros con respecto al escenario base | R44: % | S44: =IFERROR(1-S43/S36,) -> 0.003114097707 | T44: =IFERROR(1-T43/S36,) -> 1.437938872
P45: Ahorros (+) / Gasto adicional (-) | T45: =S43-T43 -> 97554.30313
H48: Evaluación económica de la inversión
P50: Indicadores financieros | S50: Escenario con paneles solares y baterias - tarifa monomia | T50: Escenario con paneles solares y baterias - tarifa horaria
P51: Tiempo de retorno de la inversión simple | S51: =_xlfn.IFNA('3 Factibilidad'!D80,) -> 2059.015462 | T51: =_xlfn.IFNA('3 Factibilidad'!E80,) -> 121.6019976
P52: Valor presente neto (VPN) | S52: =_xlfn.IFNA('3 Factibilidad'!D81,) -> -11199623.73 | T52: =_xlfn.IFNA('3 Factibilidad'!E81,) -> -10683543.21
P53: Tasa Interna de Retorno (TIR) | S53: ='3 Factibilidad'!D82 -> no TIR | T53: ='3 Factibilidad'!E82 -> no TIR
P54: Costo nivelado de electricidad (LCOE) | S54: =_xlfn.IFNA('3 Factibilidad'!D83,) -> -1129.988831 | T54: =_xlfn.IFNA('3 Factibilidad'!E83,) -> -1129.988831

Sheet EV
B2: Vehículos eléctricos
B4: Descripción
B12: Entradas | M12: Resultados
C14: Características de los EVs | M14: Consumo de energía
E15: Unidades
D16: Nombre del tipo de carro
D17: Número de carros por tipo
D18: Capacidad utilizable de la bateria | E18: kWh
D19: Capacidad del centro de carga | E19: kW
D20: Eficiencia | E20: km/kWh
D21: Rango máximo de recorrido | E21: km | F21: =F18*F20 -> 0 | G21: =G18*G20 -> 0 | H21: =H18*H20 -> 0 | I21: =I18*I20 -> 0 | J21: =J18*J20 -> 0
D22: Estado de carga mínimo | E22: %
D23: Energía mínima requerida | E23: kWh | F23: =F18*F22 -> 0 | G23: =G18*G22 -> 0 | H23: =H18*H22 -> 0 | I23: =I18*I22 -> 0 | J23: =J18*J22 -> 0
C27: Perfil de uso
D29: Nombre del tipo de carro | F29: =F16 -> 0 | G29: ='4 EV'!P10 -> 0 | H29: ='4 EV'!Q10 -> 0 | I29: ='4 EV'!R10 -> 0 | J29: ='4 EV'!S10 -> 0
D30: Hora de salida 1
D31: Hora de regreso 1 | N31: Resultados técnicos | O31: Unidades | P31: Carga estándar | Q31: Carga inteligente
D32: Distancia del viaje 1 | E32: km | N32: Carga demanda pico | O32: kW | P32: =IFERROR(MAX(Table33[Todos carga estándar (kWh)]),0) -> 0 | Q32: =IFERROR(MAX(Table33[Todos carga inteligente (kWh)]),0) -> 0
D33: Energía consumida 1 | E33: kWh | F33: =IFERROR(F32/$F$20,"-") -> - | G33: =IFERROR(G32/$F$20,"-") -> - | H33: - | I33: - | J33: - | N33: Carga demanda + demanda base pico | O33: kW | P33: =IFERROR(MAX(Table33[Demanda - Escenario Base + todos carga estandar (kWh)]),0) -> 0.04899511986 | Q33: =IFERROR(MAX(Table33[Demanda - Escenario Base + todos carga inteligente (kWh)]),0) -> 0.04899511986
D34: Hora de salida 2 | N34: Carga consumo diario de energía | O34: kWh | P34: =IFERROR(Table33[[#Totals],[Todos carga estándar (kWh)]],0) -> 0 | Q34: =_xlfn.IFNA(Table33[[#Totals],[Todos carga inteligente (kWh)]],) -> 0
D35: Hora de regreso 2 | N35: Carga consumo anual de energía | O35: kWh | P35: =Table33[[#Totals],[Todos carga estándar (kWh)]]*'4 EV'!F205 -> 0 | Q35: =_xlfn.IFNA(Table33[[#Totals],[Todos carga inteligente (kWh)]]*'4 EV'!F205,) -> 0
D36: Distancia del viaje 2 | E36: km | N36: Tiempo de la demanda pico 1 | P36: =IFERROR(INDEX(Table33[Hora],MATCH(1,Table33[Indicador Carga demanda pico - estándar],0)),"-") -> 20:00:00 | Q36: =IFERROR(INDEX(Table33[Hora],MATCH(1,Table33[Indicador demanda pico - inteligente],0)),"-") -> 20:00:00
D37: Energía consumida 2 | E37: kWh | F37: =IFERROR(F36/$F$20,"-") -> - | G37: =IFERROR(G36/$F$20,"-") -> - | H37: - | I37: - | J37: - | N37: Tiempo de la demanda pico 2 | P37: =IFERROR(INDEX(Table33[Hora],MATCH(2,Table33[Indicador Carga demanda pico - estándar],0)),"-") -> - | Q37: =IFERROR(INDEX(Table33[Hora],MATCH(2,Table33[Indicador demanda pico - inteligente],0)),"-") -> -
D38: ¿Es viable? | F38: =IFERROR(IF(F$37=0,0,IF($F$18-F$33+(HOUR(F$34)-HOUR(F$31))*$F$19<F$37,1,0)),"-") -> - | G38: =IFERROR(IF(G$37=0,0,IF($F$18-G$33+(HOUR(G$34)-HOUR(G$31))*$F$19<G$37,1,0)),"-") -> - | H38: - | I38: - | J38: - | N38: Tiempo de la demanda pico 3 | P38: =IFERROR(INDEX(Table33[Hora],MATCH(3,Table33[Indicador Carga demanda pico - estándar],0)),"-") -> - | Q38: =IFERROR(INDEX(Table33[Hora],MATCH(3,Table33[Indicador demanda pico - inteligente],0)),"-") -> -
M42: Costo de la energía requerida
N44: Tarifa monomia | P44: Carga estándar | Q44: Carga inteligente
N45: Costo de carga por día | O45: COP | P45: =_xlfn.IFNA(Table33[[#Totals],[Todos - costo tarifa monomia - estándar]],) -> 0 | Q45: =_xlfn.IFNA(Table33[[#Totals],[Todos - costo tarifa monomia - inteligente]],) -> 0
N46: Costo de carga por año | O46: COP | P46: =_xlfn.IFNA(Table33[[#Totals],[Todos - costo tarifa monomia - estándar]]*'4 EV'!F205,) -> 0 | Q46: =_xlfn.IFNA(Table33[[#Totals],[Todos - costo tarifa monomia - inteligente]]*'4 EV'!F205,) -> 0
N48: Tarifa horaria | P48: Carga estándar | Q48: Carga inteligente
N49: Costo de carga por día | O49: COP | P49: =_xlfn.IFNA(Table33[[#Totals],[Todos - costo tarifa horaria - estándar]],) -> 0 | Q49: =_xlfn.IFNA(Table33[[#Totals],[Todos - costo tarifa horaria - inteligente]],) -> 0
N50: Costo de carga por año | O50: COP | P50: =_xlfn.IFNA(Table33[[#Totals],[Todos - costo tarifa horaria - estándar]]*'4 EV'!F205,) -> 0 | Q50: =_xlfn.IFNA(Table33[[#Totals],[Todos - costo tarifa horaria - inteligente]]*'4 EV'!F205,) -> 0
M58: Comparaciones del perfil de demanda por vehículo
N90: xx

Sheet 1 Linea Base (hidden)
B2: Demanda base y costos
B5: Datos de consumo, promedio horario mensual
B6: Obtenido de los datos de la Universidad
B8: Tipo de usuario | C8: ='Top dashboard'!E20 -> Residencial
B9: Estrato / Tensión | C9: =IF(C8="Residencial",'Top dashboard'!E21,C44) -> E3
B11: Hora / Mes | C11: ene | D11: feb | E11: mar | F11: abr | G11: may | H11: jun | I11: jul | J11: ago | K11: sep | L11: oct | M11: nov | N11: dic | O11: Dmin | P11: Dmed | Q11: Dmax
B12: 00:00:00 | C12: =IF(Base!$E$11="Personalizado",Base!$E15,'Top dashboard'!$E$28/365*INDEX(EConsumption[promedio norm],MATCH(1,($B12=EConsumption[Hora / Mes])*('Top dashboard'!$E$47=EConsumption[Cluster]),0))) -> 0.01079797635 | D12: =IF(Base!$E$11="Personalizado",Base!$E15,'Top dashboard'!$E$28/365*INDEX(EConsumption[promedio norm],MATCH(1,($B12=EConsumption[Hora / Mes])*('Top dashboard'!$E$47=EConsumption[Cluster]),0))) -> 0.01079797635 | E12: =IF(Base!$E$11="Personalizado",Base!$E15,'Top dashboard'!$E$28/365*INDEX(EConsumption[promedio norm],MATCH(1,($B12=EConsumption[Hora / Mes])*('Top dashboard'!$E$47=EConsumption[Cluster]),0))) -> 0.01079797635 | F12: =IF(Base!$E$11="Personalizado",Base!$E15,'Top dashboard'!$E$28/365*INDEX(EConsumption[promedio norm],MATCH(1,($B12=EConsumption[Hora / Mes])*('Top dashboard'!$E$47=EConsumption[Cluster]),0))) -> 0.01079797635 | G12: =IF(Base!$E$11="Personalizado",Base!$E15,'Top dashboard'!$E$28/365*INDEX(EConsumption[promedio norm],MATCH(1,($B12=EConsumption[Hora / Mes])*('Top dashboard'!$E$47=EConsumption[Cluster]),0))) -> 0.01079797635 | H12: =IF(Base!$E$11="Personalizado",Base!$E15,'Top dashboard'!$E$28/365*INDEX(EConsumption[promedio norm],MATCH(1,($B12=EConsumption[Hora / Mes])*('Top dashboard'!$E$47=EConsumption[Cluster]),0))) -> 0.01079797635 | I12: =IF(Base!$E$11="Personalizado",Base!$E15,'Top dashboard'!$E$28/365*INDEX(EConsumption[promedio norm],MATCH(1,($B12=EConsumption[Hora / Mes])*('Top dashboard'!$E$47=EConsumption[Cluster]),0))) -> 0.01079797635 | J12: =IF(Base!$E$11="Personalizado",Base!$E15,'Top dashboard'!$E$28/365*INDEX(EConsumption[promedio norm],MATCH(1,($B12=EConsumption[Hora / Mes])*('Top dashboard'!$E$47=EConsumption[Cluster]),0))) -> 0.01079797635 | K12: =IF(Base!$E$11="Personalizado",Base!$E15,'Top dashboard'!$E$28/365*INDEX(EConsumption[promedio norm],MATCH(1,($B12=EConsumption[Hora / Mes])*('Top dashboard'!$E$47=EConsumption[Cluster]),0))) -> 0.01079797635 | L12: =IF(Base!$E$11="Personalizado",Base!$E15,'Top dashboard'!$E$28/365*INDEX(EConsumption[promedio norm],MATCH(1,($B12=EConsumption[Hora / Mes])*('Top dashboard'!$E$47=EConsumption[Cluster]),0))) -> 0.01079797635 | M12: =IF(Base!$E$11="Personalizado",Base!$E15,'Top dashboard'!$E$28/365*INDEX(EConsumption[promedio norm],MATCH(1,($B12=EConsumption[Hora / Mes])*('Top dashboard'!$E$47=EConsumption[Cluster]),0))) -> 0.01079797635 | N12: =IF(Base!$E$11="Personalizado",Base!$E15,'Top dashboard'!$E$28/365*INDEX(EConsumption[promedio norm],MATCH(1,($B12=EConsumption[Hora / Mes])*('Top dashboard'!$E$47=EConsumption[Cluster]),0))) -> 0.01079797635 | O12: =MIN(Demand0[[#This Row],[ene]:[dic]]) -> 0.01079797635 | P12: =AVERAGE(Demand0[[#This Row],[ene]:[dic]]) -> 0.01079797635 | Q12: =MAX(Demand0[[#This Row],[ene]:[dic]]) -> 0.01079797635
B13: 01:00:00 | C13: =IF(Base!$E$11="Personalizado",Base!$E16,'Top dashboard'!$E$28/365*INDEX(EConsumption[promedio norm],MATCH(1,($B13=EConsumption[Hora / Mes])*('Top dashboard'!$E$47=EConsumption[Cluster]),0))) -> 0.008473298085 | D13: =IF(Base!$E$11="Personalizado",Base!$E16,'Top dashboard'!$E$28/365*INDEX(EConsumption[promedio norm],MATCH(1,($B13=EConsumption[Hora / Mes])*('Top dashboard'!$E$47=EConsumption[Cluster]),0))) -> 0.008473298085 | E13: =IF(Base!$E$11="Personalizado",Base!$E16,'Top dashboard'!$E$28/365*INDEX(EConsumption[promedio norm],MATCH(1,($B13=EConsumption[Hora / Mes])*('Top dashboard'!$E$47=EConsumption[Cluster]),0))) -> 0.008473298085 | F13: =IF(Base!$E$11="Personalizado",Base!$E16,'Top dashboard'!$E$28/365*INDEX(EConsumption[promedio norm],MATCH(1,($B13=EConsumption[Hora / Mes])*('Top dashboard'!$E$47=EConsumption[Cluster]),0))) -> 0.008473298085 | G13: =IF(Base!$E$11="Personalizado",Base!$E16,'Top dashboard'!$E$28/365*INDEX(EConsumption[promedio norm],MATCH(1,($B13=EConsumption[Hora / Mes])*('Top dashboard'!$E$47=EConsumption[Cluster]),0))) -> 0.008473298085 | H13: =IF(Base!$E$11="Personalizado",Base!$E16,'Top dashboard'!$E$28/365*INDEX(EConsumption[promedio norm],MATCH(1,($B13=EConsumption[Hora / Mes])*('Top dashboard'!$E$47=EConsumption[Cluster]),0))) -> 0.008473298085 | I13: =IF(Base!$E$11="Personalizado",Base!$E16,'Top dashboard'!$E$28/365*INDEX(EConsumption[promedio norm],MATCH(1,($B13=EConsumption[Hora / Mes])*('Top dashboard'!$E$47=EConsumption[Cluster]),0))) -> 0.008473298085 | J13: =IF(Base!$E$11="Personalizado",Base!$E16,'Top dashboard'!$E$28/365*INDEX(EConsumption[promedio norm],MATCH(1,($B13=EConsumption[Hora / Mes])*('Top dashboard'!$E$47=EConsumption[Cluster]),0))) -> 0.008473298085 | K13: =IF(Base!$E$11="Personalizado",Base!$E16,'Top dashboard'!$E$28/365*INDEX(EConsumption[promedio norm],MATCH(1,($B13=EConsumption[Hora / Mes])*('Top dashboard'!$E$47=EConsumption[Cluster]),0))) -> 0.008473298085 | L13: =IF(Base!$E$11="Personalizado",Base!$E16,'Top dashboard'!$E$28/365*INDEX(EConsumption[promedio norm],MATCH(1,($B13=EConsumption[Hora / Mes])*('Top dashboard'!$E$47=EConsumption[Cluster]),0))) -> 0.008473298085 | M13: =IF(Base!$E$11="Personalizado",Base!$E16,'Top dashboard'!$E$28/365*INDEX(EConsumption[promedio norm],MATCH(1,($B13=EConsumption[Hora / Mes])*('Top dashboard'!$E$47=EConsumption[Cluster]),0))) -> 0.008473298085 | N13: =IF(Base!$E$11="Personalizado",Base!$E16,'Top dashboard'!$E$28/365*INDEX(EConsumption[promedio norm],MATCH(1,($B13=EConsumption[Hora / Mes])*('Top dashboard'!$E$47=EConsumption[Cluster]),0))) -> 0.008473298085 | O13: =MIN(Demand0[[#This Row],[ene]:[dic]]) -> 0.008473298085 | P13: =AVERAGE(Demand0[[#This Row],[ene]:[dic]]) -> 0.008473298085 | Q13: =MAX(Demand0[[#This Row],[ene]:[dic]]) -> 0.008473298085
B14: 02:00:00 | C14: =IF(Base!$E$11="Personalizado",Base!$E17,'Top dashboard'!$E$28/365*INDEX(EConsumption[promedio norm],MATCH(1,($B14=EConsumption[Hora / Mes])*('Top dashboard'!$E$47=EConsumption[Cluster]),0))) -> 0.00768127342 | D14: =IF(Base!$E$11="Personalizado",Base!$E17,'Top dashboard'!$E$28/365*INDEX(EConsumption[promedio norm],MATCH(1,($B14=EConsumption[Hora / Mes])*('Top dashboard'!$E$47=EConsumption[Cluster]),0))) -> 0.00768127342 | E14: =IF(Base!$E$11="Personalizado",Base!$E17,'Top dashboard'!$E$28/365*INDEX(EConsumption[promedio norm],MATCH(1,($B14=EConsumption[Hora / Mes])*('Top dashboard'!$E$47=EConsumption[Cluster]),0))) -> 0.00768127342 | F14: =IF(Base!$E$11="Personalizado",Base!$E17,'Top dashboard'!$E$28/365*INDEX(EConsumption[promedio norm],MATCH(1,($B14=EConsumption[Hora / Mes])*('Top dashboard'!$E$47=EConsumption[Cluster]),0))) -> 0.00768127342 | G14: =IF(Base!$E$11="Personalizado",Base!$E17,'Top dashboard'!$E$28/365*INDEX(EConsumption[promedio norm],MATCH(1,($B14=EConsumption[Hora / Mes])*('Top dashboard'!$E$47=EConsumption[Cluster]),0))) -> 0.00768127342 | H14: =IF(Base!$E$11="Personalizado",Base!$E17,'Top dashboard'!$E$28/365*INDEX(EConsumption[promedio norm],MATCH(1,($B14=EConsumption[Hora / Mes])*('Top dashboard'!$E$47=EConsumption[Cluster]),0))) -> 0.00768127342 | I14: =IF(Base!$E$11="Personalizado",Base!$E17,'Top dashboard'!$E$28/365*INDEX(EConsumption[promedio norm],MATCH(1,($B14=EConsumption[Hora / Mes])*('Top dashboard'!$E$47=EConsumption[Cluster]),0))) -> 0.00768127342 | J14: =IF(Base!$E$11="Personalizado",Base!$E17,'Top dashboard'!$E$28/365*INDEX(EConsumption[promedio norm],MATCH(1,($B14=EConsumption[Hora / Mes])*('Top dashboard'!$E$47=EConsumption[Cluster]),0))) -> 0.00768127342 | K14: =IF(Base!$E$11="Personalizado",Base!$E17,'Top dashboard'!$E$28/365*INDEX(EConsumption[promedio norm],MATCH(1,($B14=EConsumption[Hora / Mes])*('Top dashboard'!$E$47=EConsumption[Cluster]),0))) -> 0.00768127342 | L14: =IF(Base!$E$11="Personalizado",Base!$E17,'Top dashboard'!$E$28/365*INDEX(EConsumption[promedio norm],MATCH(1,($B14=EConsumption[Hora / Mes])*('Top dashboard'!$E$47=EConsumption[Cluster]),0))) -> 0.00768127342 | M14: =IF(Base!$E$11="Personalizado",Base!$E17,'Top dashboard'!$E$28/365*INDEX(EConsumption[promedio norm],MATCH(1,($B14=EConsumption[Hora / Mes])*('Top dashboard'!$E$47=EConsumption[Cluster]),0))) -> 0.00768127342 | N14: =IF(Base!$E$11="Personalizado",Base!$E17,'Top dashboard'!$E$28/365*INDEX(EConsumption[promedio norm],MATCH(1,($B14=EConsumption[Hora / Mes])*('Top dashboard'!$E$47=EConsumption[Cluster]),0))) -> 0.00768127342 | O14: =MIN(Demand0[[#This Row],[ene]:[dic]]) -> 0.00768127342 | P14: =AVERAGE(Demand0[[#This Row],[ene]:[dic]]) -> 0.00768127342 | Q14: =MAX(Demand0[[#This Row],[ene]:[dic]]) -> 0.00768127342
B15: 03:00:00 | C15: =IF(Base!$E$11="Personalizado",Base!$E18,'Top dashboard'!$E$28/365*INDEX(EConsumption[promedio norm],MATCH(1,($B15=EConsumption[Hora / Mes])*('Top dashboard'!$E$47=EConsumption[Cluster]),0))) -> 0.00731168658 | D15: =IF(Base!$E$11="Personalizado",Base!$E18,'Top dashboard'!$E$28/365*INDEX(EConsumption[promedio norm],MATCH(1,($B15=EConsumption[Hora / Mes])*('Top dashboard'!$E$47=EConsumption[Cluster]),0))) -> 0.00731168658 | E15: =IF(Base!$E$11="Personalizado",Base!$E18,'Top dashboard'!$E$28/365*INDEX(EConsumption[promedio norm],MATCH(1,($B15=EConsumption[Hora / Mes])*('Top dashboard'!$E$47=EConsumption[Cluster]),0))) -> 0.00731168658 | F15: =IF(Base!$E$11="Personalizado",Base!$E18,'Top dashboard'!$E$28/365*INDEX(EConsumption[promedio norm],MATCH(1,($B15=EConsumption[Hora / Mes])*('Top dashboard'!$E$47=EConsumption[Cluster]),0))) -> 0.00731168658 | G15: =IF(Base!$E$11="Personalizado",Base!$E18,'Top dashboard'!$E$28/365*INDEX(EConsumption[promedio norm],MATCH(1,($B15=EConsumption[Hora / Mes])*('Top dashboard'!$E$47=EConsumption[Cluster]),0))) -> 0.00731168658 | H15: =IF(Base!$E$11="Personalizado",Base!$E18,'Top dashboard'!$E$28/365*INDEX(EConsumption[promedio norm],MATCH(1,($B15=EConsumption[Hora / Mes])*('Top dashboard'!$E$47=EConsumption[Cluster]),0))) -> 0.00731168658 | I15: =IF(Base!$E$11="Personalizado",Base!$E18,'Top dashboard'!$E$28/365*INDEX(EConsumption[promedio norm],MATCH(1,($B15=EConsumption[Hora / Mes])*('Top dashboard'!$E$47=EConsumption[Cluster]),0))) -> 0.00731168658 | J15: =IF(Base!$E$11="Personalizado",Base!$E18,'Top dashboard'!$E$28/365*INDEX(EConsumption[promedio norm],MATCH(1,($B15=EConsumption[Hora / Mes])*('Top dashboard'!$E$47=EConsumption[Cluster]),0))) -> 0.00731168658 | K15: =IF(Base!$E$11="Personalizado",Base!$E18,'Top dashboard'!$E$28/365*INDEX(EConsumption[promedio norm],MATCH(1,($B15=EConsumption[Hora / Mes])*('Top dashboard'!$E$47=EConsumption[Cluster]),0))) -> 0.00731168658 | L15: =IF(Base!$E$11="Personalizado",Base!$E18,'Top dashboard'!$E$28/365*INDEX(EConsumption[promedio norm],MATCH(1,($B15=EConsumption[Hora / Mes])*('Top dashboard'!$E$47=EConsumption[Cluster]),0))) -> 0.00731168658 | M15: =IF(Base!$E$11="Personalizado",Base!$E18,'Top dashboard'!$E$28/365*INDEX(EConsumption[promedio norm],MATCH(1,($B15=EConsumption[Hora / Mes])*('Top dashboard'!$E$47=EConsumption[Cluster]),0))) -> 0.00731168658 | N15: =IF(Base!$E$11="Personalizado",Base!$E18,'Top dashboard'!$E$28/365*INDEX(EConsumption[promedio norm],MATCH(1,($B15=EConsumption[Hora / Mes])*('Top dashboard'!$E$47=EConsumption[Cluster]),0))) -> 0.00731168658 | O15: =MIN(Demand0[[#This Row],[ene]:[dic]]) -> 0.00731168658 | P15: =AVERAGE(Demand0[[#This Row],[ene]:[dic]]) -> 0.00731168658 | Q15: =MAX(Demand0[[#This Row],[ene]:[dic]]) -> 0.00731168658
B16: 04:00:00 | C16: =IF(Base!$E$11="Personalizado",Base!$E19,'Top dashboard'!$E$28/365*INDEX(EConsumption[promedio norm],MATCH(1,($B16=EConsumption[Hora / Mes])*('Top dashboard'!$E$47=EConsumption[Cluster]),0))) -> 0.007451202895 | D16: =IF(Base!$E$11="Personalizado",Base!$E19,'Top dashboard'!$E$28/365*INDEX(EConsumption[promedio norm],MATCH(1,($B16=EConsumption[Hora / Mes])*('Top dashboard'!$E$47=EConsumption[Cluster]),0))) -> 0.007451202895 | E16: =IF(Base!$E$11="Personalizado",Base!$E19,'Top dashboard'!$E$28/365*INDEX(EConsumption[promedio norm],MATCH(1,($B16=EConsumption[Hora / Mes])*('Top dashboard'!$E$47=EConsumption[Cluster]),0))) -> 0.007451202895 | F16: =IF(Base!$E$11="Personalizado",Base!$E19,'Top dashboard'!$E$28/365*INDEX(EConsumption[promedio norm],MATCH(1,($B16=EConsumption[Hora / Mes])*('Top dashboard'!$E$47=EConsumption[Cluster]),0))) -> 0.007451202895 | G16: =IF(Base!$E$11="Personalizado",Base!$E19,'Top dashboard'!$E$28/365*INDEX(EConsumption[promedio norm],MATCH(1,($B16=EConsumption[Hora / Mes])*('Top dashboard'!$E$47=EConsumption[Cluster]),0))) -> 0.007451202895 | H16: =IF(Base!$E$11="Personalizado",Base!$E19,'Top dashboard'!$E$28/365*INDEX(EConsumption[promedio norm],MATCH(1,($B16=EConsumption[Hora / Mes])*('Top dashboard'!$E$47=EConsumption[Cluster]),0))) -> 0.007451202895 | I16: =IF(Base!$E$11="Personalizado",Base!$E19,'Top dashboard'!$E$28/365*INDEX(EConsumption[promedio norm],MATCH(1,($B16=EConsumption[Hora / Mes])*('Top dashboard'!$E$47=EConsumption[Cluster]),0))) -> 0.007451202895 | J16: =IF(Base!$E$11="Personalizado",Base!$E19,'Top dashboard'!$E$28/365*INDEX(EConsumption[promedio norm],MATCH(1,($B16=EConsumption[Hora / Mes])*('Top dashboard'!$E$47=EConsumption[Cluster]),0))) -> 0.007451202895 | K16: =IF(Base!$E$11="Personalizado",Base!$E19,'Top dashboard'!$E$28/365*INDEX(EConsumption[promedio norm],MATCH(1,($B16=EConsumption[Hora / Mes])*('Top dashboard'!$E$47=EConsumption[Cluster]),0))) -> 0.007451202895 | L16: =IF(Base!$E$11="Personalizado",Base!$E19,'Top dashboard'!$E$28/365*INDEX(EConsumption[promedio norm],MATCH(1,($B16=EConsumption[Hora / Mes])*('Top dashboard'!$E$47=EConsumption[Cluster]),0))) -> 0.007451202895 | M16: =IF(Base!$E$11="Personalizado",Base!$E19,'Top dashboard'!$E$28/365*INDEX(EConsumption[promedio norm],MATCH(1,($B16=EConsumption[Hora / Mes])*('Top dashboard'!$E$47=EConsumption[Cluster]),0))) -> 0.007451202895 | N16: =IF(Base!$E$11="Personalizado",Base!$E19,'Top dashboard'!$E$28/365*INDEX(EConsumption[promedio norm],MATCH(1,($B16=EConsumption[Hora / Mes])*('Top dashboard'!$E$47=EConsumption[Cluster]),0))) -> 0.007451202895 | O16: =MIN(Demand0[[#This Row],[ene]:[dic]]) -> 0.007451202895 | P16: =AVERAGE(Demand0[[#This Row],[ene]:[dic]]) -> 0.007451202895 | Q16: =MAX(Demand0[[#This Row],[ene]:[dic]]) -> 0.007451202895
B17: 05:00:00 | C17: =IF(Base!$E$11="Personalizado",Base!$E20,'Top dashboard'!$E$28/365*INDEX(EConsumption[promedio norm],MATCH(1,($B17=EConsumption[Hora / Mes])*('Top dashboard'!$E$47=EConsumption[Cluster]),0))) -> 0.009023965733 | D17: =IF(Base!$E$11="Personalizado",Base!$E20,'Top dashboard'!$E$28/365*INDEX(EConsumption[promedio norm],MATCH(1,($B17=EConsumption[Hora / Mes])*('Top dashboard'!$E$47=EConsumption[Cluster]),0))) -> 0.009023965733 | E17: =IF(Base!$E$11="Personalizado",Base!$E20,'Top dashboard'!$E$28/365*INDEX(EConsumption[promedio norm],MATCH(1,($B17=EConsumption[Hora / Mes])*('Top dashboard'!$E$47=EConsumption[Cluster]),0))) -> 0.009023965733 | F17: =IF(Base!$E$11="Personalizado",Base!$E20,'Top dashboard'!$E$28/365*INDEX(EConsumption[promedio norm],MATCH(1,($B17=EConsumption[Hora / Mes])*('Top dashboard'!$E$47=EConsumption[Cluster]),0))) -> 0.009023965733 | G17: =IF(Base!$E$11="Personalizado",Base!$E20,'Top dashboard'!$E$28/365*INDEX(EConsumption[promedio norm],MATCH(1,($B17=EConsumption[Hora / Mes])*('Top dashboard'!$E$47=EConsumption[Cluster]),0))) -> 0.009023965733 | H17: =IF(Base!$E$11="Personalizado",Base!$E20,'Top dashboard'!$E$28/365*INDEX(EConsumption[promedio norm],MATCH(1,($B17=EConsumption[Hora / Mes])*('Top dashboard'!$E$47=EConsumption[Cluster]),0))) -> 0.009023965733 | I17: =IF(Base!$E$11="Personalizado",Base!$E20,'Top dashboard'!$E$28/365*INDEX(EConsumption[promedio norm],MATCH(1,($B17=EConsumption[Hora / Mes])*('Top dashboard'!$E$47=EConsumption[Cluster]),0))) -> 0.009023965733 | J17: =IF(Base!$E$11="Personalizado",Base!$E20,'Top dashboard'!$E$28/365*INDEX(EConsumption[promedio norm],MATCH(1,($B17=EConsumption[Hora / Mes])*('Top dashboard'!$E$47=EConsumption[Cluster]),0))) -> 0.009023965733 | K17: =IF(Base!$E$11="Personalizado",Base!$E20,'Top dashboard'!$E$28/365*INDEX(EConsumption[promedio norm],MATCH(1,($B17=EConsumption[Hora / Mes])*('Top dashboard'!$E$47=EConsumption[Cluster]),0))) -> 0.009023965733 | L17: =IF(Base!$E$11="Personalizado",Base!$E20,'Top dashboard'!$E$28/365*INDEX(EConsumption[promedio norm],MATCH(1,($B17=EConsumption[Hora / Mes])*('Top dashboard'!$E$47=EConsumption[Cluster]),0))) -> 0.009023965733 | M17: =IF(Base!$E$11="Personalizado",Base!$E20,'Top dashboard'!$E$28/365*INDEX(EConsumption[promedio norm],MATCH(1,($B17=EConsumption[Hora / Mes])*('Top dashboard'!$E$47=EConsumption[Cluster]),0))) -> 0.009023965733 | N17: =IF(Base!$E$11="Personalizado",Base!$E20,'Top dashboard'!$E$28/365*INDEX(EConsumption[promedio norm],MATCH(1,($B17=EConsumption[Hora / Mes])*('Top dashboard'!$E$47=EConsumption[Cluster]),0))) -> 0.009023965733 | O17: =MIN(Demand0[[#This Row],[ene]:[dic]]) -> 0.009023965733 | P17: =AVERAGE(Demand0[[#This Row],[ene]:[dic]]) -> 0.009023965733 | Q17: =MAX(Demand0[[#This Row],[ene]:[dic]]) -> 0.009023965733
B18: 06:00:00 | C18: =IF(Base!$E$11="Personalizado",Base!$E21,'Top dashboard'!$E$28/365*INDEX(EConsumption[promedio norm],MATCH(1,($B18=EConsumption[Hora / Mes])*('Top dashboard'!$E$47=EConsumption[Cluster]),0))) -> 0.01249745935 | D18: =IF(Base!$E$11="Personalizado",Base!$E21,'Top dashboard'!$E$28/365*INDEX(EConsumption[promedio norm],MATCH(1,($B18=EConsumption[Hora / Mes])*('Top dashboard'!$E$47=EConsumption[Cluster]),0))) -> 0.01249745935 | E18: =IF(Base!$E$11="Personalizado",Base!$E21,'Top dashboard'!$E$28/365*INDEX(EConsumption[promedio norm],MATCH(1,($B18=EConsumption[Hora / Mes])*('Top dashboard'!$E$47=EConsumption[Cluster]),0))) -> 0.01249745935 | F18: =IF(Base!$E$11="Personalizado",Base!$E21,'Top dashboard'!$E$28/365*INDEX(EConsumption[promedio norm],MATCH(1,($B18=EConsumption[Hora / Mes])*('Top dashboard'!$E$47=EConsumption[Cluster]),0))) -> 0.01249745935 | G18: =IF(Base!$E$11="Personalizado",Base!$E21,'Top dashboard'!$E$28/365*INDEX(EConsumption[promedio norm],MATCH(1,($B18=EConsumption[Hora / Mes])*('Top dashboard'!$E$47=EConsumption[Cluster]),0))) -> 0.01249745935 | H18: =IF(Base!$E$11="Personalizado",Base!$E21,'Top dashboard'!$E$28/365*INDEX(EConsumption[promedio norm],MATCH(1,($B18=EConsumption[Hora / Mes])*('Top dashboard'!$E$47=EConsumption[Cluster]),0))) -> 0.01249745935 | I18: =IF(Base!$E$11="Personalizado",Base!$E21,'Top dashboard'!$E$28/365*INDEX(EConsumption[promedio norm],MATCH(1,($B18=EConsumption[Hora / Mes])*('Top dashboard'!$E$47=EConsumption[Cluster]),0))) -> 0.01249745935 | J18: =IF(Base!$E$11="Personalizado",Base!$E21,'Top dashboard'!$E$28/365*INDEX(EConsumption[promedio norm],MATCH(1,($B18=EConsumption[Hora / Mes])*('Top dashboard'!$E$47=EConsumption[Cluster]),0))) -> 0.01249745935 | K18: =IF(Base!$E$11="Personalizado",Base!$E21,'Top dashboard'!$E$28/365*INDEX(EConsumption[promedio norm],MATCH(1,($B18=EConsumption[Hora / Mes])*('Top dashboard'!$E$47=EConsumption[Cluster]),0))) -> 0.01249745935 | L18: =IF(Base!$E$11="Personalizado",Base!$E21,'Top dashboard'!$E$28/365*INDEX(EConsumption[promedio norm],MATCH(1,($B18=EConsumption[Hora / Mes])*('Top dashboard'!$E$47=EConsumption[Cluster]),0))) -> 0.01249745935 | M18: =IF(Base!$E$11="Personalizado",Base!$E21,'Top dashboard'!$E$28/365*INDEX(EConsumption[promedio norm],MATCH(1,($B18=EConsumption[Hora / Mes])*('Top dashboard'!$E$47=EConsumption[Cluster]),0))) -> 0.01249745935 | N18: =IF(Base!$E$11="Personalizado",Base!$E21,'Top dashboard'!$E$28/365*INDEX(EConsumption[promedio norm],MATCH(1,($B18=EConsumption[Hora / Mes])*('Top dashboard'!$E$47=EConsumption[Cluster]),0))) -> 0.01249745935 | O18: =MIN(Demand0[[#This Row],[ene]:[dic]]) -> 0.01249745935 | P18: =AVERAGE(Demand0[[#This Row],[ene]:[dic]]) -> 0.01249745935 | Q18: =MAX(Demand0[[#This Row],[ene]:[dic]]) -> 0.01249745935
B19: 07:00:00 | C19: =IF(Base!$E$11="Personalizado",Base!$E22,'Top dashboard'!$E$28/365*INDEX(EConsumption[promedio norm],MATCH(1,($B19=EConsumption[Hora / Mes])*('Top dashboard'!$E$47=EConsumption[Cluster]),0))) -> 0.01538594208 | D19: =IF(Base!$E$11="Personalizado",Base!$E22,'Top dashboard'!$E$28/365*INDEX(EConsumption[promedio norm],MATCH(1,($B19=EConsumption[Hora / Mes])*('Top dashboard'!$E$47=EConsumption[Cluster]),0))) -> 0.01538594208 | E19: =IF(Base!$E$11="Personalizado",Base!$E22,'Top dashboard'!$E$28/365*INDEX(EConsumption[promedio norm],MATCH(1,($B19=EConsumption[Hora / Mes])*('Top dashboard'!$E$47=EConsumption[Cluster]),0))) -> 0.01538594208 | F19: =IF(Base!$E$11="Personalizado",Base!$E22,'Top dashboard'!$E$28/365*INDEX(EConsumption[promedio norm],MATCH(1,($B19=EConsumption[Hora / Mes])*('Top dashboard'!$E$47=EConsumption[Cluster]),0))) -> 0.01538594208 | G19: =IF(Base!$E$11="Personalizado",Base!$E22,'Top dashboard'!$E$28/365*INDEX(EConsumption[promedio norm],MATCH(1,($B19=EConsumption[Hora / Mes])*('Top dashboard'!$E$47=EConsumption[Cluster]),0))) -> 0.01538594208 | H19: =IF(Base!$E$11="Personalizado",Base!$E22,'Top dashboard'!$E$28/365*INDEX(EConsumption[promedio norm],MATCH(1,($B19=EConsumption[Hora / Mes])*('Top dashboard'!$E$47=EConsumption[Cluster]),0))) -> 0.01538594208 | I19: =IF(Base!$E$11="Personalizado",Base!$E22,'Top dashboard'!$E$28/365*INDEX(EConsumption[promedio norm],MATCH(1,($B19=EConsumption[Hora / Mes])*('Top dashboard'!$E$47=EConsumption[Cluster]),0))) -> 0.01538594208 | J19: =IF(Base!$E$11="Personalizado",Base!$E22,'Top dashboard'!$E$28/365*INDEX(EConsumption[promedio norm],MATCH(1,($B19=EConsumption[Hora / Mes])*('Top dashboard'!$E$47=EConsumption[Cluster]),0))) -> 0.01538594208 | K19: =IF(Base!$E$11="Personalizado",Base!$E22,'Top dashboard'!$E$28/365*INDEX(EConsumption[promedio norm],MATCH(1,($B19=EConsumption[Hora / Mes])*('Top dashboard'!$E$47=EConsumption[Cluster]),0))) -> 0.01538594208 | L19: =IF(Base!$E$11="Personalizado",Base!$E22,'Top dashboard'!$E$28/365*INDEX(EConsumption[promedio norm],MATCH(1,($B19=EConsumption[Hora / Mes])*('Top dashboard'!$E$47=EConsumption[Cluster]),0))) -> 0.01538594208 | M19: =IF(Base!$E$11="Personalizado",Base!$E22,'Top dashboard'!$E$28/365*INDEX(EConsumption[promedio norm],MATCH(1,($B19=EConsumption[Hora / Mes])*('Top dashboard'!$E$47=EConsumption[Cluster]),0))) -> 0.01538594208 | N19: =IF(Base!$E$11="Personalizado",Base!$E22,'Top dashboard'!$E$28/365*INDEX(EConsumption[promedio norm],MATCH(1,($B19=EConsumption[Hora / Mes])*('Top dashboard'!$E$47=EConsumption[Cluster]),0))) -> 0.01538594208 | O19: =MIN(Demand0[[#This Row],[ene]:[dic]]) -> 0.01538594208 | P19: =AVERAGE(Demand0[[#This Row],[ene]:[dic]]) -> 0.01538594208 | Q19: =MAX(Demand0[[#This Row],[ene]:[dic]]) -> 0.01538594208
B20: 08:00:00 | C20: =IF(Base!$E$11="Personalizado",Base!$E23,'Top dashboard'!$E$28/365*INDEX(EConsumption[promedio norm],MATCH(1,($B20=EConsumption[Hora / Mes])*('Top dashboard'!$E$47=EConsumption[Cluster]),0))) -> 0.01548919635 | D20: =IF(Base!$E$11="Personalizado",Base!$E23,'Top dashboard'!$E$28/365*INDEX(EConsumption[promedio norm],MATCH(1,($B20=EConsumption[Hora / Mes])*('Top dashboard'!$E$47=EConsumption[Cluster]),0))) -> 0.01548919635 | E20: =IF(Base!$E$11="Personalizado",Base!$E23,'Top dashboard'!$E$28/365*INDEX(EConsumption[promedio norm],MATCH(1,($B20=EConsumption[Hora / Mes])*('Top dashboard'!$E$47=EConsumption[Cluster]),0))) -> 0.01548919635 | F20: =IF(Base!$E$11="Personalizado",Base!$E23,'Top dashboard'!$E$28/365*INDEX(EConsumption[promedio norm],MATCH(1,($B20=EConsumption[Hora / Mes])*('Top dashboard'!$E$47=EConsumption[Cluster]),0))) -> 0.01548919635 | G20: =IF(Base!$E$11="Personalizado",Base!$E23,'Top dashboard'!$E$28/365*INDEX(EConsumption[promedio norm],MATCH(1,($B20=EConsumption[Hora / Mes])*('Top dashboard'!$E$47=EConsumption[Cluster]),0))) -> 0.01548919635 | H20: =IF(Base!$E$11="Personalizado",Base!$E23,'Top dashboard'!$E$28/365*INDEX(EConsumption[promedio norm],MATCH(1,($B20=EConsumption[Hora / Mes])*('Top dashboard'!$E$47=EConsumption[Cluster]),0))) -> 0.01548919635 | I20: =IF(Base!$E$11="Personalizado",Base!$E23,'Top dashboard'!$E$28/365*INDEX(EConsumption[promedio norm],MATCH(1,($B20=EConsumption[Hora / Mes])*('Top dashboard'!$E$47=EConsumption[Cluster]),0))) -> 0.01548919635 | J20: =IF(Base!$E$11="Personalizado",Base!$E23,'Top dashboard'!$E$28/365*INDEX(EConsumption[promedio norm],MATCH(1,($B20=EConsumption[Hora / Mes])*('Top dashboard'!$E$47=EConsumption[Cluster]),0))) -> 0.01548919635 | K20: =IF(Base!$E$11="Personalizado",Base!$E23,'Top dashboard'!$E$28/365*INDEX(EConsumption[promedio norm],MATCH(1,($B20=EConsumption[Hora / Mes])*('Top dashboard'!$E$47=EConsumption[Cluster]),0))) -> 0.01548919635 | L20: =IF(Base!$E$11="Personalizado",Base!$E23,'Top dashboard'!$E$28/365*INDEX(EConsumption[promedio norm],MATCH(1,($B20=EConsumption[Hora / Mes])*('Top dashboard'!$E$47=EConsumption[Cluster]),0))) -> 0.01548919635 | M20: =IF(Base!$E$11="Personalizado",Base!$E23,'Top dashboard'!$E$28/365*INDEX(EConsumption[promedio norm],MATCH(1,($B20=EConsumption[Hora / Mes])*('Top dashboard'!$E$47=EConsumption[Cluster]),0))) -> 0.01548919635 | N20: =IF(Base!$E$11="Personalizado",Base!$E23,'Top dashboard'!$E$28/365*INDEX(EConsumption[promedio norm],MATCH(1,($B20=EConsumption[Hora / Mes])*('Top dashboard'!$E$47=EConsumption[Cluster]),0))) -> 0.01548919635 | O20: =MIN(Demand0[[#This Row],[ene]:[dic]]) -> 0.01548919635 | P20: =AVERAGE(Demand0[[#This Row],[ene]:[dic]]) -> 0.01548919635 | Q20: =MAX(Demand0[[#This Row],[ene]:[dic]]) -> 0.01548919635
B21: 09:00:00 | C21: =IF(Base!$E$11="Personalizado",Base!$E24,'Top dashboard'!$E$28/365*INDEX(EConsumption[promedio norm],MATCH(1,($B21=EConsumption[Hora / Mes])*('Top dashboard'!$E$47=EConsumption[Cluster]),0))) -> 0.01558788028 | D21: =IF(Base!$E$11="Personalizado",Base!$E24,'Top dashboard'!$E$28/365*INDEX(EConsumption[promedio norm],MATCH(1,($B21=EConsumption[Hora / Mes])*('Top dashboard'!$E$47=EConsumption[Cluster]),0))) -> 0.01558788028 | E21: =IF(Base!$E$11="Personalizado",Base!$E24,'Top dashboard'!$E$28/365*INDEX(EConsumption[promedio norm],MATCH(1,($B21=EConsumption[Hora / Mes])*('Top dashboard'!$E$47=EConsumption[Cluster]),0))) -> 0.01558788028 | F21: =IF(Base!$E$11="Personalizado",Base!$E24,'Top dashboard'!$E$28/365*INDEX(EConsumption[promedio norm],MATCH(1,($B21=EConsumption[Hora / Mes])*('Top dashboard'!$E$47=EConsumption[Cluster]),0))) -> 0.01558788028 | G21: =IF(Base!$E$11="Personalizado",Base!$E24,'Top dashboard'!$E$28/365*INDEX(EConsumption[promedio norm],MATCH(1,($B21=EConsumption[Hora / Mes])*('Top dashboard'!$E$47=EConsumption[Cluster]),0))) -> 0.01558788028 | H21: =IF(Base!$E$11="Personalizado",Base!$E24,'Top dashboard'!$E$28/365*INDEX(EConsumption[promedio norm],MATCH(1,($B21=EConsumption[Hora / Mes])*('Top dashboard'!$E$47=EConsumption[Cluster]),0))) -> 0.01558788028 | I21: =IF(Base!$E$11="Personalizado",Base!$E24,'Top dashboard'!$E$28/365*INDEX(EConsumption[promedio norm],MATCH(1,($B21=EConsumption[Hora / Mes])*('Top dashboard'!$E$47=EConsumption[Cluster]),0))) -> 0.01558788028 | J21: =IF(Base!$E$11="Personalizado",Base!$E24,'Top dashboard'!$E$28/365*INDEX(EConsumption[promedio norm],MATCH(1,($B21=EConsumption[Hora / Mes])*('Top dashboard'!$E$47=EConsumption[Cluster]),0))) -> 0.01558788028 | K21: =IF(Base!$E$11="Personalizado",Base!$E24,'Top dashboard'!$E$28/365*INDEX(EConsumption[promedio norm],MATCH(1,($B21=EConsumption[Hora / Mes])*('Top dashboard'!$E$47=EConsumption[Cluster]),0))) -> 0.01558788028 | L21: =IF(Base!$E$11="Personalizado",Base!$E24,'Top dashboard'!$E$28/365*INDEX(EConsumption[promedio norm],MATCH(1,($B21=EConsumption[Hora / Mes])*('Top dashboard'!$E$47=EConsumption[Cluster]),0))) -> 0.01558788028 | M21: =IF(Base!$E$11="Personalizado",Base!$E24,'Top dashboard'!$E$28/365*INDEX(EConsumption[promedio norm],MATCH(1,($B21=EConsumption[Hora / Mes])*('Top dashboard'!$E$47=EConsumption[Cluster]),0))) -> 0.01558788028 | N21: =IF(Base!$E$11="Personalizado",Base!$E24,'Top dashboard'!$E$28/365*INDEX(EConsumption[promedio norm],MATCH(1,($B21=EConsumption[Hora / Mes])*('Top dashboard'!$E$47=EConsumption[Cluster]),0))) -> 0.01558788028 | O21: =MIN(Demand0[[#This Row],[ene]:[dic]]) -> 0.01558788028 | P21: =AVERAGE(Demand0[[#This Row],[ene]:[dic]]) -> 0.01558788028 | Q21: =MAX(Demand0[[#This Row],[ene]:[dic]]) -> 0.01558788028
B22: 10:00:00 | C22: =IF(Base!$E$11="Personalizado",Base!$E25,'Top dashboard'!$E$28/365*INDEX(EConsumption[promedio norm],MATCH(1,($B22=EConsumption[Hora / Mes])*('Top dashboard'!$E$47=EConsumption[Cluster]),0))) -> 0.01569996086 | D22: =IF(Base!$E$11="Personalizado",Base!$E25,'Top dashboard'!$E$28/365*INDEX(EConsumption[promedio norm],MATCH(1,($B22=EConsumption[Hora / Mes])*('Top dashboard'!$E$47=EConsumption[Cluster]),0))) -> 0.01569996086 | E22: =IF(Base!$E$11="Personalizado",Base!$E25,'Top dashboard'!$E$28/365*INDEX(EConsumption[promedio norm],MATCH(1,($B22=EConsumption[Hora / Mes])*('Top dashboard'!$E$47=EConsumption[Cluster]),0))) -> 0.01569996086 | F22: =IF(Base!$E$11="Personalizado",Base!$E25,'Top dashboard'!$E$28/365*INDEX(EConsumption[promedio norm],MATCH(1,($B22=EConsumption[Hora / Mes])*('Top dashboard'!$E$47=EConsumption[Cluster]),0))) -> 0.01569996086 | G22: =IF(Base!$E$11="Personalizado",Base!$E25,'Top dashboard'!$E$28/365*INDEX(EConsumption[promedio norm],MATCH(1,($B22=EConsumption[Hora / Mes])*('Top dashboard'!$E$47=EConsumption[Cluster]),0))) -> 0.01569996086 | H22: =IF(Base!$E$11="Personalizado",Base!$E25,'Top dashboard'!$E$28/365*INDEX(EConsumption[promedio norm],MATCH(1,($B22=EConsumption[Hora / Mes])*('Top dashboard'!$E$47=EConsumption[Cluster]),0))) -> 0.01569996086 | I22: =IF(Base!$E$11="Personalizado",Base!$E25,'Top dashboard'!$E$28/365*INDEX(EConsumption[promedio norm],MATCH(1,($B22=EConsumption[Hora / Mes])*('Top dashboard'!$E$47=EConsumption[Cluster]),0))) -> 0.01569996086 | J22: =IF(Base!$E$11="Personalizado",Base!$E25,'Top dashboard'!$E$28/365*INDEX(EConsumption[promedio norm],MATCH(1,($B22=EConsumption[Hora / Mes])*('Top dashboard'!$E$47=EConsumption[Cluster]),0))) -> 0.01569996086 | K22: =IF(Base!$E$11="Personalizado",Base!$E25,'Top dashboard'!$E$28/365*INDEX(EConsumption[promedio norm],MATCH(1,($B22=EConsumption[Hora / Mes])*('Top dashboard'!$E$47=EConsumption[Cluster]),0))) -> 0.01569996086 | L22: =IF(Base!$E$11="Personalizado",Base!$E25,'Top dashboard'!$E$28/365*INDEX(EConsumption[promedio norm],MATCH(1,($B22=EConsumption[Hora / Mes])*('Top dashboard'!$E$47=EConsumption[Cluster]),0))) -> 0.01569996086 | M22: =IF(Base!$E$11="Personalizado",Base!$E25,'Top dashboard'!$E$28/365*INDEX(EConsumption[promedio norm],MATCH(1,($B22=EConsumption[Hora / Mes])*('Top dashboard'!$E$47=EConsumption[Cluster]),0))) -> 0.01569996086 | N22: =IF(Base!$E$11="Personalizado",Base!$E25,'Top dashboard'!$E$28/365*INDEX(EConsumption[promedio norm],MATCH(1,($B22=EConsumption[Hora / Mes])*('Top dashboard'!$E$47=EConsumption[Cluster]),0))) -> 0.01569996086 | O22: =MIN(Demand0[[#This Row],[ene]:[dic]]) -> 0.01569996086 | P22: =AVERAGE(Demand0[[#This Row],[ene]:[dic]]) -> 0.01569996086 | Q22: =MAX(Demand0[[#This Row],[ene]:[dic]]) -> 0.01569996086
B23: 11:00:00 | C23: =IF(Base!$E$11="Personalizado",Base!$E26,'Top dashboard'!$E$28/365*INDEX(EConsumption[promedio norm],MATCH(1,($B23=EConsumption[Hora / Mes])*('Top dashboard'!$E$47=EConsumption[Cluster]),0))) -> 0.0159329651 | D23: =IF(Base!$E$11="Personalizado",Base!$E26,'Top dashboard'!$E$28/365*INDEX(EConsumption[promedio norm],MATCH(1,($B23=EConsumption[Hora / Mes])*('Top dashboard'!$E$47=EConsumption[Cluster]),0))) -> 0.0159329651 | E23: =IF(Base!$E$11="Personalizado",Base!$E26,'Top dashboard'!$E$28/365*INDEX(EConsumption[promedio norm],MATCH(1,($B23=EConsumption[Hora / Mes])*('Top dashboard'!$E$47=EConsumption[Cluster]),0))) -> 0.0159329651 | F23: =IF(Base!$E$11="Personalizado",Base!$E26,'Top dashboard'!$E$28/365*INDEX(EConsumption[promedio norm],MATCH(1,($B23=EConsumption[Hora / Mes])*('Top dashboard'!$E$47=EConsumption[Cluster]),0))) -> 0.0159329651 | G23: =IF(Base!$E$11="Personalizado",Base!$E26,'Top dashboard'!$E$28/365*INDEX(EConsumption[promedio norm],MATCH(1,($B23=EConsumption[Hora / Mes])*('Top dashboard'!$E$47=EConsumption[Cluster]),0))) -> 0.0159329651 | H23: =IF(Base!$E$11="Personalizado",Base!$E26,'Top dashboard'!$E$28/365*INDEX(EConsumption[promedio norm],MATCH(1,($B23=EConsumption[Hora / Mes])*('Top dashboard'!$E$47=EConsumption[Cluster]),0))) -> 0.0159329651 | I23: =IF(Base!$E$11="Personalizado",Base!$E26,'Top dashboard'!$E$28/365*INDEX(EConsumption[promedio norm],MATCH(1,($B23=EConsumption[Hora / Mes])*('Top dashboard'!$E$47=EConsumption[Cluster]),0))) -> 0.0159329651 | J23: =IF(Base!$E$11="Personalizado",Base!$E26,'Top dashboard'!$E$28/365*INDEX(EConsumption[promedio norm],MATCH(1,($B23=EConsumption[Hora / Mes])*('Top dashboard'!$E$47=EConsumption[Cluster]),0))) -> 0.0159329651 | K23: =IF(Base!$E$11="Personalizado",Base!$E26,'Top dashboard'!$E$28/365*INDEX(EConsumption[promedio norm],MATCH(1,($B23=EConsumption[Hora / Mes])*('Top dashboard'!$E$47=EConsumption[Cluster]),0))) -> 0.0159329651 | L23: =IF(Base!$E$11="Personalizado",Base!$E26,'Top dashboard'!$E$28/365*INDEX(EConsumption[promedio norm],MATCH(1,($B23=EConsumption[Hora / Mes])*('Top dashboard'!$E$47=EConsumption[Cluster]),0))) -> 0.0159329651 | M23: =IF(Base!$E$11="Personalizado",Base!$E26,'Top dashboard'!$E$28/365*INDEX(EConsumption[promedio norm],MATCH(1,($B23=EConsumption[Hora / Mes])*('Top dashboard'!$E$47=EConsumption[Cluster]),0))) -> 0.0159329651 | N23: =IF(Base!$E$11="Personalizado",Base!$E26,'Top dashboard'!$E$28/365*INDEX(EConsumption[promedio norm],MATCH(1,($B23=EConsumption[Hora / Mes])*('Top dashboard'!$E$47=EConsumption[Cluster]),0))) -> 0.0159329651 | O23: =MIN(Demand0[[#This Row],[ene]:[dic]]) -> 0.0159329651 | P23: =AVERAGE(Demand0[[#This Row],[ene]:[dic]]) -> 0.0159329651 | Q23: =MAX(Demand0[[#This Row],[ene]:[dic]]) -> 0.0159329651
B24: 12:00:00 | C24: =IF(Base!$E$11="Personalizado",Base!$E27,'Top dashboard'!$E$28/365*INDEX(EConsumption[promedio norm],MATCH(1,($B24=EConsumption[Hora / Mes])*('Top dashboard'!$E$47=EConsumption[Cluster]),0))) -> 0.01634165999 | D24: =IF(Base!$E$11="Personalizado",Base!$E27,'Top dashboard'!$E$28/365*INDEX(EConsumption[promedio norm],MATCH(1,($B24=EConsumption[Hora / Mes])*('Top dashboard'!$E$47=EConsumption[Cluster]),0))) -> 0.01634165999 | E24: =IF(Base!$E$11="Personalizado",Base!$E27,'Top dashboard'!$E$28/365*INDEX(EConsumption[promedio norm],MATCH(1,($B24=EConsumption[Hora / Mes])*('Top dashboard'!$E$47=EConsumption[Cluster]),0))) -> 0.01634165999 | F24: =IF(Base!$E$11="Personalizado",Base!$E27,'Top dashboard'!$E$28/365*INDEX(EConsumption[promedio norm],MATCH(1,($B24=EConsumption[Hora / Mes])*('Top dashboard'!$E$47=EConsumption[Cluster]),0))) -> 0.01634165999 | G24: =IF(Base!$E$11="Personalizado",Base!$E27,'Top dashboard'!$E$28/365*INDEX(EConsumption[promedio norm],MATCH(1,($B24=EConsumption[Hora / Mes])*('Top dashboard'!$E$47=EConsumption[Cluster]),0))) -> 0.01634165999 | H24: =IF(Base!$E$11="Personalizado",Base!$E27,'Top dashboard'!$E$28/365*INDEX(EConsumption[promedio norm],MATCH(1,($B24=EConsumption[Hora / Mes])*('Top dashboard'!$E$47=EConsumption[Cluster]),0))) -> 0.01634165999 | I24: =IF(Base!$E$11="Personalizado",Base!$E27,'Top dashboard'!$E$28/365*INDEX(EConsumption[promedio norm],MATCH(1,($B24=EConsumption[Hora / Mes])*('Top dashboard'!$E$47=EConsumption[Cluster]),0))) -> 0.01634165999 | J24: =IF(Base!$E$11="Personalizado",Base!$E27,'Top dashboard'!$E$28/365*INDEX(EConsumption[promedio norm],MATCH(1,($B24=EConsumption[Hora / Mes])*('Top dashboard'!$E$47=EConsumption[Cluster]),0))) -> 0.01634165999 | K24: =IF(Base!$E$11="Personalizado",Base!$E27,'Top dashboard'!$E$28/365*INDEX(EConsumption[promedio norm],MATCH(1,($B24=EConsumption[Hora / Mes])*('Top dashboard'!$E$47=EConsumption[Cluster]),0))) -> 0.01634165999 | L24: =IF(Base!$E$11="Personalizado",Base!$E27,'Top dashboard'!$E$28/365*INDEX(EConsumption[promedio norm],MATCH(1,($B24=EConsumption[Hora / Mes])*('Top dashboard'!$E$47=EConsumption[Cluster]),0))) -> 0.01634165999 | M24: =IF(Base!$E$11="Personalizado",Base!$E27,'Top dashboard'!$E$28/365*INDEX(EConsumption[promedio norm],MATCH(1,($B24=EConsumption[Hora / Mes])*('Top dashboard'!$E$47=EConsumption[Cluster]),0))) -> 0.01634165999 | N24: =IF(Base!$E$11="Personalizado",Base!$E27,'Top dashboard'!$E$28/365*INDEX(EConsumption[promedio norm],MATCH(1,($B24=EConsumption[Hora / Mes])*('Top dashboard'!$E$47=EConsumption[Cluster]),0))) -> 0.01634165999 | O24: =MIN(Demand0[[#This Row],[ene]:[dic]]) -> 0.01634165999 | P24: =AVERAGE(Demand0[[#This Row],[ene]:[dic]]) -> 0.01634165999 | Q24: =MAX(Demand0[[#This Row],[ene]:[dic]]) -> 0.01634165999
B25: 13:00:00 | C25: =IF(Base!$E$11="Personalizado",Base!$E28,'Top dashboard'!$E$28/365*INDEX(EConsumption[promedio norm],MATCH(1,($B25=EConsumption[Hora / Mes])*('Top dashboard'!$E$47=EConsumption[Cluster]),0))) -> 0.0168370405 | D25: =IF(Base!$E$11="Personalizado",Base!$E28,'Top dashboard'!$E$28/365*INDEX(EConsumption[promedio norm],MATCH(1,($B25=EConsumption[Hora / Mes])*('Top dashboard'!$E$47=EConsumption[Cluster]),0))) -> 0.0168370405 | E25: =IF(Base!$E$11="Personalizado",Base!$E28,'Top dashboard'!$E$28/365*INDEX(EConsumption[promedio norm],MATCH(1,($B25=EConsumption[Hora / Mes])*('Top dashboard'!$E$47=EConsumption[Cluster]),0))) -> 0.0168370405 | F25: =IF(Base!$E$11="Personalizado",Base!$E28,'Top dashboard'!$E$28/365*INDEX(EConsumption[promedio norm],MATCH(1,($B25=EConsumption[Hora / Mes])*('Top dashboard'!$E$47=EConsumption[Cluster]),0))) -> 0.0168370405 | G25: =IF(Base!$E$11="Personalizado",Base!$E28,'Top dashboard'!$E$28/365*INDEX(EConsumption[promedio norm],MATCH(1,($B25=EConsumption[Hora / Mes])*('Top dashboard'!$E$47=EConsumption[Cluster]),0))) -> 0.0168370405 | H25: =IF(Base!$E$11="Personalizado",Base!$E28,'Top dashboard'!$E$28/365*INDEX(EConsumption[promedio norm],MATCH(1,($B25=EConsumption[Hora / Mes])*('Top dashboard'!$E$47=EConsumption[Cluster]),0))) -> 0.0168370405 | I25: =IF(Base!$E$11="Personalizado",Base!$E28,'Top dashboard'!$E$28/365*INDEX(EConsumption[promedio norm],MATCH(1,($B25=EConsumption[Hora / Mes])*('Top dashboard'!$E$47=EConsumption[Cluster]),0))) -> 0.0168370405 | J25: =IF(Base!$E$11="Personalizado",Base!$E28,'Top dashboard'!$E$28/365*INDEX(EConsumption[promedio norm],MATCH(1,($B25=EConsumption[Hora / Mes])*('Top dashboard'!$E$47=EConsumption[Cluster]),0))) -> 0.0168370405 | K25: =IF(Base!$E$11="Personalizado",Base!$E28,'Top dashboard'!$E$28/365*INDEX(EConsumption[promedio norm],MATCH(1,($B25=EConsumption[Hora / Mes])*('Top dashboard'!$E$47=EConsumption[Cluster]),0))) -> 0.0168370405 | L25: =IF(Base!$E$11="Personalizado",Base!$E28,'Top dashboard'!$E$28/365*INDEX(EConsumption[promedio norm],MATCH(1,($B25=EConsumption[Hora / Mes])*('Top dashboard'!$E$47=EConsumption[Cluster]),0))) -> 0.0168370405 | M25: =IF(Base!$E$11="Personalizado",Base!$E28,'Top dashboard'!$E$28/365*INDEX(EConsumption[promedio norm],MATCH(1,($B25=EConsumption[Hora / Mes])*('Top dashboard'!$E$47=EConsumption[Cluster]),0))) -> 0.0168370405 | N25: =IF(Base!$E$11="Personalizado",Base!$E28,'Top dashboard'!$E$28/365*INDEX(EConsumption[promedio norm],MATCH(1,($B25=EConsumption[Hora / Mes])*('Top dashboard'!$E$47=EConsumption[Cluster]),0))) -> 0.0168370405 | O25: =MIN(Demand0[[#This Row],[ene]:[dic]]) -> 0.0168370405 | P25: =AVERAGE(Demand0[[#This Row],[ene]:[dic]]) -> 0.0168370405 | Q25: =MAX(Demand0[[#This Row],[ene]:[dic]]) -> 0.0168370405
B26: 14:00:00 | C26: =IF(Base!$E$11="Personalizado",Base!$E29,'Top dashboard'!$E$28/365*INDEX(EConsumption[promedio norm],MATCH(1,($B26=EConsumption[Hora / Mes])*('Top dashboard'!$E$47=EConsumption[Cluster]),0))) -> 0.01665996417 | D26: =IF(Base!$E$11="Personalizado",Base!$E29,'Top dashboard'!$E$28/365*INDEX(EConsumption[promedio norm],MATCH(1,($B26=EConsumption[Hora / Mes])*('Top dashboard'!$E$47=EConsumption[Cluster]),0))) -> 0.01665996417 | E26: =IF(Base!$E$11="Personalizado",Base!$E29,'Top dashboard'!$E$28/365*INDEX(EConsumption[promedio norm],MATCH(1,($B26=EConsumption[Hora / Mes])*('Top dashboard'!$E$47=EConsumption[Cluster]),0))) -> 0.01665996417 | F26: =IF(Base!$E$11="Personalizado",Base!$E29,'Top dashboard'!$E$28/365*INDEX(EConsumption[promedio norm],MATCH(1,($B26=EConsumption[Hora / Mes])*('Top dashboard'!$E$47=EConsumption[Cluster]),0))) -> 0.01665996417 | G26: =IF(Base!$E$11="Personalizado",Base!$E29,'Top dashboard'!$E$28/365*INDEX(EConsumption[promedio norm],MATCH(1,($B26=EConsumption[Hora / Mes])*('Top dashboard'!$E$47=EConsumption[Cluster]),0))) -> 0.01665996417 | H26: =IF(Base!$E$11="Personalizado",Base!$E29,'Top dashboard'!$E$28/365*INDEX(EConsumption[promedio norm],MATCH(1,($B26=EConsumption[Hora / Mes])*('Top dashboard'!$E$47=EConsumption[Cluster]),0))) -> 0.01665996417 | I26: =IF(Base!$E$11="Personalizado",Base!$E29,'Top dashboard'!$E$28/365*INDEX(EConsumption[promedio norm],MATCH(1,($B26=EConsumption[Hora / Mes])*('Top dashboard'!$E$47=EConsumption[Cluster]),0))) -> 0.01665996417 | J26: =IF(Base!$E$11="Personalizado",Base!$E29,'Top dashboard'!$E$28/365*INDEX(EConsumption[promedio norm],MATCH(1,($B26=EConsumption[Hora / Mes])*('Top dashboard'!$E$47=EConsumption[Cluster]),0))) -> 0.01665996417 | K26: =IF(Base!$E$11="Personalizado",Base!$E29,'Top dashboard'!$E$28/365*INDEX(EConsumption[promedio norm],MATCH(1,($B26=EConsumption[Hora / Mes])*('Top dashboard'!$E$47=EConsumption[Cluster]),0))) -> 0.01665996417 | L26: =IF(Base!$E$11="Personalizado",Base!$E29,'Top dashboard'!$E$28/365*INDEX(EConsumption[promedio norm],MATCH(1,($B26=EConsumption[Hora / Mes])*('Top dashboard'!$E$47=EConsumption[Cluster]),0))) -> 0.01665996417 | M26: =IF(Base!$E$11="Personalizado",Base!$E29,'Top dashboard'!$E$28/365*INDEX(EConsumption[promedio norm],MATCH(1,($B26=EConsumption[Hora / Mes])*('Top dashboard'!$E$47=EConsumption[Cluster]),0))) -> 0.01665996417 | N26: =IF(Base!$E$11="Personalizado",Base!$E29,'Top dashboard'!$E$28/365*INDEX(EConsumption[promedio norm],MATCH(1,($B26=EConsumption[Hora / Mes])*('Top dashboard'!$E$47=EConsumption[Cluster]),0))) -> 0.01665996417 | O26: =MIN(Demand0[[#This Row],[ene]:[dic]]) -> 0.01665996417 | P26: =AVERAGE(Demand0[[#This Row],[ene]:[dic]]) -> 0.01665996417 | Q26: =MAX(Demand0[[#This Row],[ene]:[dic]]) -> 0.01665996417
B27: 15:00:00 | C27: =IF(Base!$E$11="Personalizado",Base!$E30,'Top dashboard'!$E$28/365*INDEX(EConsumption[promedio norm],MATCH(1,($B27=EConsumption[Hora / Mes])*('Top dashboard'!$E$47=EConsumption[Cluster]),0))) -> 0.01655865315 | D27: =IF(Base!$E$11="Personalizado",Base!$E30,'Top dashboard'!$E$28/365*INDEX(EConsumption[promedio norm],MATCH(1,($B27=EConsumption[Hora / Mes])*('Top dashboard'!$E$47=EConsumption[Cluster]),0))) -> 0.01655865315 | E27: =IF(Base!$E$11="Personalizado",Base!$E30,'Top dashboard'!$E$28/365*INDEX(EConsumption[promedio norm],MATCH(1,($B27=EConsumption[Hora / Mes])*('Top dashboard'!$E$47=EConsumption[Cluster]),0))) -> 0.01655865315 | F27: =IF(Base!$E$11="Personalizado",Base!$E30,'Top dashboard'!$E$28/365*INDEX(EConsumption[promedio norm],MATCH(1,($B27=EConsumption[Hora / Mes])*('Top dashboard'!$E$47=EConsumption[Cluster]),0))) -> 0.01655865315 | G27: =IF(Base!$E$11="Personalizado",Base!$E30,'Top dashboard'!$E$28/365*INDEX(EConsumption[promedio norm],MATCH(1,($B27=EConsumption[Hora / Mes])*('Top dashboard'!$E$47=EConsumption[Cluster]),0))) -> 0.01655865315 | H27: =IF(Base!$E$11="Personalizado",Base!$E30,'Top dashboard'!$E$28/365*INDEX(EConsumption[promedio norm],MATCH(1,($B27=EConsumption[Hora / Mes])*('Top dashboard'!$E$47=EConsumption[Cluster]),0))) -> 0.01655865315 | I27: =IF(Base!$E$11="Personalizado",Base!$E30,'Top dashboard'!$E$28/365*INDEX(EConsumption[promedio norm],MATCH(1,($B27=EConsumption[Hora / Mes])*('Top dashboard'!$E$47=EConsumption[Cluster]),0))) -> 0.01655865315 | J27: =IF(Base!$E$11="Personalizado",Base!$E30,'Top dashboard'!$E$28/365*INDEX(EConsumption[promedio norm],MATCH(1,($B27=EConsumption[Hora / Mes])*('Top dashboard'!$E$47=EConsumption[Cluster]),0))) -> 0.01655865315 | K27: =IF(Base!$E$11="Personalizado",Base!$E30,'Top dashboard'!$E$28/365*INDEX(EConsumption[promedio norm],MATCH(1,($B27=EConsumption[Hora / Mes])*('Top dashboard'!$E$47=EConsumption[Cluster]),0))) -> 0.01655865315 | L27: =IF(Base!$E$11="Personalizado",Base!$E30,'Top dashboard'!$E$28/365*INDEX(EConsumption[promedio norm],MATCH(1,($B27=EConsumption[Hora / Mes])*('Top dashboard'!$E$47=EConsumption[Cluster]),0))) -> 0.01655865315 | M27: =IF(Base!$E$11="Personalizado",Base!$E30,'Top dashboard'!$E$28/365*INDEX(EConsumption[promedio norm],MATCH(1,($B27=EConsumption[Hora / Mes])*('Top dashboard'!$E$47=EConsumption[Cluster]),0))) -> 0.01655865315 | N27: =IF(Base!$E$11="Personalizado",Base!$E30,'Top dashboard'!$E$28/365*INDEX(EConsumption[promedio norm],MATCH(1,($B27=EConsumption[Hora / Mes])*('Top dashboard'!$E$47=EConsumption[Cluster]),0))) -> 0.01655865315 | O27: =MIN(Demand0[[#This Row],[ene]:[dic]]) -> 0.01655865315 | P27: =AVERAGE(Demand0[[#This Row],[ene]:[dic]]) -> 0.01655865315 | Q27: =MAX(Demand0[[#This Row],[ene]:[dic]]) -> 0.01655865315
B28: 16:00:00 | C28: =IF(Base!$E$11="Personalizado",Base!$E31,'Top dashboard'!$E$28/365*INDEX(EConsumption[promedio norm],MATCH(1,($B28=EConsumption[Hora / Mes])*('Top dashboard'!$E$47=EConsumption[Cluster]),0))) -> 0.0178997023 | D28: =IF(Base!$E$11="Personalizado",Base!$E31,'Top dashboard'!$E$28/365*INDEX(EConsumption[promedio norm],MATCH(1,($B28=EConsumption[Hora / Mes])*('Top dashboard'!$E$47=EConsumption[Cluster]),0))) -> 0.0178997023 | E28: =IF(Base!$E$11="Personalizado",Base!$E31,'Top dashboard'!$E$28/365*INDEX(EConsumption[promedio norm],MATCH(1,($B28=EConsumption[Hora / Mes])*('Top dashboard'!$E$47=EConsumption[Cluster]),0))) -> 0.0178997023 | F28: =IF(Base!$E$11="Personalizado",Base!$E31,'Top dashboard'!$E$28/365*INDEX(EConsumption[promedio norm],MATCH(1,($B28=EConsumption[Hora / Mes])*('Top dashboard'!$E$47=EConsumption[Cluster]),0))) -> 0.0178997023 | G28: =IF(Base!$E$11="Personalizado",Base!$E31,'Top dashboard'!$E$28/365*INDEX(EConsumption[promedio norm],MATCH(1,($B28=EConsumption[Hora / Mes])*('Top dashboard'!$E$47=EConsumption[Cluster]),0))) -> 0.0178997023 | H28: =IF(Base!$E$11="Personalizado",Base!$E31,'Top dashboard'!$E$28/365*INDEX(EConsumption[promedio norm],MATCH(1,($B28=EConsumption[Hora / Mes])*('Top dashboard'!$E$47=EConsumption[Cluster]),0))) -> 0.0178997023 | I28: =IF(Base!$E$11="Personalizado",Base!$E31,'Top dashboard'!$E$28/365*INDEX(EConsumption[promedio norm],MATCH(1,($B28=EConsumption[Hora / Mes])*('Top dashboard'!$E$47=EConsumption[Cluster]),0))) -> 0.0178997023 | J28: =IF(Base!$E$11="Personalizado",Base!$E31,'Top dashboard'!$E$28/365*INDEX(EConsumption[promedio norm],MATCH(1,($B28=EConsumption[Hora / Mes])*('Top dashboard'!$E$47=EConsumption[Cluster]),0))) -> 0.0178997023 | K28: =IF(Base!$E$11="Personalizado",Base!$E31,'Top dashboard'!$E$28/365*INDEX(EConsumption[promedio norm],MATCH(1,($B28=EConsumption[Hora / Mes])*('Top dashboard'!$E$47=EConsumption[Cluster]),0))) -> 0.0178997023 | L28: =IF(Base!$E$11="Personalizado",Base!$E31,'Top dashboard'!$E$28/365*INDEX(EConsumption[promedio norm],MATCH(1,($B28=EConsumption[Hora / Mes])*('Top dashboard'!$E$47=EConsumption[Cluster]),0))) -> 0.0178997023 | M28: =IF(Base!$E$11="Personalizado",Base!$E31,'Top dashboard'!$E$28/365*INDEX(EConsumption[promedio norm],MATCH(1,($B28=EConsumption[Hora / Mes])*('Top dashboard'!$E$47=EConsumption[Cluster]),0))) -> 0.0178997023 | N28: =IF(Base!$E$11="Personalizado",Base!$E31,'Top dashboard'!$E$28/365*INDEX(EConsumption[promedio norm],MATCH(1,($B28=EConsumption[Hora / Mes])*('Top dashboard'!$E$47=EConsumption[Cluster]),0))) -> 0.0178997023 | O28: =MIN(Demand0[[#This Row],[ene]:[dic]]) -> 0.0178997023 | P28: =AVERAGE(Demand0[[#This Row],[ene]:[dic]]) -> 0.0178997023 | Q28: =MAX(Demand0[[#This Row],[ene]:[dic]]) -> 0.0178997023
B29: 17:00:00 | C29: =IF(Base!$E$11="Personalizado",Base!$E32,'Top dashboard'!$E$28/365*INDEX(EConsumption[promedio norm],MATCH(1,($B29=EConsumption[Hora / Mes])*('Top dashboard'!$E$47=EConsumption[Cluster]),0))) -> 0.02023153862 | D29: =IF(Base!$E$11="Personalizado",Base!$E32,'Top dashboard'!$E$28/365*INDEX(EConsumption[promedio norm],MATCH(1,($B29=EConsumption[Hora / Mes])*('Top dashboard'!$E$47=EConsumption[Cluster]),0))) -> 0.02023153862 | E29: =IF(Base!$E$11="Personalizado",Base!$E32,'Top dashboard'!$E$28/365*INDEX(EConsumption[promedio norm],MATCH(1,($B29=EConsumption[Hora / Mes])*('Top dashboard'!$E$47=EConsumption[Cluster]),0))) -> 0.02023153862 | F29: =IF(Base!$E$11="Personalizado",Base!$E32,'Top dashboard'!$E$28/365*INDEX(EConsumption[promedio norm],MATCH(1,($B29=EConsumption[Hora / Mes])*('Top dashboard'!$E$47=EConsumption[Cluster]),0))) -> 0.02023153862 | G29: =IF(Base!$E$11="Personalizado",Base!$E32,'Top dashboard'!$E$28/365*INDEX(EConsumption[promedio norm],MATCH(1,($B29=EConsumption[Hora / Mes])*('Top dashboard'!$E$47=EConsumption[Cluster]),0))) -> 0.02023153862 | H29: =IF(Base!$E$11="Personalizado",Base!$E32,'Top dashboard'!$E$28/365*INDEX(EConsumption[promedio norm],MATCH(1,($B29=EConsumption[Hora / Mes])*('Top dashboard'!$E$47=EConsumption[Cluster]),0))) -> 0.02023153862 | I29: =IF(Base!$E$11="Personalizado",Base!$E32,'Top dashboard'!$E$28/365*INDEX(EConsumption[promedio norm],MATCH(1,($B29=EConsumption[Hora / Mes])*('Top dashboard'!$E$47=EConsumption[Cluster]),0))) -> 0.02023153862 | J29: =IF(Base!$E$11="Personalizado",Base!$E32,'Top dashboard'!$E$28/365*INDEX(EConsumption[promedio norm],MATCH(1,($B29=EConsumption[Hora / Mes])*('Top dashboard'!$E$47=EConsumption[Cluster]),0))) -> 0.02023153862 | K29: =IF(Base!$E$11="Personalizado",Base!$E32,'Top dashboard'!$E$28/365*INDEX(EConsumption[promedio norm],MATCH(1,($B29=EConsumption[Hora / Mes])*('Top dashboard'!$E$47=EConsumption[Cluster]),0))) -> 0.02023153862 | L29: =IF(Base!$E$11="Personalizado",Base!$E32,'Top dashboard'!$E$28/365*INDEX(EConsumption[promedio norm],MATCH(1,($B29=EConsumption[Hora / Mes])*('Top dashboard'!$E$47=EConsumption[Cluster]),0))) -> 0.02023153862 | M29: =IF(Base!$E$11="Personalizado",Base!$E32,'Top dashboard'!$E$28/365*INDEX(EConsumption[promedio norm],MATCH(1,($B29=EConsumption[Hora / Mes])*('Top dashboard'!$E$47=EConsumption[Cluster]),0))) -> 0.02023153862 | N29: =IF(Base!$E$11="Personalizado",Base!$E32,'Top dashboard'!$E$28/365*INDEX(EConsumption[promedio norm],MATCH(1,($B29=EConsumption[Hora / Mes])*('Top dashboard'!$E$47=EConsumption[Cluster]),0))) -> 0.02023153862 | O29: =MIN(Demand0[[#This Row],[ene]:[dic]]) -> 0.02023153862 | P29: =AVERAGE(Demand0[[#This Row],[ene]:[dic]]) -> 0.02023153862 | Q29: =MAX(Demand0[[#This Row],[ene]:[dic]]) -> 0.02023153862
B30: 18:00:00 | C30: =IF(Base!$E$11="Personalizado",Base!$E33,'Top dashboard'!$E$28/365*INDEX(EConsumption[promedio norm],MATCH(1,($B30=EConsumption[Hora / Mes])*('Top dashboard'!$E$47=EConsumption[Cluster]),0))) -> 0.02555787217 | D30: =IF(Base!$E$11="Personalizado",Base!$E33,'Top dashboard'!$E$28/365*INDEX(EConsumption[promedio norm],MATCH(1,($B30=EConsumption[Hora / Mes])*('Top dashboard'!$E$47=EConsumption[Cluster]),0))) -> 0.02555787217 | E30: =IF(Base!$E$11="Personalizado",Base!$E33,'Top dashboard'!$E$28/365*INDEX(EConsumption[promedio norm],MATCH(1,($B30=EConsumption[Hora / Mes])*('Top dashboard'!$E$47=EConsumption[Cluster]),0))) -> 0.02555787217 | F30: =IF(Base!$E$11="Personalizado",Base!$E33,'Top dashboard'!$E$28/365*INDEX(EConsumption[promedio norm],MATCH(1,($B30=EConsumption[Hora / Mes])*('Top dashboard'!$E$47=EConsumption[Cluster]),0))) -> 0.02555787217 | G30: =IF(Base!$E$11="Personalizado",Base!$E33,'Top dashboard'!$E$28/365*INDEX(EConsumption[promedio norm],MATCH(1,($B30=EConsumption[Hora / Mes])*('Top dashboard'!$E$47=EConsumption[Cluster]),0))) -> 0.02555787217 | H30: =IF(Base!$E$11="Personalizado",Base!$E33,'Top dashboard'!$E$28/365*INDEX(EConsumption[promedio norm],MATCH(1,($B30=EConsumption[Hora / Mes])*('Top dashboard'!$E$47=EConsumption[Cluster]),0))) -> 0.02555787217 | I30: =IF(Base!$E$11="Personalizado",Base!$E33,'Top dashboard'!$E$28/365*INDEX(EConsumption[promedio norm],MATCH(1,($B30=EConsumption[Hora / Mes])*('Top dashboard'!$E$47=EConsumption[Cluster]),0))) -> 0.02555787217 | J30: =IF(Base!$E$11="Personalizado",Base!$E33,'Top dashboard'!$E$28/365*INDEX(EConsumption[promedio norm],MATCH(1,($B30=EConsumption[Hora / Mes])*('Top dashboard'!$E$47=EConsumption[Cluster]),0))) -> 0.02555787217 | K30: =IF(Base!$E$11="Personalizado",Base!$E33,'Top dashboard'!$E$28/365*INDEX(EConsumption[promedio norm],MATCH(1,($B30=EConsumption[Hora / Mes])*('Top dashboard'!$E$47=EConsumption[Cluster]),0))) -> 0.02555787217 | L30: =IF(Base!$E$11="Personalizado",Base!$E33,'Top dashboard'!$E$28/365*INDEX(EConsumption[promedio norm],MATCH(1,($B30=EConsumption[Hora / Mes])*('Top dashboard'!$E$47=EConsumption[Cluster]),0))) -> 0.02555787217 | M30: =IF(Base!$E$11="Personalizado",Base!$E33,'Top dashboard'!$E$28/365*INDEX(EConsumption[promedio norm],MATCH(1,($B30=EConsumption[Hora / Mes])*('Top dashboard'!$E$47=EConsumption[Cluster]),0))) -> 0.02555787217 | N30: =IF(Base!$E$11="Personalizado",Base!$E33,'Top dashboard'!$E$28/365*INDEX(EConsumption[promedio norm],MATCH(1,($B30=EConsumption[Hora / Mes])*('Top dashboard'!$E$47=EConsumption[Cluster]),0))) -> 0.02555787217 | O30: =MIN(Demand0[[#This Row],[ene]:[dic]]) -> 0.02555787217 | P30: =AVERAGE(Demand0[[#This Row],[ene]:[dic]]) -> 0.02555787217 | Q30: =MAX(Demand0[[#This Row],[ene]:[dic]]) -> 0.02555787217
B31: 19:00:00 | C31: =IF(Base!$E$11="Personalizado",Base!$E34,'Top dashboard'!$E$28/365*INDEX(EConsumption[promedio norm],MATCH(1,($B31=EConsumption[Hora / Mes])*('Top dashboard'!$E$47=EConsumption[Cluster]),0))) -> 0.04105881742 | D31: =IF(Base!$E$11="Personalizado",Base!$E34,'Top dashboard'!$E$28/365*INDEX(EConsumption[promedio norm],MATCH(1,($B31=EConsumption[Hora / Mes])*('Top dashboard'!$E$47=EConsumption[Cluster]),0))) -> 0.04105881742 | E31: =IF(Base!$E$11="Personalizado",Base!$E34,'Top dashboard'!$E$28/365*INDEX(EConsumption[promedio norm],MATCH(1,($B31=EConsumption[Hora / Mes])*('Top dashboard'!$E$47=EConsumption[Cluster]),0))) -> 0.04105881742 | F31: =IF(Base!$E$11="Personalizado",Base!$E34,'Top dashboard'!$E$28/365*INDEX(EConsumption[promedio norm],MATCH(1,($B31=EConsumption[Hora / Mes])*('Top dashboard'!$E$47=EConsumption[Cluster]),0))) -> 0.04105881742 | G31: =IF(Base!$E$11="Personalizado",Base!$E34,'Top dashboard'!$E$28/365*INDEX(EConsumption[promedio norm],MATCH(1,($B31=EConsumption[Hora / Mes])*('Top dashboard'!$E$47=EConsumption[Cluster]),0))) -> 0.04105881742 | H31: =IF(Base!$E$11="Personalizado",Base!$E34,'Top dashboard'!$E$28/365*INDEX(EConsumption[promedio norm],MATCH(1,($B31=EConsumption[Hora / Mes])*('Top dashboard'!$E$47=EConsumption[Cluster]),0))) -> 0.04105881742 | I31: =IF(Base!$E$11="Personalizado",Base!$E34,'Top dashboard'!$E$28/365*INDEX(EConsumption[promedio norm],MATCH(1,($B31=EConsumption[Hora / Mes])*('Top dashboard'!$E$47=EConsumption[Cluster]),0))) -> 0.04105881742 | J31: =IF(Base!$E$11="Personalizado",Base!$E34,'Top dashboard'!$E$28/365*INDEX(EConsumption[promedio norm],MATCH(1,($B31=EConsumption[Hora / Mes])*('Top dashboard'!$E$47=EConsumption[Cluster]),0))) -> 0.04105881742 | K31: =IF(Base!$E$11="Personalizado",Base!$E34,'Top dashboard'!$E$28/365*INDEX(EConsumption[promedio norm],MATCH(1,($B31=EConsumption[Hora / Mes])*('Top dashboard'!$E$47=EConsumption[Cluster]),0))) -> 0.04105881742 | L31: =IF(Base!$E$11="Personalizado",Base!$E34,'Top dashboard'!$E$28/365*INDEX(EConsumption[promedio norm],MATCH(1,($B31=EConsumption[Hora / Mes])*('Top dashboard'!$E$47=EConsumption[Cluster]),0))) -> 0.04105881742 | M31: =IF(Base!$E$11="Personalizado",Base!$E34,'Top dashboard'!$E$28/365*INDEX(EConsumption[promedio norm],MATCH(1,($B31=EConsumption[Hora / Mes])*('Top dashboard'!$E$47=EConsumption[Cluster]),0))) -> 0.04105881742 | N31: =IF(Base!$E$11="Personalizado",Base!$E34,'Top dashboard'!$E$28/365*INDEX(EConsumption[promedio norm],MATCH(1,($B31=EConsumption[Hora / Mes])*('Top dashboard'!$E$47=EConsumption[Cluster]),0))) -> 0.04105881742 | O31: =MIN(Demand0[[#This Row],[ene]:[dic]]) -> 0.04105881742 | P31: =AVERAGE(Demand0[[#This Row],[ene]:[dic]]) -> 0.04105881742 | Q31: =MAX(Demand0[[#This Row],[ene]:[dic]]) -> 0.04105881742
B32: 20:00:00 | C32: =IF(Base!$E$11="Personalizado",Base!$E35,'Top dashboard'!$E$28/365*INDEX(EConsumption[promedio norm],MATCH(1,($B32=EConsumption[Hora / Mes])*('Top dashboard'!$E$47=EConsumption[Cluster]),0))) -> 0.04899511986 | D32: =IF(Base!$E$11="Personalizado",Base!$E35,'Top dashboard'!$E$28/365*INDEX(EConsumption[promedio norm],MATCH(1,($B32=EConsumption[Hora / Mes])*('Top dashboard'!$E$47=EConsumption[Cluster]),0))) -> 0.04899511986 | E32: =IF(Base!$E$11="Personalizado",Base!$E35,'Top dashboard'!$E$28/365*INDEX(EConsumption[promedio norm],MATCH(1,($B32=EConsumption[Hora / Mes])*('Top dashboard'!$E$47=EConsumption[Cluster]),0))) -> 0.04899511986 | F32: =IF(Base!$E$11="Personalizado",Base!$E35,'Top dashboard'!$E$28/365*INDEX(EConsumption[promedio norm],MATCH(1,($B32=EConsumption[Hora / Mes])*('Top dashboard'!$E$47=EConsumption[Cluster]),0))) -> 0.04899511986 | G32: =IF(Base!$E$11="Personalizado",Base!$E35,'Top dashboard'!$E$28/365*INDEX(EConsumption[promedio norm],MATCH(1,($B32=EConsumption[Hora / Mes])*('Top dashboard'!$E$47=EConsumption[Cluster]),0))) -> 0.04899511986 | H32: =IF(Base!$E$11="Personalizado",Base!$E35,'Top dashboard'!$E$28/365*INDEX(EConsumption[promedio norm],MATCH(1,($B32=EConsumption[Hora / Mes])*('Top dashboard'!$E$47=EConsumption[Cluster]),0))) -> 0.04899511986 | I32: =IF(Base!$E$11="Personalizado",Base!$E35,'Top dashboard'!$E$28/365*INDEX(EConsumption[promedio norm],MATCH(1,($B32=EConsumption[Hora / Mes])*('Top dashboard'!$E$47=EConsumption[Cluster]),0))) -> 0.04899511986 | J32: =IF(Base!$E$11="Personalizado",Base!$E35,'Top dashboard'!$E$28/365*INDEX(EConsumption[promedio norm],MATCH(1,($B32=EConsumption[Hora / Mes])*('Top dashboard'!$E$47=EConsumption[Cluster]),0))) -> 0.04899511986 | K32: =IF(Base!$E$11="Personalizado",Base!$E35,'Top dashboard'!$E$28/365*INDEX(EConsumption[promedio norm],MATCH(1,($B32=EConsumption[Hora / Mes])*('Top dashboard'!$E$47=EConsumption[Cluster]),0))) -> 0.04899511986 | L32: =IF(Base!$E$11="Personalizado",Base!$E35,'Top dashboard'!$E$28/365*INDEX(EConsumption[promedio norm],MATCH(1,($B32=EConsumption[Hora / Mes])*('Top dashboard'!$E$47=EConsumption[Cluster]),0))) -> 0.04899511986 | M32: =IF(Base!$E$11="Personalizado",Base!$E35,'Top dashboard'!$E$28/365*INDEX(EConsumption[promedio norm],MATCH(1,($B32=EConsumption[Hora / Mes])*('Top dashboard'!$E$47=EConsumption[Cluster]),0))) -> 0.04899511986 | N32: =IF(Base!$E$11="Personalizado",Base!$E35,'Top dashboard'!$E$28/365*INDEX(EConsumption[promedio norm],MATCH(1,($B32=EConsumption[Hora / Mes])*('Top dashboard'!$E$47=EConsumption[Cluster]),0))) -> 0.04899511986 | O32: =MIN(Demand0[[#This Row],[ene]:[dic]]) -> 0.04899511986 | P32: =AVERAGE(Demand0[[#This Row],[ene]:[dic]]) -> 0.04899511986 | Q32: =MAX(Demand0[[#This Row],[ene]:[dic]]) -> 0.04899511986
B33: 21:00:00 | C33: =IF(Base!$E$11="Personalizado",Base!$E36,'Top dashboard'!$E$28/365*INDEX(EConsumption[promedio norm],MATCH(1,($B33=EConsumption[Hora / Mes])*('Top dashboard'!$E$47=EConsumption[Cluster]),0))) -> 0.04278847576 | D33: =IF(Base!$E$11="Personalizado",Base!$E36,'Top dashboard'!$E$28/365*INDEX(EConsumption[promedio norm],MATCH(1,($B33=EConsumption[Hora / Mes])*('Top dashboard'!$E$47=EConsumption[Cluster]),0))) -> 0.04278847576 | E33: =IF(Base!$E$11="Personalizado",Base!$E36,'Top dashboard'!$E$28/365*INDEX(EConsumption[promedio norm],MATCH(1,($B33=EConsumption[Hora / Mes])*('Top dashboard'!$E$47=EConsumption[Cluster]),0))) -> 0.04278847576 | F33: =IF(Base!$E$11="Personalizado",Base!$E36,'Top dashboard'!$E$28/365*INDEX(EConsumption[promedio norm],MATCH(1,($B33=EConsumption[Hora / Mes])*('Top dashboard'!$E$47=EConsumption[Cluster]),0))) -> 0.04278847576 | G33: =IF(Base!$E$11="Personalizado",Base!$E36,'Top dashboard'!$E$28/365*INDEX(EConsumption[promedio norm],MATCH(1,($B33=EConsumption[Hora / Mes])*('Top dashboard'!$E$47=EConsumption[Cluster]),0))) -> 0.04278847576 | H33: =IF(Base!$E$11="Personalizado",Base!$E36,'Top dashboard'!$E$28/365*INDEX(EConsumption[promedio norm],MATCH(1,($B33=EConsumption[Hora / Mes])*('Top dashboard'!$E$47=EConsumption[Cluster]),0))) -> 0.04278847576 | I33: =IF(Base!$E$11="Personalizado",Base!$E36,'Top dashboard'!$E$28/365*INDEX(EConsumption[promedio norm],MATCH(1,($B33=EConsumption[Hora / Mes])*('Top dashboard'!$E$47=EConsumption[Cluster]),0))) -> 0.04278847576 | J33: =IF(Base!$E$11="Personalizado",Base!$E36,'Top dashboard'!$E$28/365*INDEX(EConsumption[promedio norm],MATCH(1,($B33=EConsumption[Hora / Mes])*('Top dashboard'!$E$47=EConsumption[Cluster]),0))) -> 0.04278847576 | K33: =IF(Base!$E$11="Personalizado",Base!$E36,'Top dashboard'!$E$28/365*INDEX(EConsumption[promedio norm],MATCH(1,($B33=EConsumption[Hora / Mes])*('Top dashboard'!$E$47=EConsumption[Cluster]),0))) -> 0.04278847576 | L33: =IF(Base!$E$11="Personalizado",Base!$E36,'Top dashboard'!$E$28/365*INDEX(EConsumption[promedio norm],MATCH(1,($B33=EConsumption[Hora / Mes])*('Top dashboard'!$E$47=EConsumption[Cluster]),0))) -> 0.04278847576 | M33: =IF(Base!$E$11="Personalizado",Base!$E36,'Top dashboard'!$E$28/365*INDEX(EConsumption[promedio norm],MATCH(1,($B33=EConsumption[Hora / Mes])*('Top dashboard'!$E$47=EConsumption[Cluster]),0))) -> 0.04278847576 | N33: =IF(Base!$E$11="Personalizado",Base!$E36,'Top dashboard'!$E$28/365*INDEX(EConsumption[promedio norm],MATCH(1,($B33=EConsumption[Hora / Mes])*('Top dashboard'!$E$47=EConsumption[Cluster]),0))) -> 0.04278847576 | O33: =MIN(Demand0[[#This Row],[ene]:[dic]]) -> 0.04278847576 | P33: =AVERAGE(Demand0[[#This Row],[ene]:[dic]]) -> 0.04278847576 | Q33: =MAX(Demand0[[#This Row],[ene]:[dic]]) -> 0.04278847576
B34: 22:00:00 | C34: =IF(Base!$E$11="Personalizado",Base!$E37,'Top dashboard'!$E$28/365*INDEX(EConsumption[promedio norm],MATCH(1,($B34=EConsumption[Hora / Mes])*('Top dashboard'!$E$47=EConsumption[Cluster]),0))) -> 0.03022742484 | D34: =IF(Base!$E$11="Personalizado",Base!$E37,'Top dashboard'!$E$28/365*INDEX(EConsumption[promedio norm],MATCH(1,($B34=EConsumption[Hora / Mes])*('Top dashboard'!$E$47=EConsumption[Cluster]),0))) -> 0.03022742484 | E34: =IF(Base!$E$11="Personalizado",Base!$E37,'Top dashboard'!$E$28/365*INDEX(EConsumption[promedio norm],MATCH(1,($B34=EConsumption[Hora / Mes])*('Top dashboard'!$E$47=EConsumption[Cluster]),0))) -> 0.03022742484 | F34: =IF(Base!$E$11="Personalizado",Base!$E37,'Top dashboard'!$E$28/365*INDEX(EConsumption[promedio norm],MATCH(1,($B34=EConsumption[Hora / Mes])*('Top dashboard'!$E$47=EConsumption[Cluster]),0))) -> 0.03022742484 | G34: =IF(Base!$E$11="Personalizado",Base!$E37,'Top dashboard'!$E$28/365*INDEX(EConsumption[promedio norm],MATCH(1,($B34=EConsumption[Hora / Mes])*('Top dashboard'!$E$47=EConsumption[Cluster]),0))) -> 0.03022742484 | H34: =IF(Base!$E$11="Personalizado",Base!$E37,'Top dashboard'!$E$28/365*INDEX(EConsumption[promedio norm],MATCH(1,($B34=EConsumption[Hora / Mes])*('Top dashboard'!$E$47=EConsumption[Cluster]),0))) -> 0.03022742484 | I34: =IF(Base!$E$11="Personalizado",Base!$E37,'Top dashboard'!$E$28/365*INDEX(EConsumption[promedio norm],MATCH(1,($B34=EConsumption[Hora / Mes])*('Top dashboard'!$E$47=EConsumption[Cluster]),0))) -> 0.03022742484 | J34: =IF(Base!$E$11="Personalizado",Base!$E37,'Top dashboard'!$E$28/365*INDEX(EConsumption[promedio norm],MATCH(1,($B34=EConsumption[Hora / Mes])*('Top dashboard'!$E$47=EConsumption[Cluster]),0))) -> 0.03022742484 | K34: =IF(Base!$E$11="Personalizado",Base!$E37,'Top dashboard'!$E$28/365*INDEX(EConsumption[promedio norm],MATCH(1,($B34=EConsumption[Hora / Mes])*('Top dashboard'!$E$47=EConsumption[Cluster]),0))) -> 0.03022742484 | L34: =IF(Base!$E$11="Personalizado",Base!$E37,'Top dashboard'!$E$28/365*INDEX(EConsumption[promedio norm],MATCH(1,($B34=EConsumption[Hora / Mes])*('Top dashboard'!$E$47=EConsumption[Cluster]),0))) -> 0.03022742484 | M34: =IF(Base!$E$11="Personalizado",Base!$E37,'Top dashboard'!$E$28/365*INDEX(EConsumption[promedio norm],MATCH(1,($B34=EConsumption[Hora / Mes])*('Top dashboard'!$E$47=EConsumption[Cluster]),0))) -> 0.03022742484 | N34: =IF(Base!$E$11="Personalizado",Base!$E37,'Top dashboard'!$E$28/365*INDEX(EConsumption[promedio norm],MATCH(1,($B34=EConsumption[Hora / Mes])*('Top dashboard'!$E$47=EConsumption[Cluster]),0))) -> 0.03022742484 | O34: =MIN(Demand0[[#This Row],[ene]:[dic]]) -> 0.03022742484 | P34: =AVERAGE(Demand0[[#This Row],[ene]:[dic]]) -> 0.03022742484 | Q34: =MAX(Demand0[[#This Row],[ene]:[dic]]) -> 0.03022742484
B35: 23:00:00 | C35: =IF(Base!$E$11="Personalizado",Base!$E38,'Top dashboard'!$E$28/365*INDEX(EConsumption[promedio norm],MATCH(1,($B35=EConsumption[Hora / Mes])*('Top dashboard'!$E$47=EConsumption[Cluster]),0))) -> 0.01756571865 | D35: =IF(Base!$E$11="Personalizado",Base!$E38,'Top dashboard'!$E$28/365*INDEX(EConsumption[promedio norm],MATCH(1,($B35=EConsumption[Hora / Mes])*('Top dashboard'!$E$47=EConsumption[Cluster]),0))) -> 0.01756571865 | E35: =IF(Base!$E$11="Personalizado",Base!$E38,'Top dashboard'!$E$28/365*INDEX(EConsumption[promedio norm],MATCH(1,($B35=EConsumption[Hora / Mes])*('Top dashboard'!$E$47=EConsumption[Cluster]),0))) -> 0.01756571865 | F35: =IF(Base!$E$11="Personalizado",Base!$E38,'Top dashboard'!$E$28/365*INDEX(EConsumption[promedio norm],MATCH(1,($B35=EConsumption[Hora / Mes])*('Top dashboard'!$E$47=EConsumption[Cluster]),0))) -> 0.01756571865 | G35: =IF(Base!$E$11="Personalizado",Base!$E38,'Top dashboard'!$E$28/365*INDEX(EConsumption[promedio norm],MATCH(1,($B35=EConsumption[Hora / Mes])*('Top dashboard'!$E$47=EConsumption[Cluster]),0))) -> 0.01756571865 | H35: =IF(Base!$E$11="Personalizado",Base!$E38,'Top dashboard'!$E$28/365*INDEX(EConsumption[promedio norm],MATCH(1,($B35=EConsumption[Hora / Mes])*('Top dashboard'!$E$47=EConsumption[Cluster]),0))) -> 0.01756571865 | I35: =IF(Base!$E$11="Personalizado",Base!$E38,'Top dashboard'!$E$28/365*INDEX(EConsumption[promedio norm],MATCH(1,($B35=EConsumption[Hora / Mes])*('Top dashboard'!$E$47=EConsumption[Cluster]),0))) -> 0.01756571865 | J35: =IF(Base!$E$11="Personalizado",Base!$E38,'Top dashboard'!$E$28/365*INDEX(EConsumption[promedio norm],MATCH(1,($B35=EConsumption[Hora / Mes])*('Top dashboard'!$E$47=EConsumption[Cluster]),0))) -> 0.01756571865 | K35: =IF(Base!$E$11="Personalizado",Base!$E38,'Top dashboard'!$E$28/365*INDEX(EConsumption[promedio norm],MATCH(1,($B35=EConsumption[Hora / Mes])*('Top dashboard'!$E$47=EConsumption[Cluster]),0))) -> 0.01756571865 | L35: =IF(Base!$E$11="Personalizado",Base!$E38,'Top dashboard'!$E$28/365*INDEX(EConsumption[promedio norm],MATCH(1,($B35=EConsumption[Hora / Mes])*('Top dashboard'!$E$47=EConsumption[Cluster]),0))) -> 0.01756571865 | M35: =IF(Base!$E$11="Personalizado",Base!$E38,'Top dashboard'!$E$28/365*INDEX(EConsumption[promedio norm],MATCH(1,($B35=EConsumption[Hora / Mes])*('Top dashboard'!$E$47=EConsumption[Cluster]),0))) -> 0.01756571865 | N35: =IF(Base!$E$11="Personalizado",Base!$E38,'Top dashboard'!$E$28/365*INDEX(EConsumption[promedio norm],MATCH(1,($B35=EConsumption[Hora / Mes])*('Top dashboard'!$E$47=EConsumption[Cluster]),0))) -> 0.01756571865 | O35: =MIN(Demand0[[#This Row],[ene]:[dic]]) -> 0.01756571865 | P35: =AVERAGE(Demand0[[#This Row],[ene]:[dic]]) -> 0.01756571865 | Q35: =MAX(Demand0[[#This Row],[ene]:[dic]]) -> 0.01756571865
B36: Total | C36: =SUBTOTAL(109,Demand0[ene]) -> 0.4520547945 | D36: =SUBTOTAL(109,Demand0[feb]) -> 0.4520547945 | E36: =SUBTOTAL(109,Demand0[mar]) -> 0.4520547945 | F36: =SUBTOTAL(109,Demand0[abr]) -> 0.4520547945 | G36: =SUBTOTAL(109,Demand0[may]) -> 0.4520547945 | H36: =SUBTOTAL(109,Demand0[jun]) -> 0.4520547945 | I36: =SUBTOTAL(109,Demand0[jul]) -> 0.4520547945 | J36: =SUBTOTAL(109,Demand0[ago]) -> 0.4520547945 | K36: =SUBTOTAL(109,Demand0[sep]) -> 0.4520547945 | L36: =SUBTOTAL(109,Demand0[oct]) -> 0.4520547945 | M36: =SUBTOTAL(109,Demand0[nov]) -> 0.4520547945 | N36: =SUBTOTAL(109,Demand0[dic]) -> 0.4520547945 | O36: =SUBTOTAL(109,Demand0[Dmin]) -> 0.4520547945 | P36: =SUBTOTAL(109,Demand0[Dmed]) -> 0.4520547945 | Q36: =SUBTOTAL(109,Demand0[Dmax]) -> 0.4520547945
B37: Demanda pico | C37: =MAX(Demand0[ene]) -> 0.04899511986 | D37: =MAX(Demand0[feb]) -> 0.04899511986 | E37: =MAX(Demand0[mar]) -> 0.04899511986 | F37: =MAX(Demand0[abr]) -> 0.04899511986 | G37: =MAX(Demand0[may]) -> 0.04899511986 | H37: =MAX(Demand0[jun]) -> 0.04899511986 | I37: =MAX(Demand0[jul]) -> 0.04899511986 | J37: =MAX(Demand0[ago]) -> 0.04899511986 | K37: =MAX(Demand0[sep]) -> 0.04899511986 | L37: =MAX(Demand0[oct]) -> 0.04899511986 | M37: =MAX(Demand0[nov]) -> 0.04899511986 | N37: =MAX(Demand0[dic]) -> 0.04899511986
B38: Demanda máxima | C38: =MAX($C$37:$N$37) -> 0.04899511986
B39: Mes de la demanda pico | C39: =INDEX(Demand0[[#Headers],[ene]:[dic]],MATCH(MAX($C$37:$N$37),$C$37:$N$37,0)) -> ene
B40: Hora de la demanda pico | C40: =INDEX(Demand0[Hora / Mes],MATCH(MAX($C$37:$N$37),Demand0[Dmax],0)) -> 20:00:00
B42: Costo Unitario de la Electricidad | L42: Costo Total de la Electricidad | O42: Tipo de Costo Unitario | P42: Promedio anual
B43: Mercado | C43: ='Top dashboard'!E13 -> Caribe Mar
B44: Nivel de Tensión | C44: =INDEX(Voltaje[Nivel],MATCH('Top dashboard'!E25,Voltaje[Rango de Tensión],0)) -> Nivel de Tensión 1 | E44: CU - Costo Unitario
B45: Mes / Precio | C45: CU Promedio | D45: CU Máximo | E45: Real | F45: Contribución | G45: Subsidio 1 | H45: Subsidio 2 | I45: Subsidio 3 | J45: Personalizado | L45: Mes | M45: Días | N45: Consumo diario (kWh) | O45: Consumo mensual (kWh) | P45: CU Promedio anual (COP/kWh) | Q45: CU Promedio mensual | R45: Costo total (COP)
B46: ene | C46: =INDEX(E4_Promedio[],MATCH($C$43,E4_Promedio[Mercado],0),MATCH(B46,E4_Promedio[#Headers],0))*INDEX(Voltaje[CU ajustado],MATCH('1 Linea Base'!$C$44,Voltaje[Nivel],0)) -> 497.88 | D46: =INDEX(E4_Máximo[],MATCH($C$43,E4_Promedio[Mercado],0),MATCH(B46,E4_Promedio[#Headers],0))*INDEX(Voltaje[CU ajustado],MATCH('1 Linea Base'!$C$44,Voltaje[Nivel],0)) -> 535.07 | E46: =INDEX(E4_Promedio[],MATCH($C$43,E4_Promedio[Mercado],0),MATCH(B46,E4_Promedio[#Headers],0)) -> 497.88 | F46: =Table12[[#This Row],[CU Promedio]]*1.2 -> 597.456 | G46: =IF($O46<CS,Table12[[#This Row],[CU Promedio]]*'Info Colombia'!$S$10,(Table12[[#This Row],[CU Promedio]]*'Info Colombia'!$S$10*CS+Table12[[#This Row],[CU Promedio]]*($O46-CS))/$O46) -> 199.152 | H46: =IF($O46<CS,Table12[[#This Row],[CU Promedio]]*'Info Colombia'!$S$11,(Table12[[#This Row],[CU Promedio]]*'Info Colombia'!$S$11*CS+Table12[[#This Row],[CU Promedio]]*($O46-CS))/$O46) -> 248.94 | I46: =IF($O46<CS,Table12[[#This Row],[CU Promedio]]*'Info Colombia'!$S$12,(Table12[[#This Row],[CU Promedio]]*'Info Colombia'!$S$12*CS+Table12[[#This Row],[CU Promedio]]*($O46-CS))/$O46) -> 423.198 | L46: ene | M46: =TRANSPOSE('2A Solar FV'!C12:N12) -> 31 | N46: =TRANSPOSE(Demand0[[#Totals],[ene]:[dic]]) -> 0.4520547945 | O46: =M46*N46 -> 14.01369863 | P46: =_xlfn.IFS('Top dashboard'!E69="Personalizado",Table12[[#Totals],[Personalizado]],'Top dashboard'!E22="Contribución",Table12[[#Totals],[Contribución]],'Top dashboard'!E22="Real",Table12[[#Totals],[CU Promedio]],'Top dashboard'!E22="Subsidio 1",Table12[[#Totals],[Subsidio 1]],'Top dashboard'!E22="Subsidio 2",Table12[[#Totals],[Subsidio 2]],'Top dashboard'!E22="Subsidio 3",Table12[[#Totals],[Subsidio 3]]) -> 412.063 | Q46: =INDEX(Table12[[#This Row],[Real]:[Personalizado]],,MATCH(IF('Top dashboard'!$E$69="Predeterminado",'Top dashboard'!$E$22,'Top dashboard'!$E$69),Table12[[#Headers],[Real]:[Personalizado]],0)) -> 423.198 | R46: =IF($P$42="Promedio mensual",O46*Q46,O46*P46) -> 5774.526699
B47: feb | C47: =INDEX(E4_Promedio[],MATCH($C$43,E4_Promedio[Mercado],0),MATCH(B47,E4_Promedio[#Headers],0))*INDEX(Voltaje[CU ajustado],MATCH('1 Linea Base'!$C$44,Voltaje[Nivel],0)) -> 497.88 | D47: =INDEX(E4_Máximo[],MATCH($C$43,E4_Promedio[Mercado],0),MATCH(B47,E4_Promedio[#Headers],0))*INDEX(Voltaje[CU ajustado],MATCH('1 Linea Base'!$C$44,Voltaje[Nivel],0)) -> 571.44 | E47: =INDEX(E4_Promedio[],MATCH($C$43,E4_Promedio[Mercado],0),MATCH(B47,E4_Promedio[#Headers],0)) -> 497.88 | F47: =Table12[[#This Row],[CU Promedio]]*1.2 -> 597.456 | G47: =IF($O47<CS,Table12[[#This Row],[CU Promedio]]*'Info Colombia'!$S$10,(Table12[[#This Row],[CU Promedio]]*'Info Colombia'!$S$10*CS+Table12[[#This Row],[CU Promedio]]*($O47-CS))/$O47) -> 199.152 | H47: =IF($O47<CS,Table12[[#This Row],[CU Promedio]]*'Info Colombia'!$S$11,(Table12[[#This Row],[CU Promedio]]*'Info Colombia'!$S$11*CS+Table12[[#This Row],[CU Promedio]]*($O47-CS))/$O47) -> 248.94 | I47: =IF($O47<CS,Table12[[#This Row],[CU Promedio]]*'Info Colombia'!$S$12,(Table12[[#This Row],[CU Promedio]]*'Info Colombia'!$S$12*CS+Table12[[#This Row],[CU Promedio]]*($O47-CS))/$O47) -> 423.198 | L47: feb | M47: 28 | N47: 0.4520547945 | O47: =M47*N47 -> 12.65753425 | P47: 412.063 | Q47: =INDEX(Table12[[#This Row],[Real]:[Personalizado]],,MATCH(IF('Top dashboard'!$E$69="Predeterminado",'Top dashboard'!$E$22,'Top dashboard'!$E$69),Table12[[#Headers],[Real]:[Personalizado]],0)) -> 423.198 | R47: =IF($P$42="Promedio mensual",O47*Q47,O47*P47) -> 5215.701534
B48: mar | C48: =INDEX(E4_Promedio[],MATCH($C$43,E4_Promedio[Mercado],0),MATCH(B48,E4_Promedio[#Headers],0))*INDEX(Voltaje[CU ajustado],MATCH('1 Linea Base'!$C$44,Voltaje[Nivel],0)) -> 497.88 | D48: =INDEX(E4_Máximo[],MATCH($C$43,E4_Promedio[Mercado],0),MATCH(B48,E4_Promedio[#Headers],0))*INDEX(Voltaje[CU ajustado],MATCH('1 Linea Base'!$C$44,Voltaje[Nivel],0)) -> 663.23 | E48: =INDEX(E4_Promedio[],MATCH($C$43,E4_Promedio[Mercado],0),MATCH(B48,E4_Promedio[#Headers],0)) -> 497.88 | F48: =Table12[[#This Row],[CU Promedio]]*1.2 -> 597.456 | G48: =IF($O48<CS,Table12[[#This Row],[CU Promedio]]*'Info Colombia'!$S$10,(Table12[[#This Row],[CU Promedio]]*'Info Colombia'!$S$10*CS+Table12[[#This Row],[CU Promedio]]*($O48-CS))/$O48) -> 199.152 | H48: =IF($O48<CS,Table12[[#This Row],[CU Promedio]]*'Info Colombia'!$S$11,(Table12[[#This Row],[CU Promedio]]*'Info Colombia'!$S$11*CS+Table12[[#This Row],[CU Promedio]]*($O48-CS))/$O48) -> 248.94 | I48: =IF($O48<CS,Table12[[#This Row],[CU Promedio]]*'Info Colombia'!$S$12,(Table12[[#This Row],[CU Promedio]]*'Info Colombia'!$S$12*CS+Table12[[#This Row],[CU Promedio]]*($O48-CS))/$O48) -> 423.198 | L48: mar | M48: 31 | N48: 0.4520547945 | O48: 14.01369863 | P48: 412.063 | Q48: =INDEX(Table12[[#This Row],[Real]:[Personalizado]],,MATCH(IF('Top dashboard'!$E$69="Predeterminado",'Top dashboard'!$E$22,'Top dashboard'!$E$69),Table12[[#Headers],[Real]:[Personalizado]],0)) -> 423.198 | R48: 5774.526699
B49: abr | C49: =INDEX(E4_Promedio[],MATCH($C$43,E4_Promedio[Mercado],0),MATCH(B49,E4_Promedio[#Headers],0))*INDEX(Voltaje[CU ajustado],MATCH('1 Linea Base'!$C$44,Voltaje[Nivel],0)) -> 485.16 | D49: =INDEX(E4_Máximo[],MATCH($C$43,E4_Promedio[Mercado],0),MATCH(B49,E4_Promedio[#Headers],0))*INDEX(Voltaje[CU ajustado],MATCH('1 Linea Base'!$C$44,Voltaje[Nivel],0)) -> 553.19 | E49: =INDEX(E4_Promedio[],MATCH($C$43,E4_Promedio[Mercado],0),MATCH(B49,E4_Promedio[#Headers],0)) -> 485.16 | F49: =Table12[[#This Row],[CU Promedio]]*1.2 -> 582.192 | G49: =IF($O49<CS,Table12[[#This Row],[CU Promedio]]*'Info Colombia'!$S$10,(Table12[[#This Row],[CU Promedio]]*'Info Colombia'!$S$10*CS+Table12[[#This Row],[CU Promedio]]*($O49-CS))/$O49) -> 194.064 | H49: =IF($O49<CS,Table12[[#This Row],[CU Promedio]]*'Info Colombia'!$S$11,(Table12[[#This Row],[CU Promedio]]*'Info Colombia'!$S$11*CS+Table12[[#This Row],[CU Promedio]]*($O49-CS))/$O49) -> 242.58 | I49: =IF($O49<CS,Table12[[#This Row],[CU Promedio]]*'Info Colombia'!$S$12,(Table12[[#This Row],[CU Promedio]]*'Info Colombia'!$S$12*CS+Table12[[#This Row],[CU Promedio]]*($O49-CS))/$O49) -> 412.386 | L49: abr | M49: 30 | N49: 0.4520547945 | O49: 13.56164384 | P49: 412.063 | Q49: =INDEX(Table12[[#This Row],[Real]:[Personalizado]],,MATCH(IF('Top dashboard'!$E$69="Predeterminado",'Top dashboard'!$E$22,'Top dashboard'!$E$69),Table12[[#Headers],[Real]:[Personalizado]],0)) -> 412.386 | R49: 5588.251644
B50: may | C50: =INDEX(E4_Promedio[],MATCH($C$43,E4_Promedio[Mercado],0),MATCH(B50,E4_Promedio[#Headers],0))*INDEX(Voltaje[CU ajustado],MATCH('1 Linea Base'!$C$44,Voltaje[Nivel],0)) -> 485.16 | D50: =INDEX(E4_Máximo[],MATCH($C$43,E4_Promedio[Mercado],0),MATCH(B50,E4_Promedio[#Headers],0))*INDEX(Voltaje[CU ajustado],MATCH('1 Linea Base'!$C$44,Voltaje[Nivel],0)) -> 553.19 | E50: =INDEX(E4_Promedio[],MATCH($C$43,E4_Promedio[Mercado],0),MATCH(B50,E4_Promedio[#Headers],0)) -> 485.16 | F50: =Table12[[#This Row],[CU Promedio]]*1.2 -> 582.192 | G50: =IF($O50<CS,Table12[[#This Row],[CU Promedio]]*'Info Colombia'!$S$10,(Table12[[#This Row],[CU Promedio]]*'Info Colombia'!$S$10*CS+Table12[[#This Row],[CU Promedio]]*($O50-CS))/$O50) -> 194.064 | H50: =IF($O50<CS,Table12[[#This Row],[CU Promedio]]*'Info Colombia'!$S$11,(Table12[[#This Row],[CU Promedio]]*'Info Colombia'!$S$11*CS+Table12[[#This Row],[CU Promedio]]*($O50-CS))/$O50) -> 242.58 | I50: =IF($O50<CS,Table12[[#This Row],[CU Promedio]]*'Info Colombia'!$S$12,(Table12[[#This Row],[CU Promedio]]*'Info Colombia'!$S$12*CS+Table12[[#This Row],[CU Promedio]]*($O50-CS))/$O50) -> 412.386 | L50: may | M50: 31 | N50: 0.4520547945 | O50: 14.01369863 | P50: 412.063 | Q50: =INDEX(Table12[[#This Row],[Real]:[Personalizado]],,MATCH(IF('Top dashboard'!$E$69="Predeterminado",'Top dashboard'!$E$22,'Top dashboard'!$E$69),Table12[[#Headers],[Real]:[Personalizado]],0)) -> 412.386 | R50: 5774.526699
B51: jun | C51: =INDEX(E4_Promedio[],MATCH($C$43,E4_Promedio[Mercado],0),MATCH(B51,E4_Promedio[#Headers],0))*INDEX(Voltaje[CU ajustado],MATCH('1 Linea Base'!$C$44,Voltaje[Nivel],0)) -> 485.16 | D51: =INDEX(E4_Máximo[],MATCH($C$43,E4_Promedio[Mercado],0),MATCH(B51,E4_Promedio[#Headers],0))*INDEX(Voltaje[CU ajustado],MATCH('1 Linea Base'!$C$44,Voltaje[Nivel],0)) -> 553.19 | E51: =INDEX(E4_Promedio[],MATCH($C$43,E4_Promedio[Mercado],0),MATCH(B51,E4_Promedio[#Headers],0)) -> 485.16 | F51: =Table12[[#This Row],[CU Promedio]]*1.2 -> 582.192 | G51: =IF($O51<CS,Table12[[#This Row],[CU Promedio]]*'Info Colombia'!$S$10,(Table12[[#This Row],[CU Promedio]]*'Info Colombia'!$S$10*CS+Table12[[#This Row],[CU Promedio]]*($O51-CS))/$O51) -> 194.064 | H51: =IF($O51<CS,Table12[[#This Row],[CU Promedio]]*'Info Colombia'!$S$11,(Table12[[#This Row],[CU Promedio]]*'Info Colombia'!$S$11*CS+Table12[[#This Row],[CU Promedio]]*($O51-CS))/$O51) -> 242.58 | I51: =IF($O51<CS,Table12[[#This Row],[CU Promedio]]*'Info Colombia'!$S$12,(Table12[[#This Row],[CU Promedio]]*'Info Colombia'!$S$12*CS+Table12[[#This Row],[CU Promedio]]*($O51-CS))/$O51) -> 412.386 | L51: jun | M51: 30 | N51: 0.4520547945 | O51: 13.56164384 | P51: 412.063 | Q51: =INDEX(Table12[[#This Row],[Real]:[Personalizado]],,MATCH(IF('Top dashboard'!$E$69="Predeterminado",'Top dashboard'!$E$22,'Top dashboard'!$E$69),Table12[[#Headers],[Real]:[Personalizado]],0)) -> 412.386 | R51: 5588.251644
B52: jul | C52: =INDEX(E4_Promedio[],MATCH($C$43,E4_Promedio[Mercado],0),MATCH(B52,E4_Promedio[#Headers],0))*INDEX(Voltaje[CU ajustado],MATCH('1 Linea Base'!$C$44,Voltaje[Nivel],0)) -> 479.29 | D52: =INDEX(E4_Máximo[],MATCH($C$43,E4_Promedio[Mercado],0),MATCH(B52,E4_Promedio[#Headers],0))*INDEX(Voltaje[CU ajustado],MATCH('1 Linea Base'!$C$44,Voltaje[Nivel],0)) -> 553.19 | E52: =INDEX(E4_Promedio[],MATCH($C$43,E4_Promedio[Mercado],0),MATCH(B52,E4_Promedio[#Headers],0)) -> 479.29 | F52: =Table12[[#This Row],[CU Promedio]]*1.2 -> 575.148 | G52: =IF($O52<CS,Table12[[#This Row],[CU Promedio]]*'Info Colombia'!$S$10,(Table12[[#This Row],[CU Promedio]]*'Info Colombia'!$S$10*CS+Table12[[#This Row],[CU Promedio]]*($O52-CS))/$O52) -> 191.716 | H52: =IF($O52<CS,Table12[[#This Row],[CU Promedio]]*'Info Colombia'!$S$11,(Table12[[#This Row],[CU Promedio]]*'Info Colombia'!$S$11*CS+Table12[[#This Row],[CU Promedio]]*($O52-CS))/$O52) -> 239.645 | I52: =IF($O52<CS,Table12[[#This Row],[CU Promedio]]*'Info Colombia'!$S$12,(Table12[[#This Row],[CU Promedio]]*'Info Colombia'!$S$12*CS+Table12[[#This Row],[CU Promedio]]*($O52-CS))/$O52) -> 407.3965 | L52: jul | M52: 31 | N52: 0.4520547945 | O52: 14.01369863 | P52: 412.063 | Q52: =INDEX(Table12[[#This Row],[Real]:[Personalizado]],,MATCH(IF('Top dashboard'!$E$69="Predeterminado",'Top dashboard'!$E$22,'Top dashboard'!$E$69),Table12[[#Headers],[Real]:[Personalizado]],0)) -> 407.3965 | R52: 5774.526699
B53: ago | C53: =INDEX(E4_Promedio[],MATCH($C$43,E4_Promedio[Mercado],0),MATCH(B53,E4_Promedio[#Headers],0))*INDEX(Voltaje[CU ajustado],MATCH('1 Linea Base'!$C$44,Voltaje[Nivel],0)) -> 479.29 | D53: =INDEX(E4_Máximo[],MATCH($C$43,E4_Promedio[Mercado],0),MATCH(B53,E4_Promedio[#Headers],0))*INDEX(Voltaje[CU ajustado],MATCH('1 Linea Base'!$C$44,Voltaje[Nivel],0)) -> 553.19 | E53: =INDEX(E4_Promedio[],MATCH($C$43,E4_Promedio[Mercado],0),MATCH(B53,E4_Promedio[#Headers],0)) -> 479.29 | F53: =Table12[[#This Row],[CU Promedio]]*1.2 -> 575.148 | G53: =IF($O53<CS,Table12[[#This Row],[CU Promedio]]*'Info Colombia'!$S$10,(Table12[[#This Row],[CU Promedio]]*'Info Colombia'!$S$10*CS+Table12[[#This Row],[CU Promedio]]*($O53-CS))/$O53) -> 191.716 | H53: =IF($O53<CS,Table12[[#This Row],[CU Promedio]]*'Info Colombia'!$S$11,(Table12[[#This Row],[CU Promedio]]*'Info Colombia'!$S$11*CS+Table12[[#This Row],[CU Promedio]]*($O53-CS))/$O53) -> 239.645 | I53: =IF($O53<CS,Table12[[#This Row],[CU Promedio]]*'Info Colombia'!$S$12,(Table12[[#This Row],[CU Promedio]]*'Info Colombia'!$S$12*CS+Table12[[#This Row],[CU Promedio]]*($O53-CS))/$O53) -> 407.3965 | L53: ago | M53: 31 | N53: 0.4520547945 | O53: 14.01369863 | P53: 412.063 | Q53: =INDEX(Table12[[#This Row],[Real]:[Personalizado]],,MATCH(IF('Top dashboard'!$E$69="Predeterminado",'Top dashboard'!$E$22,'Top dashboard'!$E$69),Table12[[#Headers],[Real]:[Personalizado]],0)) -> 407.3965 | R53: 5774.526699
B54: sep | C54: =INDEX(E4_Promedio[],MATCH($C$43,E4_Promedio[Mercado],0),MATCH(B54,E4_Promedio[#Headers],0))*INDEX(Voltaje[CU ajustado],MATCH('1 Linea Base'!$C$44,Voltaje[Nivel],0)) -> 479.29 | D54: =INDEX(E4_Máximo[],MATCH($C$43,E4_Promedio[Mercado],0),MATCH(B54,E4_Promedio[#Headers],0))*INDEX(Voltaje[CU ajustado],MATCH('1 Linea Base'!$C$44,Voltaje[Nivel],0)) -> 546.42 | E54: =INDEX(E4_Promedio[],MATCH($C$43,E4_Promedio[Mercado],0),MATCH(B54,E4_Promedio[#Headers],0)) -> 479.29 | F54: =Table12[[#This Row],[CU Promedio]]*1.2 -> 575.148 | G54: =IF($O54<CS,Table12[[#This Row],[CU Promedio]]*'Info Colombia'!$S$10,(Table12[[#This Row],[CU Promedio]]*'Info Colombia'!$S$10*CS+Table12[[#This Row],[CU Promedio]]*($O54-CS))/$O54) -> 191.716 | H54: =IF($O54<CS,Table12[[#This Row],[CU Promedio]]*'Info Colombia'!$S$11,(Table12[[#This Row],[CU Promedio]]*'Info Colombia'!$S$11*CS+Table12[[#This Row],[CU Promedio]]*($O54-CS))/$O54) -> 239.645 | I54: =IF($O54<CS,Table12[[#This Row],[CU Promedio]]*'Info Colombia'!$S$12,(Table12[[#This Row],[CU Promedio]]*'Info Colombia'!$S$12*CS+Table12[[#This Row],[CU Promedio]]*($O54-CS))/$O54) -> 407.3965 | L54: sep | M54: 30 | N54: 0.4520547945 | O54: 13.56164384 | P54: 412.063 | Q54: =INDEX(Table12[[#This Row],[Real]:[Personalizado]],,MATCH(IF('Top dashboard'!$E$69="Predeterminado",'Top dashboard'!$E$22,'Top dashboard'!$E$69),Table12[[#Headers],[Real]:[Personalizado]],0)) -> 407.3965 | R54: 5588.251644
B55: oct | C55: =INDEX(E4_Promedio[],MATCH($C$43,E4_Promedio[Mercado],0),MATCH(B55,E4_Promedio[#Headers],0))*INDEX(Voltaje[CU ajustado],MATCH('1 Linea Base'!$C$44,Voltaje[Nivel],0)) -> 476.79 | D55: =INDEX(E4_Máximo[],MATCH($C$43,E4_Promedio[Mercado],0),MATCH(B55,E4_Promedio[#Headers],0))*INDEX(Voltaje[CU ajustado],MATCH('1 Linea Base'!$C$44,Voltaje[Nivel],0)) -> 534.06 | E55: =INDEX(E4_Promedio[],MATCH($C$43,E4_Promedio[Mercado],0),MATCH(B55,E4_Promedio[#Headers],0)) -> 476.79 | F55: =Table12[[#This Row],[CU Promedio]]*1.2 -> 572.148 | G55: =IF($O55<CS,Table12[[#This Row],[CU Promedio]]*'Info Colombia'!$S$10,(Table12[[#This Row],[CU Promedio]]*'Info Colombia'!$S$10*CS+Table12[[#This Row],[CU Promedio]]*($O55-CS))/$O55) -> 190.716 | H55: =IF($O55<CS,Table12[[#This Row],[CU Promedio]]*'Info Colombia'!$S$11,(Table12[[#This Row],[CU Promedio]]*'Info Colombia'!$S$11*CS+Table12[[#This Row],[CU Promedio]]*($O55-CS))/$O55) -> 238.395 | I55: =IF($O55<CS,Table12[[#This Row],[CU Promedio]]*'Info Colombia'!$S$12,(Table12[[#This Row],[CU Promedio]]*'Info Colombia'!$S$12*CS+Table12[[#This Row],[CU Promedio]]*($O55-CS))/$O55) -> 405.2715 | L55: oct | M55: 31 | N55: 0.4520547945 | O55: 14.01369863 | P55: 412.063 | Q55: =INDEX(Table12[[#This Row],[Real]:[Personalizado]],,MATCH(IF('Top dashboard'!$E$69="Predeterminado",'Top dashboard'!$E$22,'Top dashboard'!$E$69),Table12[[#Headers],[Real]:[Personalizado]],0)) -> 405.2715 | R55: 5774.526699
B56: nov | C56: =INDEX(E4_Promedio[],MATCH($C$43,E4_Promedio[Mercado],0),MATCH(B56,E4_Promedio[#Headers],0))*INDEX(Voltaje[CU ajustado],MATCH('1 Linea Base'!$C$44,Voltaje[Nivel],0)) -> 476.79 | D56: =INDEX(E4_Máximo[],MATCH($C$43,E4_Promedio[Mercado],0),MATCH(B56,E4_Promedio[#Headers],0))*INDEX(Voltaje[CU ajustado],MATCH('1 Linea Base'!$C$44,Voltaje[Nivel],0)) -> 539.4 | E56: =INDEX(E4_Promedio[],MATCH($C$43,E4_Promedio[Mercado],0),MATCH(B56,E4_Promedio[#Headers],0)) -> 476.79 | F56: =Table12[[#This Row],[CU Promedio]]*1.2 -> 572.148 | G56: =IF($O56<CS,Table12[[#This Row],[CU Promedio]]*'Info Colombia'!$S$10,(Table12[[#This Row],[CU Promedio]]*'Info Colombia'!$S$10*CS+Table12[[#This Row],[CU Promedio]]*($O56-CS))/$O56) -> 190.716 | H56: =IF($O56<CS,Table12[[#This Row],[CU Promedio]]*'Info Colombia'!$S$11,(Table12[[#This Row],[CU Promedio]]*'Info Colombia'!$S$11*CS+Table12[[#This Row],[CU Promedio]]*($O56-CS))/$O56) -> 238.395 | I56: =IF($O56<CS,Table12[[#This Row],[CU Promedio]]*'Info Colombia'!$S$12,(Table12[[#This Row],[CU Promedio]]*'Info Colombia'!$S$12*CS+Table12[[#This Row],[CU Promedio]]*($O56-CS))/$O56) -> 405.2715 | L56: nov | M56: 30 | N56: 0.4520547945 | O56: 13.56164384 | P56: 412.063 | Q56: =INDEX(Table12[[#This Row],[Real]:[Personalizado]],,MATCH(IF('Top dashboard'!$E$69="Predeterminado",'Top dashboard'!$E$22,'Top dashboard'!$E$69),Table12[[#Headers],[Real]:[Personalizado]],0)) -> 405.2715 | R56: 5588.251644
B57: dic | C57: =INDEX(E4_Promedio[],MATCH($C$43,E4_Promedio[Mercado],0),MATCH(B57,E4_Promedio[#Headers],0))*INDEX(Voltaje[CU ajustado],MATCH('1 Linea Base'!$C$44,Voltaje[Nivel],0)) -> 476.79 | D57: =INDEX(E4_Máximo[],MATCH($C$43,E4_Promedio[Mercado],0),MATCH(B57,E4_Promedio[#Headers],0))*INDEX(Voltaje[CU ajustado],MATCH('1 Linea Base'!$C$44,Voltaje[Nivel],0)) -> 544.8 | E57: =INDEX(E4_Promedio[],MATCH($C$43,E4_Promedio[Mercado],0),MATCH(B57,E4_Promedio[#Headers],0)) -> 476.79 | F57: =Table12[[#This Row],[CU Promedio]]*1.2 -> 572.148 | G57: =IF($O57<CS,Table12[[#This Row],[CU Promedio]]*'Info Colombia'!$S$10,(Table12[[#This Row],[CU Promedio]]*'Info Colombia'!$S$10*CS+Table12[[#This Row],[CU Promedio]]*($O57-CS))/$O57) -> 190.716 | H57: =IF($O57<CS,Table12[[#This Row],[CU Promedio]]*'Info Colombia'!$S$11,(Table12[[#This Row],[CU Promedio]]*'Info Colombia'!$S$11*CS+Table12[[#This Row],[CU Promedio]]*($O57-CS))/$O57) -> 238.395 | I57: =IF($O57<CS,Table12[[#This Row],[CU Promedio]]*'Info Colombia'!$S$12,(Table12[[#This Row],[CU Promedio]]*'Info Colombia'!$S$12*CS+Table12[[#This Row],[CU Promedio]]*($O57-CS))/$O57) -> 405.2715 | L57: dic | M57: 31 | N57: 0.4520547945 | O57: 14.01369863 | P57: 412.063 | Q57: =INDEX(Table12[[#This Row],[Real]:[Personalizado]],,MATCH(IF('Top dashboard'!$E$69="Predeterminado",'Top dashboard'!$E$22,'Top dashboard'!$E$69),Table12[[#Headers],[Real]:[Personalizado]],0)) -> 405.2715 | R57: 5774.526699
B58: Promedio anual | C58: =AVERAGE(Table12[CU Promedio]) -> 484.78 | D58: =AVERAGE(Table12[CU Máximo]) -> 558.3641667 | E58: =AVERAGE(Table12[Real]) -> 484.78 | F58: =AVERAGE(Table12[Contribución]) -> 581.736 | G58: =AVERAGE(Table12[Subsidio 1]) -> 193.912 | H58: =AVERAGE(Table12[Subsidio 2]) -> 242.39 | I58: =AVERAGE(Table12[Subsidio 3]) -> 412.063 | J58: =IF(SUM(Table12[Personalizado])=0,'Top dashboard'!$E$71,AVERAGE(Table12[Personalizado])) -> 0 | L58: Total Escenario Base | O58: =_xlfn.IFNA(SUM(O46:O57),"-") -> 165 | R58: =_xlfn.IFNA(SUM(R46:R57),"-") -> 67990.395
L59: Promedio mensual Escenario Base | O59: =_xlfn.IFNA(AVERAGE(O46:O57),"-") -> 13.75 | P59: =_xlfn.IFNA(AVERAGE(P46:P57),) -> 412.063 | R59: =_xlfn.IFNA(AVERAGE(R46:R57),"-") -> 5665.86625
L61: Total con Tarifa Horaria | R61: =_xlfn.IFNA(SUM(CostToU[[#Totals],[ene]:[dic]]),) -> 67778.66627
L62: Promedio mensual tarifa horaria | R62: =_xlfn.IFNA(AVERAGE(CostToU[[#Totals],[ene]:[dic]]),) -> 5648.222189
L64: Diferencia anual | R64: =(R58-R61)/R58 -> 0.003114097707
L65: Diferencia mensual | R65: =(R59-R62)/R59 -> 0.003114097707
B68: Costo con cambio a Tarifa Horaria
B70: Hora / Mes | C70: ene | D70: feb | E70: mar | F70: abr | G70: may | H70: jun | I70: jul | J70: ago | K70: sep | L70: oct | M70: nov | N70: dic | O70: Cmin | P70: Cmed | Q70: Cmax
B71: 00:00:00 | C71: ='1 Linea Base'!C12*'2A Solar FV'!C$12*'1 Linea Base'!$L102 -> 103.4496318 | D71: ='1 Linea Base'!D12*'2A Solar FV'!D$12*'1 Linea Base'!$L102 -> 93.43837712 | E71: ='1 Linea Base'!E12*'2A Solar FV'!E$12*'1 Linea Base'!$L102 -> 103.4496318 | F71: ='1 Linea Base'!F12*'2A Solar FV'!F$12*'1 Linea Base'!$L102 -> 100.1125469 | G71: ='1 Linea Base'!G12*'2A Solar FV'!G$12*'1 Linea Base'!$L102 -> 103.4496318 | H71: ='1 Linea Base'!H12*'2A Solar FV'!H$12*'1 Linea Base'!$L102 -> 100.1125469 | I71: ='1 Linea Base'!I12*'2A Solar FV'!I$12*'1 Linea Base'!$L102 -> 103.4496318 | J71: ='1 Linea Base'!J12*'2A Solar FV'!J$12*'1 Linea Base'!$L102 -> 103.4496318 | K71: ='1 Linea Base'!K12*'2A Solar FV'!K$12*'1 Linea Base'!$L102 -> 100.1125469 | L71: ='1 Linea Base'!L12*'2A Solar FV'!L$12*'1 Linea Base'!$L102 -> 103.4496318 | M71: ='1 Linea Base'!M12*'2A Solar FV'!M$12*'1 Linea Base'!$L102 -> 100.1125469 | N71: ='1 Linea Base'!N12*'2A Solar FV'!N$12*'1 Linea Base'!$L102 -> 103.4496318 | O71: ='1 Linea Base'!O12*'2A Solar FV'!O$12*'1 Linea Base'!$L102 -> 93.43837712 | P71: ='1 Linea Base'!P12*'2A Solar FV'!P$12*'1 Linea Base'!$L102 -> 101.502999 | Q71: ='1 Linea Base'!Q12*'2A Solar FV'!Q$12*'1 Linea Base'!$L102 -> 103.4496318
B72: 01:00:00 | C72: ='1 Linea Base'!C13*'2A Solar FV'!C$12*'1 Linea Base'!$L103 -> 81.17813362 | D72: ='1 Linea Base'!D13*'2A Solar FV'!D$12*'1 Linea Base'!$L103 -> 73.32218521 | E72: ='1 Linea Base'!E13*'2A Solar FV'!E$12*'1 Linea Base'!$L103 -> 81.17813362 | F72: ='1 Linea Base'!F13*'2A Solar FV'!F$12*'1 Linea Base'!$L103 -> 78.55948415 | G72: ='1 Linea Base'!G13*'2A Solar FV'!G$12*'1 Linea Base'!$L103 -> 81.17813362 | H72: ='1 Linea Base'!H13*'2A Solar FV'!H$12*'1 Linea Base'!$L103 -> 78.55948415 | I72: ='1 Linea Base'!I13*'2A Solar FV'!I$12*'1 Linea Base'!$L103 -> 81.17813362 | J72: ='1 Linea Base'!J13*'2A Solar FV'!J$12*'1 Linea Base'!$L103 -> 81.17813362 | K72: ='1 Linea Base'!K13*'2A Solar FV'!K$12*'1 Linea Base'!$L103 -> 78.55948415 | L72: ='1 Linea Base'!L13*'2A Solar FV'!L$12*'1 Linea Base'!$L103 -> 81.17813362 | M72: ='1 Linea Base'!M13*'2A Solar FV'!M$12*'1 Linea Base'!$L103 -> 78.55948415 | N72: ='1 Linea Base'!N13*'2A Solar FV'!N$12*'1 Linea Base'!$L103 -> 81.17813362 | O72: ='1 Linea Base'!O13*'2A Solar FV'!O$12*'1 Linea Base'!$L103 -> 73.32218521 | P72: ='1 Linea Base'!P13*'2A Solar FV'!P$12*'1 Linea Base'!$L103 -> 79.6505881 | Q72: ='1 Linea Base'!Q13*'2A Solar FV'!Q$12*'1 Linea Base'!$L103 -> 81.17813362
B73: 02:00:00 | C73: ='1 Linea Base'!C14*'2A Solar FV'!C$12*'1 Linea Base'!$L104 -> 73.59016923 | D73: ='1 Linea Base'!D14*'2A Solar FV'!D$12*'1 Linea Base'!$L104 -> 66.46853995 | E73: ='1 Linea Base'!E14*'2A Solar FV'!E$12*'1 Linea Base'!$L104 -> 73.59016923 | F73: ='1 Linea Base'!F14*'2A Solar FV'!F$12*'1 Linea Base'!$L104 -> 71.2162928 | G73: ='1 Linea Base'!G14*'2A Solar FV'!G$12*'1 Linea Base'!$L104 -> 73.59016923 | H73: ='1 Linea Base'!H14*'2A Solar FV'!H$12*'1 Linea Base'!$L104 -> 71.2162928 | I73: ='1 Linea Base'!I14*'2A Solar FV'!I$12*'1 Linea Base'!$L104 -> 73.59016923 | J73: ='1 Linea Base'!J14*'2A Solar FV'!J$12*'1 Linea Base'!$L104 -> 73.59016923 | K73: ='1 Linea Base'!K14*'2A Solar FV'!K$12*'1 Linea Base'!$L104 -> 71.2162928 | L73: ='1 Linea Base'!L14*'2A Solar FV'!L$12*'1 Linea Base'!$L104 -> 73.59016923 | M73: ='1 Linea Base'!M14*'2A Solar FV'!M$12*'1 Linea Base'!$L104 -> 71.2162928 | N73: ='1 Linea Base'!N14*'2A Solar FV'!N$12*'1 Linea Base'!$L104 -> 73.59016923 | O73: ='1 Linea Base'!O14*'2A Solar FV'!O$12*'1 Linea Base'!$L104 -> 66.46853995 | P73: ='1 Linea Base'!P14*'2A Solar FV'!P$12*'1 Linea Base'!$L104 -> 72.20540798 | Q73: ='1 Linea Base'!Q14*'2A Solar FV'!Q$12*'1 Linea Base'!$L104 -> 73.59016923
B74: 03:00:00 | C74: ='1 Linea Base'!C15*'2A Solar FV'!C$12*'1 Linea Base'!$L105 -> 70.04935554 | D74: ='1 Linea Base'!D15*'2A Solar FV'!D$12*'1 Linea Base'!$L105 -> 63.27038565 | E74: ='1 Linea Base'!E15*'2A Solar FV'!E$12*'1 Linea Base'!$L105 -> 70.04935554 | F74: ='1 Linea Base'!F15*'2A Solar FV'!F$12*'1 Linea Base'!$L105 -> 67.78969891 | G74: ='1 Linea Base'!G15*'2A Solar FV'!G$12*'1 Linea Base'!$L105 -> 70.04935554 | H74: ='1 Linea Base'!H15*'2A Solar FV'!H$12*'1 Linea Base'!$L105 -> 67.78969891 | I74: ='1 Linea Base'!I15*'2A Solar FV'!I$12*'1 Linea Base'!$L105 -> 70.04935554 | J74: ='1 Linea Base'!J15*'2A Solar FV'!J$12*'1 Linea Base'!$L105 -> 70.04935554 | K74: ='1 Linea Base'!K15*'2A Solar FV'!K$12*'1 Linea Base'!$L105 -> 67.78969891 | L74: ='1 Linea Base'!L15*'2A Solar FV'!L$12*'1 Linea Base'!$L105 -> 70.04935554 | M74: ='1 Linea Base'!M15*'2A Solar FV'!M$12*'1 Linea Base'!$L105 -> 67.78969891 | N74: ='1 Linea Base'!N15*'2A Solar FV'!N$12*'1 Linea Base'!$L105 -> 70.04935554 | O74: ='1 Linea Base'!O15*'2A Solar FV'!O$12*'1 Linea Base'!$L105 -> 63.27038565 | P74: ='1 Linea Base'!P15*'2A Solar FV'!P$12*'1 Linea Base'!$L105 -> 68.73122251 | Q74: ='1 Linea Base'!Q15*'2A Solar FV'!Q$12*'1 Linea Base'!$L105 -> 70.04935554
B75: 04:00:00 | C75: ='1 Linea Base'!C16*'2A Solar FV'!C$12*'1 Linea Base'!$L106 -> 71.38598668 | D75: ='1 Linea Base'!D16*'2A Solar FV'!D$12*'1 Linea Base'!$L106 -> 64.47766539 | E75: ='1 Linea Base'!E16*'2A Solar FV'!E$12*'1 Linea Base'!$L106 -> 71.38598668 | F75: ='1 Linea Base'!F16*'2A Solar FV'!F$12*'1 Linea Base'!$L106 -> 69.08321292 | G75: ='1 Linea Base'!G16*'2A Solar FV'!G$12*'1 Linea Base'!$L106 -> 71.38598668 | H75: ='1 Linea Base'!H16*'2A Solar FV'!H$12*'1 Linea Base'!$L106 -> 69.08321292 | I75: ='1 Linea Base'!I16*'2A Solar FV'!I$12*'1 Linea Base'!$L106 -> 71.38598668 | J75: ='1 Linea Base'!J16*'2A Solar FV'!J$12*'1 Linea Base'!$L106 -> 71.38598668 | K75: ='1 Linea Base'!K16*'2A Solar FV'!K$12*'1 Linea Base'!$L106 -> 69.08321292 | L75: ='1 Linea Base'!L16*'2A Solar FV'!L$12*'1 Linea Base'!$L106 -> 71.38598668 | M75: ='1 Linea Base'!M16*'2A Solar FV'!M$12*'1 Linea Base'!$L106 -> 69.08321292 | N75: ='1 Linea Base'!N16*'2A Solar FV'!N$12*'1 Linea Base'!$L106 -> 71.38598668 | O75: ='1 Linea Base'!O16*'2A Solar FV'!O$12*'1 Linea Base'!$L106 -> 64.47766539 | P75: ='1 Linea Base'!P16*'2A Solar FV'!P$12*'1 Linea Base'!$L106 -> 70.04270199 | Q75: ='1 Linea Base'!Q16*'2A Solar FV'!Q$12*'1 Linea Base'!$L106 -> 71.38598668
B76: 05:00:00 | C76: ='1 Linea Base'!C17*'2A Solar FV'!C$12*'1 Linea Base'!$L107 -> 86.45378561 | D76: ='1 Linea Base'!D17*'2A Solar FV'!D$12*'1 Linea Base'!$L107 -> 78.08729022 | E76: ='1 Linea Base'!E17*'2A Solar FV'!E$12*'1 Linea Base'!$L107 -> 86.45378561 | F76: ='1 Linea Base'!F17*'2A Solar FV'!F$12*'1 Linea Base'!$L107 -> 83.66495381 | G76: ='1 Linea Base'!G17*'2A Solar FV'!G$12*'1 Linea Base'!$L107 -> 86.45378561 | H76: ='1 Linea Base'!H17*'2A Solar FV'!H$12*'1 Linea Base'!$L107 -> 83.66495381 | I76: ='1 Linea Base'!I17*'2A Solar FV'!I$12*'1 Linea Base'!$L107 -> 86.45378561 | J76: ='1 Linea Base'!J17*'2A Solar FV'!J$12*'1 Linea Base'!$L107 -> 86.45378561 | K76: ='1 Linea Base'!K17*'2A Solar FV'!K$12*'1 Linea Base'!$L107 -> 83.66495381 | L76: ='1 Linea Base'!L17*'2A Solar FV'!L$12*'1 Linea Base'!$L107 -> 86.45378561 | M76: ='1 Linea Base'!M17*'2A Solar FV'!M$12*'1 Linea Base'!$L107 -> 83.66495381 | N76: ='1 Linea Base'!N17*'2A Solar FV'!N$12*'1 Linea Base'!$L107 -> 86.45378561 | O76: ='1 Linea Base'!O17*'2A Solar FV'!O$12*'1 Linea Base'!$L107 -> 78.08729022 | P76: ='1 Linea Base'!P17*'2A Solar FV'!P$12*'1 Linea Base'!$L107 -> 84.82696706 | Q76: ='1 Linea Base'!Q17*'2A Solar FV'!Q$12*'1 Linea Base'!$L107 -> 86.45378561
B77: 06:00:00 | C77: ='1 Linea Base'!C18*'2A Solar FV'!C$12*'1 Linea Base'!$L108 -> 119.7314688 | D77: ='1 Linea Base'!D18*'2A Solar FV'!D$12*'1 Linea Base'!$L108 -> 108.1445525 | E77: ='1 Linea Base'!E18*'2A Solar FV'!E$12*'1 Linea Base'!$L108 -> 119.7314688 | F77: ='1 Linea Base'!F18*'2A Solar FV'!F$12*'1 Linea Base'!$L108 -> 115.8691633 | G77: ='1 Linea Base'!G18*'2A Solar FV'!G$12*'1 Linea Base'!$L108 -> 119.7314688 | H77: ='1 Linea Base'!H18*'2A Solar FV'!H$12*'1 Linea Base'!$L108 -> 115.8691633 | I77: ='1 Linea Base'!I18*'2A Solar FV'!I$12*'1 Linea Base'!$L108 -> 119.7314688 | J77: ='1 Linea Base'!J18*'2A Solar FV'!J$12*'1 Linea Base'!$L108 -> 119.7314688 | K77: ='1 Linea Base'!K18*'2A Solar FV'!K$12*'1 Linea Base'!$L108 -> 115.8691633 | L77: ='1 Linea Base'!L18*'2A Solar FV'!L$12*'1 Linea Base'!$L108 -> 119.7314688 | M77: ='1 Linea Base'!M18*'2A Solar FV'!M$12*'1 Linea Base'!$L108 -> 115.8691633 | N77: ='1 Linea Base'!N18*'2A Solar FV'!N$12*'1 Linea Base'!$L108 -> 119.7314688 | O77: ='1 Linea Base'!O18*'2A Solar FV'!O$12*'1 Linea Base'!$L108 -> 108.1445525 | P77: ='1 Linea Base'!P18*'2A Solar FV'!P$12*'1 Linea Base'!$L108 -> 117.4784573 | Q77: ='1 Linea Base'!Q18*'2A Solar FV'!Q$12*'1 Linea Base'!$L108 -> 119.7314688
B78: 07:00:00 | C78: ='1 Linea Base'!C19*'2A Solar FV'!C$12*'1 Linea Base'!$L109 -> 147.4044757 | D78: ='1 Linea Base'!D19*'2A Solar FV'!D$12*'1 Linea Base'!$L109 -> 133.1395264 | E78: ='1 Linea Base'!E19*'2A Solar FV'!E$12*'1 Linea Base'!$L109 -> 147.4044757 | F78: ='1 Linea Base'!F19*'2A Solar FV'!F$12*'1 Linea Base'!$L109 -> 142.6494926 | G78: ='1 Linea Base'!G19*'2A Solar FV'!G$12*'1 Linea Base'!$L109 -> 147.4044757 | H78: ='1 Linea Base'!H19*'2A Solar FV'!H$12*'1 Linea Base'!$L109 -> 142.6494926 | I78: ='1 Linea Base'!I19*'2A Solar FV'!I$12*'1 Linea Base'!$L109 -> 147.4044757 | J78: ='1 Linea Base'!J19*'2A Solar FV'!J$12*'1 Linea Base'!$L109 -> 147.4044757 | K78: ='1 Linea Base'!K19*'2A Solar FV'!K$12*'1 Linea Base'!$L109 -> 142.6494926 | L78: ='1 Linea Base'!L19*'2A Solar FV'!L$12*'1 Linea Base'!$L109 -> 147.4044757 | M78: ='1 Linea Base'!M19*'2A Solar FV'!M$12*'1 Linea Base'!$L109 -> 142.6494926 | N78: ='1 Linea Base'!N19*'2A Solar FV'!N$12*'1 Linea Base'!$L109 -> 147.4044757 | O78: ='1 Linea Base'!O19*'2A Solar FV'!O$12*'1 Linea Base'!$L109 -> 133.1395264 | P78: ='1 Linea Base'!P19*'2A Solar FV'!P$12*'1 Linea Base'!$L109 -> 144.6307356 | Q78: ='1 Linea Base'!Q19*'2A Solar FV'!Q$12*'1 Linea Base'!$L109 -> 147.4044757
B79: 08:00:00 | C79: ='1 Linea Base'!C20*'2A Solar FV'!C$12*'1 Linea Base'!$L110 -> 148.3936997 | D79: ='1 Linea Base'!D20*'2A Solar FV'!D$12*'1 Linea Base'!$L110 -> 134.033019 | E79: ='1 Linea Base'!E20*'2A Solar FV'!E$12*'1 Linea Base'!$L110 -> 148.3936997 | F79: ='1 Linea Base'!F20*'2A Solar FV'!F$12*'1 Linea Base'!$L110 -> 143.6068061 | G79: ='1 Linea Base'!G20*'2A Solar FV'!G$12*'1 Linea Base'!$L110 -> 148.3936997 | H79: ='1 Linea Base'!H20*'2A Solar FV'!H$12*'1 Linea Base'!$L110 -> 143.6068061 | I79: ='1 Linea Base'!I20*'2A Solar FV'!I$12*'1 Linea Base'!$L110 -> 148.3936997 | J79: ='1 Linea Base'!J20*'2A Solar FV'!J$12*'1 Linea Base'!$L110 -> 148.3936997 | K79: ='1 Linea Base'!K20*'2A Solar FV'!K$12*'1 Linea Base'!$L110 -> 143.6068061 | L79: ='1 Linea Base'!L20*'2A Solar FV'!L$12*'1 Linea Base'!$L110 -> 148.3936997 | M79: ='1 Linea Base'!M20*'2A Solar FV'!M$12*'1 Linea Base'!$L110 -> 143.6068061 | N79: ='1 Linea Base'!N20*'2A Solar FV'!N$12*'1 Linea Base'!$L110 -> 148.3936997 | O79: ='1 Linea Base'!O20*'2A Solar FV'!O$12*'1 Linea Base'!$L110 -> 134.033019 | P79: ='1 Linea Base'!P20*'2A Solar FV'!P$12*'1 Linea Base'!$L110 -> 145.6013451 | Q79: ='1 Linea Base'!Q20*'2A Solar FV'!Q$12*'1 Linea Base'!$L110 -> 148.3936997
B80: 09:00:00 | C80: ='1 Linea Base'!C21*'2A Solar FV'!C$12*'1 Linea Base'!$L111 -> 149.3391375 | D80: ='1 Linea Base'!D21*'2A Solar FV'!D$12*'1 Linea Base'!$L111 -> 134.8869629 | E80: ='1 Linea Base'!E21*'2A Solar FV'!E$12*'1 Linea Base'!$L111 -> 149.3391375 | F80: ='1 Linea Base'!F21*'2A Solar FV'!F$12*'1 Linea Base'!$L111 -> 144.521746 | G80: ='1 Linea Base'!G21*'2A Solar FV'!G$12*'1 Linea Base'!$L111 -> 149.3391375 | H80: ='1 Linea Base'!H21*'2A Solar FV'!H$12*'1 Linea Base'!$L111 -> 144.521746 | I80: ='1 Linea Base'!I21*'2A Solar FV'!I$12*'1 Linea Base'!$L111 -> 149.3391375 | J80: ='1 Linea Base'!J21*'2A Solar FV'!J$12*'1 Linea Base'!$L111 -> 149.3391375 | K80: ='1 Linea Base'!K21*'2A Solar FV'!K$12*'1 Linea Base'!$L111 -> 144.521746 | L80: ='1 Linea Base'!L21*'2A Solar FV'!L$12*'1 Linea Base'!$L111 -> 149.3391375 | M80: ='1 Linea Base'!M21*'2A Solar FV'!M$12*'1 Linea Base'!$L111 -> 144.521746 | N80: ='1 Linea Base'!N21*'2A Solar FV'!N$12*'1 Linea Base'!$L111 -> 149.3391375 | O80: ='1 Linea Base'!O21*'2A Solar FV'!O$12*'1 Linea Base'!$L111 -> 134.8869629 | P80: ='1 Linea Base'!P21*'2A Solar FV'!P$12*'1 Linea Base'!$L111 -> 146.5289925 | Q80: ='1 Linea Base'!Q21*'2A Solar FV'!Q$12*'1 Linea Base'!$L111 -> 149.3391375
B81: 10:00:00 | C81: ='1 Linea Base'!C22*'2A Solar FV'!C$12*'1 Linea Base'!$L112 -> 250.6882026 | D81: ='1 Linea Base'!D22*'2A Solar FV'!D$12*'1 Linea Base'!$L112 -> 226.428054 | E81: ='1 Linea Base'!E22*'2A Solar FV'!E$12*'1 Linea Base'!$L112 -> 250.6882026 | F81: ='1 Linea Base'!F22*'2A Solar FV'!F$12*'1 Linea Base'!$L112 -> 242.6014864 | G81: ='1 Linea Base'!G22*'2A Solar FV'!G$12*'1 Linea Base'!$L112 -> 250.6882026 | H81: ='1 Linea Base'!H22*'2A Solar FV'!H$12*'1 Linea Base'!$L112 -> 242.6014864 | I81: ='1 Linea Base'!I22*'2A Solar FV'!I$12*'1 Linea Base'!$L112 -> 250.6882026 | J81: ='1 Linea Base'!J22*'2A Solar FV'!J$12*'1 Linea Base'!$L112 -> 250.6882026 | K81: ='1 Linea Base'!K22*'2A Solar FV'!K$12*'1 Linea Base'!$L112 -> 242.6014864 | L81: ='1 Linea Base'!L22*'2A Solar FV'!L$12*'1 Linea Base'!$L112 -> 250.6882026 | M81: ='1 Linea Base'!M22*'2A Solar FV'!M$12*'1 Linea Base'!$L112 -> 242.6014864 | N81: ='1 Linea Base'!N22*'2A Solar FV'!N$12*'1 Linea Base'!$L112 -> 250.6882026 | O81: ='1 Linea Base'!O22*'2A Solar FV'!O$12*'1 Linea Base'!$L112 -> 226.428054 | P81: ='1 Linea Base'!P22*'2A Solar FV'!P$12*'1 Linea Base'!$L112 -> 245.9709515 | Q81: ='1 Linea Base'!Q22*'2A Solar FV'!Q$12*'1 Linea Base'!$L112 -> 250.6882026
B82: 11:00:00 | C82: ='1 Linea Base'!C23*'2A Solar FV'!C$12*'1 Linea Base'!$L113 -> 254.4086842 | D82: ='1 Linea Base'!D23*'2A Solar FV'!D$12*'1 Linea Base'!$L113 -> 229.7884889 | E82: ='1 Linea Base'!E23*'2A Solar FV'!E$12*'1 Linea Base'!$L113 -> 254.4086842 | F82: ='1 Linea Base'!F23*'2A Solar FV'!F$12*'1 Linea Base'!$L113 -> 246.2019524 | G82: ='1 Linea Base'!G23*'2A Solar FV'!G$12*'1 Linea Base'!$L113 -> 254.4086842 | H82: ='1 Linea Base'!H23*'2A Solar FV'!H$12*'1 Linea Base'!$L113 -> 246.2019524 | I82: ='1 Linea Base'!I23*'2A Solar FV'!I$12*'1 Linea Base'!$L113 -> 254.4086842 | J82: ='1 Linea Base'!J23*'2A Solar FV'!J$12*'1 Linea Base'!$L113 -> 254.4086842 | K82: ='1 Linea Base'!K23*'2A Solar FV'!K$12*'1 Linea Base'!$L113 -> 246.2019524 | L82: ='1 Linea Base'!L23*'2A Solar FV'!L$12*'1 Linea Base'!$L113 -> 254.4086842 | M82: ='1 Linea Base'!M23*'2A Solar FV'!M$12*'1 Linea Base'!$L113 -> 246.2019524 | N82: ='1 Linea Base'!N23*'2A Solar FV'!N$12*'1 Linea Base'!$L113 -> 254.4086842 | O82: ='1 Linea Base'!O23*'2A Solar FV'!O$12*'1 Linea Base'!$L113 -> 229.7884889 | P82: ='1 Linea Base'!P23*'2A Solar FV'!P$12*'1 Linea Base'!$L113 -> 249.621424 | Q82: ='1 Linea Base'!Q23*'2A Solar FV'!Q$12*'1 Linea Base'!$L113 -> 254.4086842
B83: 12:00:00 | C83: ='1 Linea Base'!C24*'2A Solar FV'!C$12*'1 Linea Base'!$L114 -> 260.9344958 | D83: ='1 Linea Base'!D24*'2A Solar FV'!D$12*'1 Linea Base'!$L114 -> 235.6827704 | E83: ='1 Linea Base'!E24*'2A Solar FV'!E$12*'1 Linea Base'!$L114 -> 260.9344958 | F83: ='1 Linea Base'!F24*'2A Solar FV'!F$12*'1 Linea Base'!$L114 -> 252.517254 | G83: ='1 Linea Base'!G24*'2A Solar FV'!G$12*'1 Linea Base'!$L114 -> 260.9344958 | H83: ='1 Linea Base'!H24*'2A Solar FV'!H$12*'1 Linea Base'!$L114 -> 252.517254 | I83: ='1 Linea Base'!I24*'2A Solar FV'!I$12*'1 Linea Base'!$L114 -> 260.9344958 | J83: ='1 Linea Base'!J24*'2A Solar FV'!J$12*'1 Linea Base'!$L114 -> 260.9344958 | K83: ='1 Linea Base'!K24*'2A Solar FV'!K$12*'1 Linea Base'!$L114 -> 252.517254 | L83: ='1 Linea Base'!L24*'2A Solar FV'!L$12*'1 Linea Base'!$L114 -> 260.9344958 | M83: ='1 Linea Base'!M24*'2A Solar FV'!M$12*'1 Linea Base'!$L114 -> 252.517254 | N83: ='1 Linea Base'!N24*'2A Solar FV'!N$12*'1 Linea Base'!$L114 -> 260.9344958 | O83: ='1 Linea Base'!O24*'2A Solar FV'!O$12*'1 Linea Base'!$L114 -> 235.6827704 | P83: ='1 Linea Base'!P24*'2A Solar FV'!P$12*'1 Linea Base'!$L114 -> 256.0244381 | Q83: ='1 Linea Base'!Q24*'2A Solar FV'!Q$12*'1 Linea Base'!$L114 -> 260.9344958
B84: 13:00:00 | C84: ='1 Linea Base'!C25*'2A Solar FV'!C$12*'1 Linea Base'!$L115 -> 268.844455 | D84: ='1 Linea Base'!D25*'2A Solar FV'!D$12*'1 Linea Base'!$L115 -> 242.8272497 | E84: ='1 Linea Base'!E25*'2A Solar FV'!E$12*'1 Linea Base'!$L115 -> 268.844455 | F84: ='1 Linea Base'!F25*'2A Solar FV'!F$12*'1 Linea Base'!$L115 -> 260.1720532 | G84: ='1 Linea Base'!G25*'2A Solar FV'!G$12*'1 Linea Base'!$L115 -> 268.844455 | H84: ='1 Linea Base'!H25*'2A Solar FV'!H$12*'1 Linea Base'!$L115 -> 260.1720532 | I84: ='1 Linea Base'!I25*'2A Solar FV'!I$12*'1 Linea Base'!$L115 -> 268.844455 | J84: ='1 Linea Base'!J25*'2A Solar FV'!J$12*'1 Linea Base'!$L115 -> 268.844455 | K84: ='1 Linea Base'!K25*'2A Solar FV'!K$12*'1 Linea Base'!$L115 -> 260.1720532 | L84: ='1 Linea Base'!L25*'2A Solar FV'!L$12*'1 Linea Base'!$L115 -> 268.844455 | M84: ='1 Linea Base'!M25*'2A Solar FV'!M$12*'1 Linea Base'!$L115 -> 260.1720532 | N84: ='1 Linea Base'!N25*'2A Solar FV'!N$12*'1 Linea Base'!$L115 -> 268.844455 | O84: ='1 Linea Base'!O25*'2A Solar FV'!O$12*'1 Linea Base'!$L115 -> 242.8272497 | P84: ='1 Linea Base'!P25*'2A Solar FV'!P$12*'1 Linea Base'!$L115 -> 263.785554 | Q84: ='1 Linea Base'!Q25*'2A Solar FV'!Q$12*'1 Linea Base'!$L115 -> 268.844455
B85: 14:00:00 | C85: ='1 Linea Base'!C26*'2A Solar FV'!C$12*'1 Linea Base'!$L116 -> 159.6101994 | D85: ='1 Linea Base'!D26*'2A Solar FV'!D$12*'1 Linea Base'!$L116 -> 144.1640511 | E85: ='1 Linea Base'!E26*'2A Solar FV'!E$12*'1 Linea Base'!$L116 -> 159.6101994 | F85: ='1 Linea Base'!F26*'2A Solar FV'!F$12*'1 Linea Base'!$L116 -> 154.4614833 | G85: ='1 Linea Base'!G26*'2A Solar FV'!G$12*'1 Linea Base'!$L116 -> 159.6101994 | H85: ='1 Linea Base'!H26*'2A Solar FV'!H$12*'1 Linea Base'!$L116 -> 154.4614833 | I85: ='1 Linea Base'!I26*'2A Solar FV'!I$12*'1 Linea Base'!$L116 -> 159.6101994 | J85: ='1 Linea Base'!J26*'2A Solar FV'!J$12*'1 Linea Base'!$L116 -> 159.6101994 | K85: ='1 Linea Base'!K26*'2A Solar FV'!K$12*'1 Linea Base'!$L116 -> 154.4614833 | L85: ='1 Linea Base'!L26*'2A Solar FV'!L$12*'1 Linea Base'!$L116 -> 159.6101994 | M85: ='1 Linea Base'!M26*'2A Solar FV'!M$12*'1 Linea Base'!$L116 -> 154.4614833 | N85: ='1 Linea Base'!N26*'2A Solar FV'!N$12*'1 Linea Base'!$L116 -> 159.6101994 | O85: ='1 Linea Base'!O26*'2A Solar FV'!O$12*'1 Linea Base'!$L116 -> 144.1640511 | P85: ='1 Linea Base'!P26*'2A Solar FV'!P$12*'1 Linea Base'!$L116 -> 156.6067817 | Q85: ='1 Linea Base'!Q26*'2A Solar FV'!Q$12*'1 Linea Base'!$L116 -> 159.6101994
B86: 15:00:00 | C86: ='1 Linea Base'!C27*'2A Solar FV'!C$12*'1 Linea Base'!$L117 -> 158.6395928 | D86: ='1 Linea Base'!D27*'2A Solar FV'!D$12*'1 Linea Base'!$L117 -> 143.2873742 | E86: ='1 Linea Base'!E27*'2A Solar FV'!E$12*'1 Linea Base'!$L117 -> 158.6395928 | F86: ='1 Linea Base'!F27*'2A Solar FV'!F$12*'1 Linea Base'!$L117 -> 153.5221866 | G86: ='1 Linea Base'!G27*'2A Solar FV'!G$12*'1 Linea Base'!$L117 -> 158.6395928 | H86: ='1 Linea Base'!H27*'2A Solar FV'!H$12*'1 Linea Base'!$L117 -> 153.5221866 | I86: ='1 Linea Base'!I27*'2A Solar FV'!I$12*'1 Linea Base'!$L117 -> 158.6395928 | J86: ='1 Linea Base'!J27*'2A Solar FV'!J$12*'1 Linea Base'!$L117 -> 158.6395928 | K86: ='1 Linea Base'!K27*'2A Solar FV'!K$12*'1 Linea Base'!$L117 -> 153.5221866 | L86: ='1 Linea Base'!L27*'2A Solar FV'!L$12*'1 Linea Base'!$L117 -> 158.6395928 | M86: ='1 Linea Base'!M27*'2A Solar FV'!M$12*'1 Linea Base'!$L117 -> 153.5221866 | N86: ='1 Linea Base'!N27*'2A Solar FV'!N$12*'1 Linea Base'!$L117 -> 158.6395928 | O86: ='1 Linea Base'!O27*'2A Solar FV'!O$12*'1 Linea Base'!$L117 -> 143.2873742 | P86: ='1 Linea Base'!P27*'2A Solar FV'!P$12*'1 Linea Base'!$L117 -> 155.6544392 | Q86: ='1 Linea Base'!Q27*'2A Solar FV'!Q$12*'1 Linea Base'!$L117 -> 158.6395928
B87: 16:00:00 | C87: ='1 Linea Base'!C28*'2A Solar FV'!C$12*'1 Linea Base'!$L118 -> 171.4874669 | D87: ='1 Linea Base'!D28*'2A Solar FV'!D$12*'1 Linea Base'!$L118 -> 154.8919056 | E87: ='1 Linea Base'!E28*'2A Solar FV'!E$12*'1 Linea Base'!$L118 -> 171.4874669 | F87: ='1 Linea Base'!F28*'2A Solar FV'!F$12*'1 Linea Base'!$L118 -> 165.9556132 | G87: ='1 Linea Base'!G28*'2A Solar FV'!G$12*'1 Linea Base'!$L118 -> 171.4874669 | H87: ='1 Linea Base'!H28*'2A Solar FV'!H$12*'1 Linea Base'!$L118 -> 165.9556132 | I87: ='1 Linea Base'!I28*'2A Solar FV'!I$12*'1 Linea Base'!$L118 -> 171.4874669 | J87: ='1 Linea Base'!J28*'2A Solar FV'!J$12*'1 Linea Base'!$L118 -> 171.4874669 | K87: ='1 Linea Base'!K28*'2A Solar FV'!K$12*'1 Linea Base'!$L118 -> 165.9556132 | L87: ='1 Linea Base'!L28*'2A Solar FV'!L$12*'1 Linea Base'!$L118 -> 171.4874669 | M87: ='1 Linea Base'!M28*'2A Solar FV'!M$12*'1 Linea Base'!$L118 -> 165.9556132 | N87: ='1 Linea Base'!N28*'2A Solar FV'!N$12*'1 Linea Base'!$L118 -> 171.4874669 | O87: ='1 Linea Base'!O28*'2A Solar FV'!O$12*'1 Linea Base'!$L118 -> 154.8919056 | P87: ='1 Linea Base'!P28*'2A Solar FV'!P$12*'1 Linea Base'!$L118 -> 168.2605522 | Q87: ='1 Linea Base'!Q28*'2A Solar FV'!Q$12*'1 Linea Base'!$L118 -> 171.4874669
B88: 17:00:00 | C88: ='1 Linea Base'!C29*'2A Solar FV'!C$12*'1 Linea Base'!$L119 -> 193.8275426 | D88: ='1 Linea Base'!D29*'2A Solar FV'!D$12*'1 Linea Base'!$L119 -> 175.0700385 | E88: ='1 Linea Base'!E29*'2A Solar FV'!E$12*'1 Linea Base'!$L119 -> 193.8275426 | F88: ='1 Linea Base'!F29*'2A Solar FV'!F$12*'1 Linea Base'!$L119 -> 187.5750413 | G88: ='1 Linea Base'!G29*'2A Solar FV'!G$12*'1 Linea Base'!$L119 -> 193.8275426 | H88: ='1 Linea Base'!H29*'2A Solar FV'!H$12*'1 Linea Base'!$L119 -> 187.5750413 | I88: ='1 Linea Base'!I29*'2A Solar FV'!I$12*'1 Linea Base'!$L119 -> 193.8275426 | J88: ='1 Linea Base'!J29*'2A Solar FV'!J$12*'1 Linea Base'!$L119 -> 193.8275426 | K88: ='1 Linea Base'!K29*'2A Solar FV'!K$12*'1 Linea Base'!$L119 -> 187.5750413 | L88: ='1 Linea Base'!L29*'2A Solar FV'!L$12*'1 Linea Base'!$L119 -> 193.8275426 | M88: ='1 Linea Base'!M29*'2A Solar FV'!M$12*'1 Linea Base'!$L119 -> 187.5750413 | N88: ='1 Linea Base'!N29*'2A Solar FV'!N$12*'1 Linea Base'!$L119 -> 193.8275426 | O88: ='1 Linea Base'!O29*'2A Solar FV'!O$12*'1 Linea Base'!$L119 -> 175.0700385 | P88: ='1 Linea Base'!P29*'2A Solar FV'!P$12*'1 Linea Base'!$L119 -> 190.1802502 | Q88: ='1 Linea Base'!Q29*'2A Solar FV'!Q$12*'1 Linea Base'!$L119 -> 193.8275426
B89: 18:00:00 | C89: ='1 Linea Base'!C30*'2A Solar FV'!C$12*'1 Linea Base'!$L120 -> 408.0938224 | D89: ='1 Linea Base'!D30*'2A Solar FV'!D$12*'1 Linea Base'!$L120 -> 368.6008719 | E89: ='1 Linea Base'!E30*'2A Solar FV'!E$12*'1 Linea Base'!$L120 -> 408.0938224 | F89: ='1 Linea Base'!F30*'2A Solar FV'!F$12*'1 Linea Base'!$L120 -> 394.9295056 | G89: ='1 Linea Base'!G30*'2A Solar FV'!G$12*'1 Linea Base'!$L120 -> 408.0938224 | H89: ='1 Linea Base'!H30*'2A Solar FV'!H$12*'1 Linea Base'!$L120 -> 394.9295056 | I89: ='1 Linea Base'!I30*'2A Solar FV'!I$12*'1 Linea Base'!$L120 -> 408.0938224 | J89: ='1 Linea Base'!J30*'2A Solar FV'!J$12*'1 Linea Base'!$L120 -> 408.0938224 | K89: ='1 Linea Base'!K30*'2A Solar FV'!K$12*'1 Linea Base'!$L120 -> 394.9295056 | L89: ='1 Linea Base'!L30*'2A Solar FV'!L$12*'1 Linea Base'!$L120 -> 408.0938224 | M89: ='1 Linea Base'!M30*'2A Solar FV'!M$12*'1 Linea Base'!$L120 -> 394.9295056 | N89: ='1 Linea Base'!N30*'2A Solar FV'!N$12*'1 Linea Base'!$L120 -> 408.0938224 | O89: ='1 Linea Base'!O30*'2A Solar FV'!O$12*'1 Linea Base'!$L120 -> 368.6008719 | P89: ='1 Linea Base'!P30*'2A Solar FV'!P$12*'1 Linea Base'!$L120 -> 400.4146376 | Q89: ='1 Linea Base'!Q30*'2A Solar FV'!Q$12*'1 Linea Base'!$L120 -> 408.0938224
B90: 19:00:00 | C90: ='1 Linea Base'!C31*'2A Solar FV'!C$12*'1 Linea Base'!$L121 -> 655.604255 | D90: ='1 Linea Base'!D31*'2A Solar FV'!D$12*'1 Linea Base'!$L121 -> 592.1586819 | E90: ='1 Linea Base'!E31*'2A Solar FV'!E$12*'1 Linea Base'!$L121 -> 655.604255 | F90: ='1 Linea Base'!F31*'2A Solar FV'!F$12*'1 Linea Base'!$L121 -> 634.4557306 | G90: ='1 Linea Base'!G31*'2A Solar FV'!G$12*'1 Linea Base'!$L121 -> 655.604255 | H90: ='1 Linea Base'!H31*'2A Solar FV'!H$12*'1 Linea Base'!$L121 -> 634.4557306 | I90: ='1 Linea Base'!I31*'2A Solar FV'!I$12*'1 Linea Base'!$L121 -> 655.604255 | J90: ='1 Linea Base'!J31*'2A Solar FV'!J$12*'1 Linea Base'!$L121 -> 655.604255 | K90: ='1 Linea Base'!K31*'2A Solar FV'!K$12*'1 Linea Base'!$L121 -> 634.4557306 | L90: ='1 Linea Base'!L31*'2A Solar FV'!L$12*'1 Linea Base'!$L121 -> 655.604255 | M90: ='1 Linea Base'!M31*'2A Solar FV'!M$12*'1 Linea Base'!$L121 -> 634.4557306 | N90: ='1 Linea Base'!N31*'2A Solar FV'!N$12*'1 Linea Base'!$L121 -> 655.604255 | O90: ='1 Linea Base'!O31*'2A Solar FV'!O$12*'1 Linea Base'!$L121 -> 592.1586819 | P90: ='1 Linea Base'!P31*'2A Solar FV'!P$12*'1 Linea Base'!$L121 -> 643.2676158 | Q90: ='1 Linea Base'!Q31*'2A Solar FV'!Q$12*'1 Linea Base'!$L121 -> 655.604255
B91: 20:00:00 | C91: ='1 Linea Base'!C32*'2A Solar FV'!C$12*'1 Linea Base'!$L122 -> 782.3266979 | D91: ='1 Linea Base'!D32*'2A Solar FV'!D$12*'1 Linea Base'!$L122 -> 706.6176626 | E91: ='1 Linea Base'!E32*'2A Solar FV'!E$12*'1 Linea Base'!$L122 -> 782.3266979 | F91: ='1 Linea Base'!F32*'2A Solar FV'!F$12*'1 Linea Base'!$L122 -> 757.0903528 | G91: ='1 Linea Base'!G32*'2A Solar FV'!G$12*'1 Linea Base'!$L122 -> 782.3266979 | H91: ='1 Linea Base'!H32*'2A Solar FV'!H$12*'1 Linea Base'!$L122 -> 757.0903528 | I91: ='1 Linea Base'!I32*'2A Solar FV'!I$12*'1 Linea Base'!$L122 -> 782.3266979 | J91: ='1 Linea Base'!J32*'2A Solar FV'!J$12*'1 Linea Base'!$L122 -> 782.3266979 | K91: ='1 Linea Base'!K32*'2A Solar FV'!K$12*'1 Linea Base'!$L122 -> 757.0903528 | L91: ='1 Linea Base'!L32*'2A Solar FV'!L$12*'1 Linea Base'!$L122 -> 782.3266979 | M91: ='1 Linea Base'!M32*'2A Solar FV'!M$12*'1 Linea Base'!$L122 -> 757.0903528 | N91: ='1 Linea Base'!N32*'2A Solar FV'!N$12*'1 Linea Base'!$L122 -> 782.3266979 | O91: ='1 Linea Base'!O32*'2A Solar FV'!O$12*'1 Linea Base'!$L122 -> 706.6176626 | P91: ='1 Linea Base'!P32*'2A Solar FV'!P$12*'1 Linea Base'!$L122 -> 767.6054966 | Q91: ='1 Linea Base'!Q32*'2A Solar FV'!Q$12*'1 Linea Base'!$L122 -> 782.3266979
B92: 21:00:00 | C92: ='1 Linea Base'!C33*'2A Solar FV'!C$12*'1 Linea Base'!$L123 -> 683.2224729 | D92: ='1 Linea Base'!D33*'2A Solar FV'!D$12*'1 Linea Base'!$L123 -> 617.1041691 | E92: ='1 Linea Base'!E33*'2A Solar FV'!E$12*'1 Linea Base'!$L123 -> 683.2224729 | F92: ='1 Linea Base'!F33*'2A Solar FV'!F$12*'1 Linea Base'!$L123 -> 661.1830383 | G92: ='1 Linea Base'!G33*'2A Solar FV'!G$12*'1 Linea Base'!$L123 -> 683.2224729 | H92: ='1 Linea Base'!H33*'2A Solar FV'!H$12*'1 Linea Base'!$L123 -> 661.1830383 | I92: ='1 Linea Base'!I33*'2A Solar FV'!I$12*'1 Linea Base'!$L123 -> 683.2224729 | J92: ='1 Linea Base'!J33*'2A Solar FV'!J$12*'1 Linea Base'!$L123 -> 683.2224729 | K92: ='1 Linea Base'!K33*'2A Solar FV'!K$12*'1 Linea Base'!$L123 -> 661.1830383 | L92: ='1 Linea Base'!L33*'2A Solar FV'!L$12*'1 Linea Base'!$L123 -> 683.2224729 | M92: ='1 Linea Base'!M33*'2A Solar FV'!M$12*'1 Linea Base'!$L123 -> 661.1830383 | N92: ='1 Linea Base'!N33*'2A Solar FV'!N$12*'1 Linea Base'!$L123 -> 683.2224729 | O92: ='1 Linea Base'!O33*'2A Solar FV'!O$12*'1 Linea Base'!$L123 -> 617.1041691 | P92: ='1 Linea Base'!P33*'2A Solar FV'!P$12*'1 Linea Base'!$L123 -> 670.3661361 | Q92: ='1 Linea Base'!Q33*'2A Solar FV'!Q$12*'1 Linea Base'!$L123 -> 683.2224729
B93: 22:00:00 | C93: ='1 Linea Base'!C34*'2A Solar FV'!C$12*'1 Linea Base'!$L124 -> 289.5927782 | D93: ='1 Linea Base'!D34*'2A Solar FV'!D$12*'1 Linea Base'!$L124 -> 261.5676706 | E93: ='1 Linea Base'!E34*'2A Solar FV'!E$12*'1 Linea Base'!$L124 -> 289.5927782 | F93: ='1 Linea Base'!F34*'2A Solar FV'!F$12*'1 Linea Base'!$L124 -> 280.2510756 | G93: ='1 Linea Base'!G34*'2A Solar FV'!G$12*'1 Linea Base'!$L124 -> 289.5927782 | H93: ='1 Linea Base'!H34*'2A Solar FV'!H$12*'1 Linea Base'!$L124 -> 280.2510756 | I93: ='1 Linea Base'!I34*'2A Solar FV'!I$12*'1 Linea Base'!$L124 -> 289.5927782 | J93: ='1 Linea Base'!J34*'2A Solar FV'!J$12*'1 Linea Base'!$L124 -> 289.5927782 | K93: ='1 Linea Base'!K34*'2A Solar FV'!K$12*'1 Linea Base'!$L124 -> 280.2510756 | L93: ='1 Linea Base'!L34*'2A Solar FV'!L$12*'1 Linea Base'!$L124 -> 289.5927782 | M93: ='1 Linea Base'!M34*'2A Solar FV'!M$12*'1 Linea Base'!$L124 -> 280.2510756 | N93: ='1 Linea Base'!N34*'2A Solar FV'!N$12*'1 Linea Base'!$L124 -> 289.5927782 | O93: ='1 Linea Base'!O34*'2A Solar FV'!O$12*'1 Linea Base'!$L124 -> 261.5676706 | P93: ='1 Linea Base'!P34*'2A Solar FV'!P$12*'1 Linea Base'!$L124 -> 284.1434517 | Q93: ='1 Linea Base'!Q34*'2A Solar FV'!Q$12*'1 Linea Base'!$L124 -> 289.5927782
B94: 23:00:00 | C94: ='1 Linea Base'!C35*'2A Solar FV'!C$12*'1 Linea Base'!$L125 -> 168.2877484 | D94: ='1 Linea Base'!D35*'2A Solar FV'!D$12*'1 Linea Base'!$L125 -> 152.0018372 | E94: ='1 Linea Base'!E35*'2A Solar FV'!E$12*'1 Linea Base'!$L125 -> 168.2877484 | F94: ='1 Linea Base'!F35*'2A Solar FV'!F$12*'1 Linea Base'!$L125 -> 162.8591113 | G94: ='1 Linea Base'!G35*'2A Solar FV'!G$12*'1 Linea Base'!$L125 -> 168.2877484 | H94: ='1 Linea Base'!H35*'2A Solar FV'!H$12*'1 Linea Base'!$L125 -> 162.8591113 | I94: ='1 Linea Base'!I35*'2A Solar FV'!I$12*'1 Linea Base'!$L125 -> 168.2877484 | J94: ='1 Linea Base'!J35*'2A Solar FV'!J$12*'1 Linea Base'!$L125 -> 168.2877484 | K94: ='1 Linea Base'!K35*'2A Solar FV'!K$12*'1 Linea Base'!$L125 -> 162.8591113 | L94: ='1 Linea Base'!L35*'2A Solar FV'!L$12*'1 Linea Base'!$L125 -> 168.2877484 | M94: ='1 Linea Base'!M35*'2A Solar FV'!M$12*'1 Linea Base'!$L125 -> 162.8591113 | N94: ='1 Linea Base'!N35*'2A Solar FV'!N$12*'1 Linea Base'!$L125 -> 168.2877484 | O94: ='1 Linea Base'!O35*'2A Solar FV'!O$12*'1 Linea Base'!$L125 -> 152.0018372 | P94: ='1 Linea Base'!P35*'2A Solar FV'!P$12*'1 Linea Base'!$L125 -> 165.1210434 | Q94: ='1 Linea Base'!Q35*'2A Solar FV'!Q$12*'1 Linea Base'!$L125 -> 168.2877484
B95: Total | C95: =SUBTOTAL(109,CostToU[ene]) -> 5756.544258 | D95: =SUBTOTAL(109,CostToU[feb]) -> 5199.45933 | E95: =SUBTOTAL(109,CostToU[mar]) -> 5756.544258 | F95: =SUBTOTAL(109,CostToU[abr]) -> 5570.849282 | G95: =SUBTOTAL(109,CostToU[may]) -> 5756.544258 | H95: =SUBTOTAL(109,CostToU[jun]) -> 5570.849282 | I95: =SUBTOTAL(109,CostToU[jul]) -> 5756.544258 | J95: =SUBTOTAL(109,CostToU[ago]) -> 5756.544258 | K95: =SUBTOTAL(109,CostToU[sep]) -> 5570.849282 | L95: =SUBTOTAL(109,CostToU[oct]) -> 5756.544258 | M95: =SUBTOTAL(109,CostToU[nov]) -> 5570.849282 | N95: =SUBTOTAL(109,CostToU[dic]) -> 5756.544258 | O95: =SUBTOTAL(109,CostToU[Cmin]) -> 5199.45933 | P95: =SUBTOTAL(109,CostToU[Cmed]) -> 5648.222189 | Q95: =SUBTOTAL(109,CostToU[Cmax]) -> 5756.544258
B98: Periodos y precios de la tarifa horaria para importación y exportación de electricidad
B100: Periodos | G100: Precios importación | M100: Precios exportación
B101: Hora | C101: Monomia | D101: Doble tipo 1 | E101: Doble tipo 2 | F101: Triple | G101: Precio Tarifa Monomia | H101: Precio Doble Tipo 1 | I101: Precio Doble Tipo 2 | J101: Precio Triple | K101: Tipo de tarifa | L101: Precio Tarifa Horaria | M101: Precio Exp Monomia | N101: Precio Exp DT1 | O101: Precio Exp´DT2 | P101: Precio Exp 3 | Q101: Precio Exp
B102: 00:00:00 | C102: Monomia | D102: =IF(AND(B102>='Top dashboard'!$E$57,B102<'Top dashboard'!$E$58),"Punta","Base") -> Base | E102: =IF(OR(AND(B102>='Top dashboard'!$E$57,B102<'Top dashboard'!$E$58),AND(B102>='Top dashboard'!$E$59,B102<'Top dashboard'!$E$60)),"Punta","Base") -> Base | F102: =IF(AND(B102>='Top dashboard'!$E$57,B102<'Top dashboard'!$E$58),"Punta",IF(AND(B102>='Top dashboard'!$E$62,B102<'Top dashboard'!$E$63),"Intermedio","Base")) -> Intermedio | G102: =$P$59 -> 412.063 | H102: =IF(D102="Punta",$P$59*(1+'Top dashboard'!$E$54/2),$P$59*(1-'Top dashboard'!$E$54/2)) -> 309.04725 | I102: =IF(E102="Punta",$P$59*(1+'Top dashboard'!$E$54/2),$P$59*(1-'Top dashboard'!$E$54/2)) -> 309.04725 | J102: =IF(F102="Punta",$P$59*(1+'Top dashboard'!$E$54/2),IF(F102="Base",$P$59*(1-'Top dashboard'!$E$54/2),$P$59)) -> 412.063 | K102: =_xlfn.IFS('Top dashboard'!$E$52="Monomia",Precioseleccionado[[#This Row],[Monomia]],'Top dashboard'!$E$53="Doble Tipo 1",Precioseleccionado[[#This Row],[Doble tipo 1]],'Top dashboard'!$E$53="Doble Tipo 2",Precioseleccionado[[#This Row],[Doble tipo 2]],'Top dashboard'!$E$53="Triple",Precioseleccionado[[#This Row],[Triple]]) -> Base | L102: =_xlfn.IFS('Top dashboard'!$E$52="Monomia",Precioseleccionado[[#This Row],[Precio Tarifa Monomia]],'Top dashboard'!$E$53="Doble Tipo 1",Precioseleccionado[[#This Row],[Precio Doble Tipo 1]],'Top dashboard'!$E$53="Doble Tipo 2",Precioseleccionado[[#This Row],[Precio Doble Tipo 2]],'Top dashboard'!$E$53="Triple",Precioseleccionado[[#This Row],[Precio Triple]]) -> 309.04725 | M102: =IF('Solar FV'!$E$18<100,Precioseleccionado[[#This Row],[Precio Tarifa Monomia]]-$C$150,$C$149) -> 339.346 | N102: =IF('Solar FV'!$E$18<100,IF(D102="Punta",Precioseleccionado[[#This Row],[Precio Doble Tipo 1]]-'1 Linea Base'!$C$150*(1+'Top dashboard'!$E$54/2),Precioseleccionado[[#This Row],[Precio Doble Tipo 1]]-'1 Linea Base'!$C$150*(1-'Top dashboard'!$E$54/2)),IF(D102="Punta",$C$149*(1+'Top dashboard'!$E$54/2),$C$149*(1-'Top dashboard'!$E$54/2))) -> 254.5095 | O102: =IF('Solar FV'!$E$18<100,IF(E102="Punta",Precioseleccionado[[#This Row],[Precio Doble Tipo 2]]-'1 Linea Base'!$C$150*(1+'Top dashboard'!$E$54/2),Precioseleccionado[[#This Row],[Precio Doble Tipo 2]]-'1 Linea Base'!$C$150*(1-'Top dashboard'!$E$54/2)),IF(E102="Punta",$C$149*(1+'Top dashboard'!$E$54/2),$C$149*(1-'Top dashboard'!$E$54/2))) -> 254.5095 | P102: =IF('Solar FV'!$E$18<100,IF(F102="Punta",Precioseleccionado[[#This Row],[Precio Triple]]-'1 Linea Base'!$C$150*(1+'Top dashboard'!$E$54/2),Precioseleccionado[[#This Row],[Precio Triple]]-'1 Linea Base'!$C$150*(1-'Top dashboard'!$E$54/2)),IF(F102="Punta",$C$149*(1+'Top dashboard'!$E$54/2),IF(F102="Base",$C$149*(1-'Top dashboard'!$E$54/2),$C$149))) -> 357.52525 | Q102: =_xlfn.IFS('Top dashboard'!$E$52="Monomia",Precioseleccionado[[#This Row],[Precio Exp Monomia]],'Top dashboard'!$E$53="Doble Tipo 1",Precioseleccionado[[#This Row],[Precio Exp DT1]],'Top dashboard'!$E$53="Doble Tipo 2",Precioseleccionado[[#This Row],[Precio Exp´DT2]],'Top dashboard'!$E$53="Triple",Precioseleccionado[[#This Row],[Precio Exp 3]]) -> 254.5095
B103: 01:00:00 | C103: Monomia | D103: =IF(AND(B103>='Top dashboard'!$E$57,B103<'Top dashboard'!$E$58),"Punta","Base") -> Base | E103: =IF(OR(AND(B103>='Top dashboard'!$E$57,B103<'Top dashboard'!$E$58),AND(B103>='Top dashboard'!$E$59,B103<'Top dashboard'!$E$60)),"Punta","Base") -> Base | F103: =IF(AND(B103>='Top dashboard'!$E$57,B103<'Top dashboard'!$E$58),"Punta",IF(AND(B103>='Top dashboard'!$E$62,B103<'Top dashboard'!$E$63),"Intermedio","Base")) -> Intermedio | G103: =$P$59 -> 412.063 | H103: =IF(D103="Punta",$P$59*(1+'Top dashboard'!$E$54/2),$P$59*(1-'Top dashboard'!$E$54/2)) -> 309.04725 | I103: =IF(E103="Punta",$P$59*(1+'Top dashboard'!$E$54/2),$P$59*(1-'Top dashboard'!$E$54/2)) -> 309.04725 | J103: =IF(F103="Punta",$P$59*(1+'Top dashboard'!$E$54/2),IF(F103="Base",$P$59*(1-'Top dashboard'!$E$54/2),$P$59)) -> 412.063 | K103: =_xlfn.IFS('Top dashboard'!$E$52="Monomia",Precioseleccionado[[#This Row],[Monomia]],'Top dashboard'!$E$53="Doble Tipo 1",Precioseleccionado[[#This Row],[Doble tipo 1]],'Top dashboard'!$E$53="Doble Tipo 2",Precioseleccionado[[#This Row],[Doble tipo 2]],'Top dashboard'!$E$53="Triple",Precioseleccionado[[#This Row],[Triple]]) -> Base | L103: =_xlfn.IFS('Top dashboard'!$E$52="Monomia",Precioseleccionado[[#This Row],[Precio Tarifa Monomia]],'Top dashboard'!$E$53="Doble Tipo 1",Precioseleccionado[[#This Row],[Precio Doble Tipo 1]],'Top dashboard'!$E$53="Doble Tipo 2",Precioseleccionado[[#This Row],[Precio Doble Tipo 2]],'Top dashboard'!$E$53="Triple",Precioseleccionado[[#This Row],[Precio Triple]]) -> 309.04725 | M103: =IF('Solar FV'!$E$18<100,Precioseleccionado[[#This Row],[Precio Tarifa Monomia]]-$C$150,$C$149) -> 339.346 | N103: =IF('Solar FV'!$E$18<100,IF(D103="Punta",Precioseleccionado[[#This Row],[Precio Doble Tipo 1]]-'1 Linea Base'!$C$150*(1+'Top dashboard'!$E$54/2),Precioseleccionado[[#This Row],[Precio Doble Tipo 1]]-'1 Linea Base'!$C$150*(1-'Top dashboard'!$E$54/2)),IF(D103="Punta",$C$149*(1+'Top dashboard'!$E$54/2),$C$149*(1-'Top dashboard'!$E$54/2))) -> 254.5095 | O103: =IF('Solar FV'!$E$18<100,IF(E103="Punta",Precioseleccionado[[#This Row],[Precio Doble Tipo 2]]-'1 Linea Base'!$C$150*(1+'Top dashboard'!$E$54/2),Precioseleccionado[[#This Row],[Precio Doble Tipo 2]]-'1 Linea Base'!$C$150*(1-'Top dashboard'!$E$54/2)),IF(E103="Punta",$C$149*(1+'Top dashboard'!$E$54/2),$C$149*(1-'Top dashboard'!$E$54/2))) -> 254.5095 | P103: =IF('Solar FV'!$E$18<100,IF(F103="Punta",Precioseleccionado[[#This Row],[Precio Triple]]-'1 Linea Base'!$C$150*(1+'Top dashboard'!$E$54/2),Precioseleccionado[[#This Row],[Precio Triple]]-'1 Linea Base'!$C$150*(1-'Top dashboard'!$E$54/2)),IF(F103="Punta",$C$149*(1+'Top dashboard'!$E$54/2),IF(F103="Base",$C$149*(1-'Top dashboard'!$E$54/2),$C$149))) -> 357.52525 | Q103: =_xlfn.IFS('Top dashboard'!$E$52="Monomia",Precioseleccionado[[#This Row],[Precio Exp Monomia]],'Top dashboard'!$E$53="Doble Tipo 1",Precioseleccionado[[#This Row],[Precio Exp DT1]],'Top dashboard'!$E$53="Doble Tipo 2",Precioseleccionado[[#This Row],[Precio Exp´DT2]],'Top dashboard'!$E$53="Triple",Precioseleccionado[[#This Row],[Precio Exp 3]]) -> 254.5095
B104: 02:00:00 | C104: Monomia | D104: =IF(AND(B104>='Top dashboard'!$E$57,B104<'Top dashboard'!$E$58),"Punta","Base") -> Base | E104: =IF(OR(AND(B104>='Top dashboard'!$E$57,B104<'Top dashboard'!$E$58),AND(B104>='Top dashboard'!$E$59,B104<'Top dashboard'!$E$60)),"Punta","Base") -> Base | F104: =IF(AND(B104>='Top dashboard'!$E$57,B104<'Top dashboard'!$E$58),"Punta",IF(AND(B104>='Top dashboard'!$E$62,B104<'Top dashboard'!$E$63),"Intermedio","Base")) -> Intermedio | G104: 412.063 | H104: =IF(D104="Punta",$P$59*(1+'Top dashboard'!$E$54/2),$P$59*(1-'Top dashboard'!$E$54/2)) -> 309.04725 | I104: =IF(E104="Punta",$P$59*(1+'Top dashboard'!$E$54/2),$P$59*(1-'Top dashboard'!$E$54/2)) -> 309.04725 | J104: =IF(F104="Punta",$P$59*(1+'Top dashboard'!$E$54/2),IF(F104="Base",$P$59*(1-'Top dashboard'!$E$54/2),$P$59)) -> 412.063 | K104: =_xlfn.IFS('Top dashboard'!$E$52="Monomia",Precioseleccionado[[#This Row],[Monomia]],'Top dashboard'!$E$53="Doble Tipo 1",Precioseleccionado[[#This Row],[Doble tipo 1]],'Top dashboard'!$E$53="Doble Tipo 2",Precioseleccionado[[#This Row],[Doble tipo 2]],'Top dashboard'!$E$53="Triple",Precioseleccionado[[#This Row],[Triple]]) -> Base | L104: =_xlfn.IFS('Top dashboard'!$E$52="Monomia",Precioseleccionado[[#This Row],[Precio Tarifa Monomia]],'Top dashboard'!$E$53="Doble Tipo 1",Precioseleccionado[[#This Row],[Precio Doble Tipo 1]],'Top dashboard'!$E$53="Doble Tipo 2",Precioseleccionado[[#This Row],[Precio Doble Tipo 2]],'Top dashboard'!$E$53="Triple",Precioseleccionado[[#This Row],[Precio Triple]]) -> 309.04725 | M104: =IF('Solar FV'!$E$18<100,Precioseleccionado[[#This Row],[Precio Tarifa Monomia]]-$C$150,$C$149) -> 339.346 | N104: =IF('Solar FV'!$E$18<100,IF(D104="Punta",Precioseleccionado[[#This Row],[Precio Doble Tipo 1]]-'1 Linea Base'!$C$150*(1+'Top dashboard'!$E$54/2),Precioseleccionado[[#This Row],[Precio Doble Tipo 1]]-'1 Linea Base'!$C$150*(1-'Top dashboard'!$E$54/2)),IF(D104="Punta",$C$149*(1+'Top dashboard'!$E$54/2),$C$149*(1-'Top dashboard'!$E$54/2))) -> 254.5095 | O104: =IF('Solar FV'!$E$18<100,IF(E104="Punta",Precioseleccionado[[#This Row],[Precio Doble Tipo 2]]-'1 Linea Base'!$C$150*(1+'Top dashboard'!$E$54/2),Precioseleccionado[[#This Row],[Precio Doble Tipo 2]]-'1 Linea Base'!$C$150*(1-'Top dashboard'!$E$54/2)),IF(E104="Punta",$C$149*(1+'Top dashboard'!$E$54/2),$C$149*(1-'Top dashboard'!$E$54/2))) -> 254.5095 | P104: =IF('Solar FV'!$E$18<100,IF(F104="Punta",Precioseleccionado[[#This Row],[Precio Triple]]-'1 Linea Base'!$C$150*(1+'Top dashboard'!$E$54/2),Precioseleccionado[[#This Row],[Precio Triple]]-'1 Linea Base'!$C$150*(1-'Top dashboard'!$E$54/2)),IF(F104="Punta",$C$149*(1+'Top dashboard'!$E$54/2),IF(F104="Base",$C$149*(1-'Top dashboard'!$E$54/2),$C$149))) -> 357.52525 | Q104: =_xlfn.IFS('Top dashboard'!$E$52="Monomia",Precioseleccionado[[#This Row],[Precio Exp Monomia]],'Top dashboard'!$E$53="Doble Tipo 1",Precioseleccionado[[#This Row],[Precio Exp DT1]],'Top dashboard'!$E$53="Doble Tipo 2",Precioseleccionado[[#This Row],[Precio Exp´DT2]],'Top dashboard'!$E$53="Triple",Precioseleccionado[[#This Row],[Precio Exp 3]]) -> 254.5095
B105: 03:00:00 | C105: Monomia | D105: =IF(AND(B105>='Top dashboard'!$E$57,B105<'Top dashboard'!$E$58),"Punta","Base") -> Base | E105: =IF(OR(AND(B105>='Top dashboard'!$E$57,B105<'Top dashboard'!$E$58),AND(B105>='Top dashboard'!$E$59,B105<'Top dashboard'!$E$60)),"Punta","Base") -> Base | F105: =IF(AND(B105>='Top dashboard'!$E$57,B105<'Top dashboard'!$E$58),"Punta",IF(AND(B105>='Top dashboard'!$E$62,B105<'Top dashboard'!$E$63),"Intermedio","Base")) -> Base | G105: 412.063 | H105: =IF(D105="Punta",$P$59*(1+'Top dashboard'!$E$54/2),$P$59*(1-'Top dashboard'!$E$54/2)) -> 309.04725 | I105: =IF(E105="Punta",$P$59*(1+'Top dashboard'!$E$54/2),$P$59*(1-'Top dashboard'!$E$54/2)) -> 309.04725 | J105: =IF(F105="Punta",$P$59*(1+'Top dashboard'!$E$54/2),IF(F105="Base",$P$59*(1-'Top dashboard'!$E$54/2),$P$59)) -> 309.04725 | K105: =_xlfn.IFS('Top dashboard'!$E$52="Monomia",Precioseleccionado[[#This Row],[Monomia]],'Top dashboard'!$E$53="Doble Tipo 1",Precioseleccionado[[#This Row],[Doble tipo 1]],'Top dashboard'!$E$53="Doble Tipo 2",Precioseleccionado[[#This Row],[Doble tipo 2]],'Top dashboard'!$E$53="Triple",Precioseleccionado[[#This Row],[Triple]]) -> Base | L105: =_xlfn.IFS('Top dashboard'!$E$52="Monomia",Precioseleccionado[[#This Row],[Precio Tarifa Monomia]],'Top dashboard'!$E$53="Doble Tipo 1",Precioseleccionado[[#This Row],[Precio Doble Tipo 1]],'Top dashboard'!$E$53="Doble Tipo 2",Precioseleccionado[[#This Row],[Precio Doble Tipo 2]],'Top dashboard'!$E$53="Triple",Precioseleccionado[[#This Row],[Precio Triple]]) -> 309.04725 | M105: =IF('Solar FV'!$E$18<100,Precioseleccionado[[#This Row],[Precio Tarifa Monomia]]-$C$150,$C$149) -> 339.346 | N105: =IF('Solar FV'!$E$18<100,IF(D105="Punta",Precioseleccionado[[#This Row],[Precio Doble Tipo 1]]-'1 Linea Base'!$C$150*(1+'Top dashboard'!$E$54/2),Precioseleccionado[[#This Row],[Precio Doble Tipo 1]]-'1 Linea Base'!$C$150*(1-'Top dashboard'!$E$54/2)),IF(D105="Punta",$C$149*(1+'Top dashboard'!$E$54/2),$C$149*(1-'Top dashboard'!$E$54/2))) -> 254.5095 | O105: =IF('Solar FV'!$E$18<100,IF(E105="Punta",Precioseleccionado[[#This Row],[Precio Doble Tipo 2]]-'1 Linea Base'!$C$150*(1+'Top dashboard'!$E$54/2),Precioseleccionado[[#This Row],[Precio Doble Tipo 2]]-'1 Linea Base'!$C$150*(1-'Top dashboard'!$E$54/2)),IF(E105="Punta",$C$149*(1+'Top dashboard'!$E$54/2),$C$149*(1-'Top dashboard'!$E$54/2))) -> 254.5095 | P105: =IF('Solar FV'!$E$18<100,IF(F105="Punta",Precioseleccionado[[#This Row],[Precio Triple]]-'1 Linea Base'!$C$150*(1+'Top dashboard'!$E$54/2),Precioseleccionado[[#This Row],[Precio Triple]]-'1 Linea Base'!$C$150*(1-'Top dashboard'!$E$54/2)),IF(F105="Punta",$C$149*(1+'Top dashboard'!$E$54/2),IF(F105="Base",$C$149*(1-'Top dashboard'!$E$54/2),$C$149))) -> 254.5095 | Q105: =_xlfn.IFS('Top dashboard'!$E$52="Monomia",Precioseleccionado[[#This Row],[Precio Exp Monomia]],'Top dashboard'!$E$53="Doble Tipo 1",Precioseleccionado[[#This Row],[Precio Exp DT1]],'Top dashboard'!$E$53="Doble Tipo 2",Precioseleccionado[[#This Row],[Precio Exp´DT2]],'Top dashboard'!$E$53="Triple",Precioseleccionado[[#This Row],[Precio Exp 3]]) -> 254.5095
B106: 04:00:00 | C106: Monomia | D106: =IF(AND(B106>='Top dashboard'!$E$57,B106<'Top dashboard'!$E$58),"Punta","Base") -> Base | E106: =IF(OR(AND(B106>='Top dashboard'!$E$57,B106<'Top dashboard'!$E$58),AND(B106>='Top dashboard'!$E$59,B106<'Top dashboard'!$E$60)),"Punta","Base") -> Base | F106: =IF(AND(B106>='Top dashboard'!$E$57,B106<'Top dashboard'!$E$58),"Punta",IF(AND(B106>='Top dashboard'!$E$62,B106<'Top dashboard'!$E$63),"Intermedio","Base")) -> Base | G106: 412.063 | H106: =IF(D106="Punta",$P$59*(1+'Top dashboard'!$E$54/2),$P$59*(1-'Top dashboard'!$E$54/2)) -> 309.04725 | I106: =IF(E106="Punta",$P$59*(1+'Top dashboard'!$E$54/2),$P$59*(1-'Top dashboard'!$E$54/2)) -> 309.04725 | J106: =IF(F106="Punta",$P$59*(1+'Top dashboard'!$E$54/2),IF(F106="Base",$P$59*(1-'Top dashboard'!$E$54/2),$P$59)) -> 309.04725 | K106: =_xlfn.IFS('Top dashboard'!$E$52="Monomia",Precioseleccionado[[#This Row],[Monomia]],'Top dashboard'!$E$53="Doble Tipo 1",Precioseleccionado[[#This Row],[Doble tipo 1]],'Top dashboard'!$E$53="Doble Tipo 2",Precioseleccionado[[#This Row],[Doble tipo 2]],'Top dashboard'!$E$53="Triple",Precioseleccionado[[#This Row],[Triple]]) -> Base | L106: =_xlfn.IFS('Top dashboard'!$E$52="Monomia",Precioseleccionado[[#This Row],[Precio Tarifa Monomia]],'Top dashboard'!$E$53="Doble Tipo 1",Precioseleccionado[[#This Row],[Precio Doble Tipo 1]],'Top dashboard'!$E$53="Doble Tipo 2",Precioseleccionado[[#This Row],[Precio Doble Tipo 2]],'Top dashboard'!$E$53="Triple",Precioseleccionado[[#This Row],[Precio Triple]]) -> 309.04725 | M106: =IF('Solar FV'!$E$18<100,Precioseleccionado[[#This Row],[Precio Tarifa Monomia]]-$C$150,$C$149) -> 339.346 | N106: =IF('Solar FV'!$E$18<100,IF(D106="Punta",Precioseleccionado[[#This Row],[Precio Doble Tipo 1]]-'1 Linea Base'!$C$150*(1+'Top dashboard'!$E$54/2),Precioseleccionado[[#This Row],[Precio Doble Tipo 1]]-'1 Linea Base'!$C$150*(1-'Top dashboard'!$E$54/2)),IF(D106="Punta",$C$149*(1+'Top dashboard'!$E$54/2),$C$149*(1-'Top dashboard'!$E$54/2))) -> 254.5095 | O106: =IF('Solar FV'!$E$18<100,IF(E106="Punta",Precioseleccionado[[#This Row],[Precio Doble Tipo 2]]-'1 Linea Base'!$C$150*(1+'Top dashboard'!$E$54/2),Precioseleccionado[[#This Row],[Precio Doble Tipo 2]]-'1 Linea Base'!$C$150*(1-'Top dashboard'!$E$54/2)),IF(E106="Punta",$C$149*(1+'Top dashboard'!$E$54/2),$C$149*(1-'Top dashboard'!$E$54/2))) -> 254.5095 | P106: =IF('Solar FV'!$E$18<100,IF(F106="Punta",Precioseleccionado[[#This Row],[Precio Triple]]-'1 Linea Base'!$C$150*(1+'Top dashboard'!$E$54/2),Precioseleccionado[[#This Row],[Precio Triple]]-'1 Linea Base'!$C$150*(1-'Top dashboard'!$E$54/2)),IF(F106="Punta",$C$149*(1+'Top dashboard'!$E$54/2),IF(F106="Base",$C$149*(1-'Top dashboard'!$E$54/2),$C$149))) -> 254.5095 | Q106: =_xlfn.IFS('Top dashboard'!$E$52="Monomia",Precioseleccionado[[#This Row],[Precio Exp Monomia]],'Top dashboard'!$E$53="Doble Tipo 1",Precioseleccionado[[#This Row],[Precio Exp DT1]],'Top dashboard'!$E$53="Doble Tipo 2",Precioseleccionado[[#This Row],[Precio Exp´DT2]],'Top dashboard'!$E$53="Triple",Precioseleccionado[[#This Row],[Precio Exp 3]]) -> 254.5095
B107: 05:00:00 | C107: Monomia | D107: =IF(AND(B107>='Top dashboard'!$E$57,B107<'Top dashboard'!$E$58),"Punta","Base") -> Base | E107: =IF(OR(AND(B107>='Top dashboard'!$E$57,B107<'Top dashboard'!$E$58),AND(B107>='Top dashboard'!$E$59,B107<'Top dashboard'!$E$60)),"Punta","Base") -> Base | F107: =IF(AND(B107>='Top dashboard'!$E$57,B107<'Top dashboard'!$E$58),"Punta",IF(AND(B107>='Top dashboard'!$E$62,B107<'Top dashboard'!$E$63),"Intermedio","Base")) -> Base | G107: 412.063 | H107: =IF(D107="Punta",$P$59*(1+'Top dashboard'!$E$54/2),$P$59*(1-'Top dashboard'!$E$54/2)) -> 309.04725 | I107: =IF(E107="Punta",$P$59*(1+'Top dashboard'!$E$54/2),$P$59*(1-'Top dashboard'!$E$54/2)) -> 309.04725 | J107: =IF(F107="Punta",$P$59*(1+'Top dashboard'!$E$54/2),IF(F107="Base",$P$59*(1-'Top dashboard'!$E$54/2),$P$59)) -> 309.04725 | K107: =_xlfn.IFS('Top dashboard'!$E$52="Monomia",Precioseleccionado[[#This Row],[Monomia]],'Top dashboard'!$E$53="Doble Tipo 1",Precioseleccionado[[#This Row],[Doble tipo 1]],'Top dashboard'!$E$53="Doble Tipo 2",Precioseleccionado[[#This Row],[Doble tipo 2]],'Top dashboard'!$E$53="Triple",Precioseleccionado[[#This Row],[Triple]]) -> Base | L107: =_xlfn.IFS('Top dashboard'!$E$52="Monomia",Precioseleccionado[[#This Row],[Precio Tarifa Monomia]],'Top dashboard'!$E$53="Doble Tipo 1",Precioseleccionado[[#This Row],[Precio Doble Tipo 1]],'Top dashboard'!$E$53="Doble Tipo 2",Precioseleccionado[[#This Row],[Precio Doble Tipo 2]],'Top dashboard'!$E$53="Triple",Precioseleccionado[[#This Row],[Precio Triple]]) -> 309.04725 | M107: =IF('Solar FV'!$E$18<100,Precioseleccionado[[#This Row],[Precio Tarifa Monomia]]-$C$150,$C$149) -> 339.346 | N107: =IF('Solar FV'!$E$18<100,IF(D107="Punta",Precioseleccionado[[#This Row],[Precio Doble Tipo 1]]-'1 Linea Base'!$C$150*(1+'Top dashboard'!$E$54/2),Precioseleccionado[[#This Row],[Precio Doble Tipo 1]]-'1 Linea Base'!$C$150*(1-'Top dashboard'!$E$54/2)),IF(D107="Punta",$C$149*(1+'Top dashboard'!$E$54/2),$C$149*(1-'Top dashboard'!$E$54/2))) -> 254.5095 | O107: =IF('Solar FV'!$E$18<100,IF(E107="Punta",Precioseleccionado[[#This Row],[Precio Doble Tipo 2]]-'1 Linea Base'!$C$150*(1+'Top dashboard'!$E$54/2),Precioseleccionado[[#This Row],[Precio Doble Tipo 2]]-'1 Linea Base'!$C$150*(1-'Top dashboard'!$E$54/2)),IF(E107="Punta",$C$149*(1+'Top dashboard'!$E$54/2),$C$149*(1-'Top dashboard'!$E$54/2))) -> 254.5095 | P107: =IF('Solar FV'!$E$18<100,IF(F107="Punta",Precioseleccionado[[#This Row],[Precio Triple]]-'1 Linea Base'!$C$150*(1+'Top dashboard'!$E$54/2),Precioseleccionado[[#This Row],[Precio Triple]]-'1 Linea Base'!$C$150*(1-'Top dashboard'!$E$54/2)),IF(F107="Punta",$C$149*(1+'Top dashboard'!$E$54/2),IF(F107="Base",$C$149*(1-'Top dashboard'!$E$54/2),$C$149))) -> 254.5095 | Q107: =_xlfn.IFS('Top dashboard'!$E$52="Monomia",Precioseleccionado[[#This Row],[Precio Exp Monomia]],'Top dashboard'!$E$53="Doble Tipo 1",Precioseleccionado[[#This Row],[Precio Exp DT1]],'Top dashboard'!$E$53="Doble Tipo 2",Precioseleccionado[[#This Row],[Precio Exp´DT2]],'Top dashboard'!$E$53="Triple",Precioseleccionado[[#This Row],[Precio Exp 3]]) -> 254.5095
B108: 06:00:00 | C108: Monomia | D108: =IF(AND(B108>='Top dashboard'!$E$57,B108<'Top dashboard'!$E$58),"Punta","Base") -> Base | E108: =IF(OR(AND(B108>='Top dashboard'!$E$57,B108<'Top dashboard'!$E$58),AND(B108>='Top dashboard'!$E$59,B108<'Top dashboard'!$E$60)),"Punta","Base") -> Base | F108: =IF(AND(B108>='Top dashboard'!$E$57,B108<'Top dashboard'!$E$58),"Punta",IF(AND(B108>='Top dashboard'!$E$62,B108<'Top dashboard'!$E$63),"Intermedio","Base")) -> Base | G108: 412.063 | H108: =IF(D108="Punta",$P$59*(1+'Top dashboard'!$E$54/2),$P$59*(1-'Top dashboard'!$E$54/2)) -> 309.04725 | I108: =IF(E108="Punta",$P$59*(1+'Top dashboard'!$E$54/2),$P$59*(1-'Top dashboard'!$E$54/2)) -> 309.04725 | J108: =IF(F108="Punta",$P$59*(1+'Top dashboard'!$E$54/2),IF(F108="Base",$P$59*(1-'Top dashboard'!$E$54/2),$P$59)) -> 309.04725 | K108: =_xlfn.IFS('Top dashboard'!$E$52="Monomia",Precioseleccionado[[#This Row],[Monomia]],'Top dashboard'!$E$53="Doble Tipo 1",Precioseleccionado[[#This Row],[Doble tipo 1]],'Top dashboard'!$E$53="Doble Tipo 2",Precioseleccionado[[#This Row],[Doble tipo 2]],'Top dashboard'!$E$53="Triple",Precioseleccionado[[#This Row],[Triple]]) -> Base | L108: =_xlfn.IFS('Top dashboard'!$E$52="Monomia",Precioseleccionado[[#This Row],[Precio Tarifa Monomia]],'Top dashboard'!$E$53="Doble Tipo 1",Precioseleccionado[[#This Row],[Precio Doble Tipo 1]],'Top dashboard'!$E$53="Doble Tipo 2",Precioseleccionado[[#This Row],[Precio Doble Tipo 2]],'Top dashboard'!$E$53="Triple",Precioseleccionado[[#This Row],[Precio Triple]]) -> 309.04725 | M108: =IF('Solar FV'!$E$18<100,Precioseleccionado[[#This Row],[Precio Tarifa Monomia]]-$C$150,$C$149) -> 339.346 | N108: =IF('Solar FV'!$E$18<100,IF(D108="Punta",Precioseleccionado[[#This Row],[Precio Doble Tipo 1]]-'1 Linea Base'!$C$150*(1+'Top dashboard'!$E$54/2),Precioseleccionado[[#This Row],[Precio Doble Tipo 1]]-'1 Linea Base'!$C$150*(1-'Top dashboard'!$E$54/2)),IF(D108="Punta",$C$149*(1+'Top dashboard'!$E$54/2),$C$149*(1-'Top dashboard'!$E$54/2))) -> 254.5095 | O108: =IF('Solar FV'!$E$18<100,IF(E108="Punta",Precioseleccionado[[#This Row],[Precio Doble Tipo 2]]-'1 Linea Base'!$C$150*(1+'Top dashboard'!$E$54/2),Precioseleccionado[[#This Row],[Precio Doble Tipo 2]]-'1 Linea Base'!$C$150*(1-'Top dashboard'!$E$54/2)),IF(E108="Punta",$C$149*(1+'Top dashboard'!$E$54/2),$C$149*(1-'Top dashboard'!$E$54/2))) -> 254.5095 | P108: =IF('Solar FV'!$E$18<100,IF(F108="Punta",Precioseleccionado[[#This Row],[Precio Triple]]-'1 Linea Base'!$C$150*(1+'Top dashboard'!$E$54/2),Precioseleccionado[[#This Row],[Precio Triple]]-'1 Linea Base'!$C$150*(1-'Top dashboard'!$E$54/2)),IF(F108="Punta",$C$149*(1+'Top dashboard'!$E$54/2),IF(F108="Base",$C$149*(1-'Top dashboard'!$E$54/2),$C$149))) -> 254.5095 | Q108: =_xlfn.IFS('Top dashboard'!$E$52="Monomia",Precioseleccionado[[#This Row],[Precio Exp Monomia]],'Top dashboard'!$E$53="Doble Tipo 1",Precioseleccionado[[#This Row],[Precio Exp DT1]],'Top dashboard'!$E$53="Doble Tipo 2",Precioseleccionado[[#This Row],[Precio Exp´DT2]],'Top dashboard'!$E$53="Triple",Precioseleccionado[[#This Row],[Precio Exp 3]]) -> 254.5095
B109: 07:00:00 | C109: Monomia | D109: =IF(AND(B109>='Top dashboard'!$E$57,B109<'Top dashboard'!$E$58),"Punta","Base") -> Base | E109: =IF(OR(AND(B109>='Top dashboard'!$E$57,B109<'Top dashboard'!$E$58),AND(B109>='Top dashboard'!$E$59,B109<'Top dashboard'!$E$60)),"Punta","Base") -> Base | F109: =IF(AND(B109>='Top dashboard'!$E$57,B109<'Top dashboard'!$E$58),"Punta",IF(AND(B109>='Top dashboard'!$E$62,B109<'Top dashboard'!$E$63),"Intermedio","Base")) -> Base | G109: 412.063 | H109: =IF(D109="Punta",$P$59*(1+'Top dashboard'!$E$54/2),$P$59*(1-'Top dashboard'!$E$54/2)) -> 309.04725 | I109: =IF(E109="Punta",$P$59*(1+'Top dashboard'!$E$54/2),$P$59*(1-'Top dashboard'!$E$54/2)) -> 309.04725 | J109: =IF(F109="Punta",$P$59*(1+'Top dashboard'!$E$54/2),IF(F109="Base",$P$59*(1-'Top dashboard'!$E$54/2),$P$59)) -> 309.04725 | K109: =_xlfn.IFS('Top dashboard'!$E$52="Monomia",Precioseleccionado[[#This Row],[Monomia]],'Top dashboard'!$E$53="Doble Tipo 1",Precioseleccionado[[#This Row],[Doble tipo 1]],'Top dashboard'!$E$53="Doble Tipo 2",Precioseleccionado[[#This Row],[Doble tipo 2]],'Top dashboard'!$E$53="Triple",Precioseleccionado[[#This Row],[Triple]]) -> Base | L109: =_xlfn.IFS('Top dashboard'!$E$52="Monomia",Precioseleccionado[[#This Row],[Precio Tarifa Monomia]],'Top dashboard'!$E$53="Doble Tipo 1",Precioseleccionado[[#This Row],[Precio Doble Tipo 1]],'Top dashboard'!$E$53="Doble Tipo 2",Precioseleccionado[[#This Row],[Precio Doble Tipo 2]],'Top dashboard'!$E$53="Triple",Precioseleccionado[[#This Row],[Precio Triple]]) -> 309.04725 | M109: =IF('Solar FV'!$E$18<100,Precioseleccionado[[#This Row],[Precio Tarifa Monomia]]-$C$150,$C$149) -> 339.346 | N109: =IF('Solar FV'!$E$18<100,IF(D109="Punta",Precioseleccionado[[#This Row],[Precio Doble Tipo 1]]-'1 Linea Base'!$C$150*(1+'Top dashboard'!$E$54/2),Precioseleccionado[[#This Row],[Precio Doble Tipo 1]]-'1 Linea Base'!$C$150*(1-'Top dashboard'!$E$54/2)),IF(D109="Punta",$C$149*(1+'Top dashboard'!$E$54/2),$C$149*(1-'Top dashboard'!$E$54/2))) -> 254.5095 | O109: =IF('Solar FV'!$E$18<100,IF(E109="Punta",Precioseleccionado[[#This Row],[Precio Doble Tipo 2]]-'1 Linea Base'!$C$150*(1+'Top dashboard'!$E$54/2),Precioseleccionado[[#This Row],[Precio Doble Tipo 2]]-'1 Linea Base'!$C$150*(1-'Top dashboard'!$E$54/2)),IF(E109="Punta",$C$149*(1+'Top dashboard'!$E$54/2),$C$149*(1-'Top dashboard'!$E$54/2))) -> 254.5095 | P109: =IF('Solar FV'!$E$18<100,IF(F109="Punta",Precioseleccionado[[#This Row],[Precio Triple]]-'1 Linea Base'!$C$150*(1+'Top dashboard'!$E$54/2),Precioseleccionado[[#This Row],[Precio Triple]]-'1 Linea Base'!$C$150*(1-'Top dashboard'!$E$54/2)),IF(F109="Punta",$C$149*(1+'Top dashboard'!$E$54/2),IF(F109="Base",$C$149*(1-'Top dashboard'!$E$54/2),$C$149))) -> 254.5095 | Q109: =_xlfn.IFS('Top dashboard'!$E$52="Monomia",Precioseleccionado[[#This Row],[Precio Exp Monomia]],'Top dashboard'!$E$53="Doble Tipo 1",Precioseleccionado[[#This Row],[Precio Exp DT1]],'Top dashboard'!$E$53="Doble Tipo 2",Precioseleccionado[[#This Row],[Precio Exp´DT2]],'Top dashboard'!$E$53="Triple",Precioseleccionado[[#This Row],[Precio Exp 3]]) -> 254.5095
B110: 08:00:00 | C110: Monomia | D110: =IF(AND(B110>='Top dashboard'!$E$57,B110<'Top dashboard'!$E$58),"Punta","Base") -> Base | E110: =IF(OR(AND(B110>='Top dashboard'!$E$57,B110<'Top dashboard'!$E$58),AND(B110>='Top dashboard'!$E$59,B110<'Top dashboard'!$E$60)),"Punta","Base") -> Base | F110: =IF(AND(B110>='Top dashboard'!$E$57,B110<'Top dashboard'!$E$58),"Punta",IF(AND(B110>='Top dashboard'!$E$62,B110<'Top dashboard'!$E$63),"Intermedio","Base")) -> Base | G110: 412.063 | H110: =IF(D110="Punta",$P$59*(1+'Top dashboard'!$E$54/2),$P$59*(1-'Top dashboard'!$E$54/2)) -> 309.04725 | I110: =IF(E110="Punta",$P$59*(1+'Top dashboard'!$E$54/2),$P$59*(1-'Top dashboard'!$E$54/2)) -> 309.04725 | J110: =IF(F110="Punta",$P$59*(1+'Top dashboard'!$E$54/2),IF(F110="Base",$P$59*(1-'Top dashboard'!$E$54/2),$P$59)) -> 309.04725 | K110: =_xlfn.IFS('Top dashboard'!$E$52="Monomia",Precioseleccionado[[#This Row],[Monomia]],'Top dashboard'!$E$53="Doble Tipo 1",Precioseleccionado[[#This Row],[Doble tipo 1]],'Top dashboard'!$E$53="Doble Tipo 2",Precioseleccionado[[#This Row],[Doble tipo 2]],'Top dashboard'!$E$53="Triple",Precioseleccionado[[#This Row],[Triple]]) -> Base | L110: =_xlfn.IFS('Top dashboard'!$E$52="Monomia",Precioseleccionado[[#This Row],[Precio Tarifa Monomia]],'Top dashboard'!$E$53="Doble Tipo 1",Precioseleccionado[[#This Row],[Precio Doble Tipo 1]],'Top dashboard'!$E$53="Doble Tipo 2",Precioseleccionado[[#This Row],[Precio Doble Tipo 2]],'Top dashboard'!$E$53="Triple",Precioseleccionado[[#This Row],[Precio Triple]]) -> 309.04725 | M110: =IF('Solar FV'!$E$18<100,Precioseleccionado[[#This Row],[Precio Tarifa Monomia]]-$C$150,$C$149) -> 339.346 | N110: =IF('Solar FV'!$E$18<100,IF(D110="Punta",Precioseleccionado[[#This Row],[Precio Doble Tipo 1]]-'1 Linea Base'!$C$150*(1+'Top dashboard'!$E$54/2),Precioseleccionado[[#This Row],[Precio Doble Tipo 1]]-'1 Linea Base'!$C$150*(1-'Top dashboard'!$E$54/2)),IF(D110="Punta",$C$149*(1+'Top dashboard'!$E$54/2),$C$149*(1-'Top dashboard'!$E$54/2))) -> 254.5095 | O110: =IF('Solar FV'!$E$18<100,IF(E110="Punta",Precioseleccionado[[#This Row],[Precio Doble Tipo 2]]-'1 Linea Base'!$C$150*(1+'Top dashboard'!$E$54/2),Precioseleccionado[[#This Row],[Precio Doble Tipo 2]]-'1 Linea Base'!$C$150*(1-'Top dashboard'!$E$54/2)),IF(E110="Punta",$C$149*(1+'Top dashboard'!$E$54/2),$C$149*(1-'Top dashboard'!$E$54/2))) -> 254.5095 | P110: =IF('Solar FV'!$E$18<100,IF(F110="Punta",Precioseleccionado[[#This Row],[Precio Triple]]-'1 Linea Base'!$C$150*(1+'Top dashboard'!$E$54/2),Precioseleccionado[[#This Row],[Precio Triple]]-'1 Linea Base'!$C$150*(1-'Top dashboard'!$E$54/2)),IF(F110="Punta",$C$149*(1+'Top dashboard'!$E$54/2),IF(F110="Base",$C$149*(1-'Top dashboard'!$E$54/2),$C$149))) -> 254.5095 | Q110: =_xlfn.IFS('Top dashboard'!$E$52="Monomia",Precioseleccionado[[#This Row],[Precio Exp Monomia]],'Top dashboard'!$E$53="Doble Tipo 1",Precioseleccionado[[#This Row],[Precio Exp DT1]],'Top dashboard'!$E$53="Doble Tipo 2",Precioseleccionado[[#This Row],[Precio Exp´DT2]],'Top dashboard'!$E$53="Triple",Precioseleccionado[[#This Row],[Precio Exp 3]]) -> 254.5095
B111: 09:00:00 | C111: Monomia | D111: =IF(AND(B111>='Top dashboard'!$E$57,B111<'Top dashboard'!$E$58),"Punta","Base") -> Base | E111: =IF(OR(AND(B111>='Top dashboard'!$E$57,B111<'Top dashboard'!$E$58),AND(B111>='Top dashboard'!$E$59,B111<'Top dashboard'!$E$60)),"Punta","Base") -> Base | F111: =IF(AND(B111>='Top dashboard'!$E$57,B111<'Top dashboard'!$E$58),"Punta",IF(AND(B111>='Top dashboard'!$E$62,B111<'Top dashboard'!$E$63),"Intermedio","Base")) -> Base | G111: 412.063 | H111: =IF(D111="Punta",$P$59*(1+'Top dashboard'!$E$54/2),$P$59*(1-'Top dashboard'!$E$54/2)) -> 309.04725 | I111: =IF(E111="Punta",$P$59*(1+'Top dashboard'!$E$54/2),$P$59*(1-'Top dashboard'!$E$54/2)) -> 309.04725 | J111: =IF(F111="Punta",$P$59*(1+'Top dashboard'!$E$54/2),IF(F111="Base",$P$59*(1-'Top dashboard'!$E$54/2),$P$59)) -> 309.04725 | K111: =_xlfn.IFS('Top dashboard'!$E$52="Monomia",Precioseleccionado[[#This Row],[Monomia]],'Top dashboard'!$E$53="Doble Tipo 1",Precioseleccionado[[#This Row],[Doble tipo 1]],'Top dashboard'!$E$53="Doble Tipo 2",Precioseleccionado[[#This Row],[Doble tipo 2]],'Top dashboard'!$E$53="Triple",Precioseleccionado[[#This Row],[Triple]]) -> Base | L111: =_xlfn.IFS('Top dashboard'!$E$52="Monomia",Precioseleccionado[[#This Row],[Precio Tarifa Monomia]],'Top dashboard'!$E$53="Doble Tipo 1",Precioseleccionado[[#This Row],[Precio Doble Tipo 1]],'Top dashboard'!$E$53="Doble Tipo 2",Precioseleccionado[[#This Row],[Precio Doble Tipo 2]],'Top dashboard'!$E$53="Triple",Precioseleccionado[[#This Row],[Precio Triple]]) -> 309.04725 | M111: =IF('Solar FV'!$E$18<100,Precioseleccionado[[#This Row],[Precio Tarifa Monomia]]-$C$150,$C$149) -> 339.346 | N111: =IF('Solar FV'!$E$18<100,IF(D111="Punta",Precioseleccionado[[#This Row],[Precio Doble Tipo 1]]-'1 Linea Base'!$C$150*(1+'Top dashboard'!$E$54/2),Precioseleccionado[[#This Row],[Precio Doble Tipo 1]]-'1 Linea Base'!$C$150*(1-'Top dashboard'!$E$54/2)),IF(D111="Punta",$C$149*(1+'Top dashboard'!$E$54/2),$C$149*(1-'Top dashboard'!$E$54/2))) -> 254.5095 | O111: =IF('Solar FV'!$E$18<100,IF(E111="Punta",Precioseleccionado[[#This Row],[Precio Doble Tipo 2]]-'1 Linea Base'!$C$150*(1+'Top dashboard'!$E$54/2),Precioseleccionado[[#This Row],[Precio Doble Tipo 2]]-'1 Linea Base'!$C$150*(1-'Top dashboard'!$E$54/2)),IF(E111="Punta",$C$149*(1+'Top dashboard'!$E$54/2),$C$149*(1-'Top dashboard'!$E$54/2))) -> 254.5095 | P111: =IF('Solar FV'!$E$18<100,IF(F111="Punta",Precioseleccionado[[#This Row],[Precio Triple]]-'1 Linea Base'!$C$150*(1+'Top dashboard'!$E$54/2),Precioseleccionado[[#This Row],[Precio Triple]]-'1 Linea Base'!$C$150*(1-'Top dashboard'!$E$54/2)),IF(F111="Punta",$C$149*(1+'Top dashboard'!$E$54/2),IF(F111="Base",$C$149*(1-'Top dashboard'!$E$54/2),$C$149))) -> 254.5095 | Q111: =_xlfn.IFS('Top dashboard'!$E$52="Monomia",Precioseleccionado[[#This Row],[Precio Exp Monomia]],'Top dashboard'!$E$53="Doble Tipo 1",Precioseleccionado[[#This Row],[Precio Exp DT1]],'Top dashboard'!$E$53="Doble Tipo 2",Precioseleccionado[[#This Row],[Precio Exp´DT2]],'Top dashboard'!$E$53="Triple",Precioseleccionado[[#This Row],[Precio Exp 3]]) -> 254.5095
B112: 10:00:00 | C112: Monomia | D112: =IF(AND(B112>='Top dashboard'!$E$57,B112<'Top dashboard'!$E$58),"Punta","Base") -> Punta | E112: =IF(OR(AND(B112>='Top dashboard'!$E$57,B112<'Top dashboard'!$E$58),AND(B112>='Top dashboard'!$E$59,B112<'Top dashboard'!$E$60)),"Punta","Base") -> Punta | F112: =IF(AND(B112>='Top dashboard'!$E$57,B112<'Top dashboard'!$E$58),"Punta",IF(AND(B112>='Top dashboard'!$E$62,B112<'Top dashboard'!$E$63),"Intermedio","Base")) -> Punta | G112: 412.063 | H112: =IF(D112="Punta",$P$59*(1+'Top dashboard'!$E$54/2),$P$59*(1-'Top dashboard'!$E$54/2)) -> 515.07875 | I112: =IF(E112="Punta",$P$59*(1+'Top dashboard'!$E$54/2),$P$59*(1-'Top dashboard'!$E$54/2)) -> 515.07875 | J112: =IF(F112="Punta",$P$59*(1+'Top dashboard'!$E$54/2),IF(F112="Base",$P$59*(1-'Top dashboard'!$E$54/2),$P$59)) -> 515.07875 | K112: =_xlfn.IFS('Top dashboard'!$E$52="Monomia",Precioseleccionado[[#This Row],[Monomia]],'Top dashboard'!$E$53="Doble Tipo 1",Precioseleccionado[[#This Row],[Doble tipo 1]],'Top dashboard'!$E$53="Doble Tipo 2",Precioseleccionado[[#This Row],[Doble tipo 2]],'Top dashboard'!$E$53="Triple",Precioseleccionado[[#This Row],[Triple]]) -> Punta | L112: =_xlfn.IFS('Top dashboard'!$E$52="Monomia",Precioseleccionado[[#This Row],[Precio Tarifa Monomia]],'Top dashboard'!$E$53="Doble Tipo 1",Precioseleccionado[[#This Row],[Precio Doble Tipo 1]],'Top dashboard'!$E$53="Doble Tipo 2",Precioseleccionado[[#This Row],[Precio Doble Tipo 2]],'Top dashboard'!$E$53="Triple",Precioseleccionado[[#This Row],[Precio Triple]]) -> 515.07875 | M112: =IF('Solar FV'!$E$18<100,Precioseleccionado[[#This Row],[Precio Tarifa Monomia]]-$C$150,$C$149) -> 339.346 | N112: =IF('Solar FV'!$E$18<100,IF(D112="Punta",Precioseleccionado[[#This Row],[Precio Doble Tipo 1]]-'1 Linea Base'!$C$150*(1+'Top dashboard'!$E$54/2),Precioseleccionado[[#This Row],[Precio Doble Tipo 1]]-'1 Linea Base'!$C$150*(1-'Top dashboard'!$E$54/2)),IF(D112="Punta",$C$149*(1+'Top dashboard'!$E$54/2),$C$149*(1-'Top dashboard'!$E$54/2))) -> 424.1825 | O112: =IF('Solar FV'!$E$18<100,IF(E112="Punta",Precioseleccionado[[#This Row],[Precio Doble Tipo 2]]-'1 Linea Base'!$C$150*(1+'Top dashboard'!$E$54/2),Precioseleccionado[[#This Row],[Precio Doble Tipo 2]]-'1 Linea Base'!$C$150*(1-'Top dashboard'!$E$54/2)),IF(E112="Punta",$C$149*(1+'Top dashboard'!$E$54/2),$C$149*(1-'Top dashboard'!$E$54/2))) -> 424.1825 | P112: =IF('Solar FV'!$E$18<100,IF(F112="Punta",Precioseleccionado[[#This Row],[Precio Triple]]-'1 Linea Base'!$C$150*(1+'Top dashboard'!$E$54/2),Precioseleccionado[[#This Row],[Precio Triple]]-'1 Linea Base'!$C$150*(1-'Top dashboard'!$E$54/2)),IF(F112="Punta",$C$149*(1+'Top dashboard'!$E$54/2),IF(F112="Base",$C$149*(1-'Top dashboard'!$E$54/2),$C$149))) -> 424.1825 | Q112: =_xlfn.IFS('Top dashboard'!$E$52="Monomia",Precioseleccionado[[#This Row],[Precio Exp Monomia]],'Top dashboard'!$E$53="Doble Tipo 1",Precioseleccionado[[#This Row],[Precio Exp DT1]],'Top dashboard'!$E$53="Doble Tipo 2",Precioseleccionado[[#This Row],[Precio Exp´DT2]],'Top dashboard'!$E$53="Triple",Precioseleccionado[[#This Row],[Precio Exp 3]]) -> 424.1825
B113: 11:00:00 | C113: Monomia | D113: =IF(AND(B113>='Top dashboard'!$E$57,B113<'Top dashboard'!$E$58),"Punta","Base") -> Punta | E113: =IF(OR(AND(B113>='Top dashboard'!$E$57,B113<'Top dashboard'!$E$58),AND(B113>='Top dashboard'!$E$59,B113<'Top dashboard'!$E$60)),"Punta","Base") -> Punta | F113: =IF(AND(B113>='Top dashboard'!$E$57,B113<'Top dashboard'!$E$58),"Punta",IF(AND(B113>='Top dashboard'!$E$62,B113<'Top dashboard'!$E$63),"Intermedio","Base")) -> Punta | G113: 412.063 | H113: =IF(D113="Punta",$P$59*(1+'Top dashboard'!$E$54/2),$P$59*(1-'Top dashboard'!$E$54/2)) -> 515.07875 | I113: =IF(E113="Punta",$P$59*(1+'Top dashboard'!$E$54/2),$P$59*(1-'Top dashboard'!$E$54/2)) -> 515.07875 | J113: =IF(F113="Punta",$P$59*(1+'Top dashboard'!$E$54/2),IF(F113="Base",$P$59*(1-'Top dashboard'!$E$54/2),$P$59)) -> 515.07875 | K113: =_xlfn.IFS('Top dashboard'!$E$52="Monomia",Precioseleccionado[[#This Row],[Monomia]],'Top dashboard'!$E$53="Doble Tipo 1",Precioseleccionado[[#This Row],[Doble tipo 1]],'Top dashboard'!$E$53="Doble Tipo 2",Precioseleccionado[[#This Row],[Doble tipo 2]],'Top dashboard'!$E$53="Triple",Precioseleccionado[[#This Row],[Triple]]) -> Punta | L113: =_xlfn.IFS('Top dashboard'!$E$52="Monomia",Precioseleccionado[[#This Row],[Precio Tarifa Monomia]],'Top dashboard'!$E$53="Doble Tipo 1",Precioseleccionado[[#This Row],[Precio Doble Tipo 1]],'Top dashboard'!$E$53="Doble Tipo 2",Precioseleccionado[[#This Row],[Precio Doble Tipo 2]],'Top dashboard'!$E$53="Triple",Precioseleccionado[[#This Row],[Precio Triple]]) -> 515.07875 | M113: =IF('Solar FV'!$E$18<100,Precioseleccionado[[#This Row],[Precio Tarifa Monomia]]-$C$150,$C$149) -> 339.346 | N113: =IF('Solar FV'!$E$18<100,IF(D113="Punta",Precioseleccionado[[#This Row],[Precio Doble Tipo 1]]-'1 Linea Base'!$C$150*(1+'Top dashboard'!$E$54/2),Precioseleccionado[[#This Row],[Precio Doble Tipo 1]]-'1 Linea Base'!$C$150*(1-'Top dashboard'!$E$54/2)),IF(D113="Punta",$C$149*(1+'Top dashboard'!$E$54/2),$C$149*(1-'Top dashboard'!$E$54/2))) -> 424.1825 | O113: =IF('Solar FV'!$E$18<100,IF(E113="Punta",Precioseleccionado[[#This Row],[Precio Doble Tipo 2]]-'1 Linea Base'!$C$150*(1+'Top dashboard'!$E$54/2),Precioseleccionado[[#This Row],[Precio Doble Tipo 2]]-'1 Linea Base'!$C$150*(1-'Top dashboard'!$E$54/2)),IF(E113="Punta",$C$149*(1+'Top dashboard'!$E$54/2),$C$149*(1-'Top dashboard'!$E$54/2))) -> 424.1825 | P113: =IF('Solar FV'!$E$18<100,IF(F113="Punta",Precioseleccionado[[#This Row],[Precio Triple]]-'1 Linea Base'!$C$150*(1+'Top dashboard'!$E$54/2),Precioseleccionado[[#This Row],[Precio Triple]]-'1 Linea Base'!$C$150*(1-'Top dashboard'!$E$54/2)),IF(F113="Punta",$C$149*(1+'Top dashboard'!$E$54/2),IF(F113="Base",$C$149*(1-'Top dashboard'!$E$54/2),$C$149))) -> 424.1825 | Q113: =_xlfn.IFS('Top dashboard'!$E$52="Monomia",Precioseleccionado[[#This Row],[Precio Exp Monomia]],'Top dashboard'!$E$53="Doble Tipo 1",Precioseleccionado[[#This Row],[Precio Exp DT1]],'Top dashboard'!$E$53="Doble Tipo 2",Precioseleccionado[[#This Row],[Precio Exp´DT2]],'Top dashboard'!$E$53="Triple",Precioseleccionado[[#This Row],[Precio Exp 3]]) -> 424.1825
B114: 12:00:00 | C114: Monomia | D114: =IF(AND(B114>='Top dashboard'!$E$57,B114<'Top dashboard'!$E$58),"Punta","Base") -> Punta | E114: =IF(OR(AND(B114>='Top dashboard'!$E$57,B114<'Top dashboard'!$E$58),AND(B114>='Top dashboard'!$E$59,B114<'Top dashboard'!$E$60)),"Punta","Base") -> Punta | F114: =IF(AND(B114>='Top dashboard'!$E$57,B114<'Top dashboard'!$E$58),"Punta",IF(AND(B114>='Top dashboard'!$E$62,B114<'Top dashboard'!$E$63),"Intermedio","Base")) -> Punta | G114: 412.063 | H114: =IF(D114="Punta",$P$59*(1+'Top dashboard'!$E$54/2),$P$59*(1-'Top dashboard'!$E$54/2)) -> 515.07875 | I114: =IF(E114="Punta",$P$59*(1+'Top dashboard'!$E$54/2),$P$59*(1-'Top dashboard'!$E$54/2)) -> 515.07875 | J114: =IF(F114="Punta",$P$59*(1+'Top dashboard'!$E$54/2),IF(F114="Base",$P$59*(1-'Top dashboard'!$E$54/2),$P$59)) -> 515.07875 | K114: =_xlfn.IFS('Top dashboard'!$E$52="Monomia",Precioseleccionado[[#This Row],[Monomia]],'Top dashboard'!$E$53="Doble Tipo 1",Precioseleccionado[[#This Row],[Doble tipo 1]],'Top dashboard'!$E$53="Doble Tipo 2",Precioseleccionado[[#This Row],[Doble tipo 2]],'Top dashboard'!$E$53="Triple",Precioseleccionado[[#This Row],[Triple]]) -> Punta | L114: =_xlfn.IFS('Top dashboard'!$E$52="Monomia",Precioseleccionado[[#This Row],[Precio Tarifa Monomia]],'Top dashboard'!$E$53="Doble Tipo 1",Precioseleccionado[[#This Row],[Precio Doble Tipo 1]],'Top dashboard'!$E$53="Doble Tipo 2",Precioseleccionado[[#This Row],[Precio Doble Tipo 2]],'Top dashboard'!$E$53="Triple",Precioseleccionado[[#This Row],[Precio Triple]]) -> 515.07875 | M114: =IF('Solar FV'!$E$18<100,Precioseleccionado[[#This Row],[Precio Tarifa Monomia]]-$C$150,$C$149) -> 339.346 | N114: =IF('Solar FV'!$E$18<100,IF(D114="Punta",Precioseleccionado[[#This Row],[Precio Doble Tipo 1]]-'1 Linea Base'!$C$150*(1+'Top dashboard'!$E$54/2),Precioseleccionado[[#This Row],[Precio Doble Tipo 1]]-'1 Linea Base'!$C$150*(1-'Top dashboard'!$E$54/2)),IF(D114="Punta",$C$149*(1+'Top dashboard'!$E$54/2),$C$149*(1-'Top dashboard'!$E$54/2))) -> 424.1825 | O114: =IF('Solar FV'!$E$18<100,IF(E114="Punta",Precioseleccionado[[#This Row],[Precio Doble Tipo 2]]-'1 Linea Base'!$C$150*(1+'Top dashboard'!$E$54/2),Precioseleccionado[[#This Row],[Precio Doble Tipo 2]]-'1 Linea Base'!$C$150*(1-'Top dashboard'!$E$54/2)),IF(E114="Punta",$C$149*(1+'Top dashboard'!$E$54/2),$C$149*(1-'Top dashboard'!$E$54/2))) -> 424.1825 | P114: =IF('Solar FV'!$E$18<100,IF(F114="Punta",Precioseleccionado[[#This Row],[Precio Triple]]-'1 Linea Base'!$C$150*(1+'Top dashboard'!$E$54/2),Precioseleccionado[[#This Row],[Precio Triple]]-'1 Linea Base'!$C$150*(1-'Top dashboard'!$E$54/2)),IF(F114="Punta",$C$149*(1+'Top dashboard'!$E$54/2),IF(F114="Base",$C$149*(1-'Top dashboard'!$E$54/2),$C$149))) -> 424.1825 | Q114: =_xlfn.IFS('Top dashboard'!$E$52="Monomia",Precioseleccionado[[#This Row],[Precio Exp Monomia]],'Top dashboard'!$E$53="Doble Tipo 1",Precioseleccionado[[#This Row],[Precio Exp DT1]],'Top dashboard'!$E$53="Doble Tipo 2",Precioseleccionado[[#This Row],[Precio Exp´DT2]],'Top dashboard'!$E$53="Triple",Precioseleccionado[[#This Row],[Precio Exp 3]]) -> 424.1825
B115: 13:00:00 | C115: Monomia | D115: =IF(AND(B115>='Top dashboard'!$E$57,B115<'Top dashboard'!$E$58),"Punta","Base") -> Punta | E115: =IF(OR(AND(B115>='Top dashboard'!$E$57,B115<'Top dashboard'!$E$58),AND(B115>='Top dashboard'!$E$59,B115<'Top dashboard'!$E$60)),"Punta","Base") -> Punta | F115: =IF(AND(B115>='Top dashboard'!$E$57,B115<'Top dashboard'!$E$58),"Punta",IF(AND(B115>='Top dashboard'!$E$62,B115<'Top dashboard'!$E$63),"Intermedio","Base")) -> Punta | G115: 412.063 | H115: =IF(D115="Punta",$P$59*(1+'Top dashboard'!$E$54/2),$P$59*(1-'Top dashboard'!$E$54/2)) -> 515.07875 | I115: =IF(E115="Punta",$P$59*(1+'Top dashboard'!$E$54/2),$P$59*(1-'Top dashboard'!$E$54/2)) -> 515.07875 | J115: =IF(F115="Punta",$P$59*(1+'Top dashboard'!$E$54/2),IF(F115="Base",$P$59*(1-'Top dashboard'!$E$54/2),$P$59)) -> 515.07875 | K115: =_xlfn.IFS('Top dashboard'!$E$52="Monomia",Precioseleccionado[[#This Row],[Monomia]],'Top dashboard'!$E$53="Doble Tipo 1",Precioseleccionado[[#This Row],[Doble tipo 1]],'Top dashboard'!$E$53="Doble Tipo 2",Precioseleccionado[[#This Row],[Doble tipo 2]],'Top dashboard'!$E$53="Triple",Precioseleccionado[[#This Row],[Triple]]) -> Punta | L115: =_xlfn.IFS('Top dashboard'!$E$52="Monomia",Precioseleccionado[[#This Row],[Precio Tarifa Monomia]],'Top dashboard'!$E$53="Doble Tipo 1",Precioseleccionado[[#This Row],[Precio Doble Tipo 1]],'Top dashboard'!$E$53="Doble Tipo 2",Precioseleccionado[[#This Row],[Precio Doble Tipo 2]],'Top dashboard'!$E$53="Triple",Precioseleccionado[[#This Row],[Precio Triple]]) -> 515.07875 | M115: =IF('Solar FV'!$E$18<100,Precioseleccionado[[#This Row],[Precio Tarifa Monomia]]-$C$150,$C$149) -> 339.346 | N115: =IF('Solar FV'!$E$18<100,IF(D115="Punta",Precioseleccionado[[#This Row],[Precio Doble Tipo 1]]-'1 Linea Base'!$C$150*(1+'Top dashboard'!$E$54/2),Precioseleccionado[[#This Row],[Precio Doble Tipo 1]]-'1 Linea Base'!$C$150*(1-'Top dashboard'!$E$54/2)),IF(D115="Punta",$C$149*(1+'Top dashboard'!$E$54/2),$C$149*(1-'Top dashboard'!$E$54/2))) -> 424.1825 | O115: =IF('Solar FV'!$E$18<100,IF(E115="Punta",Precioseleccionado[[#This Row],[Precio Doble Tipo 2]]-'1 Linea Base'!$C$150*(1+'Top dashboard'!$E$54/2),Precioseleccionado[[#This Row],[Precio Doble Tipo 2]]-'1 Linea Base'!$C$150*(1-'Top dashboard'!$E$54/2)),IF(E115="Punta",$C$149*(1+'Top dashboard'!$E$54/2),$C$149*(1-'Top dashboard'!$E$54/2))) -> 424.1825 | P115: =IF('Solar FV'!$E$18<100,IF(F115="Punta",Precioseleccionado[[#This Row],[Precio Triple]]-'1 Linea Base'!$C$150*(1+'Top dashboard'!$E$54/2),Precioseleccionado[[#This Row],[Precio Triple]]-'1 Linea Base'!$C$150*(1-'Top dashboard'!$E$54/2)),IF(F115="Punta",$C$149*(1+'Top dashboard'!$E$54/2),IF(F115="Base",$C$149*(1-'Top dashboard'!$E$54/2),$C$149))) -> 424.1825 | Q115: =_xlfn.IFS('Top dashboard'!$E$52="Monomia",Precioseleccionado[[#This Row],[Precio Exp Monomia]],'Top dashboard'!$E$53="Doble Tipo 1",Precioseleccionado[[#This Row],[Precio Exp DT1]],'Top dashboard'!$E$53="Doble Tipo 2",Precioseleccionado[[#This Row],[Precio Exp´DT2]],'Top dashboard'!$E$53="Triple",Precioseleccionado[[#This Row],[Precio Exp 3]]) -> 424.1825
B116: 14:00:00 | C116: Monomia | D116: =IF(AND(B116>='Top dashboard'!$E$57,B116<'Top dashboard'!$E$58),"Punta","Base") -> Base | E116: =IF(OR(AND(B116>='Top dashboard'!$E$57,B116<'Top dashboard'!$E$58),AND(B116>='Top dashboard'!$E$59,B116<'Top dashboard'!$E$60)),"Punta","Base") -> Base | F116: =IF(AND(B116>='Top dashboard'!$E$57,B116<'Top dashboard'!$E$58),"Punta",IF(AND(B116>='Top dashboard'!$E$62,B116<'Top dashboard'!$E$63),"Intermedio","Base")) -> Base | G116: 412.063 | H116: =IF(D116="Punta",$P$59*(1+'Top dashboard'!$E$54/2),$P$59*(1-'Top dashboard'!$E$54/2)) -> 309.04725 | I116: =IF(E116="Punta",$P$59*(1+'Top dashboard'!$E$54/2),$P$59*(1-'Top dashboard'!$E$54/2)) -> 309.04725 | J116: =IF(F116="Punta",$P$59*(1+'Top dashboard'!$E$54/2),IF(F116="Base",$P$59*(1-'Top dashboard'!$E$54/2),$P$59)) -> 309.04725 | K116: =_xlfn.IFS('Top dashboard'!$E$52="Monomia",Precioseleccionado[[#This Row],[Monomia]],'Top dashboard'!$E$53="Doble Tipo 1",Precioseleccionado[[#This Row],[Doble tipo 1]],'Top dashboard'!$E$53="Doble Tipo 2",Precioseleccionado[[#This Row],[Doble tipo 2]],'Top dashboard'!$E$53="Triple",Precioseleccionado[[#This Row],[Triple]]) -> Base | L116: =_xlfn.IFS('Top dashboard'!$E$52="Monomia",Precioseleccionado[[#This Row],[Precio Tarifa Monomia]],'Top dashboard'!$E$53="Doble Tipo 1",Precioseleccionado[[#This Row],[Precio Doble Tipo 1]],'Top dashboard'!$E$53="Doble Tipo 2",Precioseleccionado[[#This Row],[Precio Doble Tipo 2]],'Top dashboard'!$E$53="Triple",Precioseleccionado[[#This Row],[Precio Triple]]) -> 309.04725 | M116: =IF('Solar FV'!$E$18<100,Precioseleccionado[[#This Row],[Precio Tarifa Monomia]]-$C$150,$C$149) -> 339.346 | N116: =IF('Solar FV'!$E$18<100,IF(D116="Punta",Precioseleccionado[[#This Row],[Precio Doble Tipo 1]]-'1 Linea Base'!$C$150*(1+'Top dashboard'!$E$54/2),Precioseleccionado[[#This Row],[Precio Doble Tipo 1]]-'1 Linea Base'!$C$150*(1-'Top dashboard'!$E$54/2)),IF(D116="Punta",$C$149*(1+'Top dashboard'!$E$54/2),$C$149*(1-'Top dashboard'!$E$54/2))) -> 254.5095 | O116: =IF('Solar FV'!$E$18<100,IF(E116="Punta",Precioseleccionado[[#This Row],[Precio Doble Tipo 2]]-'1 Linea Base'!$C$150*(1+'Top dashboard'!$E$54/2),Precioseleccionado[[#This Row],[Precio Doble Tipo 2]]-'1 Linea Base'!$C$150*(1-'Top dashboard'!$E$54/2)),IF(E116="Punta",$C$149*(1+'Top dashboard'!$E$54/2),$C$149*(1-'Top dashboard'!$E$54/2))) -> 254.5095 | P116: =IF('Solar FV'!$E$18<100,IF(F116="Punta",Precioseleccionado[[#This Row],[Precio Triple]]-'1 Linea Base'!$C$150*(1+'Top dashboard'!$E$54/2),Precioseleccionado[[#This Row],[Precio Triple]]-'1 Linea Base'!$C$150*(1-'Top dashboard'!$E$54/2)),IF(F116="Punta",$C$149*(1+'Top dashboard'!$E$54/2),IF(F116="Base",$C$149*(1-'Top dashboard'!$E$54/2),$C$149))) -> 254.5095 | Q116: =_xlfn.IFS('Top dashboard'!$E$52="Monomia",Precioseleccionado[[#This Row],[Precio Exp Monomia]],'Top dashboard'!$E$53="Doble Tipo 1",Precioseleccionado[[#This Row],[Precio Exp DT1]],'Top dashboard'!$E$53="Doble Tipo 2",Precioseleccionado[[#This Row],[Precio Exp´DT2]],'Top dashboard'!$E$53="Triple",Precioseleccionado[[#This Row],[Precio Exp 3]]) -> 254.5095
B117: 15:00:00 | C117: Monomia | D117: =IF(AND(B117>='Top dashboard'!$E$57,B117<'Top dashboard'!$E$58),"Punta","Base") -> Base | E117: =IF(OR(AND(B117>='Top dashboard'!$E$57,B117<'Top dashboard'!$E$58),AND(B117>='Top dashboard'!$E$59,B117<'Top dashboard'!$E$60)),"Punta","Base") -> Base | F117: =IF(AND(B117>='Top dashboard'!$E$57,B117<'Top dashboard'!$E$58),"Punta",IF(AND(B117>='Top dashboard'!$E$62,B117<'Top dashboard'!$E$63),"Intermedio","Base")) -> Base | G117: 412.063 | H117: =IF(D117="Punta",$P$59*(1+'Top dashboard'!$E$54/2),$P$59*(1-'Top dashboard'!$E$54/2)) -> 309.04725 | I117: =IF(E117="Punta",$P$59*(1+'Top dashboard'!$E$54/2),$P$59*(1-'Top dashboard'!$E$54/2)) -> 309.04725 | J117: =IF(F117="Punta",$P$59*(1+'Top dashboard'!$E$54/2),IF(F117="Base",$P$59*(1-'Top dashboard'!$E$54/2),$P$59)) -> 309.04725 | K117: =_xlfn.IFS('Top dashboard'!$E$52="Monomia",Precioseleccionado[[#This Row],[Monomia]],'Top dashboard'!$E$53="Doble Tipo 1",Precioseleccionado[[#This Row],[Doble tipo 1]],'Top dashboard'!$E$53="Doble Tipo 2",Precioseleccionado[[#This Row],[Doble tipo 2]],'Top dashboard'!$E$53="Triple",Precioseleccionado[[#This Row],[Triple]]) -> Base | L117: =_xlfn.IFS('Top dashboard'!$E$52="Monomia",Precioseleccionado[[#This Row],[Precio Tarifa Monomia]],'Top dashboard'!$E$53="Doble Tipo 1",Precioseleccionado[[#This Row],[Precio Doble Tipo 1]],'Top dashboard'!$E$53="Doble Tipo 2",Precioseleccionado[[#This Row],[Precio Doble Tipo 2]],'Top dashboard'!$E$53="Triple",Precioseleccionado[[#This Row],[Precio Triple]]) -> 309.04725 | M117: =IF('Solar FV'!$E$18<100,Precioseleccionado[[#This Row],[Precio Tarifa Monomia]]-$C$150,$C$149) -> 339.346 | N117: =IF('Solar FV'!$E$18<100,IF(D117="Punta",Precioseleccionado[[#This Row],[Precio Doble Tipo 1]]-'1 Linea Base'!$C$150*(1+'Top dashboard'!$E$54/2),Precioseleccionado[[#This Row],[Precio Doble Tipo 1]]-'1 Linea Base'!$C$150*(1-'Top dashboard'!$E$54/2)),IF(D117="Punta",$C$149*(1+'Top dashboard'!$E$54/2),$C$149*(1-'Top dashboard'!$E$54/2))) -> 254.5095 | O117: =IF('Solar FV'!$E$18<100,IF(E117="Punta",Precioseleccionado[[#This Row],[Precio Doble Tipo 2]]-'1 Linea Base'!$C$150*(1+'Top dashboard'!$E$54/2),Precioseleccionado[[#This Row],[Precio Doble Tipo 2]]-'1 Linea Base'!$C$150*(1-'Top dashboard'!$E$54/2)),IF(E117="Punta",$C$149*(1+'Top dashboard'!$E$54/2),$C$149*(1-'Top dashboard'!$E$54/2))) -> 254.5095 | P117: =IF('Solar FV'!$E$18<100,IF(F117="Punta",Precioseleccionado[[#This Row],[Precio Triple]]-'1 Linea Base'!$C$150*(1+'Top dashboard'!$E$54/2),Precioseleccionado[[#This Row],[Precio Triple]]-'1 Linea Base'!$C$150*(1-'Top dashboard'!$E$54/2)),IF(F117="Punta",$C$149*(1+'Top dashboard'!$E$54/2),IF(F117="Base",$C$149*(1-'Top dashboard'!$E$54/2),$C$149))) -> 254.5095 | Q117: =_xlfn.IFS('Top dashboard'!$E$52="Monomia",Precioseleccionado[[#This Row],[Precio Exp Monomia]],'Top dashboard'!$E$53="Doble Tipo 1",Precioseleccionado[[#This Row],[Precio Exp DT1]],'Top dashboard'!$E$53="Doble Tipo 2",Precioseleccionado[[#This Row],[Precio Exp´DT2]],'Top dashboard'!$E$53="Triple",Precioseleccionado[[#This Row],[Precio Exp 3]]) -> 254.5095
B118: 16:00:00 | C118: Monomia | D118: =IF(AND(B118>='Top dashboard'!$E$57,B118<'Top dashboard'!$E$58),"Punta","Base") -> Base | E118: =IF(OR(AND(B118>='Top dashboard'!$E$57,B118<'Top dashboard'!$E$58),AND(B118>='Top dashboard'!$E$59,B118<'Top dashboard'!$E$60)),"Punta","Base") -> Base | F118: =IF(AND(B118>='Top dashboard'!$E$57,B118<'Top dashboard'!$E$58),"Punta",IF(AND(B118>='Top dashboard'!$E$62,B118<'Top dashboard'!$E$63),"Intermedio","Base")) -> Base | G118: 412.063 | H118: =IF(D118="Punta",$P$59*(1+'Top dashboard'!$E$54/2),$P$59*(1-'Top dashboard'!$E$54/2)) -> 309.04725 | I118: =IF(E118="Punta",$P$59*(1+'Top dashboard'!$E$54/2),$P$59*(1-'Top dashboard'!$E$54/2)) -> 309.04725 | J118: =IF(F118="Punta",$P$59*(1+'Top dashboard'!$E$54/2),IF(F118="Base",$P$59*(1-'Top dashboard'!$E$54/2),$P$59)) -> 309.04725 | K118: =_xlfn.IFS('Top dashboard'!$E$52="Monomia",Precioseleccionado[[#This Row],[Monomia]],'Top dashboard'!$E$53="Doble Tipo 1",Precioseleccionado[[#This Row],[Doble tipo 1]],'Top dashboard'!$E$53="Doble Tipo 2",Precioseleccionado[[#This Row],[Doble tipo 2]],'Top dashboard'!$E$53="Triple",Precioseleccionado[[#This Row],[Triple]]) -> Base | L118: =_xlfn.IFS('Top dashboard'!$E$52="Monomia",Precioseleccionado[[#This Row],[Precio Tarifa Monomia]],'Top dashboard'!$E$53="Doble Tipo 1",Precioseleccionado[[#This Row],[Precio Doble Tipo 1]],'Top dashboard'!$E$53="Doble Tipo 2",Precioseleccionado[[#This Row],[Precio Doble Tipo 2]],'Top dashboard'!$E$53="Triple",Precioseleccionado[[#This Row],[Precio Triple]]) -> 309.04725 | M118: =IF('Solar FV'!$E$18<100,Precioseleccionado[[#This Row],[Precio Tarifa Monomia]]-$C$150,$C$149) -> 339.346 | N118: =IF('Solar FV'!$E$18<100,IF(D118="Punta",Precioseleccionado[[#This Row],[Precio Doble Tipo 1]]-'1 Linea Base'!$C$150*(1+'Top dashboard'!$E$54/2),Precioseleccionado[[#This Row],[Precio Doble Tipo 1]]-'1 Linea Base'!$C$150*(1-'Top dashboard'!$E$54/2)),IF(D118="Punta",$C$149*(1+'Top dashboard'!$E$54/2),$C$149*(1-'Top dashboard'!$E$54/2))) -> 254.5095 | O118: =IF('Solar FV'!$E$18<100,IF(E118="Punta",Precioseleccionado[[#This Row],[Precio Doble Tipo 2]]-'1 Linea Base'!$C$150*(1+'Top dashboard'!$E$54/2),Precioseleccionado[[#This Row],[Precio Doble Tipo 2]]-'1 Linea Base'!$C$150*(1-'Top dashboard'!$E$54/2)),IF(E118="Punta",$C$149*(1+'Top dashboard'!$E$54/2),$C$149*(1-'Top dashboard'!$E$54/2))) -> 254.5095 | P118: =IF('Solar FV'!$E$18<100,IF(F118="Punta",Precioseleccionado[[#This Row],[Precio Triple]]-'1 Linea Base'!$C$150*(1+'Top dashboard'!$E$54/2),Precioseleccionado[[#This Row],[Precio Triple]]-'1 Linea Base'!$C$150*(1-'Top dashboard'!$E$54/2)),IF(F118="Punta",$C$149*(1+'Top dashboard'!$E$54/2),IF(F118="Base",$C$149*(1-'Top dashboard'!$E$54/2),$C$149))) -> 254.5095 | Q118: =_xlfn.IFS('Top dashboard'!$E$52="Monomia",Precioseleccionado[[#This Row],[Precio Exp Monomia]],'Top dashboard'!$E$53="Doble Tipo 1",Precioseleccionado[[#This Row],[Precio Exp DT1]],'Top dashboard'!$E$53="Doble Tipo 2",Precioseleccionado[[#This Row],[Precio Exp´DT2]],'Top dashboard'!$E$53="Triple",Precioseleccionado[[#This Row],[Precio Exp 3]]) -> 254.5095
B119: 17:00:00 | C119: Monomia | D119: =IF(AND(B119>='Top dashboard'!$E$57,B119<'Top dashboard'!$E$58),"Punta","Base") -> Base | E119: =IF(OR(AND(B119>='Top dashboard'!$E$57,B119<'Top dashboard'!$E$58),AND(B119>='Top dashboard'!$E$59,B119<'Top dashboard'!$E$60)),"Punta","Base") -> Base | F119: =IF(AND(B119>='Top dashboard'!$E$57,B119<'Top dashboard'!$E$58),"Punta",IF(AND(B119>='Top dashboard'!$E$62,B119<'Top dashboard'!$E$63),"Intermedio","Base")) -> Base | G119: 412.063 | H119: =IF(D119="Punta",$P$59*(1+'Top dashboard'!$E$54/2),$P$59*(1-'Top dashboard'!$E$54/2)) -> 309.04725 | I119: =IF(E119="Punta",$P$59*(1+'Top dashboard'!$E$54/2),$P$59*(1-'Top dashboard'!$E$54/2)) -> 309.04725 | J119: =IF(F119="Punta",$P$59*(1+'Top dashboard'!$E$54/2),IF(F119="Base",$P$59*(1-'Top dashboard'!$E$54/2),$P$59)) -> 309.04725 | K119: =_xlfn.IFS('Top dashboard'!$E$52="Monomia",Precioseleccionado[[#This Row],[Monomia]],'Top dashboard'!$E$53="Doble Tipo 1",Precioseleccionado[[#This Row],[Doble tipo 1]],'Top dashboard'!$E$53="Doble Tipo 2",Precioseleccionado[[#This Row],[Doble tipo 2]],'Top dashboard'!$E$53="Triple",Precioseleccionado[[#This Row],[Triple]]) -> Base | L119: =_xlfn.IFS('Top dashboard'!$E$52="Monomia",Precioseleccionado[[#This Row],[Precio Tarifa Monomia]],'Top dashboard'!$E$53="Doble Tipo 1",Precioseleccionado[[#This Row],[Precio Doble Tipo 1]],'Top dashboard'!$E$53="Doble Tipo 2",Precioseleccionado[[#This Row],[Precio Doble Tipo 2]],'Top dashboard'!$E$53="Triple",Precioseleccionado[[#This Row],[Precio Triple]]) -> 309.04725 | M119: =IF('Solar FV'!$E$18<100,Precioseleccionado[[#This Row],[Precio Tarifa Monomia]]-$C$150,$C$149) -> 339.346 | N119: =IF('Solar FV'!$E$18<100,IF(D119="Punta",Precioseleccionado[[#This Row],[Precio Doble Tipo 1]]-'1 Linea Base'!$C$150*(1+'Top dashboard'!$E$54/2),Precioseleccionado[[#This Row],[Precio Doble Tipo 1]]-'1 Linea Base'!$C$150*(1-'Top dashboard'!$E$54/2)),IF(D119="Punta",$C$149*(1+'Top dashboard'!$E$54/2),$C$149*(1-'Top dashboard'!$E$54/2))) -> 254.5095 | O119: =IF('Solar FV'!$E$18<100,IF(E119="Punta",Precioseleccionado[[#This Row],[Precio Doble Tipo 2]]-'1 Linea Base'!$C$150*(1+'Top dashboard'!$E$54/2),Precioseleccionado[[#This Row],[Precio Doble Tipo 2]]-'1 Linea Base'!$C$150*(1-'Top dashboard'!$E$54/2)),IF(E119="Punta",$C$149*(1+'Top dashboard'!$E$54/2),$C$149*(1-'Top dashboard'!$E$54/2))) -> 254.5095 | P119: =IF('Solar FV'!$E$18<100,IF(F119="Punta",Precioseleccionado[[#This Row],[Precio Triple]]-'1 Linea Base'!$C$150*(1+'Top dashboard'!$E$54/2),Precioseleccionado[[#This Row],[Precio Triple]]-'1 Linea Base'!$C$150*(1-'Top dashboard'!$E$54/2)),IF(F119="Punta",$C$149*(1+'Top dashboard'!$E$54/2),IF(F119="Base",$C$149*(1-'Top dashboard'!$E$54/2),$C$149))) -> 254.5095 | Q119: =_xlfn.IFS('Top dashboard'!$E$52="Monomia",Precioseleccionado[[#This Row],[Precio Exp Monomia]],'Top dashboard'!$E$53="Doble Tipo 1",Precioseleccionado[[#This Row],[Precio Exp DT1]],'Top dashboard'!$E$53="Doble Tipo 2",Precioseleccionado[[#This Row],[Precio Exp´DT2]],'Top dashboard'!$E$53="Triple",Precioseleccionado[[#This Row],[Precio Exp 3]]) -> 254.5095
B120: 18:00:00 | C120: Monomia | D120: =IF(AND(B120>='Top dashboard'!$E$57,B120<'Top dashboard'!$E$58),"Punta","Base") -> Base | E120: =IF(OR(AND(B120>='Top dashboard'!$E$57,B120<'Top dashboard'!$E$58),AND(B120>='Top dashboard'!$E$59,B120<'Top dashboard'!$E$60)),"Punta","Base") -> Punta | F120: =IF(AND(B120>='Top dashboard'!$E$57,B120<'Top dashboard'!$E$58),"Punta",IF(AND(B120>='Top dashboard'!$E$62,B120<'Top dashboard'!$E$63),"Intermedio","Base")) -> Base | G120: 412.063 | H120: =IF(D120="Punta",$P$59*(1+'Top dashboard'!$E$54/2),$P$59*(1-'Top dashboard'!$E$54/2)) -> 309.04725 | I120: =IF(E120="Punta",$P$59*(1+'Top dashboard'!$E$54/2),$P$59*(1-'Top dashboard'!$E$54/2)) -> 515.07875 | J120: =IF(F120="Punta",$P$59*(1+'Top dashboard'!$E$54/2),IF(F120="Base",$P$59*(1-'Top dashboard'!$E$54/2),$P$59)) -> 309.04725 | K120: =_xlfn.IFS('Top dashboard'!$E$52="Monomia",Precioseleccionado[[#This Row],[Monomia]],'Top dashboard'!$E$53="Doble Tipo 1",Precioseleccionado[[#This Row],[Doble tipo 1]],'Top dashboard'!$E$53="Doble Tipo 2",Precioseleccionado[[#This Row],[Doble tipo 2]],'Top dashboard'!$E$53="Triple",Precioseleccionado[[#This Row],[Triple]]) -> Punta | L120: =_xlfn.IFS('Top dashboard'!$E$52="Monomia",Precioseleccionado[[#This Row],[Precio Tarifa Monomia]],'Top dashboard'!$E$53="Doble Tipo 1",Precioseleccionado[[#This Row],[Precio Doble Tipo 1]],'Top dashboard'!$E$53="Doble Tipo 2",Precioseleccionado[[#This Row],[Precio Doble Tipo 2]],'Top dashboard'!$E$53="Triple",Precioseleccionado[[#This Row],[Precio Triple]]) -> 515.07875 | M120: =IF('Solar FV'!$E$18<100,Precioseleccionado[[#This Row],[Precio Tarifa Monomia]]-$C$150,$C$149) -> 339.346 | N120: =IF('Solar FV'!$E$18<100,IF(D120="Punta",Precioseleccionado[[#This Row],[Precio Doble Tipo 1]]-'1 Linea Base'!$C$150*(1+'Top dashboard'!$E$54/2),Precioseleccionado[[#This Row],[Precio Doble Tipo 1]]-'1 Linea Base'!$C$150*(1-'Top dashboard'!$E$54/2)),IF(D120="Punta",$C$149*(1+'Top dashboard'!$E$54/2),$C$149*(1-'Top dashboard'!$E$54/2))) -> 254.5095 | O120: =IF('Solar FV'!$E$18<100,IF(E120="Punta",Precioseleccionado[[#This Row],[Precio Doble Tipo 2]]-'1 Linea Base'!$C$150*(1+'Top dashboard'!$E$54/2),Precioseleccionado[[#This Row],[Precio Doble Tipo 2]]-'1 Linea Base'!$C$150*(1-'Top dashboard'!$E$54/2)),IF(E120="Punta",$C$149*(1+'Top dashboard'!$E$54/2),$C$149*(1-'Top dashboard'!$E$54/2))) -> 424.1825 | P120: =IF('Solar FV'!$E$18<100,IF(F120="Punta",Precioseleccionado[[#This Row],[Precio Triple]]-'1 Linea Base'!$C$150*(1+'Top dashboard'!$E$54/2),Precioseleccionado[[#This Row],[Precio Triple]]-'1 Linea Base'!$C$150*(1-'Top dashboard'!$E$54/2)),IF(F120="Punta",$C$149*(1+'Top dashboard'!$E$54/2),IF(F120="Base",$C$149*(1-'Top dashboard'!$E$54/2),$C$149))) -> 254.5095 | Q120: =_xlfn.IFS('Top dashboard'!$E$52="Monomia",Precioseleccionado[[#This Row],[Precio Exp Monomia]],'Top dashboard'!$E$53="Doble Tipo 1",Precioseleccionado[[#This Row],[Precio Exp DT1]],'Top dashboard'!$E$53="Doble Tipo 2",Precioseleccionado[[#This Row],[Precio Exp´DT2]],'Top dashboard'!$E$53="Triple",Precioseleccionado[[#This Row],[Precio Exp 3]]) -> 424.1825
B121: 19:00:00 | C121: Monomia | D121: =IF(AND(B121>='Top dashboard'!$E$57,B121<'Top dashboard'!$E$58),"Punta","Base") -> Base | E121: =IF(OR(AND(B121>='Top dashboard'!$E$57,B121<'Top dashboard'!$E$58),AND(B121>='Top dashboard'!$E$59,B121<'Top dashboard'!$E$60)),"Punta","Base") -> Punta | F121: =IF(AND(B121>='Top dashboard'!$E$57,B121<'Top dashboard'!$E$58),"Punta",IF(AND(B121>='Top dashboard'!$E$62,B121<'Top dashboard'!$E$63),"Intermedio","Base")) -> Base | G121: 412.063 | H121: =IF(D121="Punta",$P$59*(1+'Top dashboard'!$E$54/2),$P$59*(1-'Top dashboard'!$E$54/2)) -> 309.04725 | I121: =IF(E121="Punta",$P$59*(1+'Top dashboard'!$E$54/2),$P$59*(1-'Top dashboard'!$E$54/2)) -> 515.07875 | J121: =IF(F121="Punta",$P$59*(1+'Top dashboard'!$E$54/2),IF(F121="Base",$P$59*(1-'Top dashboard'!$E$54/2),$P$59)) -> 309.04725 | K121: =_xlfn.IFS('Top dashboard'!$E$52="Monomia",Precioseleccionado[[#This Row],[Monomia]],'Top dashboard'!$E$53="Doble Tipo 1",Precioseleccionado[[#This Row],[Doble tipo 1]],'Top dashboard'!$E$53="Doble Tipo 2",Precioseleccionado[[#This Row],[Doble tipo 2]],'Top dashboard'!$E$53="Triple",Precioseleccionado[[#This Row],[Triple]]) -> Punta | L121: =_xlfn.IFS('Top dashboard'!$E$52="Monomia",Precioseleccionado[[#This Row],[Precio Tarifa Monomia]],'Top dashboard'!$E$53="Doble Tipo 1",Precioseleccionado[[#This Row],[Precio Doble Tipo 1]],'Top dashboard'!$E$53="Doble Tipo 2",Precioseleccionado[[#This Row],[Precio Doble Tipo 2]],'Top dashboard'!$E$53="Triple",Precioseleccionado[[#This Row],[Precio Triple]]) -> 515.07875 | M121: =IF('Solar FV'!$E$18<100,Precioseleccionado[[#This Row],[Precio Tarifa Monomia]]-$C$150,$C$149) -> 339.346 | N121: =IF('Solar FV'!$E$18<100,IF(D121="Punta",Precioseleccionado[[#This Row],[Precio Doble Tipo 1]]-'1 Linea Base'!$C$150*(1+'Top dashboard'!$E$54/2),Precioseleccionado[[#This Row],[Precio Doble Tipo 1]]-'1 Linea Base'!$C$150*(1-'Top dashboard'!$E$54/2)),IF(D121="Punta",$C$149*(1+'Top dashboard'!$E$54/2),$C$149*(1-'Top dashboard'!$E$54/2))) -> 254.5095 | O121: =IF('Solar FV'!$E$18<100,IF(E121="Punta",Precioseleccionado[[#This Row],[Precio Doble Tipo 2]]-'1 Linea Base'!$C$150*(1+'Top dashboard'!$E$54/2),Precioseleccionado[[#This Row],[Precio Doble Tipo 2]]-'1 Linea Base'!$C$150*(1-'Top dashboard'!$E$54/2)),IF(E121="Punta",$C$149*(1+'Top dashboard'!$E$54/2),$C$149*(1-'Top dashboard'!$E$54/2))) -> 424.1825 | P121: =IF('Solar FV'!$E$18<100,IF(F121="Punta",Precioseleccionado[[#This Row],[Precio Triple]]-'1 Linea Base'!$C$150*(1+'Top dashboard'!$E$54/2),Precioseleccionado[[#This Row],[Precio Triple]]-'1 Linea Base'!$C$150*(1-'Top dashboard'!$E$54/2)),IF(F121="Punta",$C$149*(1+'Top dashboard'!$E$54/2),IF(F121="Base",$C$149*(1-'Top dashboard'!$E$54/2),$C$149))) -> 254.5095 | Q121: =_xlfn.IFS('Top dashboard'!$E$52="Monomia",Precioseleccionado[[#This Row],[Precio Exp Monomia]],'Top dashboard'!$E$53="Doble Tipo 1",Precioseleccionado[[#This Row],[Precio Exp DT1]],'Top dashboard'!$E$53="Doble Tipo 2",Precioseleccionado[[#This Row],[Precio Exp´DT2]],'Top dashboard'!$E$53="Triple",Precioseleccionado[[#This Row],[Precio Exp 3]]) -> 424.1825
B122: 20:00:00 | C122: Monomia | D122: =IF(AND(B122>='Top dashboard'!$E$57,B122<'Top dashboard'!$E$58),"Punta","Base") -> Base | E122: =IF(OR(AND(B122>='Top dashboard'!$E$57,B122<'Top dashboard'!$E$58),AND(B122>='Top dashboard'!$E$59,B122<'Top dashboard'!$E$60)),"Punta","Base") -> Punta | F122: =IF(AND(B122>='Top dashboard'!$E$57,B122<'Top dashboard'!$E$58),"Punta",IF(AND(B122>='Top dashboard'!$E$62,B122<'Top dashboard'!$E$63),"Intermedio","Base")) -> Base | G122: 412.063 | H122: =IF(D122="Punta",$P$59*(1+'Top dashboard'!$E$54/2),$P$59*(1-'Top dashboard'!$E$54/2)) -> 309.04725 | I122: =IF(E122="Punta",$P$59*(1+'Top dashboard'!$E$54/2),$P$59*(1-'Top dashboard'!$E$54/2)) -> 515.07875 | J122: =IF(F122="Punta",$P$59*(1+'Top dashboard'!$E$54/2),IF(F122="Base",$P$59*(1-'Top dashboard'!$E$54/2),$P$59)) -> 309.04725 | K122: =_xlfn.IFS('Top dashboard'!$E$52="Monomia",Precioseleccionado[[#This Row],[Monomia]],'Top dashboard'!$E$53="Doble Tipo 1",Precioseleccionado[[#This Row],[Doble tipo 1]],'Top dashboard'!$E$53="Doble Tipo 2",Precioseleccionado[[#This Row],[Doble tipo 2]],'Top dashboard'!$E$53="Triple",Precioseleccionado[[#This Row],[Triple]]) -> Punta | L122: =_xlfn.IFS('Top dashboard'!$E$52="Monomia",Precioseleccionado[[#This Row],[Precio Tarifa Monomia]],'Top dashboard'!$E$53="Doble Tipo 1",Precioseleccionado[[#This Row],[Precio Doble Tipo 1]],'Top dashboard'!$E$53="Doble Tipo 2",Precioseleccionado[[#This Row],[Precio Doble Tipo 2]],'Top dashboard'!$E$53="Triple",Precioseleccionado[[#This Row],[Precio Triple]]) -> 515.07875 | M122: =IF('Solar FV'!$E$18<100,Precioseleccionado[[#This Row],[Precio Tarifa Monomia]]-$C$150,$C$149) -> 339.346 | N122: =IF('Solar FV'!$E$18<100,IF(D122="Punta",Precioseleccionado[[#This Row],[Precio Doble Tipo 1]]-'1 Linea Base'!$C$150*(1+'Top dashboard'!$E$54/2),Precioseleccionado[[#This Row],[Precio Doble Tipo 1]]-'1 Linea Base'!$C$150*(1-'Top dashboard'!$E$54/2)),IF(D122="Punta",$C$149*(1+'Top dashboard'!$E$54/2),$C$149*(1-'Top dashboard'!$E$54/2))) -> 254.5095 | O122: =IF('Solar FV'!$E$18<100,IF(E122="Punta",Precioseleccionado[[#This Row],[Precio Doble Tipo 2]]-'1 Linea Base'!$C$150*(1+'Top dashboard'!$E$54/2),Precioseleccionado[[#This Row],[Precio Doble Tipo 2]]-'1 Linea Base'!$C$150*(1-'Top dashboard'!$E$54/2)),IF(E122="Punta",$C$149*(1+'Top dashboard'!$E$54/2),$C$149*(1-'Top dashboard'!$E$54/2))) -> 424.1825 | P122: =IF('Solar FV'!$E$18<100,IF(F122="Punta",Precioseleccionado[[#This Row],[Precio Triple]]-'1 Linea Base'!$C$150*(1+'Top dashboard'!$E$54/2),Precioseleccionado[[#This Row],[Precio Triple]]-'1 Linea Base'!$C$150*(1-'Top dashboard'!$E$54/2)),IF(F122="Punta",$C$149*(1+'Top dashboard'!$E$54/2),IF(F122="Base",$C$149*(1-'Top dashboard'!$E$54/2),$C$149))) -> 254.5095 | Q122: =_xlfn.IFS('Top dashboard'!$E$52="Monomia",Precioseleccionado[[#This Row],[Precio Exp Monomia]],'Top dashboard'!$E$53="Doble Tipo 1",Precioseleccionado[[#This Row],[Precio Exp DT1]],'Top dashboard'!$E$53="Doble Tipo 2",Precioseleccionado[[#This Row],[Precio Exp´DT2]],'Top dashboard'!$E$53="Triple",Precioseleccionado[[#This Row],[Precio Exp 3]]) -> 424.1825
B123: 21:00:00 | C123: Monomia | D123: =IF(AND(B123>='Top dashboard'!$E$57,B123<'Top dashboard'!$E$58),"Punta","Base") -> Base | E123: =IF(OR(AND(B123>='Top dashboard'!$E$57,B123<'Top dashboard'!$E$58),AND(B123>='Top dashboard'!$E$59,B123<'Top dashboard'!$E$60)),"Punta","Base") -> Punta | F123: =IF(AND(B123>='Top dashboard'!$E$57,B123<'Top dashboard'!$E$58),"Punta",IF(AND(B123>='Top dashboard'!$E$62,B123<'Top dashboard'!$E$63),"Intermedio","Base")) -> Base | G123: 412.063 | H123: =IF(D123="Punta",$P$59*(1+'Top dashboard'!$E$54/2),$P$59*(1-'Top dashboard'!$E$54/2)) -> 309.04725 | I123: =IF(E123="Punta",$P$59*(1+'Top dashboard'!$E$54/2),$P$59*(1-'Top dashboard'!$E$54/2)) -> 515.07875 | J123: =IF(F123="Punta",$P$59*(1+'Top dashboard'!$E$54/2),IF(F123="Base",$P$59*(1-'Top dashboard'!$E$54/2),$P$59)) -> 309.04725 | K123: =_xlfn.IFS('Top dashboard'!$E$52="Monomia",Precioseleccionado[[#This Row],[Monomia]],'Top dashboard'!$E$53="Doble Tipo 1",Precioseleccionado[[#This Row],[Doble tipo 1]],'Top dashboard'!$E$53="Doble Tipo 2",Precioseleccionado[[#This Row],[Doble tipo 2]],'Top dashboard'!$E$53="Triple",Precioseleccionado[[#This Row],[Triple]]) -> Punta | L123: =_xlfn.IFS('Top dashboard'!$E$52="Monomia",Precioseleccionado[[#This Row],[Precio Tarifa Monomia]],'Top dashboard'!$E$53="Doble Tipo 1",Precioseleccionado[[#This Row],[Precio Doble Tipo 1]],'Top dashboard'!$E$53="Doble Tipo 2",Precioseleccionado[[#This Row],[Precio Doble Tipo 2]],'Top dashboard'!$E$53="Triple",Precioseleccionado[[#This Row],[Precio Triple]]) -> 515.07875 | M123: =IF('Solar FV'!$E$18<100,Precioseleccionado[[#This Row],[Precio Tarifa Monomia]]-$C$150,$C$149) -> 339.346 | N123: =IF('Solar FV'!$E$18<100,IF(D123="Punta",Precioseleccionado[[#This Row],[Precio Doble Tipo 1]]-'1 Linea Base'!$C$150*(1+'Top dashboard'!$E$54/2),Precioseleccionado[[#This Row],[Precio Doble Tipo 1]]-'1 Linea Base'!$C$150*(1-'Top dashboard'!$E$54/2)),IF(D123="Punta",$C$149*(1+'Top dashboard'!$E$54/2),$C$149*(1-'Top dashboard'!$E$54/2))) -> 254.5095 | O123: =IF('Solar FV'!$E$18<100,IF(E123="Punta",Precioseleccionado[[#This Row],[Precio Doble Tipo 2]]-'1 Linea Base'!$C$150*(1+'Top dashboard'!$E$54/2),Precioseleccionado[[#This Row],[Precio Doble Tipo 2]]-'1 Linea Base'!$C$150*(1-'Top dashboard'!$E$54/2)),IF(E123="Punta",$C$149*(1+'Top dashboard'!$E$54/2),$C$149*(1-'Top dashboard'!$E$54/2))) -> 424.1825 | P123: =IF('Solar FV'!$E$18<100,IF(F123="Punta",Precioseleccionado[[#This Row],[Precio Triple]]-'1 Linea Base'!$C$150*(1+'Top dashboard'!$E$54/2),Precioseleccionado[[#This Row],[Precio Triple]]-'1 Linea Base'!$C$150*(1-'Top dashboard'!$E$54/2)),IF(F123="Punta",$C$149*(1+'Top dashboard'!$E$54/2),IF(F123="Base",$C$149*(1-'Top dashboard'!$E$54/2),$C$149))) -> 254.5095 | Q123: =_xlfn.IFS('Top dashboard'!$E$52="Monomia",Precioseleccionado[[#This Row],[Precio Exp Monomia]],'Top dashboard'!$E$53="Doble Tipo 1",Precioseleccionado[[#This Row],[Precio Exp DT1]],'Top dashboard'!$E$53="Doble Tipo 2",Precioseleccionado[[#This Row],[Precio Exp´DT2]],'Top dashboard'!$E$53="Triple",Precioseleccionado[[#This Row],[Precio Exp 3]]) -> 424.1825
B124: 22:00:00 | C124: Monomia | D124: =IF(AND(B124>='Top dashboard'!$E$57,B124<'Top dashboard'!$E$58),"Punta","Base") -> Base | E124: =IF(OR(AND(B124>='Top dashboard'!$E$57,B124<'Top dashboard'!$E$58),AND(B124>='Top dashboard'!$E$59,B124<'Top dashboard'!$E$60)),"Punta","Base") -> Base | F124: =IF(AND(B124>='Top dashboard'!$E$57,B124<'Top dashboard'!$E$58),"Punta",IF(AND(B124>='Top dashboard'!$E$62,B124<'Top dashboard'!$E$63),"Intermedio","Base")) -> Base | G124: 412.063 | H124: =IF(D124="Punta",$P$59*(1+'Top dashboard'!$E$54/2),$P$59*(1-'Top dashboard'!$E$54/2)) -> 309.04725 | I124: =IF(E124="Punta",$P$59*(1+'Top dashboard'!$E$54/2),$P$59*(1-'Top dashboard'!$E$54/2)) -> 309.04725 | J124: =IF(F124="Punta",$P$59*(1+'Top dashboard'!$E$54/2),IF(F124="Base",$P$59*(1-'Top dashboard'!$E$54/2),$P$59)) -> 309.04725 | K124: =_xlfn.IFS('Top dashboard'!$E$52="Monomia",Precioseleccionado[[#This Row],[Monomia]],'Top dashboard'!$E$53="Doble Tipo 1",Precioseleccionado[[#This Row],[Doble tipo 1]],'Top dashboard'!$E$53="Doble Tipo 2",Precioseleccionado[[#This Row],[Doble tipo 2]],'Top dashboard'!$E$53="Triple",Precioseleccionado[[#This Row],[Triple]]) -> Base | L124: =_xlfn.IFS('Top dashboard'!$E$52="Monomia",Precioseleccionado[[#This Row],[Precio Tarifa Monomia]],'Top dashboard'!$E$53="Doble Tipo 1",Precioseleccionado[[#This Row],[Precio Doble Tipo 1]],'Top dashboard'!$E$53="Doble Tipo 2",Precioseleccionado[[#This Row],[Precio Doble Tipo 2]],'Top dashboard'!$E$53="Triple",Precioseleccionado[[#This Row],[Precio Triple]]) -> 309.04725 | M124: =IF('Solar FV'!$E$18<100,Precioseleccionado[[#This Row],[Precio Tarifa Monomia]]-$C$150,$C$149) -> 339.346 | N124: =IF('Solar FV'!$E$18<100,IF(D124="Punta",Precioseleccionado[[#This Row],[Precio Doble Tipo 1]]-'1 Linea Base'!$C$150*(1+'Top dashboard'!$E$54/2),Precioseleccionado[[#This Row],[Precio Doble Tipo 1]]-'1 Linea Base'!$C$150*(1-'Top dashboard'!$E$54/2)),IF(D124="Punta",$C$149*(1+'Top dashboard'!$E$54/2),$C$149*(1-'Top dashboard'!$E$54/2))) -> 254.5095 | O124: =IF('Solar FV'!$E$18<100,IF(E124="Punta",Precioseleccionado[[#This Row],[Precio Doble Tipo 2]]-'1 Linea Base'!$C$150*(1+'Top dashboard'!$E$54/2),Precioseleccionado[[#This Row],[Precio Doble Tipo 2]]-'1 Linea Base'!$C$150*(1-'Top dashboard'!$E$54/2)),IF(E124="Punta",$C$149*(1+'Top dashboard'!$E$54/2),$C$149*(1-'Top dashboard'!$E$54/2))) -> 254.5095 | P124: =IF('Solar FV'!$E$18<100,IF(F124="Punta",Precioseleccionado[[#This Row],[Precio Triple]]-'1 Linea Base'!$C$150*(1+'Top dashboard'!$E$54/2),Precioseleccionado[[#This Row],[Precio Triple]]-'1 Linea Base'!$C$150*(1-'Top dashboard'!$E$54/2)),IF(F124="Punta",$C$149*(1+'Top dashboard'!$E$54/2),IF(F124="Base",$C$149*(1-'Top dashboard'!$E$54/2),$C$149))) -> 254.5095 | Q124: =_xlfn.IFS('Top dashboard'!$E$52="Monomia",Precioseleccionado[[#This Row],[Precio Exp Monomia]],'Top dashboard'!$E$53="Doble Tipo 1",Precioseleccionado[[#This Row],[Precio Exp DT1]],'Top dashboard'!$E$53="Doble Tipo 2",Precioseleccionado[[#This Row],[Precio Exp´DT2]],'Top dashboard'!$E$53="Triple",Precioseleccionado[[#This Row],[Precio Exp 3]]) -> 254.5095
B125: 23:00:00 | C125: Monomia | D125: =IF(AND(B125>='Top dashboard'!$E$57,B125<'Top dashboard'!$E$58),"Punta","Base") -> Base | E125: =IF(OR(AND(B125>='Top dashboard'!$E$57,B125<'Top dashboard'!$E$58),AND(B125>='Top dashboard'!$E$59,B125<'Top dashboard'!$E$60)),"Punta","Base") -> Base | F125: =IF(AND(B125>='Top dashboard'!$E$57,B125<'Top dashboard'!$E$58),"Punta",IF(AND(B125>='Top dashboard'!$E$62,B125<'Top dashboard'!$E$63),"Intermedio","Base")) -> Base | G125: 412.063 | H125: =IF(D125="Punta",$P$59*(1+'Top dashboard'!$E$54/2),$P$59*(1-'Top dashboard'!$E$54/2)) -> 309.04725 | I125: =IF(E125="Punta",$P$59*(1+'Top dashboard'!$E$54/2),$P$59*(1-'Top dashboard'!$E$54/2)) -> 309.04725 | J125: =IF(F125="Punta",$P$59*(1+'Top dashboard'!$E$54/2),IF(F125="Base",$P$59*(1-'Top dashboard'!$E$54/2),$P$59)) -> 309.04725 | K125: =_xlfn.IFS('Top dashboard'!$E$52="Monomia",Precioseleccionado[[#This Row],[Monomia]],'Top dashboard'!$E$53="Doble Tipo 1",Precioseleccionado[[#This Row],[Doble tipo 1]],'Top dashboard'!$E$53="Doble Tipo 2",Precioseleccionado[[#This Row],[Doble tipo 2]],'Top dashboard'!$E$53="Triple",Precioseleccionado[[#This Row],[Triple]]) -> Base | L125: =_xlfn.IFS('Top dashboard'!$E$52="Monomia",Precioseleccionado[[#This Row],[Precio Tarifa Monomia]],'Top dashboard'!$E$53="Doble Tipo 1",Precioseleccionado[[#This Row],[Precio Doble Tipo 1]],'Top dashboard'!$E$53="Doble Tipo 2",Precioseleccionado[[#This Row],[Precio Doble Tipo 2]],'Top dashboard'!$E$53="Triple",Precioseleccionado[[#This Row],[Precio Triple]]) -> 309.04725 | M125: =IF('Solar FV'!$E$18<100,Precioseleccionado[[#This Row],[Precio Tarifa Monomia]]-$C$150,$C$149) -> 339.346 | N125: =IF('Solar FV'!$E$18<100,IF(D125="Punta",Precioseleccionado[[#This Row],[Precio Doble Tipo 1]]-'1 Linea Base'!$C$150*(1+'Top dashboard'!$E$54/2),Precioseleccionado[[#This Row],[Precio Doble Tipo 1]]-'1 Linea Base'!$C$150*(1-'Top dashboard'!$E$54/2)),IF(D125="Punta",$C$149*(1+'Top dashboard'!$E$54/2),$C$149*(1-'Top dashboard'!$E$54/2))) -> 254.5095 | O125: =IF('Solar FV'!$E$18<100,IF(E125="Punta",Precioseleccionado[[#This Row],[Precio Doble Tipo 2]]-'1 Linea Base'!$C$150*(1+'Top dashboard'!$E$54/2),Precioseleccionado[[#This Row],[Precio Doble Tipo 2]]-'1 Linea Base'!$C$150*(1-'Top dashboard'!$E$54/2)),IF(E125="Punta",$C$149*(1+'Top dashboard'!$E$54/2),$C$149*(1-'Top dashboard'!$E$54/2))) -> 254.5095 | P125: =IF('Solar FV'!$E$18<100,IF(F125="Punta",Precioseleccionado[[#This Row],[Precio Triple]]-'1 Linea Base'!$C$150*(1+'Top dashboard'!$E$54/2),Precioseleccionado[[#This Row],[Precio Triple]]-'1 Linea Base'!$C$150*(1-'Top dashboard'!$E$54/2)),IF(F125="Punta",$C$149*(1+'Top dashboard'!$E$54/2),IF(F125="Base",$C$149*(1-'Top dashboard'!$E$54/2),$C$149))) -> 254.5095 | Q125: =_xlfn.IFS('Top dashboard'!$E$52="Monomia",Precioseleccionado[[#This Row],[Precio Exp Monomia]],'Top dashboard'!$E$53="Doble Tipo 1",Precioseleccionado[[#This Row],[Precio Exp DT1]],'Top dashboard'!$E$53="Doble Tipo 2",Precioseleccionado[[#This Row],[Precio Exp´DT2]],'Top dashboard'!$E$53="Triple",Precioseleccionado[[#This Row],[Precio Exp 3]]) -> 254.5095
B129: Costo unitario desglosado por componente
B131: Costo unitario de referencia E4 | D131: =AVERAGE(Table12[Real]) -> 484.78
B133: Porcentaje del costo unitario de referencia (E4)
B134: Nivel de tensión | C134: Generación - G | D134: Transmisión - T | E134: Distribución - D | F134: Comercialización - Cv | G134: Pérdidas - PR | H134: Restricciones - R | I134: Subtotal | J134: Contribución
B135: %N1 | C135: 0.37 | D135: 0.06 | E135: 0.33 | F135: 0.15 | G135: 0.05 | H135: 0.04 | I135: =SUM(C135:H135) -> 1 | J135: 0.2
B136: %N2 | C136: =C$135 -> 0.37 | D136: =D$135 -> 0.06 | E136: 0.2 | F136: =F$135 -> 0.15 | G136: 0.03 | H136: =H$135 -> 0.04 | I136: =SUM(C136:H136) -> 0.85 | J136: 0.2
B137: %N3 | C137: =C$135 -> 0.37 | D137: 0.06 | E137: 0.11 | F137: 0.15 | G137: 0.02 | H137: 0.04 | I137: =SUM(C137:H137) -> 0.75 | J137: 0.2
B138: %N4 | C138: 0.37 | D138: 0.06 | E138: 0.04 | F138: 0.15 | G138: 0.01 | H138: 0.04 | I138: =SUM(C138:H138) -> 0.67 | J138: 0.2
B139: %STC | C139: 0.37 | D139: 0.06 | E139: 0 | F139: 0.15 | G139: 0 | H139: 0.04 | I139: =SUM(C139:H139) -> 0.62 | J139: 0.2
B142: Nivel de tensión | C142: Generación - G | D142: Transmisión - T | E142: Distribución - D | F142: Comercialización - Cv | G142: Pérdidas - PR | H142: Restricciones - R | I142: Subtotal | J142: Contribución | K142: Total
B143: Nivel de Tensión 1 | C143: =$D$131*C135 -> 179.3686 | D143: 29.0868 | E143: 159.9774 | F143: 72.717 | G143: 24.239 | H143: 19.3912 | I143: =SUM(Table61[[#This Row],[Generación - G]],Table61[[#This Row],[Transmisión - T]],Table61[[#This Row],[Distribución - D]],Table61[[#This Row],[Comercialización - Cv]],Table61[[#This Row],[Pérdidas - PR]],Table61[[#This Row],[Restricciones - R]]) -> 484.78 | J143: =$D131*J135 -> 96.956 | K143: =SUM(Table61[[#This Row],[Subtotal]],Table61[[#This Row],[Contribución]]) -> 581.736
B144: Nivel de Tensión 2 | C144: 179.3686 | D144: 29.0868 | E144: 96.956 | F144: 72.717 | G144: =$D$131*G136 -> 14.5434 | H144: 19.3912 | I144: =SUM(Table61[[#This Row],[Generación - G]],Table61[[#This Row],[Transmisión - T]],Table61[[#This Row],[Distribución - D]],Table61[[#This Row],[Comercialización - Cv]],Table61[[#This Row],[Pérdidas - PR]],Table61[[#This Row],[Restricciones - R]]) -> 412.063 | J144: =$I144*J136 -> 82.4126 | K144: =SUM(Table61[[#This Row],[Subtotal]],Table61[[#This Row],[Contribución]]) -> 494.4756
B145: Nivel de Tensión 3 | C145: 179.3686 | D145: 29.0868 | E145: 53.3258 | F145: 72.717 | G145: =$D$131*G137 -> 9.6956 | H145: 19.3912 | I145: =SUM(Table61[[#This Row],[Generación - G]],Table61[[#This Row],[Transmisión - T]],Table61[[#This Row],[Distribución - D]],Table61[[#This Row],[Comercialización - Cv]],Table61[[#This Row],[Pérdidas - PR]],Table61[[#This Row],[Restricciones - R]]) -> 363.585 | J145: =$I145*J137 -> 72.717 | K145: =SUM(Table61[[#This Row],[Subtotal]],Table61[[#This Row],[Contribución]]) -> 436.302
B146: Nivel de Tensión 4 | C146: 179.3686 | D146: 29.0868 | E146: 19.3912 | F146: 72.717 | G146: =$D$131*G138 -> 4.8478 | H146: 19.3912 | I146: =SUM(Table61[[#This Row],[Generación - G]],Table61[[#This Row],[Transmisión - T]],Table61[[#This Row],[Distribución - D]],Table61[[#This Row],[Comercialización - Cv]],Table61[[#This Row],[Pérdidas - PR]],Table61[[#This Row],[Restricciones - R]]) -> 324.8026 | J146: =$I146*J138 -> 64.96052 | K146: =SUM(Table61[[#This Row],[Subtotal]],Table61[[#This Row],[Contribución]]) -> 389.76312
B147: Sistema de Transmisión Nacional | C147: 179.3686 | D147: 29.0868 | E147: 0 | F147: 72.717 | G147: =$D$131*G139 -> 0 | H147: 19.3912 | I147: =SUM(Table61[[#This Row],[Generación - G]],Table61[[#This Row],[Transmisión - T]],Table61[[#This Row],[Distribución - D]],Table61[[#This Row],[Comercialización - Cv]],Table61[[#This Row],[Pérdidas - PR]],Table61[[#This Row],[Restricciones - R]]) -> 300.5636 | J147: =$I147*J139 -> 60.11272 | K147: =SUM(Table61[[#This Row],[Subtotal]],Table61[[#This Row],[Contribución]]) -> 360.67632
B149: Generación - G | C149: =AVERAGE(Table61[Generación - G]) -> 179.3686
B150: Comercialización - Cv | C150: =AVERAGE(Table61[Comercialización - Cv]) -> 72.717
B152: Precio de bolsa - PB | C152: =AVERAGE(Precioseleccionado[Precio Tarifa Horaria])*AVERAGE(Table60[Generación - G]) -> 139.7580342

Sheet 2A Solar FV (hidden)
B2: Solar FV - Tarifa Monomia, Analisis mensual
B5: ='Top dashboard'!D10 -> Ciudad | C5: ='Top dashboard'!E10 -> Montería
B7: Supuestos: Inclinación = Latitud Redondeada, Azimut 0° (N) 180° (S), Pérdidas por orientación e inclinación = 0, Ratio de rendimiento = 0.9
B8: Datos del año calendario en curso
B10: Mes | C10: ene-20 | D10: feb-20 | E10: mar-20 | F10: abr-20 | G10: May-20 | H10: Jun-20 | I10: Jul-20 | J10: ago-20 | K10: Sep-20 | L10: Oct-20 | M10: Nov-20 | N10: dic-20 | O10: min | P10: med | Q10: max
B11: Número del mes | C11: 1 | D11: 2 | E11: 3 | F11: 4 | G11: 5 | H11: 6 | I11: 7 | J11: 8 | K11: 9 | L11: 10 | M11: 11 | N11: 12
B12: Número de días del mes | C12: 31 | D12: 28 | E12: 31 | F12: 30 | G12: =_xlfn.DAYS(Table9[[#Headers],[Jun-20]],Table9[[#Headers],[May-20]]) -> 31 | H12: =_xlfn.DAYS(Table9[[#Headers],[Jul-20]],Table9[[#Headers],[Jun-20]]) -> 30 | I12: 31 | J12: 31 | K12: =_xlfn.DAYS(Table9[[#Headers],[Oct-20]],Table9[[#Headers],[Sep-20]]) -> 30 | L12: =_xlfn.DAYS(Table9[[#Headers],[Nov-20]],Table9[[#Headers],[Oct-20]]) -> 31 | M12: 30 | N12: 31 | O12: =MIN(Table9[[#This Row],[ene-20]:[dic-20]]) -> 28 | P12: =AVERAGE(Table9[[#This Row],[ene-20]:[dic-20]]) -> 30.41666667 | Q12: =MAX(Table9[[#This Row],[ene-20]:[dic-20]]) -> 31
B14: Datos de generación solar, promedio horario mensual
B15: Fórmula (kWh) = Radiación (Wh/m2) * Capacidad del sistema (kWp) * Eficiencia del sistema (0.9) / Irradiación STC (W/m2) / 1000 Wh
B16: Eficiencia del sistema | C16: 0.9
B19: Hora / Mes | C19: ene | D19: feb | E19: mar | F19: abr | G19: may | H19: jun | I19: jul | J19: ago | K19: sep | L19: oct | M19: nov | N19: dic | O19: Gmin | P19: Gmed | Q19: Gmax
B20: 00:00:00 | C20: =INDEX(Solardata[Ene],MATCH(1,($B20=Solardata[Hora])*($C$5=Solardata[Ciudad]),0))*'Solar FV'!$E$18*$C$16/1000 -> 0 | D20: =INDEX(Solardata[Feb],MATCH(1,($B20=Solardata[Hora])*($C$5=Solardata[Ciudad]),0))*'Solar FV'!$E$18*$C$16/1000 -> 0 | E20: =INDEX(Solardata[Mar],MATCH(1,($B20=Solardata[Hora])*($C$5=Solardata[Ciudad]),0))*'Solar FV'!$E$18*$C$16/1000 -> 0 | F20: =INDEX(Solardata[Abr],MATCH(1,($B20=Solardata[Hora])*($C$5=Solardata[Ciudad]),0))*'Solar FV'!$E$18*$C$16/1000 -> 0 | G20: =INDEX(Solardata[May],MATCH(1,($B20=Solardata[Hora])*($C$5=Solardata[Ciudad]),0))*'Solar FV'!$E$18*$C$16/1000 -> 0 | H20: =INDEX(Solardata[Jun],MATCH(1,($B20=Solardata[Hora])*($C$5=Solardata[Ciudad]),0))*'Solar FV'!$E$18*$C$16/1000 -> 0 | I20: =INDEX(Solardata[Jul],MATCH(1,($B20=Solardata[Hora])*($C$5=Solardata[Ciudad]),0))*'Solar FV'!$E$18*$C$16/1000 -> 0 | J20: =INDEX(Solardata[Ago],MATCH(1,($B20=Solardata[Hora])*($C$5=Solardata[Ciudad]),0))*'Solar FV'!$E$18*$C$16/1000 -> 0 | K20: =INDEX(Solardata[Sep],MATCH(1,($B20=Solardata[Hora])*($C$5=Solardata[Ciudad]),0))*'Solar FV'!$E$18*$C$16/1000 -> 0 | L20: =INDEX(Solardata[Oct],MATCH(1,($B20=Solardata[Hora])*($C$5=Solardata[Ciudad]),0))*'Solar FV'!$E$18*$C$16/1000 -> 0 | M20: =INDEX(Solardata[Nov],MATCH(1,($B20=Solardata[Hora])*($C$5=Solardata[Ciudad]),0))*'Solar FV'!$E$18*$C$16/1000 -> 0 | N20: =INDEX(Solardata[Dic],MATCH(1,($B20=Solardata[Hora])*($C$5=Solardata[Ciudad]),0))*'Solar FV'!$E$18*$C$16/1000 -> 0 | O20: =MIN(Generation[[#This Row],[ene]:[dic]]) -> 0 | P20: =AVERAGE(Generation[[#This Row],[ene]:[dic]]) -> 0 | Q20: =MAX(Generation[[#This Row],[ene]:[dic]]) -> 0
B21: 01:00:00 | C21: =INDEX(Solardata[Ene],MATCH(1,($B21=Solardata[Hora])*($C$5=Solardata[Ciudad]),0))*'Solar FV'!$E$18*$C$16/1000 -> 0 | D21: =INDEX(Solardata[Feb],MATCH(1,($B21=Solardata[Hora])*($C$5=Solardata[Ciudad]),0))*'Solar FV'!$E$18*$C$16/1000 -> 0 | E21: =INDEX(Solardata[Mar],MATCH(1,($B21=Solardata[Hora])*($C$5=Solardata[Ciudad]),0))*'Solar FV'!$E$18*$C$16/1000 -> 0 | F21: =INDEX(Solardata[Abr],MATCH(1,($B21=Solardata[Hora])*($C$5=Solardata[Ciudad]),0))*'Solar FV'!$E$18*$C$16/1000 -> 0 | G21: =INDEX(Solardata[May],MATCH(1,($B21=Solardata[Hora])*($C$5=Solardata[Ciudad]),0))*'Solar FV'!$E$18*$C$16/1000 -> 0 | H21: =INDEX(Solardata[Jun],MATCH(1,($B21=Solardata[Hora])*($C$5=Solardata[Ciudad]),0))*'Solar FV'!$E$18*$C$16/1000 -> 0 | I21: =INDEX(Solardata[Jul],MATCH(1,($B21=Solardata[Hora])*($C$5=Solardata[Ciudad]),0))*'Solar FV'!$E$18*$C$16/1000 -> 0 | J21: =INDEX(Solardata[Ago],MATCH(1,($B21=Solardata[Hora])*($C$5=Solardata[Ciudad]),0))*'Solar FV'!$E$18*$C$16/1000 -> 0 | K21: =INDEX(Solardata[Sep],MATCH(1,($B21=Solardata[Hora])*($C$5=Solardata[Ciudad]),0))*'Solar FV'!$E$18*$C$16/1000 -> 0 | L21: =INDEX(Solardata[Oct],MATCH(1,($B21=Solardata[Hora])*($C$5=Solardata[Ciudad]),0))*'Solar FV'!$E$18*$C$16/1000 -> 0 | M21: =INDEX(Solardata[Nov],MATCH(1,($B21=Solardata[Hora])*($C$5=Solardata[Ciudad]),0))*'Solar FV'!$E$18*$C$16/1000 -> 0 | N21: =INDEX(Solardata[Dic],MATCH(1,($B21=Solardata[Hora])*($C$5=Solardata[Ciudad]),0))*'Solar FV'!$E$18*$C$16/1000 -> 0 | O21: =MIN(Generation[[#This Row],[ene]:[dic]]) -> 0 | P21: =AVERAGE(Generation[[#This Row],[ene]:[dic]]) -> 0 | Q21: =MAX(Generation[[#This Row],[ene]:[dic]]) -> 0
B22: 02:00:00 | C22: =INDEX(Solardata[Ene],MATCH(1,($B22=Solardata[Hora])*($C$5=Solardata[Ciudad]),0))*'Solar FV'!$E$18*$C$16/1000 -> 0 | D22: =INDEX(Solardata[Feb],MATCH(1,($B22=Solardata[Hora])*($C$5=Solardata[Ciudad]),0))*'Solar FV'!$E$18*$C$16/1000 -> 0 | E22: =INDEX(Solardata[Mar],MATCH(1,($B22=Solardata[Hora])*($C$5=Solardata[Ciudad]),0))*'Solar FV'!$E$18*$C$16/1000 -> 0 | F22: =INDEX(Solardata[Abr],MATCH(1,($B22=Solardata[Hora])*($C$5=Solardata[Ciudad]),0))*'Solar FV'!$E$18*$C$16/1000 -> 0 | G22: =INDEX(Solardata[May],MATCH(1,($B22=Solardata[Hora])*($C$5=Solardata[Ciudad]),0))*'Solar FV'!$E$18*$C$16/1000 -> 0 | H22: =INDEX(Solardata[Jun],MATCH(1,($B22=Solardata[Hora])*($C$5=Solardata[Ciudad]),0))*'Solar FV'!$E$18*$C$16/1000 -> 0 | I22: =INDEX(Solardata[Jul],MATCH(1,($B22=Solardata[Hora])*($C$5=Solardata[Ciudad]),0))*'Solar FV'!$E$18*$C$16/1000 -> 0 | J22: =INDEX(Solardata[Ago],MATCH(1,($B22=Solardata[Hora])*($C$5=Solardata[Ciudad]),0))*'Solar FV'!$E$18*$C$16/1000 -> 0 | K22: =INDEX(Solardata[Sep],MATCH(1,($B22=Solardata[Hora])*($C$5=Solardata[Ciudad]),0))*'Solar FV'!$E$18*$C$16/1000 -> 0 | L22: =INDEX(Solardata[Oct],MATCH(1,($B22=Solardata[Hora])*($C$5=Solardata[Ciudad]),0))*'Solar FV'!$E$18*$C$16/1000 -> 0 | M22: =INDEX(Solardata[Nov],MATCH(1,($B22=Solardata[Hora])*($C$5=Solardata[Ciudad]),0))*'Solar FV'!$E$18*$C$16/1000 -> 0 | N22: =INDEX(Solardata[Dic],MATCH(1,($B22=Solardata[Hora])*($C$5=Solardata[Ciudad]),0))*'Solar FV'!$E$18*$C$16/1000 -> 0 | O22: =MIN(Generation[[#This Row],[ene]:[dic]]) -> 0 | P22: =AVERAGE(Generation[[#This Row],[ene]:[dic]]) -> 0 | Q22: =MAX(Generation[[#This Row],[ene]:[dic]]) -> 0
B23: 03:00:00 | C23: =INDEX(Solardata[Ene],MATCH(1,($B23=Solardata[Hora])*($C$5=Solardata[Ciudad]),0))*'Solar FV'!$E$18*$C$16/1000 -> 0 | D23: =INDEX(Solardata[Feb],MATCH(1,($B23=Solardata[Hora])*($C$5=Solardata[Ciudad]),0))*'Solar FV'!$E$18*$C$16/1000 -> 0 | E23: =INDEX(Solardata[Mar],MATCH(1,($B23=Solardata[Hora])*($C$5=Solardata[Ciudad]),0))*'Solar FV'!$E$18*$C$16/1000 -> 0 | F23: =INDEX(Solardata[Abr],MATCH(1,($B23=Solardata[Hora])*($C$5=Solardata[Ciudad]),0))*'Solar FV'!$E$18*$C$16/1000 -> 0 | G23: =INDEX(Solardata[May],MATCH(1,($B23=Solardata[Hora])*($C$5=Solardata[Ciudad]),0))*'Solar FV'!$E$18*$C$16/1000 -> 0 | H23: =INDEX(Solardata[Jun],MATCH(1,($B23=Solardata[Hora])*($C$5=Solardata[Ciudad]),0))*'Solar FV'!$E$18*$C$16/1000 -> 0 | I23: =INDEX(Solardata[Jul],MATCH(1,($B23=Solardata[Hora])*($C$5=Solardata[Ciudad]),0))*'Solar FV'!$E$18*$C$16/1000 -> 0 | J23: =INDEX(Solardata[Ago],MATCH(1,($B23=Solardata[Hora])*($C$5=Solardata[Ciudad]),0))*'Solar FV'!$E$18*$C$16/1000 -> 0 | K23: =INDEX(Solardata[Sep],MATCH(1,($B23=Solardata[Hora])*($C$5=Solardata[Ciudad]),0))*'Solar FV'!$E$18*$C$16/1000 -> 0 | L23: =INDEX(Solardata[Oct],MATCH(1,($B23=Solardata[Hora])*($C$5=Solardata[Ciudad]),0))*'Solar FV'!$E$18*$C$16/1000 -> 0 | M23: =INDEX(Solardata[Nov],MATCH(1,($B23=Solardata[Hora])*($C$5=Solardata[Ciudad]),0))*'Solar FV'!$E$18*$C$16/1000 -> 0 | N23: =INDEX(Solardata[Dic],MATCH(1,($B23=Solardata[Hora])*($C$5=Solardata[Ciudad]),0))*'Solar FV'!$E$18*$C$16/1000 -> 0 | O23: =MIN(Generation[[#This Row],[ene]:[dic]]) -> 0 | P23: =AVERAGE(Generation[[#This Row],[ene]:[dic]]) -> 0 | Q23: =MAX(Generation[[#This Row],[ene]:[dic]]) -> 0
B24: 04:00:00 | C24: =INDEX(Solardata[Ene],MATCH(1,($B24=Solardata[Hora])*($C$5=Solardata[Ciudad]),0))*'Solar FV'!$E$18*$C$16/1000 -> 0 | D24: =INDEX(Solardata[Feb],MATCH(1,($B24=Solardata[Hora])*($C$5=Solardata[Ciudad]),0))*'Solar FV'!$E$18*$C$16/1000 -> 0 | E24: =INDEX(Solardata[Mar],MATCH(1,($B24=Solardata[Hora])*($C$5=Solardata[Ciudad]),0))*'Solar FV'!$E$18*$C$16/1000 -> 0 | F24: =INDEX(Solardata[Abr],MATCH(1,($B24=Solardata[Hora])*($C$5=Solardata[Ciudad]),0))*'Solar FV'!$E$18*$C$16/1000 -> 0 | G24: =INDEX(Solardata[May],MATCH(1,($B24=Solardata[Hora])*($C$5=Solardata[Ciudad]),0))*'Solar FV'!$E$18*$C$16/1000 -> 0 | H24: =INDEX(Solardata[Jun],MATCH(1,($B24=Solardata[Hora])*($C$5=Solardata[Ciudad]),0))*'Solar FV'!$E$18*$C$16/1000 -> 0 | I24: =INDEX(Solardata[Jul],MATCH(1,($B24=Solardata[Hora])*($C$5=Solardata[Ciudad]),0))*'Solar FV'!$E$18*$C$16/1000 -> 9e-06 | J24: =INDEX(Solardata[Ago],MATCH(1,($B24=Solardata[Hora])*($C$5=Solardata[Ciudad]),0))*'Solar FV'!$E$18*$C$16/1000 -> 0 | K24: =INDEX(Solardata[Sep],MATCH(1,($B24=Solardata[Hora])*($C$5=Solardata[Ciudad]),0))*'Solar FV'!$E$18*$C$16/1000 -> 0 | L24: =INDEX(Solardata[Oct],MATCH(1,($B24=Solardata[Hora])*($C$5=Solardata[Ciudad]),0))*'Solar FV'!$E$18*$C$16/1000 -> 0 | M24: =INDEX(Solardata[Nov],MATCH(1,($B24=Solardata[Hora])*($C$5=Solardata[Ciudad]),0))*'Solar FV'!$E$18*$C$16/1000 -> 0 | N24: =INDEX(Solardata[Dic],MATCH(1,($B24=Solardata[Hora])*($C$5=Solardata[Ciudad]),0))*'Solar FV'!$E$18*$C$16/1000 -> 0 | O24: =MIN(Generation[[#This Row],[ene]:[dic]]) -> 0 | P24: =AVERAGE(Generation[[#This Row],[ene]:[dic]]) -> 7.5e-07 | Q24: =MAX(Generation[[#This Row],[ene]:[dic]]) -> 9e-06
B25: 05:00:00 | C25: =INDEX(Solardata[Ene],MATCH(1,($B25=Solardata[Hora])*($C$5=Solardata[Ciudad]),0))*'Solar FV'!$E$18*$C$16/1000 -> 1.8e-05 | D25: =INDEX(Solardata[Feb],MATCH(1,($B25=Solardata[Hora])*($C$5=Solardata[Ciudad]),0))*'Solar FV'!$E$18*$C$16/1000 -> 1.8e-05 | E25: =INDEX(Solardata[Mar],MATCH(1,($B25=Solardata[Hora])*($C$5=Solardata[Ciudad]),0))*'Solar FV'!$E$18*$C$16/1000 -> 0.000108 | F25: =INDEX(Solardata[Abr],MATCH(1,($B25=Solardata[Hora])*($C$5=Solardata[Ciudad]),0))*'Solar FV'!$E$18*$C$16/1000 -> 0.000153 | G25: =INDEX(Solardata[May],MATCH(1,($B25=Solardata[Hora])*($C$5=Solardata[Ciudad]),0))*'Solar FV'!$E$18*$C$16/1000 -> 8.1e-05 | H25: =INDEX(Solardata[Jun],MATCH(1,($B25=Solardata[Hora])*($C$5=Solardata[Ciudad]),0))*'Solar FV'!$E$18*$C$16/1000 -> 0.000162 | I25: =INDEX(Solardata[Jul],MATCH(1,($B25=Solardata[Hora])*($C$5=Solardata[Ciudad]),0))*'Solar FV'!$E$18*$C$16/1000 -> 7.2e-05 | J25: =INDEX(Solardata[Ago],MATCH(1,($B25=Solardata[Hora])*($C$5=Solardata[Ciudad]),0))*'Solar FV'!$E$18*$C$16/1000 -> 1.8e-05 | K25: =INDEX(Solardata[Sep],MATCH(1,($B25=Solardata[Hora])*($C$5=Solardata[Ciudad]),0))*'Solar FV'!$E$18*$C$16/1000 -> 9e-06 | L25: =INDEX(Solardata[Oct],MATCH(1,($B25=Solardata[Hora])*($C$5=Solardata[Ciudad]),0))*'Solar FV'!$E$18*$C$16/1000 -> 3.6e-05 | M25: =INDEX(Solardata[Nov],MATCH(1,($B25=Solardata[Hora])*($C$5=Solardata[Ciudad]),0))*'Solar FV'!$E$18*$C$16/1000 -> 1.8e-05 | N25: =INDEX(Solardata[Dic],MATCH(1,($B25=Solardata[Hora])*($C$5=Solardata[Ciudad]),0))*'Solar FV'!$E$18*$C$16/1000 -> 4.5e-05 | O25: =MIN(Generation[[#This Row],[ene]:[dic]]) -> 9e-06 | P25: =AVERAGE(Generation[[#This Row],[ene]:[dic]]) -> 6.15e-05 | Q25: =MAX(Generation[[#This Row],[ene]:[dic]]) -> 0.000162
B26: 06:00:00 | C26: =INDEX(Solardata[Ene],MATCH(1,($B26=Solardata[Hora])*($C$5=Solardata[Ciudad]),0))*'Solar FV'!$E$18*$C$16/1000 -> 0.002511 | D26: =INDEX(Solardata[Feb],MATCH(1,($B26=Solardata[Hora])*($C$5=Solardata[Ciudad]),0))*'Solar FV'!$E$18*$C$16/1000 -> 0.002484 | E26: =INDEX(Solardata[Mar],MATCH(1,($B26=Solardata[Hora])*($C$5=Solardata[Ciudad]),0))*'Solar FV'!$E$18*$C$16/1000 -> 0.003807 | F26: =INDEX(Solardata[Abr],MATCH(1,($B26=Solardata[Hora])*($C$5=Solardata[Ciudad]),0))*'Solar FV'!$E$18*$C$16/1000 -> 0.004878 | G26: =INDEX(Solardata[May],MATCH(1,($B26=Solardata[Hora])*($C$5=Solardata[Ciudad]),0))*'Solar FV'!$E$18*$C$16/1000 -> 0.003483 | H26: =INDEX(Solardata[Jun],MATCH(1,($B26=Solardata[Hora])*($C$5=Solardata[Ciudad]),0))*'Solar FV'!$E$18*$C$16/1000 -> 0.004365 | I26: =INDEX(Solardata[Jul],MATCH(1,($B26=Solardata[Hora])*($C$5=Solardata[Ciudad]),0))*'Solar FV'!$E$18*$C$16/1000 -> 0.003312 | J26: =INDEX(Solardata[Ago],MATCH(1,($B26=Solardata[Hora])*($C$5=Solardata[Ciudad]),0))*'Solar FV'!$E$18*$C$16/1000 -> 0.003033 | K26: =INDEX(Solardata[Sep],MATCH(1,($B26=Solardata[Hora])*($C$5=Solardata[Ciudad]),0))*'Solar FV'!$E$18*$C$16/1000 -> 0.002646 | L26: =INDEX(Solardata[Oct],MATCH(1,($B26=Solardata[Hora])*($C$5=Solardata[Ciudad]),0))*'Solar FV'!$E$18*$C$16/1000 -> 0.004158 | M26: =INDEX(Solardata[Nov],MATCH(1,($B26=Solardata[Hora])*($C$5=Solardata[Ciudad]),0))*'Solar FV'!$E$18*$C$16/1000 -> 0.003303 | N26: =INDEX(Solardata[Dic],MATCH(1,($B26=Solardata[Hora])*($C$5=Solardata[Ciudad]),0))*'Solar FV'!$E$18*$C$16/1000 -> 0.003321 | O26: =MIN(Generation[[#This Row],[ene]:[dic]]) -> 0.002484 | P26: =AVERAGE(Generation[[#This Row],[ene]:[dic]]) -> 0.00344175 | Q26: =MAX(Generation[[#This Row],[ene]:[dic]]) -> 0.004878
B27: 07:00:00 | C27: =INDEX(Solardata[Ene],MATCH(1,($B27=Solardata[Hora])*($C$5=Solardata[Ciudad]),0))*'Solar FV'!$E$18*$C$16/1000 -> 0.012195 | D27: =INDEX(Solardata[Feb],MATCH(1,($B27=Solardata[Hora])*($C$5=Solardata[Ciudad]),0))*'Solar FV'!$E$18*$C$16/1000 -> 0.01278 | E27: =INDEX(Solardata[Mar],MATCH(1,($B27=Solardata[Hora])*($C$5=Solardata[Ciudad]),0))*'Solar FV'!$E$18*$C$16/1000 -> 0.014517 | F27: =INDEX(Solardata[Abr],MATCH(1,($B27=Solardata[Hora])*($C$5=Solardata[Ciudad]),0))*'Solar FV'!$E$18*$C$16/1000 -> 0.015696 | G27: =INDEX(Solardata[May],MATCH(1,($B27=Solardata[Hora])*($C$5=Solardata[Ciudad]),0))*'Solar FV'!$E$18*$C$16/1000 -> 0.010692 | H27: =INDEX(Solardata[Jun],MATCH(1,($B27=Solardata[Hora])*($C$5=Solardata[Ciudad]),0))*'Solar FV'!$E$18*$C$16/1000 -> 0.011925 | I27: =INDEX(Solardata[Jul],MATCH(1,($B27=Solardata[Hora])*($C$5=Solardata[Ciudad]),0))*'Solar FV'!$E$18*$C$16/1000 -> 0.012186 | J27: =INDEX(Solardata[Ago],MATCH(1,($B27=Solardata[Hora])*($C$5=Solardata[Ciudad]),0))*'Solar FV'!$E$18*$C$16/1000 -> 0.011403 | K27: =INDEX(Solardata[Sep],MATCH(1,($B27=Solardata[Hora])*($C$5=Solardata[Ciudad]),0))*'Solar FV'!$E$18*$C$16/1000 -> 0.009855 | L27: =INDEX(Solardata[Oct],MATCH(1,($B27=Solardata[Hora])*($C$5=Solardata[Ciudad]),0))*'Solar FV'!$E$18*$C$16/1000 -> 0.0135 | M27: =INDEX(Solardata[Nov],MATCH(1,($B27=Solardata[Hora])*($C$5=Solardata[Ciudad]),0))*'Solar FV'!$E$18*$C$16/1000 -> 0.012186 | N27: =INDEX(Solardata[Dic],MATCH(1,($B27=Solardata[Hora])*($C$5=Solardata[Ciudad]),0))*'Solar FV'!$E$18*$C$16/1000 -> 0.012726 | O27: =MIN(Generation[[#This Row],[ene]:[dic]]) -> 0.009855 | P27: =AVERAGE(Generation[[#This Row],[ene]:[dic]]) -> 0.01247175 | Q27: =MAX(Generation[[#This Row],[ene]:[dic]]) -> 0.015696
B28: 08:00:00 | C28: =INDEX(Solardata[Ene],MATCH(1,($B28=Solardata[Hora])*($C$5=Solardata[Ciudad]),0))*'Solar FV'!$E$18*$C$16/1000 -> 0.026595 | D28: =INDEX(Solardata[Feb],MATCH(1,($B28=Solardata[Hora])*($C$5=Solardata[Ciudad]),0))*'Solar FV'!$E$18*$C$16/1000 -> 0.027594 | E28: =INDEX(Solardata[Mar],MATCH(1,($B28=Solardata[Hora])*($C$5=Solardata[Ciudad]),0))*'Solar FV'!$E$18*$C$16/1000 -> 0.029115 | F28: =INDEX(Solardata[Abr],MATCH(1,($B28=Solardata[Hora])*($C$5=Solardata[Ciudad]),0))*'Solar FV'!$E$18*$C$16/1000 -> 0.028917 | G28: =INDEX(Solardata[May],MATCH(1,($B28=Solardata[Hora])*($C$5=Solardata[Ciudad]),0))*'Solar FV'!$E$18*$C$16/1000 -> 0.021735 | H28: =INDEX(Solardata[Jun],MATCH(1,($B28=Solardata[Hora])*($C$5=Solardata[Ciudad]),0))*'Solar FV'!$E$18*$C$16/1000 -> 0.025875 | I28: =INDEX(Solardata[Jul],MATCH(1,($B28=Solardata[Hora])*($C$5=Solardata[Ciudad]),0))*'Solar FV'!$E$18*$C$16/1000 -> 0.027459 | J28: =INDEX(Solardata[Ago],MATCH(1,($B28=Solardata[Hora])*($C$5=Solardata[Ciudad]),0))*'Solar FV'!$E$18*$C$16/1000 -> 0.025155 | K28: =INDEX(Solardata[Sep],MATCH(1,($B28=Solardata[Hora])*($C$5=Solardata[Ciudad]),0))*'Solar FV'!$E$18*$C$16/1000 -> 0.020925 | L28: =INDEX(Solardata[Oct],MATCH(1,($B28=Solardata[Hora])*($C$5=Solardata[Ciudad]),0))*'Solar FV'!$E$18*$C$16/1000 -> 0.027612 | M28: =INDEX(Solardata[Nov],MATCH(1,($B28=Solardata[Hora])*($C$5=Solardata[Ciudad]),0))*'Solar FV'!$E$18*$C$16/1000 -> 0.024633 | N28: =INDEX(Solardata[Dic],MATCH(1,($B28=Solardata[Hora])*($C$5=Solardata[Ciudad]),0))*'Solar FV'!$E$18*$C$16/1000 -> 0.026622 | O28: =MIN(Generation[[#This Row],[ene]:[dic]]) -> 0.020925 | P28: =AVERAGE(Generation[[#This Row],[ene]:[dic]]) -> 0.02601975 | Q28: =MAX(Generation[[#This Row],[ene]:[dic]]) -> 0.029115
B29: 09:00:00 | C29: =INDEX(Solardata[Ene],MATCH(1,($B29=Solardata[Hora])*($C$5=Solardata[Ciudad]),0))*'Solar FV'!$E$18*$C$16/1000 -> 0.041418 | D29: =INDEX(Solardata[Feb],MATCH(1,($B29=Solardata[Hora])*($C$5=Solardata[Ciudad]),0))*'Solar FV'!$E$18*$C$16/1000 -> 0.042624 | E29: =INDEX(Solardata[Mar],MATCH(1,($B29=Solardata[Hora])*($C$5=Solardata[Ciudad]),0))*'Solar FV'!$E$18*$C$16/1000 -> 0.043101 | F29: =INDEX(Solardata[Abr],MATCH(1,($B29=Solardata[Hora])*($C$5=Solardata[Ciudad]),0))*'Solar FV'!$E$18*$C$16/1000 -> 0.042507 | G29: =INDEX(Solardata[May],MATCH(1,($B29=Solardata[Hora])*($C$5=Solardata[Ciudad]),0))*'Solar FV'!$E$18*$C$16/1000 -> 0.030429 | H29: =INDEX(Solardata[Jun],MATCH(1,($B29=Solardata[Hora])*($C$5=Solardata[Ciudad]),0))*'Solar FV'!$E$18*$C$16/1000 -> 0.036981 | I29: =INDEX(Solardata[Jul],MATCH(1,($B29=Solardata[Hora])*($C$5=Solardata[Ciudad]),0))*'Solar FV'!$E$18*$C$16/1000 -> 0.039303 | J29: =INDEX(Solardata[Ago],MATCH(1,($B29=Solardata[Hora])*($C$5=Solardata[Ciudad]),0))*'Solar FV'!$E$18*$C$16/1000 -> 0.036576 | K29: =INDEX(Solardata[Sep],MATCH(1,($B29=Solardata[Hora])*($C$5=Solardata[Ciudad]),0))*'Solar FV'!$E$18*$C$16/1000 -> 0.034794 | L29: =INDEX(Solardata[Oct],MATCH(1,($B29=Solardata[Hora])*($C$5=Solardata[Ciudad]),0))*'Solar FV'!$E$18*$C$16/1000 -> 0.039798 | M29: =INDEX(Solardata[Nov],MATCH(1,($B29=Solardata[Hora])*($C$5=Solardata[Ciudad]),0))*'Solar FV'!$E$18*$C$16/1000 -> 0.037485 | N29: =INDEX(Solardata[Dic],MATCH(1,($B29=Solardata[Hora])*($C$5=Solardata[Ciudad]),0))*'Solar FV'!$E$18*$C$16/1000 -> 0.039231 | O29: =MIN(Generation[[#This Row],[ene]:[dic]]) -> 0.030429 | P29: =AVERAGE(Generation[[#This Row],[ene]:[dic]]) -> 0.03868725 | Q29: =MAX(Generation[[#This Row],[ene]:[dic]]) -> 0.043101
B30: 10:00:00 | C30: =INDEX(Solardata[Ene],MATCH(1,($B30=Solardata[Hora])*($C$5=Solardata[Ciudad]),0))*'Solar FV'!$E$18*$C$16/1000 -> 0.053784 | D30: =INDEX(Solardata[Feb],MATCH(1,($B30=Solardata[Hora])*($C$5=Solardata[Ciudad]),0))*'Solar FV'!$E$18*$C$16/1000 -> 0.052677 | E30: =INDEX(Solardata[Mar],MATCH(1,($B30=Solardata[Hora])*($C$5=Solardata[Ciudad]),0))*'Solar FV'!$E$18*$C$16/1000 -> 0.054036 | F30: =INDEX(Solardata[Abr],MATCH(1,($B30=Solardata[Hora])*($C$5=Solardata[Ciudad]),0))*'Solar FV'!$E$18*$C$16/1000 -> 0.052335 | G30: =INDEX(Solardata[May],MATCH(1,($B30=Solardata[Hora])*($C$5=Solardata[Ciudad]),0))*'Solar FV'!$E$18*$C$16/1000 -> 0.044253 | H30: =INDEX(Solardata[Jun],MATCH(1,($B30=Solardata[Hora])*($C$5=Solardata[Ciudad]),0))*'Solar FV'!$E$18*$C$16/1000 -> 0.04608 | I30: =INDEX(Solardata[Jul],MATCH(1,($B30=Solardata[Hora])*($C$5=Solardata[Ciudad]),0))*'Solar FV'!$E$18*$C$16/1000 -> 0.052398 | J30: =INDEX(Solardata[Ago],MATCH(1,($B30=Solardata[Hora])*($C$5=Solardata[Ciudad]),0))*'Solar FV'!$E$18*$C$16/1000 -> 0.051921 | K30: =INDEX(Solardata[Sep],MATCH(1,($B30=Solardata[Hora])*($C$5=Solardata[Ciudad]),0))*'Solar FV'!$E$18*$C$16/1000 -> 0.045855 | L30: =INDEX(Solardata[Oct],MATCH(1,($B30=Solardata[Hora])*($C$5=Solardata[Ciudad]),0))*'Solar FV'!$E$18*$C$16/1000 -> 0.047205 | M30: =INDEX(Solardata[Nov],MATCH(1,($B30=Solardata[Hora])*($C$5=Solardata[Ciudad]),0))*'Solar FV'!$E$18*$C$16/1000 -> 0.047313 | N30: =INDEX(Solardata[Dic],MATCH(1,($B30=Solardata[Hora])*($C$5=Solardata[Ciudad]),0))*'Solar FV'!$E$18*$C$16/1000 -> 0.046737 | O30: =MIN(Generation[[#This Row],[ene]:[dic]]) -> 0.044253 | P30: =AVERAGE(Generation[[#This Row],[ene]:[dic]]) -> 0.0495495 | Q30: =MAX(Generation[[#This Row],[ene]:[dic]]) -> 0.054036
B31: 11:00:00 | C31: =INDEX(Solardata[Ene],MATCH(1,($B31=Solardata[Hora])*($C$5=Solardata[Ciudad]),0))*'Solar FV'!$E$18*$C$16/1000 -> 0.059742 | D31: =INDEX(Solardata[Feb],MATCH(1,($B31=Solardata[Hora])*($C$5=Solardata[Ciudad]),0))*'Solar FV'!$E$18*$C$16/1000 -> 0.056772 | E31: =INDEX(Solardata[Mar],MATCH(1,($B31=Solardata[Hora])*($C$5=Solardata[Ciudad]),0))*'Solar FV'!$E$18*$C$16/1000 -> 0.056925 | F31: =INDEX(Solardata[Abr],MATCH(1,($B31=Solardata[Hora])*($C$5=Solardata[Ciudad]),0))*'Solar FV'!$E$18*$C$16/1000 -> 0.057501 | G31: =INDEX(Solardata[May],MATCH(1,($B31=Solardata[Hora])*($C$5=Solardata[Ciudad]),0))*'Solar FV'!$E$18*$C$16/1000 -> 0.051579 | H31: =INDEX(Solardata[Jun],MATCH(1,($B31=Solardata[Hora])*($C$5=Solardata[Ciudad]),0))*'Solar FV'!$E$18*$C$16/1000 -> 0.055098 | I31: =INDEX(Solardata[Jul],MATCH(1,($B31=Solardata[Hora])*($C$5=Solardata[Ciudad]),0))*'Solar FV'!$E$18*$C$16/1000 -> 0.059058 | J31: =INDEX(Solardata[Ago],MATCH(1,($B31=Solardata[Hora])*($C$5=Solardata[Ciudad]),0))*'Solar FV'!$E$18*$C$16/1000 -> 0.055386 | K31: =INDEX(Solardata[Sep],MATCH(1,($B31=Solardata[Hora])*($C$5=Solardata[Ciudad]),0))*'Solar FV'!$E$18*$C$16/1000 -> 0.054387 | L31: =INDEX(Solardata[Oct],MATCH(1,($B31=Solardata[Hora])*($C$5=Solardata[Ciudad]),0))*'Solar FV'!$E$18*$C$16/1000 -> 0.05247 | M31: =INDEX(Solardata[Nov],MATCH(1,($B31=Solardata[Hora])*($C$5=Solardata[Ciudad]),0))*'Solar FV'!$E$18*$C$16/1000 -> 0.055683 | N31: =INDEX(Solardata[Dic],MATCH(1,($B31=Solardata[Hora])*($C$5=Solardata[Ciudad]),0))*'Solar FV'!$E$18*$C$16/1000 -> 0.050922 | O31: =MIN(Generation[[#This Row],[ene]:[dic]]) -> 0.050922 | P31: =AVERAGE(Generation[[#This Row],[ene]:[dic]]) -> 0.05546025 | Q31: =MAX(Generation[[#This Row],[ene]:[dic]]) -> 0.059742
B32: 12:00:00 | C32: =INDEX(Solardata[Ene],MATCH(1,($B32=Solardata[Hora])*($C$5=Solardata[Ciudad]),0))*'Solar FV'!$E$18*$C$16/1000 -> 0.058473 | D32: =INDEX(Solardata[Feb],MATCH(1,($B32=Solardata[Hora])*($C$5=Solardata[Ciudad]),0))*'Solar FV'!$E$18*$C$16/1000 -> 0.058995 | E32: =INDEX(Solardata[Mar],MATCH(1,($B32=Solardata[Hora])*($C$5=Solardata[Ciudad]),0))*'Solar FV'!$E$18*$C$16/1000 -> 0.054126 | F32: =INDEX(Solardata[Abr],MATCH(1,($B32=Solardata[Hora])*($C$5=Solardata[Ciudad]),0))*'Solar FV'!$E$18*$C$16/1000 -> 0.058887 | G32: =INDEX(Solardata[May],MATCH(1,($B32=Solardata[Hora])*($C$5=Solardata[Ciudad]),0))*'Solar FV'!$E$18*$C$16/1000 -> 0.048996 | H32: =INDEX(Solardata[Jun],MATCH(1,($B32=Solardata[Hora])*($C$5=Solardata[Ciudad]),0))*'Solar FV'!$E$18*$C$16/1000 -> 0.056187 | I32: =INDEX(Solardata[Jul],MATCH(1,($B32=Solardata[Hora])*($C$5=Solardata[Ciudad]),0))*'Solar FV'!$E$18*$C$16/1000 -> 0.058356 | J32: =INDEX(Solardata[Ago],MATCH(1,($B32=Solardata[Hora])*($C$5=Solardata[Ciudad]),0))*'Solar FV'!$E$18*$C$16/1000 -> 0.055746 | K32: =INDEX(Solardata[Sep],MATCH(1,($B32=Solardata[Hora])*($C$5=Solardata[Ciudad]),0))*'Solar FV'!$E$18*$C$16/1000 -> 0.057357 | L32: =INDEX(Solardata[Oct],MATCH(1,($B32=Solardata[Hora])*($C$5=Solardata[Ciudad]),0))*'Solar FV'!$E$18*$C$16/1000 -> 0.052506 | M32: =INDEX(Solardata[Nov],MATCH(1,($B32=Solardata[Hora])*($C$5=Solardata[Ciudad]),0))*'Solar FV'!$E$18*$C$16/1000 -> 0.055638 | N32: =INDEX(Solardata[Dic],MATCH(1,($B32=Solardata[Hora])*($C$5=Solardata[Ciudad]),0))*'Solar FV'!$E$18*$C$16/1000 -> 0.050076 | O32: =MIN(Generation[[#This Row],[ene]:[dic]]) -> 0.048996 | P32: =AVERAGE(Generation[[#This Row],[ene]:[dic]]) -> 0.05544525 | Q32: =MAX(Generation[[#This Row],[ene]:[dic]]) -> 0.058995
B33: 13:00:00 | C33: =INDEX(Solardata[Ene],MATCH(1,($B33=Solardata[Hora])*($C$5=Solardata[Ciudad]),0))*'Solar FV'!$E$18*$C$16/1000 -> 0.051696 | D33: =INDEX(Solardata[Feb],MATCH(1,($B33=Solardata[Hora])*($C$5=Solardata[Ciudad]),0))*'Solar FV'!$E$18*$C$16/1000 -> 0.05571 | E33: =INDEX(Solardata[Mar],MATCH(1,($B33=Solardata[Hora])*($C$5=Solardata[Ciudad]),0))*'Solar FV'!$E$18*$C$16/1000 -> 0.049725 | F33: =INDEX(Solardata[Abr],MATCH(1,($B33=Solardata[Hora])*($C$5=Solardata[Ciudad]),0))*'Solar FV'!$E$18*$C$16/1000 -> 0.051624 | G33: =INDEX(Solardata[May],MATCH(1,($B33=Solardata[Hora])*($C$5=Solardata[Ciudad]),0))*'Solar FV'!$E$18*$C$16/1000 -> 0.049806 | H33: =INDEX(Solardata[Jun],MATCH(1,($B33=Solardata[Hora])*($C$5=Solardata[Ciudad]),0))*'Solar FV'!$E$18*$C$16/1000 -> 0.054 | I33: =INDEX(Solardata[Jul],MATCH(1,($B33=Solardata[Hora])*($C$5=Solardata[Ciudad]),0))*'Solar FV'!$E$18*$C$16/1000 -> 0.059283 | J33: =INDEX(Solardata[Ago],MATCH(1,($B33=Solardata[Hora])*($C$5=Solardata[Ciudad]),0))*'Solar FV'!$E$18*$C$16/1000 -> 0.056511 | K33: =INDEX(Solardata[Sep],MATCH(1,($B33=Solardata[Hora])*($C$5=Solardata[Ciudad]),0))*'Solar FV'!$E$18*$C$16/1000 -> 0.056853 | L33: =INDEX(Solardata[Oct],MATCH(1,($B33=Solardata[Hora])*($C$5=Solardata[Ciudad]),0))*'Solar FV'!$E$18*$C$16/1000 -> 0.047223 | M33: =INDEX(Solardata[Nov],MATCH(1,($B33=Solardata[Hora])*($C$5=Solardata[Ciudad]),0))*'Solar FV'!$E$18*$C$16/1000 -> 0.049509 | N33: =INDEX(Solardata[Dic],MATCH(1,($B33=Solardata[Hora])*($C$5=Solardata[Ciudad]),0))*'Solar FV'!$E$18*$C$16/1000 -> 0.043875 | O33: =MIN(Generation[[#This Row],[ene]:[dic]]) -> 0.043875 | P33: =AVERAGE(Generation[[#This Row],[ene]:[dic]]) -> 0.05215125 | Q33: =MAX(Generation[[#This Row],[ene]:[dic]]) -> 0.059283
B34: 14:00:00 | C34: =INDEX(Solardata[Ene],MATCH(1,($B34=Solardata[Hora])*($C$5=Solardata[Ciudad]),0))*'Solar FV'!$E$18*$C$16/1000 -> 0.044964 | D34: =INDEX(Solardata[Feb],MATCH(1,($B34=Solardata[Hora])*($C$5=Solardata[Ciudad]),0))*'Solar FV'!$E$18*$C$16/1000 -> 0.044613 | E34: =INDEX(Solardata[Mar],MATCH(1,($B34=Solardata[Hora])*($C$5=Solardata[Ciudad]),0))*'Solar FV'!$E$18*$C$16/1000 -> 0.041301 | F34: =INDEX(Solardata[Abr],MATCH(1,($B34=Solardata[Hora])*($C$5=Solardata[Ciudad]),0))*'Solar FV'!$E$18*$C$16/1000 -> 0.037233 | G34: =INDEX(Solardata[May],MATCH(1,($B34=Solardata[Hora])*($C$5=Solardata[Ciudad]),0))*'Solar FV'!$E$18*$C$16/1000 -> 0.039807 | H34: =INDEX(Solardata[Jun],MATCH(1,($B34=Solardata[Hora])*($C$5=Solardata[Ciudad]),0))*'Solar FV'!$E$18*$C$16/1000 -> 0.04437 | I34: =INDEX(Solardata[Jul],MATCH(1,($B34=Solardata[Hora])*($C$5=Solardata[Ciudad]),0))*'Solar FV'!$E$18*$C$16/1000 -> 0.050589 | J34: =INDEX(Solardata[Ago],MATCH(1,($B34=Solardata[Hora])*($C$5=Solardata[Ciudad]),0))*'Solar FV'!$E$18*$C$16/1000 -> 0.046386 | K34: =INDEX(Solardata[Sep],MATCH(1,($B34=Solardata[Hora])*($C$5=Solardata[Ciudad]),0))*'Solar FV'!$E$18*$C$16/1000 -> 0.048555 | L34: =INDEX(Solardata[Oct],MATCH(1,($B34=Solardata[Hora])*($C$5=Solardata[Ciudad]),0))*'Solar FV'!$E$18*$C$16/1000 -> 0.037674 | M34: =INDEX(Solardata[Nov],MATCH(1,($B34=Solardata[Hora])*($C$5=Solardata[Ciudad]),0))*'Solar FV'!$E$18*$C$16/1000 -> 0.040356 | N34: =INDEX(Solardata[Dic],MATCH(1,($B34=Solardata[Hora])*($C$5=Solardata[Ciudad]),0))*'Solar FV'!$E$18*$C$16/1000 -> 0.033507 | O34: =MIN(Generation[[#This Row],[ene]:[dic]]) -> 0.033507 | P34: =AVERAGE(Generation[[#This Row],[ene]:[dic]]) -> 0.04244625 | Q34: =MAX(Generation[[#This Row],[ene]:[dic]]) -> 0.050589
